Workbook

Sheet Gen Info
B1: FLOOR FRAMING ANALYSIS
B2: Steel Joist Institute
B3: 234 W. Cheves Street
B4: Florence, SC 29501
B5: www.steeljoist.org
B6: Copyright © 2018
B8: Purpose:
B9: This spreadsheet is intended to be a tool to assist in the preliminary design and estimate for joists and Joist Girders
B10: used in floors. All of the values are approximate and are intended as a guide.
B12: The design worksheets in this workbook are arranged such that "USER" input is as shown below.
B13: Input | C13: Input values are in boxed cells with highlighted light yellow background.
B15: The "USER" must be familiar with the analysis and design procedures of the SJI Specification and the SDI
B16: Specification.
B19: ANSI/SJI100-15
B20: STANDARD SPECIFICATION FOR K-SERIES, LH-SERIES, AND DLH-SERIES OPEN WEB STEEL JOISTS
B21: AND FOR JOIST GIRDERS
B23: 103.1 | C23: Design Basis
B24: 103.2 | C24: Design Using Load and Resistance Factor Design (LRFD)
C25: Joists and Joist Girders shall have their components so proportioned that the required stresses,
C26: fu, shall not exceed ФFn
B27: 103.2 | C27: Design Using Allowable Strength Design (ASD)
C28: Joists and Joist Girders shall have their components so proportioned that the required stresses,
C29: fa, shall not exceed Fn / Ω
B31: ANSI/SJI-CJ-1.0
B32: STANDARD SPECIFICATION FOR COMPOSITE STEEL JOISTS, CJ-SERIES
B34: ="103." -> 103. | C34: Design And Manufacture
B35: 103.3 | C35: Nominal Stresses
C36: Joists shall have their components so proportioned that the required stresses, fu, shall not exceed ФFn
A38: Notes:
A39: 1. | B39: Governing code is IBC 2012
A40: 2. | B40: Bay sizes are limited to Joist and Joist Girder Load Tables
A41: 3. | B41: An interior bay is defined as having one Joist Girder and a quantity of joists equal to the number of joist spaces
A42: 4. | B42: Deck size selected by minimum weight and deflection limits, from SDI Tables
A43: 5. | B43: 40 ksi is used for 1.5, 1.5 INV, 2, and 3 decks, 60 ksi for 9/16 and 1 form decks, and 33 ksi for 1.5 form deck
A44: 6. | B44: Non-galvanized deck is not considered to be permanent
A45: 7. | B45: Deck and concrete slab deflection is only checked for determining the maximum construction span
A46: 8. | B46: Concrete slabs are unshored
A47: 9. | B47: Concrete volumes are based on SDI's conservative slab weight estimates
A48: 10. | B48: SDI minimum bearing lengths are assumed
A49: 11. | B49: Deck shear and web crippling do not control with uniformly loaded floors, per SDI
A50: 12. | B50: Properties for all 1" form decks and 28 gage 9/16" form deck should be verified with the manufacturer
A51: 13. | B51: Maximum construction clear spans are conservatively compared with center-to-center spans
A52: 14. | B52: Reinforced slab capacity is based on a three span condition using a moment of (wL^2)/12
A53: 15. | B53: Reinforced slab capacity is based on f'c = 3,000 psi and Fy = 60,000 psi
A54: 16. | B54: Slab reinforcement is considered to be located at the mid-depth of the slab thickness above the deck
A55: 17. | B55: Minimum slab reinforcement for temperature and shrinkage is 0.00075 times the concrete area above the deck
A56: 18. | B56: Joist size selected by minimum weight and deflection limits from SJI Load Tables
A57: 19. | B57: Either standard SJI non-composite joists, composite Joists, or LH load/load joists may be selected
A58: 20. | B58: No depth optimization is available for composite joists, so a single depth must be input by the user for each run
A59: 21. | B59: Load/load joists are often required for floor loads and wider floor joist spacings
A60: 22. | B60: The lowest load/load joist capacities considered are 500 plf for ASD and 750 plf for LRFD
A61: 23. | B61: If live load reduction is applicable, the load/load joist designation utilizes reduced total loads and reduced live loads
A62: 24. | B62: For an LRFD design, the load/load joist designation utilizes a factored total load and an unfactored live load
A63: 25. | B63: Actual joist span rounded up to next available span in SJI Load Tables
A64: 26. | B64: DLH joist data is limited to spans greater than the "safe load" spans in SJI Load Tables
A65: 27. | B65: Joist Girder depth selected by minimum weight and deflection limits, from SJI Joist Girder Weight Tables
A66: 28. | B66: Joist Girder seat depth is not included
A67: 29. | B67: Actual Joist Girder span rounded up to next available span in Weight Tables
A68: 30. | B68: Joist Girders are available as non-composite only
A69: 31. | B69: Actual number of joist spaces rounded up to next available number of joist spaces in Weight Tables
A70: 32. | B70: Joist and Joist Girder design is based on a 50 ksi yield stress
A71: 33. | B71: Sample bridging sizes limit joist spacing to maximum of 19'-6"
A72: 34. | B72: Bridging optimization is not availaible for composite joists
A73: 35. | B73: Cost data is the responsibility of the user
A74: 36. | B74: User must check if FM Global requirements exist
A75: 37. | B75: Fire resistance of the floor assembly is not considered, but is often a critical design parameter
A76: 38. | B76: Columns are not included
A77: 39. | B77: A red triangle in the upper right corner of a cell indicates that a comment is present
A80: References:
A81: 1. | B81: SJI 43rd Edition, Standard Specifications - Load Tables and Weight Tables
B82: For Steel Joists and Joist Girders, Copyright 2007 by Steel Joist Institute
A83: 2. | B83: Vulcraft Steel Joists & Joists Girders, Copyright 2013 by Vulcraft
A84: 3. | B84: First Edition, Standard Specifications For Composite Steel Joists, Weight Tables
B85: and Bridging Tables, Code of Standard Practice, Copyright 2007 by Steel Joist Institute
A86: 4. | B86: First Edition Roof Deck Design Manual - No. RDDM, Copyright 2013 by Steel Deck Institute
A87: 5. | B87: First Edition Floor Deck Design Manual - No. FDDM, Copyright 2014 by Steel Deck Institute
A88: 6. | B88: Vulcraft Steel Roof & Floor Deck, Copyright 2008 by Vulcraft
A89: 7. | B89: Steel Roof and Floor Decking, Copyright 2015 by New Millennium
A90: 8. | B90: Steel Deck, Copyright 2010 by Canam

Sheet User Notes
A1: USER NOTES
A4: Introduction:
A5: The purpose of the Floor Bay Analysis spreadsheet is to determine the optimal bay dimensions for a project and to
A6: determine what type and depth of joist (standard, Load/Load, or composite) would be most efficient for the selected bay
A7: dimensions. Spacing between joists can be examined along with the choice of metal deck type, concrete slab thickness,
A8: and reinforcement. The user may select either LRFD or ASD for standard joists or load/load joists. Only LRFD design may
A9: be used for composite joists since the SJI only uses an LRFD specification for composite joists. Only uniformly-loaded
A10: joists are permitted by the spreadsheet.
A12: This User Notes tab supplements the information shown in the Gen Info tab. The user should also set the margins for
A13: proper printing following the Format tab.
A15: Metal Deck:
A16: Non-composite or composite decks can be selected. The drop-down list defines the types of deck recognized by the
A17: spreadsheet. The SDI deck strength and deflection limitations are used in checking the deck for both normalweight and
A18: lightweight concrete. Construction live loads of 20, 50, or 75 psf may be selected. As shown in the Gen Info tab, a steel
A19: yield stress of 40 ksi is used for 1.5, 1.5 INV, 2, and 3 decks, 60 ksi for 9/16 and 1 form decks, and 33 ksi for 1.5 form deck.
A21: Per the SDI Specifications, when non-galvanized decks are used, the structural concrete slab must carry all loads, including
A22: the dead load of the deck and concrete, as it is assumed that the deck may corrode away. When galvanized decks are used,
A23: it is permitted to consider the deck to carry the dead load of the deck and concrete and only the superimposed loads would
A24: need to be carried by the structural slab.
A26: Standard Joists and Load/Load Joists:
A27: The spreadsheet selects the lightest joist based on the data in the SJI Tables. The joist depth can be manually limited or the
A28: user can allow the spreadsheet to check the range of default depths as indicated in the SJI Tables for a given span. Loading
A29: is limited to the loads given in the tables. If desired, the user may allow the spreadsheet to select a joist based on minimizing
A30: the amount of X-bridging.
A32: The SJI Specifications and the spreadsheet limit spans for standard joists from 10 to 240 feet, and for load/load joists from
A33: 14 to 60 feet. Depths for standard joists may vary from 10 to 120 inches, and for load/load joists from 14 to 60 inches.
A35: Composite Joists:
A36: Depth optimization is not available for composite joists, so a single depth must be input for each design. 3/8, 1/2, 5/8, or 3/4
A37: inch studs may be selected. Spans for composite joists are limited from 20 to 120 feet, and depths may vary from 10 to 96
A38: inches. The X-bridging optimization feature is not available when using composite joists.
A40: Joist Girders:
A41: Joist Girder depths are limited to the values in the SJI Tables for a given span. Spans are limited from 20 to 120 feet, and
A42: depths may vary from 20 to 120 inches.
A44: User Tips:
A45: 1. | B45: Only those cells highlighted in light yellow are available for input.
A46: 2. | B46: If designing with composite joists, the user must click the “Click Here For Full Design With Composite Joists” button.
B47: Any input change requires this button to be clicked again.
A48: 3. | B48: If designing with non-composite joists, the “UPDATE” buttons in cells C90 and E90 can be clicked if desired to refine the
B49: estimated weights for the joists, bridging, and Joist Girders to the actual weights calculated by the spreadsheet. These
B50: buttons do not have to be clicked if the estimated weights are greater than the actual weights. Not clicking them would
B51: be conservative.
A52: 4. | B52: After entering the desired input and clicking the appropriate buttons, an overall “OK” or “NO GOOD” solution will be
B53: displayed in row 142.
A54: 5. | B54: If a “NO GOOD” solution is indicated, review the Error Checks in cells M121:N146. Make the corrections as indicated.
A55: 6. | B55: “OK” or “NG” indications are also in appropriate locations throughout the spreadsheet to assist with the design.
A56: 7. | B56: Always remember to input a depth in cell D49 when designing with composite joists. This input may be deleted, if
B57: desired, when designing with non-composite joists.
A58: 8. | B58: If the spreadsheet indicates any “#N/A” or “#VALUE!” errors, it is likely that the input is invalid or the loading is beyond the
B59: limits for that particular design.

Sheet Format
A2: Sheet formatting is based on the margin settings shown in the screenshot below. Changing margin settings, document scaling, print area, page break location, or output device will affect the layout of the output. To avoid any problems, print or save the document as a PDF first, then print a paper copy if desired.

Sheet Floor Bay Analysis
B1: Floor Bay Analysis | V1: =INPUT!F16 ->  | W1: Composite Joist and Bridging Weight (psf)
B2: (SJI Load Tables / SDI Specification and Floor Deck Design Manual) | V2: =IF(I11="Comp","Y","N") -> N | W2: Comp. Joist = Y, Non-Comp. Joist = N
F3: Copyright © 2018
B4: Project Name: | D4: SJI Floor Bay Example
B5: Project Number: | D5: 2016xyz | V5: Calculations
B6: Engineer: | D6: XYZ | H6: Date: | I6: =TODAY() -> 2018-01-25
B8: Design Methodology | D8: LRFD | E8: =IF(AND(V2="Y",D8="ASD"),"NG","OK") -> OK | F8: LRFD - Load and Resistance Factor Design, ASD - Allowable Strength Design | M8: =IF(E8="NG","Composite joists must be designed using LRFD.","") -> 
B10: TYPICAL INTERIOR BAY LAYOUT | G10: JOIST DESIGN CRITERIA
B11: Bay Width / Joist Span | E11: 40 | F11: ft. | G11: Comp. or Non-Comp. | I11: Non-Comp | M11: =IF(V2="Y","For composite joists, a joist depth must be entered in D49.","") -> 
B12: Bay Length / Joist Girder (JG) Span | E12: 60 | F12: ft. | G12: Standard K, LH, & DLH | I12: N | J12: (Y or N) | M12: =IF(V2="Y","For composite joists, only a single joist depth can be","") -> 
G13: Load/Load | I13: =IF(V2="Y","Y",IF(I12="Y","N","Y")) -> Y | J13: (Y or N) | M13: =IF(V2="Y","considered for each design.","") -> 
G14: Stud Diameter | I14: 0.5 | J14: =IF(V2="Y"," in.","") -> 
G15: Concrete Strength, f'c | I15: 4 | J15: =IF(V2="Y"," ksi","") -> 
G16: Steel Yield Stress | I16: 50 | J16: ksi
AL19: Min Joist Depth | AM19: =IF(V2="N",AK28,AN28) -> NCJ_Depths | AO19: None
AL20: Max Joist Depth | AM20: =IF(V2="N",AK28,AO19) -> NCJ_Depths
AI24: Non-Composite Joist Depths | AL24: Composite Joist Depths | AO24: Joist Girder Depths
AI25: =ROUNDUP(12*$E$11/24,0) -> 20 | AJ25: =VLOOKUP(AI25,AI29:AJ143,2) -> 20 | AK25: Minimum | AL25: =ROUNDUP(12*$E$11/30,0) -> 16 | AM25: =VLOOKUP(AL25,AL28:AM120,2) -> 16 | AN25: Minimum | AO25: =ROUNDUP(12*$E$12/24,0) -> 30 | AP25: =VLOOKUP(AO25,AO34:AP143,2) -> 32 | AQ25: Minimum
AI26: =ROUNDUP(12*$E$11/12,0) -> 40 | AJ26: =VLOOKUP(AI26,AI29:AJ143,2) -> 40 | AK26: Maximum | AL26: =ROUNDUP(12*$E$11/12,0) -> 40 | AM26: =VLOOKUP(AL26,AL28:AM120,2) -> 40 | AN26: Maximum | AO26: =IF(E12<28,ROUNDUP(12*E12/9,0),ROUNDUP(12*E12/10,0)) -> 72 | AP26: =VLOOKUP(AO26,AO34:AP143,2) -> 72 | AQ26: Maximum
AK28: NCJ_Depths | AL28: 4 | AM28: 10 | AN28: CJ_Depths | AQ28: JG_Depths
AI29: 5 | AJ29: 10 | AK29: 10 | AL29: 5 | AM29: 10 | AN29: 10 | AQ29: 20
B30: NOMINAL FLOOR LIVE LOADS | G30: NOMINAL FLOOR DEAD LOADS | V30: IBC 2012 | AI30: 6 | AJ30: 10 | AK30: 12 | AL30: 6 | AM30: 10 | AN30: 12 | AQ30: 24
B31: Live Load | D31: 80 | E31: psf | G31: Deck & Concrete Slab | I31: =IF(ISNA(INDEX('Deck Prop'!J7:J398,MATCH(V40,'Deck Prop'!B7:B398,0)))=TRUE,0,INDEX('Deck Prop'!J7:J398,MATCH(V40,'Deck Prop'!B7:B398,0))) -> 39 | J31: psf | V31: LRFD LOAD COMBINATIONS | AB31: ASD LOAD COMBINATIONS | AI31: 7 | AJ31: 10 | AK31: 14 | AL31: 7 | AM31: 10 | AN31: 14 | AQ31: 28
B32: Moveable Partitions | D32: 0 | E32: psf | G32: Joists & Bridging | I32: 3.020166667 | J32: psf | M32: =IF(V2="Y","",IFERROR(IF(I32*1>0,"","Enter Valid Load for Joists & Bridging"),"Enter Valid Load for Joists & Bridging")) ->  | Y32: Superimp. | AE32: Superimp. | AI32: 8 | AJ32: 10 | AK32: 16 | AL32: 8 | AM32: 10 | AN32: 16 | AQ32: 32
B33: Total Live Load | D33: =D31+D32 -> 80 | E33: psf | G33: Joist Girders | I33: 2.45 | J33: psf | M33: =IF(V2="Y","",IFERROR(IF(I33*1>0,"","Enter Valid Load for Joist Girders"),"Enter Valid Load for Joist Girders")) ->  | Y33: Floor Load | Z33: Joist Load | AA33: Girder Load | AE33: Floor Load | AF33: Joist Load | AG33: Girder Load | AI33: 9 | AJ33: 10 | AK33: 18 | AL33: 9 | AM33: 10 | AN33: 18 | AQ33: 36
B34: Live Load Reduction | D34: Y | E34: (Y or N) | G34: Partitions | I34: 0 | J34: psf | Y34: psf | Z34: psf | AA34: psf | AE34: psf | AF34: psf | AG34: psf | AI34: 10 | AJ34: 10 | AK34: 20 | AL34: 10 | AM34: 10 | AN34: 20 | AO34: 10 | AP34: 20 | AQ34: 40
B35: Live loads that exceed 100 psf are not reducible. | G35: Mechanical & Electrical | I35: 3 | J35: psf | V35: 1 | W35: 1.4D | Y35: =1.4*(I31+I34+I36+I37+I39) -> 61.6 | Z35: =1.4*(I40-I33) -> 72.82823333 | AA35: =1.4*I40 -> 76.25823333 | AB35: 2 | AC35: D + L | AE35: =I31+I34+I36+I37+I39+D33 -> 124 | AF35: =I40-I33+IF(D34="Y",X48*D33,D33) -> 126.7924224 | AG35: =I40+IF(D34="Y",Y48*D33,D33) -> 94.47016667 | AI35: 11 | AJ35: 12 | AK35: 22 | AL35: 11 | AM35: 12 | AN35: 22 | AO35: 11 | AP35: 20 | AQ35: 44
G36: Fireproofing | I36: 2 | J36: psf | V36: 2 | W36: 1.2D +1.6L | Y36: =1.2*(I31+I34+I36+I37+I39)+1.6*D33 -> 180.8 | Z36: =1.2*(I40-I33)+IF(D34="Y",1.6*X48*D33,1.6*D33) -> 182.0598092 | AA36: =1.2*I40+IF(D34="Y",1.6*Y48*D33,1.6*D33) -> 129.3642 | AI36: 12 | AJ36: 12 | AK36: 24 | AL36: 12 | AM36: 12 | AN36: 24 | AO36: 12 | AP36: 20 | AQ36: 48
B37: DECK & CONCRETE SLAB DESIGN CRITERIA | G37: Floor Covering | I37: 2 | J37: psf | AI37: 13 | AJ37: 14 | AK37: 26 | AL37: 13 | AM37: 14 | AN37: 26 | AO37: 13 | AP37: 20 | AQ37: 52
B38: Deck Profile & Gage | D38: 1.5 - 22 Gage | F38: =IF(COUNTIF('Deck Prop'!B7:B398,V40)=0,"NG","OK") -> OK | G38: Ceilings | I38: 2 | J38: psf | AI38: 14 | AJ38: 14 | AK38: 28 | AL38: 14 | AM38: 14 | AN38: 28 | AO38: 14 | AP38: 20 | AQ38: 56
B39: Is Deck Galvanized? | D39: Y | E39: (Y or N) | F39: =IF(AND(D40="Comp.",D39="N"),"NG","OK") -> OK | G39: Other Deck Load | I39: 1 | J39: psf | V39: =INDEX('Deck Prop'!V7:V29,MATCH(D38,'Deck Prop'!U7:U29,0)) -> _1.5 | W39: =IF(OR(V39="_9_16_Form",V39="_1_Form",V39="_1.5_Form"),"Form","Not Form") -> Not Form | AI39: 15 | AJ39: 16 | AK39: 30 | AL39: 15 | AM39: 16 | AN39: 30 | AO39: 15 | AP39: 20 | AQ39: 60
B40: Comp. or Non-Comp. | D40: Comp. | F40: =IF(AND(W39="Form",D40="Comp."),"NG","OK") -> OK | G40: Total Dead Load | I40: =SUM(I31:I39) -> 54.47016667 | J40: psf | V40: =D38&" - "&D43&" "&D42 -> 1.5 - 22 Gage - 4 NW | AI40: 16 | AJ40: 16 | AK40: 32 | AL40: 16 | AM40: 16 | AN40: 32 | AO40: 16 | AP40: 20 | AQ40: 66
B41: Reinforcement | D41: 6x6-W1.4xW1.4 | F41: ='Slab Cap'!E25 -> OK | AI41: 17 | AJ41: 18 | AK41: 36 | AL41: 17 | AM41: 18 | AN41: 34 | AO41: 17 | AP41: 20 | AQ41: 72
B42: NW or LW Concrete | D42: NW | G42: =IF(F38="NG","Total slab depth is outside of the acceptable range.","") ->  | AI42: 18 | AJ42: 18 | AK42: 40 | AL42: 18 | AM42: 18 | AN42: 36 | AO42: 18 | AP42: 20 | AQ42: 78
B43: Total Slab Depth | D43: 4 | E43: in. | G43: =IF(F39="NG","Composite decks must be galvanized.","") ->  | V43: IBC 2012 Live Load Reduction | AI43: 19 | AJ43: 20 | AK43: 44 | AL43: 19 | AM43: 20 | AN43: 38 | AO43: 19 | AP43: 20 | AQ43: 84
B44: Construction Live Load | D44: 20 | E44: psf | G44: =IF(F40="NG","Form decks can only be non-composite.","") ->  | V44: Live load reduction is only applied if live load is <= 100 psf and (KLL)(AT) >= 400 sq. ft. | AI44: 20 | AJ44: 20 | AK44: 48 | AL44: 20 | AM44: 20 | AN44: 40 | AO44: 20 | AP44: 20 | AQ44: 90
B45: Joist Spaces per Bay | D45: 10 | G45: =IF(F41="NG","Steel to concrete ratio must be ≥ 0.00075.","") ->  | V45: Live load reduction is not applied to the deck | AI45: 21 | AJ45: 22 | AK45: 52 | AL45: 21 | AM45: 22 | AN45: 42 | AO45: 21 | AP45: 24 | AQ45: 96
V46: Joist Area | W46: JG Area | X46: Joist | Y46: JG | Z46: KLL | AI46: 22 | AJ46: 22 | AK46: 56 | AL46: 22 | AM46: 22 | AN46: 44 | AO46: 22 | AP46: 24 | AQ46: 102
B47: DEPTH DATA | D47: =IF(OR(AND(D49<D48,D49>0),D49>D50,AND(D53<D52,D53>0),D53>D54,D51>D50,AND(D51<D48,D51>0),D55>D54,AND(D55<D52,D55>0)),"Verify Depths","") ->  | F47: DEFLECTION CRITERIA | V47: sq. ft. | W47: sq. ft. | X47: factor | Y47: factor | Z47: factor | AI47: 23 | AJ47: 24 | AK47: 60 | AL47: 23 | AM47: 24 | AN47: 46 | AO47: 23 | AP47: 24 | AQ47: 108
B48: =IF(V2="Y","Joist Min Depth Allowed:","Joist Min Depth: Default") -> Joist Min Depth: Default | D48: =IF(V2="N",AJ25,AM25) -> 20 | E48: in. | F48: Deck - Concrete Weight | H48: Min: Span/180 or 0.75 in. | J48: =MIN(E62*12/180,0.75) -> 0.4 | K48: in. | V48: =E62*E11 -> 240 | W48: =E11*E12 -> 2400 | X48: =IF(D33>100,1,IF(Z48*V48<400,1,MAX(0.5,0.25+15/(SQRT(Z48*V48))))) -> 0.9346531969 | Y48: =IF(D33>100,1,IF(Z48*W48<400,1,MAX(0.5,0.25+15/(SQRT(Z48*W48))))) -> 0.5 | Z48: 2 | AI48: 24 | AJ48: 24 | AK48: 64 | AL48: 24 | AM48: 24 | AN48: 48 | AO48: 24 | AP48: 24 | AQ48: 114
B49: =IF(V2="Y","Input Joist Depth:","Joist Min Depth: Manual") -> Joist Min Depth: Manual | D49: 24 | E49: in. | F49: Joist - Live Load | H49: Span / | I49: 360 | J49: =$E$11*12/I49 -> 1.333333333 | K49: in. | M49: =IF(I49<360,"Warning: typical maximum joist deflection is span/360.","") ->  | AI49: 25 | AJ49: 26 | AK49: 68 | AL49: 25 | AM49: 26 | AN49: 50 | AO49: 25 | AP49: 28 | AQ49: 120
B50: =IF(V2="Y","Joist Max Depth Allowed:","Joist Max Depth: Default") -> Joist Max Depth: Default | D50: =IF(V2="N",AJ26,AM26) -> 40 | E50: in. | F50: JG - Live Load | H50: Span / | I50: 360 | J50: =$E$12*12/I50 -> 2 | K50: in. | M50: =IF(I50<360,"Warning: typical maximum JG deflection is span/360.","") ->  | AI50: 26 | AJ50: 26 | AK50: 72 | AL50: 26 | AM50: 26 | AN50: 52 | AO50: 26 | AP50: 28
B51: =IF(V2="N","Joist Max Depth: Manual","") -> Joist Max Depth: Manual | E51: =IF(V2="N"," in.","") -> in. | F51: Loads considered are unfactored nominal loads. | AI51: 27 | AJ51: 28 | AK51: 80 | AL51: 27 | AM51: 28 | AN51: 54 | AO51: 27 | AP51: 28
B52: JG Min Depth: Default | D52: =AP25 -> 32 | E52: in. | AI52: 28 | AJ52: 28 | AK52: 88 | AL52: 28 | AM52: 28 | AN52: 56 | AO52: 28 | AP52: 28
B53: JG Min Depth: Manual | E53: in. | F53: =IF(V2="n","X-BRIDGING","X-BRIDGING (Optimization for Non-Composite Joists only)") -> X-BRIDGING | AI53: 29 | AJ53: 30 | AK53: 96 | AL53: 29 | AM53: 30 | AN53: 58 | AO53: 29 | AP53: 32
B54: JG Max Depth: Default | D54: =AP26 -> 72 | E54: in. | F54: Minimize X-Bridging for Spans ≤ 60 ft. | I54: N | J54: (Y or N) | AI54: 30 | AJ54: 30 | AK54: 104 | AL54: 30 | AM54: 30 | AN54: 60 | AO54: 30 | AP54: 32
B55: JG Max Depth: Manual | E55: in. | F55: If "Y", the lightest joist without x-bridging is selected, if it's adequate. | AI55: 31 | AJ55: 32 | AK55: 112 | AL55: 31 | AM55: 32 | AN55: 64 | AO55: 31 | AP55: 32
B56: =IF(V2="n","Minimum depths are span/24 for non-composite joists & Joist Girders.","Minimum depths are span/30 for composite joists & span/24 for Joist Girders.") -> Minimum depths are span/24 for non-composite joists & Joist Girders. | AI56: 32 | AJ56: 32 | AK56: 120 | AL56: 32 | AM56: 32 | AN56: 68 | AO56: 32 | AP56: 32
M57: =IF(V2="Y","For composite joists only, the button to the left","") ->  | AI57: 33 | AJ57: 36 | AL57: 33 | AM57: 34 | AN57: 72 | AO57: 33 | AP57: 36
B58: DECK AND CONCRETE SLAB SUMMARY (Superimposed Loads) | M58: =IF(V2="Y","must be clicked after any input changes.","") ->  | AI58: 34 | AJ58: 36 | AL58: 34 | AM58: 34 | AN58: 76 | AO58: 34 | AP58: 36
B59: Deck | D59: Total Slab | E59: Deck | F59: Max Deck | G59: Required | H59: Available | I59: Deck | J59: Conc Weight Deflection | V59: LRFD | W59: LRFD | Y59: ASD | Z59: ASD | AI59: 35 | AJ59: 36 | AL59: 35 | AM59: 36 | AN59: 80 | AO59: 35 | AP59: 36
B60: Profile & | D60: Depth & | E60: Span | F60: Span * | G60: Load | H60: Load | I60: Weight | J60: Allowable | K60: Actual | V60: Required | W60: Required | Y60: Required | Z60: Required | AI60: 36 | AJ60: 36 | AL60: 36 | AM60: 36 | AN60: 84 | AO60: 36 | AP60: 36
B61: Gage | D61: Conc Type | E61: ft. | F61: ft. | G61: psf | H61: psf | I61: psf | J61: in. | K61: in. | V61: Reduced | W61: Reduced | Y61: Reduced | Z61: Reduced | AI61: 37 | AJ61: 40 | AL61: 37 | AM61: 38 | AN61: 88 | AO61: 37 | AP61: 40
B62: =D38 -> 1.5 - 22 Gage | D62: =D43&" in. "&D42 -> 4 in. NW | E62: =E12/D45 -> 6 | F62: ='Const Span'!K15 -> 6.344700485 | G62: =IF($D$8="LRFD",MAX(Y35:Y36),AE35) -> 180.8 | H62: ='Slab Cap'!D35 -> 564.1259259 | I62: =INDEX('Deck Prop'!W7:W29,MATCH(D38,'Deck Prop'!U7:U29,0)) -> 1.78 | J62: =J48 -> 0.4 | K62: ='Const Span'!D37 -> 0.1316914079 | V62: Factored | W62: Unfactored | Y62: Unfactored | Z62: Unfactored | AI62: 38 | AJ62: 40 | AL62: 38 | AM62: 38 | AN62: 92 | AO62: 38 | AP62: 40
B63: * Maximum Deck Construction Span (Three Span) per SDI | H63: =IF(G62>H62,"NG","OK") -> OK | K63: =IF(K62>J62,"NG","OK") -> OK | V63: Total Load | W63: Live Load | Y63: Total Load | Z63: Live Load | AI63: 39 | AJ63: 40 | AL63: 39 | AM63: 40 | AN63: 96 | AO63: 39 | AP63: 40
V64: for Joists | W64: for Joists | Y64: for Joists | Z64: for Joists | AI64: 40 | AJ64: 40 | AL64: 40 | AM64: 40 | AO64: 40 | AP64: 40
B65: JOIST SUMMARY (Total Loads) | V65: plf | W65: plf | Y65: plf | Z65: plf | AI65: 41 | AJ65: 44 | AL65: 41 | AM65: 42 | AO65: 41 | AP65: 44
B66: Joist | D66: Joist | E66: Required | F66: Available | G66: Joist | H66: Allowable | I66: Live Load | V66: =ROUNDUP(MAX(Z35,Z36)*D69,0) -> 1093 | W66: =ROUNDUP(IF(D34="Y",X48*D33,D33)*D69,0) -> 449 | Y66: =ROUNDUP(AF35*D69,0) -> 761 | Z66: =ROUNDUP(IF(D34="Y",X48*D33,D33)*D69,0) -> 449 | AI66: 42 | AJ66: 44 | AL66: 42 | AM66: 42 | AO66: 42 | AP66: 44
B67: Designation | D67: Spacing | E67: Load | F67: Load | G67: Weight | H67: Deflection | I67: Deflection | AI67: 43 | AJ67: 44 | AL67: 43 | AM67: 44 | AO67: 43 | AP67: 44
D68: ft. | E68: lb / ft | F68: lb / ft | G68: lb / ft | H68: in. | I68: in. | V68: load/load designation with required loads that are reduced if applicable | AI68: 44 | AJ68: 44 | AL68: 44 | AM68: 44 | AO68: 44 | AP68: 44
B69: =IF(V2="Y",INPUT!G37,IF(I13="Y",V69,Y102)) -> 32LH1093/449 | D69: =$E62 -> 6 | E69: =ROUNDUP(IF(V2="Y",INPUT!D30,IF(AND(V2="N",D8="LRFD"),D69*MAX(Z35:Z36),D69*AF35)),0) -> 1093 | F69: =IF(V2="Y",E69,IF(G69="NG","NG",IF(D8="ASD",Z102,AA102))) -> 1200 | G69: =IF(V2="Y",INPUT!Q15,AC102) -> 17.8 | H69: =J49 -> 1.333333333 | I69: =IF(V2="Y",INPUT!T9,IF(G69="NG","NG",1.15*5*W75/12*((E11-0.33)*12)^4/384/29000000/AA75)) -> 0.9308362499 | V69: =X101&"LH"&IF(D8="LRFD",V66&"/"&W66,Y66&"/"&Z66) -> 32LH1093/449 | AI69: 45 | AJ69: 48 | AL69: 45 | AM69: 46 | AO69: 45 | AP69: 48
F70: =IF(G69="NG","NG",IF(G69=0,"NG",IF(E69>F69,"NG","OK"))) -> OK | I70: =IF(ISNA(I69)=TRUE,"NG",IF(G69="NG","NG",IF(G69=0,"NG",IF(I69>H69,"NG","OK")))) -> OK | AI70: 46 | AJ70: 48 | AL70: 46 | AM70: 46 | AO70: 46 | AP70: 48
AI71: 47 | AJ71: 48 | AL71: 47 | AM71: 48 | AO71: 47 | AP71: 48
B72: BRIDGING SUMMARY | Y72: Std Joists | Z72: Load Joists | AA72: Final | AI72: 48 | AJ72: 48 | AL72: 48 | AM72: 48 | AO72: 48 | AP72: 48
B73: X-Bridging | C73: Number | D73: Length of | E73: Weight of | F73: H-Bridging | G73: Number | H73: Length of | I73: Weight of | V73: Joist | W73: Live Load | Y73: I | Z73: I | AA73: I | AI73: 49 | AJ73: 52 | AL73: 49 | AM73: 50 | AO73: 49 | AP73: 52
B74: Req'd | C74: of rows | D74: X-Bridging | E74: X-Bridging | F74: Req'd | G74: of rows | H74: H-Bridging | I74: H-Bridging | W74: lb / ft | Y74: in.^4 | Z74: in.^4 | AA74: in.^4 | AI74: 50 | AJ74: 52 | AL74: 50 | AM74: 50 | AO74: 50 | AP74: 52
B75: (Y or N) | C75: X-Bridging | D75: ft. | E75: plf | F75: (Y or N) | G75: H-Bridging | H75: ft. | I75: plf | W75: =IF(D34="Y",E62*X48*D33,E62*D33) -> 448.6335345 | Y75: =INDEX('K Joists'!AY4:AY224,MATCH(Y100,'K Joists'!AV4:AV224,0)) -> 942.092465 | Z75: =INDEX('Load Joists'!P5:P3404,MATCH(W101,IF(D8="ASD",'Load Joists'!A5:A3404,'Load Joists'!B5:B3404),0)) -> 1065 | AA75: =IF($Y$104="Y",Y75,Z75) -> 1065 | AI75: 51 | AJ75: 52 | AL75: 51 | AM75: 52 | AO75: 51 | AP75: 52
B76: =IF(AND(V2="Y",TC!Y62>0),"Y",IF(AND(V2="Y",TC!Y62=0),"N",IF(I12="Y",IF('Std Bridging'!G18>0,"Y","N"),IF('Load Bridging'!G12>0,"Y","N")))) -> N | C76: =IF(V2="Y",TC!Y62,IF(I12="Y",'Std Bridging'!G18,'Load Bridging'!G12)) -> 0 | D76: =IF(AND(V2="Y",TC!Y62>0),TC!Z77,IF(AND(V2="Y",TC!Y62=0),0,IF(I12="Y",'Std Bridging'!G21,'Load Bridging'!G15))) -> 0 | E76: =IF(AND(V2="Y",TC!Y62>0),TC!Z78,IF(B76="N",0,IF(I12="Y",'Std Bridging'!G22,'Load Bridging'!G16))) -> 0 | F76: =IF(AND(V2="Y",TC!Y66>0),"Y",IF(AND(V2="Y",TC!Y66=0),"N",IF(I12="Y",IF('Std Bridging'!G26>0,"Y","N"),IF('Load Bridging'!G19>0,"Y","N")))) -> Y | G76: =IF(V2="Y",TC!Y66,IF(I12="Y",'Std Bridging'!G26,'Load Bridging'!G19)) -> 1 | H76: =IF(AND(V2="Y",TC!Y66>0),TC!Z79,IF(AND(V2="Y",TC!Y66=0),0,IF(I12="Y",'Std Bridging'!G29,'Load Bridging'!G22))) -> 120 | I76: =IF(AND(V2="Y",TC!Y66>0),TC!Z80,IF(F76="N",0,IF(I12="Y",'Std Bridging'!G30,'Load Bridging'!G23))) -> 1.07 | J76: =IF(OR(E76="NG",I76="NG"),"NG","OK") -> OK | AI76: 52 | AJ76: 52 | AL76: 52 | AM76: 52 | AO76: 52 | AP76: 52
V77: JG | W77: LL Serv. | AI77: 53 | AJ77: 56 | AL77: 53 | AM77: 54 | AO77: 53 | AP77: 56
B78: JOIST GIRDER SUMMARY (Total Panel Point Loads) | W78: Panel Load | Y78: Live Load | AA78: I | AI78: 54 | AJ78: 56 | AL78: 54 | AM78: 54 | AO78: 54 | AP78: 56
B79: Joist Girder | C79: Joist | D79: Required | E79: Load Used to | F79: Joist Girder | G79: Allowable | H79: Live Load | W79: kips | Y79: lb / ft | AA79: in.^4 | AI79: 55 | AJ79: 56 | AL79: 55 | AM79: 56 | AO79: 55 | AP79: 56
B80: Depth | C80: Spaces | D80: Load | E80: Estimate Wt. | F80: Weight | G80: Deflection | H80: Deflection | W80: =IF(D34="Y",E62*E11*Y48*D33/1000,E62*E11*D33/1000) -> 9.6 | Y80: =W80*1000/D69 -> 1600 | AA80: =IF(D8="ASD",0.027,0.018)*C82*D82*E12*B82 -> 24183.36 | AI80: 56 | AJ80: 56 | AL80: 56 | AM80: 56 | AO80: 56 | AP80: 56
B81: in. | D81: kips | E81: kips | F81: lb / ft | G81: in. | H81: in. | AI81: 57 | AJ81: 60 | AL81: 57 | AM81: 58 | AO81: 57 | AP81: 60
B82: =IF(E12>50,'55-120 Girders'!AV5,'20-50 Girders'!AX5) -> 72 | C82: =$E$12/$D69 -> 10 | D82: =ROUNDUP(IF($D$8="LRFD",$D69*MAX(AA35:AA36),$D69*AG35)*$E$11/1000,1) -> 31.1 | E82: =IF(E12>50,'55-120 Girders'!AV3,'20-50 Girders'!AX3) -> 33 | F82: =IF(E12>50,'55-120 Girders'!AV4,'20-50 Girders'!AX4) -> 98 | G82: =J50 -> 2 | H82: =IF(B82="NG","NG",1.15*5*Y80/12*($E$12*12)^4/384/29000000/$AA$80) -> 0.7650515578 | V82: X-Bridging Not Minimized | AI82: 58 | AJ82: 60 | AL82: 58 | AM82: 58 | AO82: 58 | AP82: 60
B83: =IF(B82="NG","JG Designation: NG","JG Designation: "&B82&"G"&C82&"N"&ROUNDUP(D82,1)&IF(D8="ASD","K","F")) -> JG Designation: 72G10N31.1F | E83: =IF(B82="NG","NG",IF(D82>E82,"NG","OK")) -> OK | H83: =IF(B82="NG","NG",IF(H82>G82,"NG","OK")) -> OK | W83: ID | X83: Depth | Y83: Type | Z83: ASD Load | AA83: LRFD Load | AB83: ="L/"&'Floor Bay Analysis'!$I$49&" Load" -> L/360 Load | AC83: Weight | AD83: Type | AE83: Seat | AF83: Section | AG83: Bridging Force | AI83: 59 | AJ83: 60 | AL83: 59 | AM83: 60 | AO83: 59 | AP83: 60
V84: K Joist | W84: ='K Joists'!P144 ->  | X84: ='K Joists'!Q144 ->  | Y84: ='K Joists'!R144 ->  | Z84: ='K Joists'!S144 ->  | AA84: ='K Joists'!T144 ->  | AB84: ='K Joists'!U144 ->  | AC84: ='K Joists'!V144 -> 0 | AD84: K | AE84: 2.5 | AI84: 60 | AJ84: 60 | AL84: 60 | AM84: 60 | AO84: 60 | AP84: 60
B85: WEIGHT CHECK - ESTIMATED VS ACTUAL | V85: LH Joist | W85: ='LH Joists'!P144 -> 40028.11458 | X85: ='LH Joists'!Q144 -> 28 | Y85: ='LH Joists'!R144 -> 28LH10 | Z85: ='LH Joists'!S144 -> 763.8655462 | AA85: ='LH Joists'!T144 -> 1145.798319 | AB85: ='LH Joists'!U144 -> 514.1762587 | AC85: ='LH Joists'!V144 -> 23 | AD85: LH | AE85: 5 | AI85: 61 | AJ85: 64 | AL85: 61 | AM85: 64 | AO85: 61 | AP85: 66
B86: Joists & Bridging | D86: Joist Girders | V86: DLH Joist | W86: ='DLH Joists'!P144 ->  | X86: ='DLH Joists'!Q144 ->  | Y86: ='DLH Joists'!R144 ->  | Z86: ='DLH Joists'!S144 ->  | AA86: ='DLH Joists'!T144 ->  | AB86: ='DLH Joists'!U144 ->  | AC86: ='DLH Joists'!V144 -> 0 | AD86: DLH | AE86: =IF(AC86=0,0,IF(AF86<18,5,7.5)) -> 0 | AF86: =VALUE(RIGHT(Y86,2)) ->  | AI86: 62 | AJ86: 64 | AL86: 62 | AM86: 64 | AO86: 62 | AP86: 66
B87: Estimated | C87: Actual | D87: Estimated | E87: Actual | V87: Standard | W87: =INDEX(W84:W86,MATCH($AC$87,$AC84:$AC86,0)) -> 40028.11458 | X87: 28 | Y87: 28LH10 | Z87: 763.8655462 | AA87: 1145.798319 | AB87: 514.1762587 | AC87: =IF(MAX(AC84:AC86)=0,"NG",SMALL(AC84:AC86,COUNTIF(AC84:AC86,0)+1)) -> 23 | AD87: =IF(X87<100,MID(Y87,3,LEN(Y87)-4),MID(Y87,4,LEN(Y87)-5)) -> LH | AE87: =INDEX(AE84:AE86,MATCH($AC$87,$AC84:$AC86,0)) -> 5 | AI87: 63 | AJ87: 64 | AL87: 63 | AM87: 64 | AO87: 63 | AP87: 66
B88: psf | C88: psf | D88: psf | E88: psf | V88: Load Joist | W88: ='Load Joists'!T144 -> 40032.12 | X88: ='Load Joists'!U144 -> 32 | Y88: ='Load Joists'!V144 -> 32LH1200/704 | Z88: ='Load Joists'!W144 -> 800 | AA88: ='Load Joists'!X144 -> 1200 | AB88: ='Load Joists'!Y144 -> 704 | AC88: =IF('Load Joists'!Z144=0,"NG",'Load Joists'!Z144) -> 17.8 | AD88: LH | AE88: =INDEX('Load Joists'!N5:N3404,MATCH(W88,IF(D8="ASD",'Load Joists'!A5:A3404,'Load Joists'!B5:B3404),0)) -> 5 | AG88: =INDEX('Load Joists'!Q4:Q3405,MATCH(W88,IF(D8="ASD",'Load Joists'!A4:A3405,'Load Joists'!B4:B3405),0)) -> 641 | AI88: 64 | AJ88: 64 | AL88: 64 | AM88: 64 | AO88: 64 | AP88: 66
B89: =I32 -> 3.020166667 | C89: =IF(V2="Y",V1,SUM(D96:G96)) -> 3.020166667 | D89: =I33 -> 2.45 | E89: =H96 -> 2.45 | AI89: 65 | AJ89: 68 | AL89: 65 | AM89: 68 | AO89: 65 | AP89: 66
B90: =IF(OR(G69="NG",G69=0,C89>B89),"NG","OK") -> OK | D90: =IF(B82="NG","NG",IF(E89>D89,"NG","OK")) -> OK | V90: X-Bridging Minimized | AI90: 66 | AJ90: 68 | AL90: 66 | AM90: 68 | AO90: 66 | AP90: 66
W91: ID | X91: Depth | Y91: Type | Z91: ASD Load | AA91: LRFD Load | AB91: ="L/"&'Floor Bay Analysis'!$I$49&" Load" -> L/360 Load | AC91: Weight | AD91: Type | AE91: Seat | AF91: Section | AG91: Bridging Force | AI91: 67 | AJ91: 68 | AL91: 67 | AM91: 68 | AO91: 67 | AP91: 72
B92: WEIGHT RESULTS | V92: K Joist | W92: ='K No X'!P144 ->  | X92: ='K No X'!Q144 ->  | Y92: ='K No X'!R144 ->  | Z92: ='K No X'!S144 ->  | AA92: ='K No X'!T144 ->  | AB92: ='K No X'!U144 ->  | AC92: ='K No X'!V144 -> 0 | AD92: K | AE92: 2.5 | AI92: 68 | AJ92: 68 | AL92: 68 | AM92: 68 | AO92: 68 | AP92: 72
B93: Reinforce- | C93: Deck | D93: =IF(V2="Y","Composite","K-Joist,") -> K-Joist, | E93: =IF(V2="Y","Composite","DLH-Joist,") -> DLH-Joist, | F93: X-Bridging | G93: H-Bridging | H93: Joist Girder | V93: LH Joist | W93: ='LH No X'!P144 -> 40028.11458 | X93: ='LH No X'!Q144 -> 28 | Y93: ='LH No X'!R144 -> 28LH10 | Z93: ='LH No X'!S144 -> 763.8655462 | AA93: ='LH No X'!T144 -> 1145.798319 | AB93: ='LH No X'!U144 -> 514.1762587 | AC93: ='LH No X'!V144 -> 23 | AD93: LH | AE93: 5 | AI93: 69 | AJ93: 72 | AL93: 69 | AM93: 72 | AO93: 69 | AP93: 72
B94: ment | C94: Weight | D94: =IF(V2="Y","Joist ≤ 60'","LH ≤ 60'") -> LH ≤ 60' | E94: =IF(V2="Y","Joist > 60'","LH > 60'") -> LH > 60' | F94: Weight | G94: Weight | H94: Weight | V94: DLH Joist | W94: ='DLH Joists'!P144 ->  | X94: ='DLH Joists'!Q144 ->  | Y94: ='DLH Joists'!R144 ->  | Z94: ='DLH Joists'!S144 ->  | AA94: ='DLH Joists'!T144 ->  | AB94: ='DLH Joists'!U144 ->  | AC94: ='DLH Joists'!V144 -> 0 | AD94: DLH | AE94: =IF(AC94=0,0,IF(AF94<18,5,7.5)) -> 0 | AF94: =VALUE(RIGHT(Y94,2)) ->  | AI94: 70 | AJ94: 72 | AL94: 70 | AM94: 72 | AO94: 70 | AP94: 72
B95: Weight | D95: Weight | E95: Weight | V95: Standard | W95: =INDEX(W92:W94,MATCH($AC$95,$AC92:$AC94,0)) -> 40028.11458 | X95: 28 | Y95: 28LH10 | Z95: 763.8655462 | AA95: =INDEX(AA92:AA94,MATCH($AC$95,$AC92:$AC94,0)) -> 1145.798319 | AB95: 514.1762587 | AC95: =IF(MAX(AC92:AC94)=0,"NG",SMALL(AC92:AC94,COUNTIF(AC92:AC94,0)+1)) -> 23 | AD95: =IF(X95<100,MID(Y95,3,LEN(Y95)-4),MID(Y95,4,LEN(Y95)-5)) -> LH | AE95: =INDEX(AE92:AE94,MATCH($AC$95,$AC92:$AC94,0)) -> 5 | AI95: 71 | AJ95: 72 | AL95: 71 | AM95: 72 | AO95: 71 | AP95: 72
B96: =X112 -> 0.1905555556 | C96: =I62 -> 1.78 | D96: =IF(AND(V2="Y",E11>60),0,IF(AND(V2="Y",E11<=60),WEBS!U51/INPUT!C10,IF(OR(AD102="K",AND(AD102="LH",AA106="Y")),G69/D69,0))) -> 2.966666667 | E96: =IF(AND(V2="Y",E11>60),WEBS!U51/INPUT!C10,IF(AND(V2="Y",E11<=60),0,IF(OR(AD102="DLH",AND(AD102="LH",AA106="N")),G69/D69,0))) -> 0 | F96: =IF(V2="Y",TC!AB54,D76*E76/E11/E12) -> 0 | G96: =IF(V2="Y",TC!AA54,H76*I76/E11/E12) -> 0.0535 | H96: =F82/E11 -> 2.45 | I96: psf | V96: Load Joist | W96: ='LJ No X'!T144 -> 40032.12 | X96: ='LJ No X'!U144 -> 32 | Y96: ='LJ No X'!V144 -> 32LH1200/704 | Z96: ='LJ No X'!W144 -> 800 | AA96: ='LJ No X'!X144 -> 1200 | AB96: ='LJ No X'!Y144 -> 704 | AC96: =IF('LJ No X'!Z144=0,"NG",'LJ No X'!Z144) -> 17.8 | AD96: LH | AE96: =INDEX('LJ No X'!N5:N3404,MATCH(W96,IF(D8="ASD",'LJ No X'!A5:A3404,'LJ No X'!B5:B3404),0)) -> 5 | AG96: =INDEX('Load Joists'!Q4:Q3405,MATCH(W96,IF(D8="ASD",'Load Joists'!A4:A3405,'Load Joists'!B4:B3405),0)) -> 641 | AI96: 72 | AJ96: 72 | AL96: 72 | AM96: 72 | AO96: 72 | AP96: 72
B97: =B96*$E$11*$E$12/2000 -> 0.2286666667 | C97: 2.136 | D97: 3.56 | E97: 0 | F97: 0 | G97: 0.0642 | H97: 2.94 | I97: tons / bay | AI97: 73 | AJ97: 80 | AL97: 73 | AM97: 76 | AO97: 73 | AP97: 78
W98: Joist | X98: Joist | Y98: Joist | AD98: Joist | AE98: Seat | AI98: 74 | AJ98: 80 | AL98: 74 | AM98: 76 | AO98: 74 | AP98: 78
B99: COST DATA | W99: ID | X99: Depth | Y99: Type | Z99: ASD Load | AA99: LRFD Load | AB99: ="L/"&'Floor Bay Analysis'!$I$49&" Load" -> L/360 Load | AC99: Weight | AD99: Type | AE99: Depth | AI99: 75 | AJ99: 80 | AL99: 75 | AM99: 76 | AO99: 75 | AP99: 78
D100: Purchase | F100: Installation | V100: Standard | W100: =IF(OR($Y$106="",$Y$106="N"),W87,IF($AC$95="NG",W87,W95)) -> 40028.11458 | X100: =IF(OR($Y$106="",$Y$106="N"),X87,IF($AC$95="NG",X87,X95)) -> 28 | Y100: =IF(OR($Y$106="",$Y$106="N"),Y87,IF($AC$95="NG",Y87,Y95)) -> 28LH10 | Z100: =IF(OR($Y$106="",$Y$106="N"),Z87,IF($AC$95="NG",Z87,Z95)) -> 763.8655462 | AA100: 1145.798319 | AB100: 514.1762587 | AC100: 23 | AD100: LH | AE100: 5 | AI100: 76 | AJ100: 80 | AL100: 76 | AM100: 76 | AO100: 76 | AP100: 78
B101: Item | D101: $ / Unit | E101: Unit | F101: $ / Unit | G101: Unit | V101: Load Joist | W101: =IF(OR($Y$106="",$Y$106="N"),W88,IF($AC$96="NG",W88,W96)) -> 40032.12 | X101: =IF(OR($Y$106="",$Y$106="N"),X88,IF($AC$96="NG",X88,X96)) -> 32 | Y101: 32LH1200/704 | Z101: 800 | AA101: 1200 | AB101: 704 | AC101: 17.8 | AD101: LH | AE101: 5 | AI101: 77 | AJ101: 80 | AL101: 77 | AM101: 80 | AO101: 77 | AP101: 78
B102: Normal Weight Concrete | D102: 85 | E102: cubic yards | F102: 260 | G102: 100 sf | V102: Final | W102: =IF($Y$104="Y",W100,W101) -> 40032.12 | X102: =IF($Y$104="Y",X100,X101) -> 32 | Y102: 32LH1200/704 | Z102: 800 | AA102: 1200 | AB102: 704 | AC102: 17.8 | AD102: LH | AE102: =IF($Y$104="Y",AE100,AE101) -> 5 | AI102: 78 | AJ102: 80 | AL102: 78 | AM102: 80 | AO102: 78 | AP102: 78
B103: Light Weight Concrete | D103: 115 | AI103: 79 | AJ103: 80 | AL103: 79 | AM103: 80 | AO103: 79 | AP103: 84
B104: ='Slab Cap'!K22 -> 6x6-W1.4xW1.4 | D104: 37 | E104: 100 sf | F104: 20 | G104: 100 sf | X104: Standard K, LH, & DLH | Y104: =I12 -> N | AA104: Span | AI104: 80 | AJ104: 80 | AL104: 80 | AM104: 80 | AO104: 80 | AP104: 84
B105: ='Slab Cap'!K23 -> 6x6-W2.1xW2.1 | D105: 44 | X105: Load/Load | Y105: =I13 -> Y | AA105: ≤ 60'? | AI105: 81 | AJ105: 88 | AL105: 81 | AM105: 84 | AO105: 81 | AP105: 84
B106: ='Slab Cap'!K24 -> 6x6-W2.9xW2.9 | D106: 53 | X106: Minimize X-Bridging for Spans ≤ 60 ft. | Y106: =IF(I54="N","N",IF(I54="","N",IF(I54="Y","Y"))) -> N | AA106: =IF(E11>60,"N","Y") -> Y | AI106: 82 | AJ106: 88 | AL106: 82 | AM106: 84 | AO106: 82 | AP106: 84
B107: ='Slab Cap'!K25 -> 6x6-W4.0xW4.0 | D107: 63 | AI107: 83 | AJ107: 88 | AL107: 83 | AM107: 84 | AO107: 83 | AP107: 84
B108: ='Slab Cap'!K26 -> 6x6-W6.0xW6.0 | D108: 81 | AI108: 84 | AJ108: 88 | AL108: 84 | AM108: 84 | AO108: 84 | AP108: 84
B109: ='Slab Cap'!K27 -> 4x4-W2.9xW2.9 | D109: 63 | AI109: 85 | AJ109: 88 | AL109: 85 | AM109: 88 | AO109: 85 | AP109: 90
B110: ='Slab Cap'!K28 -> 4x4-W4.0xW4.0 | D110: 81 | AI110: 86 | AJ110: 88 | AL110: 86 | AM110: 88 | AO110: 86 | AP110: 90
B111: ='Slab Cap'!K29 -> 4x4-W6.0xW6.0 | D111: 105 | W111: Floor Weight | X111: =I31 -> 39 | Y111: psf | AI111: 87 | AJ111: 88 | AL111: 87 | AM111: 88 | AO111: 87 | AP111: 90
B112: Rebar | D112: 900 | E112: ton | F112: 900 | G112: ton | V112: =IF(OR(D41="#3 at 6 in. o.c.",D41="#4 at 8 in. o.c.",D41="#4 at 6 in. o.c."),"Rebar","WWR") -> WWR | W112: Reinf. Weight | X112: ='Slab Cap'!D24*2*12/1728*490 -> 0.1905555556 | Y112: psf | AI112: 88 | AJ112: 88 | AL112: 88 | AM112: 88 | AO112: 88 | AP112: 90
B113: Deck | D113: 1400 | F113: 55 | G113: 100 sf | W113: Deck Weight | X113: =I62 -> 1.78 | Y113: psf | AI113: 89 | AJ113: 96 | AL113: 89 | AM113: 92 | AO113: 89 | AP113: 90
B114: =IF(V2="Y","Composite Joists ≤ 60'","K or LH-Joists ≤ 60'") -> K or LH-Joists ≤ 60' | D114: 1450 | F114: 150 | G114: piece | W114: Concrete Weight | X114: =X111-X113 -> 37.22 | Y114: psf | AI114: 90 | AJ114: 96 | AL114: 90 | AM114: 92 | AO114: 90 | AP114: 90
B115: =IF(V2="Y","Composite Joists > 60',","LH-Joists > 60',") -> LH-Joists > 60', | D115: 1550 | F115: 200 | G115: piece | W115: Concrete Density | X115: =IF(D42="NW",145,IF(D42="LW",115,"N/A")) -> 145 | Y115: pcf | AI115: 91 | AJ115: 96 | AL115: 91 | AM115: 92 | AO115: 91 | AP115: 96
B116: =IF(V2="Y","Joist Girders","DLH-Joists, Joist Girders") -> DLH-Joists, Joist Girders | W116: Equiv. Conc. Thickness | X116: =X114/X115 -> 0.2566896552 | Y116: ft. | AI116: 92 | AJ116: 96 | AL116: 92 | AM116: 92 | AO116: 92 | AP116: 96
B117: ="3/8"" Studs" -> 3/8" Studs | D117: 1.1 | E117: piece | F117: 1 | G117: piece | W117: Conc. Volume | X117: =X116*E11*E12 -> 616.0551724 | Y117: ft^3/bay | AI117: 93 | AJ117: 96 | AL117: 93 | AM117: 96 | AO117: 93 | AP117: 96
B118: ="1/2"" Studs" -> 1/2" Studs | D118: 1.2 | F118: 1 | W118: Conc. Volume | X118: =X117/27 -> 22.81685824 | Y118: yd^3/bay | AI118: 94 | AJ118: 96 | AL118: 94 | AM118: 96 | AO118: 94 | AP118: 96
B119: ="5/8"" Studs" -> 5/8" Studs | D119: 1.5 | F119: 1 | AI119: 95 | AJ119: 96 | AL119: 95 | AM119: 96 | AO119: 95 | AP119: 96
B120: ="3/4"" Studs" -> 3/4" Studs | D120: 1.4 | F120: 1 | AI120: 96 | AJ120: 96 | AL120: 96 | AM120: 96 | AO120: 96 | AP120: 96
B121: X-Bridging | D121: 1700 | E121: ton | F121: 3.5 | G121: foot | N121: Error Checks | AI121: 97 | AJ121: 104 | AO121: 97 | AP121: 102
B122: H-Bridging | D122: 1500 | F122: 2 | G122: foot | M122: =IF(AND(V2="N",I13="Y",OR(E11<14,E11>60)),"NG","OK") -> OK | N122: Load/Load Joist Span | AI122: 98 | AJ122: 104 | AO122: 98 | AP122: 102
B123: Consult with general contractor / joist manufacturer / erector for cost data. | M123: =IF(AND(V2="Y",OR(E11<20,E11>120)),"NG","OK") -> OK | N123: Composite Joist Span | AI123: 99 | AJ123: 104 | AO123: 99 | AP123: 102
M124: =F38 -> OK | N124: Deck & Slab ID | AI124: 100 | AJ124: 104 | AO124: 100 | AP124: 102
B125: COST RESULTS | M125: =F39 -> OK | N125: Galvanized Composite Deck | AI125: 101 | AJ125: 104 | AO125: 101 | AP125: 102
B126: Concrete | D126: Reinforcement | F126: Deck | M126: =F40 -> OK | N126: Non-Composite Form Deck | AI126: 102 | AJ126: 104 | AO126: 102 | AP126: 102
B127: Purchase | C127: Installation | D127: Purchase | E127: Installation | F127: Purchase | G127: Installation | M127: =F41 -> OK | N127: Reinforcement Ratio | AI127: 103 | AJ127: 104 | AO127: 103 | AP127: 108
B128: =B129/E11/E12 -> 0.8080970626 | C128: =F102/100 -> 2.6 | D128: =IF(V112="Rebar",D112/2000*X112,1/100*INDEX(D104:D111,MATCH(D41,B104:B111,0))) -> 0.37 | E128: =IF(V112="Rebar",F112/2000*X112,F104/100) -> 0.2 | F128: =D113/2000*C96 -> 1.246 | G128: =F113/100 -> 0.55 | H128: $ / sf | M128: =IF(E62>F62,"NG","OK") -> OK | N128: Deck Span | AI128: 104 | AJ128: 104 | AO128: 104 | AP128: 108
B129: =X118*IF(D42="NW",D102,IF(D42="LW",D103,"N/A")) -> 1939.43295 | C129: =C128*$E$11*$E$12 -> 6240 | D129: =D128*$E$11*$E$12 -> 888 | E129: =E128*$E$11*$E$12 -> 480 | F129: =F128*$E$11*$E$12 -> 2990.4 | G129: =G128*$E$11*$E$12 -> 1320 | H129: $ / bay | M129: =H63 -> OK | N129: Deck Strength | AI129: 105 | AJ129: 112 | AO129: 105 | AP129: 108
M130: =IF(OR(AND(D49<D48,D49>0),D49>D50,D51>D50,AND(D51<D48,D51>0)),"NG","OK") -> OK | N130: Joist Depth | AI130: 106 | AJ130: 112 | AO130: 106 | AP130: 108
B131: Joists | D131: Studs | F131: Bridging | H131: Joist Girders | M131: =IF(OR(AND(D53<D52,D53>0),D53>D54,D55>D54,AND(D55<D52,D55>0)),"NG","OK") -> OK | N131: JG Depth | AI131: 107 | AJ131: 112 | AO131: 107 | AP131: 108
B132: Purchase | C132: Installation | D132: Purchase | E132: Installation | F132: Purchase | G132: Installation | H132: Purchase | I132: Installation | M132: =K63 -> OK | N132: Deck Deflection | AI132: 108 | AJ132: 112 | AO132: 108 | AP132: 108
B133: =D114/2000*D96+D115/2000*E96 -> 2.150833333 | C133: =IF(D96>0,F114,F115)*C82/E11/E12 -> 0.625 | D133: =IF(V2="N",0,STUDS!AK55*D45*IF($I$14=0.375,D117,IF($I$14=0.5,D118,IF($I$14=0.625,D119,IF($I$14=0.75,D120,)))))/(E11*E12) -> 0 | E133: =IF(V2="N",0,STUDS!AK55*D45*IF($I$14=0.375,F117,IF($I$14=0.5,F118,IF($I$14=0.625,F119,IF($I$14=0.75,F120,)))))/(E11*E12) -> 0 | F133: =F96/2000*D121+G96/2000*D122 -> 0.040125 | G133: =(F121*D76+F122*H76)/E11/E12 -> 0.1 | H133: =D115/2000*H96 -> 1.89875 | I133: =F115*1/E11/E12 -> 0.08333333333 | J133: $ / sf | M133: =F70 -> OK | N133: Joist Strength | AI133: 109 | AJ133: 112 | AO133: 109 | AP133: 114
B134: =B133*$E$11*$E$12 -> 5162 | C134: 1500 | D134: =D133*$E$11*$E$12 -> 0 | E134: =E133*$E$11*$E$12 -> 0 | F134: =F133*$E$11*$E$12 -> 96.3 | G134: =G133*$E$11*$E$12 -> 240 | H134: =H133*$E$11*$E$12 -> 4557 | I134: =I133*$E$11*$E$12 -> 200 | J134: $ / bay | M134: =IF(I70="OK","OK","NG") -> OK | N134: Joist Deflection | AI134: 110 | AJ134: 112 | AO134: 110 | AP134: 114
M135: =E83 -> OK | N135: JG Strength | AI135: 111 | AJ135: 112 | AO135: 111 | AP135: 114
B136: FINAL TOTALS | M136: =IF(H83="OK","OK","NG") -> OK | N136: JG Deflection | AI136: 112 | AJ136: 112 | AO136: 112 | AP136: 114
B137: Cost | F137: Concrete | H137: Reinf | I137: Steel Weight | M137: =IFERROR(IF(I32*1>0,"OK","NG"),"NG") -> OK | N137: Joist & Bridging Weight Input | AI137: 113 | AJ137: 120 | AO137: 113 | AP137: 114
B138: Purchase | C138: Installation | D138: Total | F138: Volume | H138: Weight | I138: (w/o Reinf) | M138: =B90 -> OK | N138: Joist & Bridging Weight Estimate | AI138: 115 | AJ138: 120 | AO138: 115 | AP138: 120
B139: =B128+D128+F128+B133+D133+F133+H133 -> 6.513805396 | C139: =C128+E128+G128+C133+E133+G133+I133 -> 4.158333333 | D139: =B139+C139 -> 10.67213873 | E139: $ / sf | F139: cu yd/bay | H139: =B96 -> 0.1905555556 | I139: =SUM(C96:H96) -> 7.250166667 | J139: psf | M139: =IFERROR(IF(I33*1>0,"OK","NG"),"NG") -> OK | N139: JG Weight Input | AI139: 116 | AJ139: 120 | AO139: 116 | AP139: 120
B140: =B139*$E$11*$E$12 -> 15633.13295 | C140: =C139*$E$11*$E$12 -> 9980 | D140: =D139*$E$11*$E$12 -> 25613.13295 | E140: $ / bay | F140: =X118 -> 22.81685824 | H140: =B97 -> 0.2286666667 | I140: =SUM(C97:H97) -> 8.7002 | J140: tons / bay | M140: =D90 -> OK | N140: JG Weight Estimate | AI140: 117 | AJ140: 120 | AO140: 117 | AP140: 120
M141: =J76 -> OK | N141: Joist Spacing for Bridging | AI141: 118 | AJ141: 120 | AO141: 118 | AP141: 120
E142: =IF(M146>0,"NO GOOD","OK") -> OK | M142: =IF(E8="OK","OK","NG") -> OK | N142: Composite Design Methodology | AI142: 119 | AJ142: 120 | AO142: 119 | AP142: 120
M143: =IF(AND(V2="Y",D49=""),"NG","OK") -> OK | N143: Composite Joist Depth Input (D49) | AI143: 120 | AJ143: 120 | AO143: 120 | AP143: =AP142+0 -> 120
E144: =IF(M146>0,"Design may be outside the limits of this program. Verify input or consult with manufacturer.","Design is acceptable and within the limits of this program.") -> Design is acceptable and within the limits of this program. | M144: NG | N144: =IF(V2="Y","Composite Joist Design Button","") -> 
M146: =IF(V2="Y",23-COUNTIF(M122:M144,"OK"),22-COUNTIF(M122:M143,"OK")) -> 0 | N146: Total NG
B148: RUN DATA
B149: Design Methodology | D149: =D8 -> LRFD
B150: Joist Span, ft. | D150: =E11 -> 40
B151: Joist Girder Span, ft. | D151: =E12 -> 60
B152: Deck Profile & Gage | D152: =D38 -> 1.5 - 22 Gage
B153: Tot. Slab Depth & Type | D153: =D62&" "&D40 -> 4 in. NW Comp.
B154: Reinforcement | D154: =D41 -> 6x6-W1.4xW1.4
B155: Deck Span, ft. | D155: =E62 -> 6
B156: X-Bridging Rows | D156: =C76 -> 0
B157: H-Bridging Rows | D157: =G76 -> 1
B158: Joist Size | D158: =B69 -> 32LH1093/449
B159: Studs/bay & Diameter | D159: =IF(V2="Y",CONCATENATE("(",STUDS!AK55*D45,") ",IF(I14=0.375,"3/8"" Studs",IF(I14=0.5,"1/2"" Studs",IF(I14=0.625,"5/8"" Studs",IF(I14=0.75,"3/4"" Studs"))))),0) -> 0
B160: Joist Seat Depth, in. | D160: =IF(V2="Y",INPUT!D9,AE102) -> 5
B161: Joist Girder Size | D161: =IF(B82="NG","NG",B82&"G"&C82&"N"&ROUNDUP(D82,1)&IF(D8="ASD","K","F")) -> 72G10N31.1F
B162: Concrete, cu yd/bay * | D162: =F140 -> 22.81685824
B163: Reinf Weight, psf | D163: =H139 -> 0.1905555556
B164: Stl Wt (w/o Reinf), psf | D164: =I139 -> 7.250166667
B165: Total Cost, $ / sf | D165: =D139 -> 10.67213873
B167: RUN COMPARISONS
D168: Run 1 | F168: Run 2 | H168: Run 3 | J168: Run 4
B169: Design Methodology
B170: Joist Span, ft.
B171: Joist Girder Span, ft.
B172: Deck Profile & Gage
B173: Tot. Slab Depth & Type
B174: Reinforcement
B175: Deck Span, ft.
B176: X-Bridging Rows
B177: H-Bridging Rows
B178: Joist Size
B179: Studs/bay & Diameter
B180: Joist Seat Depth, in.
B181: Joist Girder Size
B182: Concrete, cu yd/bay *
B183: Reinf Weight, psf
B184: Stl Wt (w/o Reinf), psf
B185: Total Cost, $ / sf
B186: * Concrete volumes are based on SDI's conservative slab weight estimates. The volumes are not precise.

Sheet INPUT (hidden)
B2: SJI UNIFIED COMPOSITE JOIST DESIGN PROGRAM
B3: Job Name: | E3: Date: | G3: KEY: | H3: input | I3: result | J3: default | L3: PANEL LAYOUT
B4: Mark: | C4: 2a | L4: TCEP | M4: TC 1ST | N4: n | O4: @ | P4: TC 1ST | Q4: TCEP
G5: Slab and Deck | L5: =WEBS!Q4 -> 25 | M5: =WEBS!R4 -> 23 | N5: =WEBS!S4 -> 16 | O5: =WEBS!T4 -> 24 | P5: =WEBS!U4 -> 23 | Q5: =WEBS!V4 -> 25 | HH5: =IF(ROUNDDOWN((INPUT!$C$7*12)/(HG5+8),0)>0,ROUNDDOWN((INPUT!$C$7*12)/(HG5+8),0),0) -> 60
B6: General | G6: Deck Ht, td(in) | H6: =IF(LEFT('Floor Bay Analysis'!D38,2)="1 ",1,IF(LEFT('Floor Bay Analysis'!D38,3)="1.5",1.5,IF(LEFT('Floor Bay Analysis'!D38,1)="2",2,IF(LEFT('Floor Bay Analysis'!D38,1)="3",3,"")))) -> 1.5 | L6: =WEBS!Q5 -> 30 | M6: =WEBS!R5 -> 18 | N6: =WEBS!S5 -> 0 | O6: =WEBS!T5 -> 0 | P6: =WEBS!U5 -> 18 | Q6: =WEBS!V5 -> 30 | HH6: =IF(ROUNDDOWN((INPUT!$C$7*12)/(HG6+8),0)>0,ROUNDDOWN((INPUT!$C$7*12)/(HG6+8),0),0) -> 60
B7: Span (ft) | C7: ='Floor Bay Analysis'!E11 -> 40 | G7: If 1 1/2" deck, inverted? | H7: =IF(LEFT('Floor Bay Analysis'!D38,7)="1.5 INV","Y","N") -> N | I7: Y or N | L7: BCEP | M7: BC 1ST | P7: BC 1ST | Q7: BCEP | HH7: =IF(ROUNDDOWN((INPUT!$C$7*12)/(HG7+8),0)>0,ROUNDDOWN((INPUT!$C$7*12)/(HG7+8),0),0) -> 60
B8: Depth(in) | C8: ='Floor Bay Analysis'!D49 -> 24 | G8: Deck GA | H8: not used | R8: wLL | S8: =CONCATENATE("L/",E26) -> L/360 | T8: LL defl | HH8: =IF(ROUNDDOWN((INPUT!$C$7*12)/(HG8+8),0)>0,ROUNDDOWN((INPUT!$C$7*12)/(HG8+8),0),0) -> 60
B9: Seat Height (in) | D9: =IF(PROPS!E62<=2,2.5,IF(AND(PROPS!E62>2,PROPS!E62<3.5),5,7.5)) ->  | E9: sugg'd | G9: Slab Thk, tc(in) | H9: ='Floor Bay Analysis'!D43-H6 -> 2.5 | L9: MEMBER | M9: MAT'L | N9: LGTH | O9: WT | P9: =CONCATENATE("W",INPUT!E26) -> W360 | Q9: =VLOOKUP(MAX(BC!$B$20,BC!$F$20),BC!J4:AY42,42) ->  | R9: =D25*C10 -> 448.6335345 | S9: =12*C7/E26 -> 1.333333333 | T9: =VLOOKUP(BC!B16,BC!BA4:BB42,2) ->  | HH9: =IF(ROUNDDOWN((INPUT!$C$7*12)/(HG9+8),0)>0,ROUNDDOWN((INPUT!$C$7*12)/(HG9+8),0),0) -> 60
B10: Spacing(ft) | C10: ='Floor Bay Analysis'!$D$69 -> 6 | G10: Unit wt, wc(pcf) | H10: =IF('Floor Bay Analysis'!D42="NW",145,110) -> 145 | I10: 115 L.W. OR 145 N.W. | L10: =WEBS!R9 -> TC | M10: =WEBS!S9 ->  | N10: =WEBS!T9 -> 480 | O10: =WEBS!U9 ->  | P10: TOT STDS | Q10: =CONCATENATE(STUDS!AK55,"-",STUDS!AK56) ->  | HH10: =IF(ROUNDDOWN((INPUT!$C$7*12)/(HG10+8),0)>0,ROUNDDOWN((INPUT!$C$7*12)/(HG10+8),0),0) -> 60
B11: Fy(ksi) | C11: ='Floor Bay Analysis'!I16 -> 50 | G11: Strength, f'c(psi) | H11: =1000*'Floor Bay Analysis'!I15 -> 4000 | L11: =WEBS!R10 -> CSM | M11: =WEBS!S10 -> MIN(CZ5:CZ43) | N11: =WEBS!T10 -> 31 | O11: =WEBS!U10 -> 0 | P11: STUD/RIB | Q11: =STUDS!AK57 ->  | S11: Wt(plf) | T11: =Q15 ->  | HH11: =IF(ROUNDDOWN((INPUT!$C$7*12)/(HG11+8),0)>0,ROUNDDOWN((INPUT!$C$7*12)/(HG11+8),0),0) -> 60
B12: Fu (ksi) | C12: 65 | E12: 50.7654 | G12: Stud Dia, (in) | H12: ='Floor Bay Analysis'!I14 -> 0.5 | I12: =STUDS!AK56 -> 0.5 | J12: sugg'd | L12: =WEBS!R11 -> BC | M12: =BC!B16 ->  | N12: =WEBS!T11 -> 432 | O12: =WEBS!U11 ->  | P12: Inc | Q12: =DEFL!C4 ->  | S12: =CONCATENATE("W",INPUT!E26,"(plf)") -> W360(plf) | T12: =Q9 ->  | HH12: =IF(ROUNDDOWN((INPUT!$C$7*12)/(HG12+8),0)>0,ROUNDDOWN((INPUT!$C$7*12)/(HG12+8),0),0) -> 60
G13: studs/rib | I13: =IF(H13="",IF(STUDS!F58=MIN(STUDS!F58,STUDS!P58,STUDS!Z58),STUDS!F57,IF(STUDS!P58=MIN(STUDS!F58,STUDS!P58,STUDS!Z58),STUDS!P57,STUDS!Z57)),"") ->  | J13: sugg'd(3 max) | L13: =WEBS!R12 -> P1 | M13: =WEBS!S12 ->  | N13: =WEBS!T12 ->  | O13: =WEBS!U12 ->  | S13: N-ds | T13: =Q10 ->  | HH13: =IF(ROUNDDOWN((INPUT!$C$7*12)/(HG13+8),0)>0,ROUNDDOWN((INPUT!$C$7*12)/(HG13+8),0),0) -> 60
B14: Noncomposite Dead Loads (psf) | G14: Stud Lgth, (in) | H14: =MIN(H6+1.5,H6+H9-0.5) -> 3 | I14: sugg'd | L14: =WEBS!R13 -> P2 | M14: =WEBS!S13 ->  | N14: =WEBS!T13 ->  | O14: =WEBS!U13 ->  | P14: WT | Q14: =WEBS!U50 ->  | S14: Ieff(in4) | T14: =DEFL!C12 ->  | HH14: =IF(ROUNDDOWN((INPUT!$C$7*12)/(HG14+8),0)>0,ROUNDDOWN((INPUT!$C$7*12)/(HG14+8),0),0) -> 60
B15: Conc & Deck | C15: =IF(ISNA('Floor Bay Analysis'!$I$31)=TRUE,2,'Floor Bay Analysis'!$I$31) -> 39 | D15: =IF(C15="",(IF(H6=1,1.43+((H10/145)*(6.57+12*H9)),IF(AND(H6=1.5,H7="N"),2.56+((H10/145)*(6.44+12*H9)),IF(AND(H6=1.5,H7="Y"),2.56+((H10/145)*(11.44+12*H9)),IF(H6=2,2.37+((H10/145)*(12.63+12*H9)),2.57+((H10/145)*(16.611+12.4571*H9))))))),C15) -> 39 | E15: =D15+D16 ->  | F15: sugg'd | L15: =WEBS!R14 -> P3 | M15: =WEBS!S14 ->  | N15: =WEBS!T14 ->  | O15: =WEBS!U14 ->  | P15: WT/FT | Q15: =IF(Q9="#N/A","#N/A",WEBS!U51) ->  | S15: Bridging | T15: =Q18 ->  | HH15: =IF(ROUNDDOWN((INPUT!$C$7*12)/(HG15+8),0)>0,ROUNDDOWN((INPUT!$C$7*12)/(HG15+8),0),0) -> 60
B16: Joist & brdg | D16: =IF(C16>0,C16,(WEBS!U51/INPUT!C10)+TC!AA54+TC!AB54) ->  | F16: =(WEBS!U51/INPUT!C10)+TC!AA54+TC!AB54 ->  | G16: Welds | L16: =WEBS!R15 -> P4 | M16: =WEBS!S15 ->  | N16: =WEBS!T15 ->  | O16: =WEBS!U15 ->  | HH16: =IF(ROUNDDOWN((INPUT!$C$7*12)/(HG16+8),0)>0,ROUNDDOWN((INPUT!$C$7*12)/(HG16+8),0),0) -> 60
G17: Weld: FEXX (ksi) | H17: 70 | L17: =WEBS!R16 -> P5 | M17: =WEBS!S16 ->  | N17: =WEBS!T16 ->  | O17: =WEBS!U16 ->  | P17: BRIDGING | HH17: =IF(ROUNDDOWN((INPUT!$C$7*12)/(HG17+8),0)>0,ROUNDDOWN((INPUT!$C$7*12)/(HG17+8),0),0) -> 60
B18: Constr Live Load (psf) | D18: ='Floor Bay Analysis'!$D$44 -> 20 | E18: =IF(D18=0,IF(C7*C10<=200,20,IF(C7*C10>600,12,20*(1.2-0.001*(C7*C10)))),D18) -> 20 | F18: sugg'd | G18: Base: Fy (ksi) | H18: =C11 -> 50 | L18: =WEBS!R17 -> P6 | M18: =WEBS!S17 ->  | N18: =WEBS!T17 ->  | O18: =WEBS!U17 ->  | P18: #Rs/Type | Q18: =TC!Y49 ->  | HH18: =IF(ROUNDDOWN((INPUT!$C$7*12)/(HG18+8),0)>0,ROUNDDOWN((INPUT!$C$7*12)/(HG18+8),0),0) -> 60
B19: (Based on ASCE roof LL) | L19: =WEBS!R18 -> P7 | M19: =WEBS!S18 ->  | N19: =WEBS!T18 ->  | O19: =WEBS!U18 ->  | P19: MAT'L | Q19: =TC!Y50 ->  | HH19: =IF(ROUNDDOWN((INPUT!$C$7*12)/(HG19+8),0)>0,ROUNDDOWN((INPUT!$C$7*12)/(HG19+8),0),0) -> 60
L20: =WEBS!R19 -> P8 | M20: =WEBS!S19 ->  | N20: =WEBS!T19 ->  | O20: =WEBS!U19 ->  | HH20: =IF(ROUNDDOWN((INPUT!$C$7*12)/(HG20+8),0)>0,ROUNDDOWN((INPUT!$C$7*12)/(HG20+8),0),0) -> 60
B21: Composite Dead Loads (psf) | G21: Erection Stability | L21: =WEBS!R20 -> P9 | M21: =WEBS!S20 ->  | N21: =WEBS!T20 ->  | O21: =WEBS!U20 ->  | P21: COST | Q21: =STUDS!AK60 ->  | HH21: =IF(ROUNDDOWN((INPUT!$C$7*12)/(HG21+8),0)>0,ROUNDDOWN((INPUT!$C$7*12)/(HG21+8),0),0) -> 60
B22: C, D, J & b | D22: =E15 ->  | E22: =D23+D22 ->  | F22: sugg'd | G22: Erector Wt. (lbs.) | I22: =IF(C7<=60,MAX(H22,250),MAX(H22,500)) -> 250 | J22: sugg'd | L22: =WEBS!R21 -> P10 | M22: =WEBS!S21 ->  | N22: =WEBS!T21 ->  | O22: =WEBS!U21 ->  | HH22: =IF(ROUNDDOWN((INPUT!$C$7*12)/(HG22+8),0)>0,ROUNDDOWN((INPUT!$C$7*12)/(HG22+8),0),0) -> 60
B23: part's, mech., etc. | C23: =SUM('Floor Bay Analysis'!$I$34:$I$39) -> 10 | D23: =C23 -> 10 | G23: Eff. Lgth. Fact. (k) | I23: =IF(H23="",0.85,H23) -> 0.85 | J23: sugg'd | L23: =WEBS!R22 ->  | M23: =WEBS!S22 ->  | N23: =WEBS!T22 -> 0 | O23: =WEBS!U22 ->  | P23: cost comparison | HH23: =IF(ROUNDDOWN((INPUT!$C$7*12)/(HG23+8),0)>0,ROUNDDOWN((INPUT!$C$7*12)/(HG23+8),0),0) -> 60
L24: =WEBS!R23 ->  | M24: =WEBS!S23 -> 0 | N24: =WEBS!T23 -> 0 | O24: =WEBS!U23 -> 0 | Q24: 0.375 | HH24: =IF(ROUNDDOWN((INPUT!$C$7*12)/(HG24+8),0)>0,ROUNDDOWN((INPUT!$C$7*12)/(HG24+8),0),0) -> 60
B25: Comp Live Load (psf) | D25: =IF('Floor Bay Analysis'!D34="Y",'Floor Bay Analysis'!X48*'Floor Bay Analysis'!D33,'Floor Bay Analysis'!D33) -> 74.77225575 | G25: to be used for comp LL for running tables | L25: =WEBS!R24 ->  | M25: =WEBS!S24 ->  | N25: =WEBS!T24 -> 0 | O25: =WEBS!U24 ->  | Q25: 0.5 | HH25: =IF(ROUNDDOWN((INPUT!$C$7*12)/(HG25+8),0)>0,ROUNDDOWN((INPUT!$C$7*12)/(HG25+8),0),0) -> 60
B26: LL Deflection Criteria | D26: ='Floor Bay Analysis'!$I$49 -> 360 | E26: =IF(D26=0,360,D26) -> 360 | F26: sugg'd | G26: =((C30/C10)-(1.2*E22))/1.6 ->  | L26: =WEBS!R25 ->  | M26: =WEBS!S25 -> 0 | N26: =WEBS!T25 -> 0 | O26: =WEBS!U25 -> 0 | Q26: 0.625 | HH26: =IF(ROUNDDOWN((INPUT!$C$7*12)/(HG26+8),0)>0,ROUNDDOWN((INPUT!$C$7*12)/(HG26+8),0),0) -> 60
L27: =WEBS!R26 ->  | M27: =WEBS!S26 ->  | N27: =WEBS!T26 -> 0 | O27: =WEBS!U26 ->  | Q27: 0.75 | HH27: =IF(ROUNDDOWN((INPUT!$C$7*12)/(HG27+8),0)>0,ROUNDDOWN((INPUT!$C$7*12)/(HG27+8),0),0) -> 60
B28: Total Factored Loads (plf) | L28: =WEBS!R27 ->  | M28: =WEBS!S27 -> 0 | N28: =WEBS!T27 -> 0 | O28: =WEBS!U27 -> 0 | HH28: =IF(ROUNDDOWN((INPUT!$C$7*12)/(HG28+8),0)>0,ROUNDDOWN((INPUT!$C$7*12)/(HG28+8),0),0) -> 60
B29: Construction | D29: =ROUNDUP(IF(C29=0,MAX((1.2*E15+1.6*E18)*C10,1.4*E15*C10),C29),0) ->  | E29: sugg'd | L29: =WEBS!R28 ->  | M29: =WEBS!S28 ->  | N29: =WEBS!T28 -> 0 | O29: =WEBS!U28 ->  | Q29: =VLOOKUP(MIN(P24:P27),P24:Q27,2) ->  | HH29: =IF(ROUNDDOWN((INPUT!$C$7*12)/(HG29+8),0)>0,ROUNDDOWN((INPUT!$C$7*12)/(HG29+8),0),0) -> 60
B30: Composite | D30: =ROUNDUP(IF(C30=0,MAX((1.2*E22+1.6*D25)*C10,1.4*E22*C10),C30),0) ->  | E30: sugg'd | L30: =WEBS!R29 ->  | M30: =WEBS!S29 -> 0 | N30: =WEBS!T29 -> 0 | O30: =WEBS!U29 -> 0 | HH30: =IF(ROUNDDOWN((INPUT!$C$7*12)/(HG30+8),0)>0,ROUNDDOWN((INPUT!$C$7*12)/(HG30+8),0),0) -> 60
L31: =WEBS!R30 ->  | M31: =WEBS!S30 ->  | N31: =WEBS!T30 -> 0 | O31: =WEBS!U30 ->  | HH31: =IF(ROUNDDOWN((INPUT!$C$7*12)/(HG31+8),0)>0,ROUNDDOWN((INPUT!$C$7*12)/(HG31+8),0),0) -> 60
L32: =WEBS!R31 ->  | M32: =WEBS!S31 -> 0 | N32: =WEBS!T31 -> 0 | O32: =WEBS!U31 -> 0 | HH32: =IF(ROUNDDOWN((INPUT!$C$7*12)/(HG32+8),0)>0,ROUNDDOWN((INPUT!$C$7*12)/(HG32+8),0),0) -> 60
L33: =WEBS!R32 ->  | M33: =WEBS!S32 ->  | N33: =WEBS!T32 -> 0 | O33: =WEBS!U32 ->  | HH33: =IF(ROUNDDOWN((INPUT!$C$7*12)/(HG33+8),0)>0,ROUNDDOWN((INPUT!$C$7*12)/(HG33+8),0),0) -> 60
L34: =WEBS!R33 ->  | M34: =WEBS!S33 -> 0 | N34: =WEBS!T33 -> 0 | O34: =WEBS!U33 -> 0 | HH34: =IF(ROUNDDOWN((INPUT!$C$7*12)/(HG34+8),0)>0,ROUNDDOWN((INPUT!$C$7*12)/(HG34+8),0),0) -> 60
C35: TL | D35: LL | E35: CDL | F35: NCDL | L35: =WEBS!R34 ->  | M35: =WEBS!S34 ->  | N35: =WEBS!T34 -> 0 | O35: =WEBS!U34 ->  | HH35: =IF(ROUNDDOWN((INPUT!$C$7*12)/(HG35+8),0)>0,ROUNDDOWN((INPUT!$C$7*12)/(HG35+8),0),0) -> 60
B36: ASD | C36: =ROUND((E22+D25)*C10,0) ->  | D36: =ROUND(C10*D25,0) -> 449 | E36: =ROUND(C23*C10,0) -> 60 | F36: =E15*C10 ->  | G36: =CONCATENATE(C8,"CJ",C36,"/",D36,"/",E36) ->  | L36: =WEBS!R35 ->  | M36: =WEBS!S35 -> 0 | N36: =WEBS!T35 -> 0 | O36: =WEBS!U35 -> 0 | HH36: =IF(ROUNDDOWN((INPUT!$C$7*12)/(HG36+8),0)>0,ROUNDDOWN((INPUT!$C$7*12)/(HG36+8),0),0) -> 60
B37: LRFD | C37: =D30 ->  | D37: =ROUNDUP(1.6*D36,0) -> 719 | E37: =ROUNDUP(1.2*E36,0) -> 72 | F37: =1.2*F36 ->  | G37: =CONCATENATE(C8,"CJ",C37,"/",D37,"/",E37) ->  | L37: =WEBS!R36 ->  | M37: =WEBS!S36 ->  | N37: =WEBS!T36 -> 0 | O37: =WEBS!U36 ->  | HH37: =IF(ROUNDDOWN((INPUT!$C$7*12)/(HG37+8),0)>0,ROUNDDOWN((INPUT!$C$7*12)/(HG37+8),0),0) -> 60
L38: =WEBS!R37 -> S1 | M38: =WEBS!S37 ->  | N38: =WEBS!T37 ->  | O38: =WEBS!U37 ->  | HH38: =IF(ROUNDDOWN((INPUT!$C$7*12)/(HG38+8),0)>0,ROUNDDOWN((INPUT!$C$7*12)/(HG38+8),0),0) -> 60
B39: from Floor Bay Analysis | L39: =WEBS!R38 -> S2 | M39: =WEBS!S38 ->  | N39: =WEBS!T38 ->  | O39: =WEBS!U38 ->  | HH39: =IF(ROUNDDOWN((INPUT!$C$7*12)/(HG39+8),0)>0,ROUNDDOWN((INPUT!$C$7*12)/(HG39+8),0),0) -> 60
L40: =WEBS!R39 -> S3 | M40: =WEBS!S39 ->  | N40: =WEBS!T39 ->  | O40: =WEBS!U39 ->  | HH40: =IF(ROUNDDOWN((INPUT!$C$7*12)/(HG40+8),0)>0,ROUNDDOWN((INPUT!$C$7*12)/(HG40+8),0),0) -> 60
L41: =WEBS!R40 -> S4 | M41: =WEBS!S40 ->  | N41: =WEBS!T40 ->  | O41: =WEBS!U40 ->  | HH41: =IF(ROUNDDOWN((INPUT!$C$7*12)/(HG41+8),0)>0,ROUNDDOWN((INPUT!$C$7*12)/(HG41+8),0),0) -> 60
L42: =WEBS!R41 -> S5 | M42: =WEBS!S41 ->  | N42: =WEBS!T41 ->  | O42: =WEBS!U41 ->  | HH42: =IF(ROUNDDOWN((INPUT!$C$7*12)/(HG42+8),0)>0,ROUNDDOWN((INPUT!$C$7*12)/(HG42+8),0),0) -> 60
L43: =WEBS!R42 ->  | M43: =WEBS!S42 -> 0 | N43: =WEBS!T42 -> 0 | O43: =WEBS!U42 -> 0 | HH43: =IF(ROUNDDOWN((INPUT!$C$7*12)/(HG43+8),0)>0,ROUNDDOWN((INPUT!$C$7*12)/(HG43+8),0),0) -> 60
L44: =WEBS!R43 ->  | M44: =WEBS!S43 -> 0 | N44: =WEBS!T43 -> 0 | O44: =WEBS!U43 -> 0
L45: =WEBS!R44 ->  | M45: =WEBS!S44 -> 0 | N45: =WEBS!T44 -> 0 | O45: =WEBS!U44 -> 0
L46: =WEBS!R45 ->  | M46: =WEBS!S45 -> 0 | N46: =WEBS!T45 -> 0 | O46: =WEBS!U45 -> 0
L47: =WEBS!R46 ->  | M47: =WEBS!S46 -> 0 | N47: =WEBS!T46 -> 0 | O47: =WEBS!U46 -> 0
L48: =WEBS!R47 ->  | M48: =WEBS!S47 -> 0 | N48: =WEBS!T47 -> 0 | O48: =WEBS!U47 -> 0
L49: =WEBS!R48 ->  | M49: =WEBS!S48 -> 0 | N49: =WEBS!T48 -> 0 | O49: =WEBS!U48 -> 0

Sheet BC (hidden)
A2: General | E2: Total Factored Loads (plf) | AC2: SHEAR CHECK | AM2: DEFLECTION | BC2: % Composite
A3: Span(ft) | B3: =INPUT!C7 -> 40 | E3: Construction | F3: =INPUT!D29 ->  | J3: mat'l | K3: area | L3: area x 2 | M3: Asfy | N3: a | O3: ybar | P3: RZ | Q3: RX | R3: Ix bc | S3: deff | T3: Tu | U3: phiTn | V3: 0.85fcbetc | W3: 0.75AnFu | X3: suf'nt Abc? | Y3: ductile? | Z3: Aeff? | AA3: Kl/r<240? | AC3: Vep | AD3: Pep | AE3: leg | AF3: TK | AG3: fv | AH3: ft | AI3: fvmod | AJ3: Fv | AM3: Inc | AN3: Ec | AO3: n | AP3: Ac | AQ3: yNA | AR3: Icomp | AS3: Cr | AT3: gamma r | AU3: Ieff | AV3: wLL, pli | AW3: deltaLL | AX3: =CONCATENATE("L/",INPUT!E26) -> L/360 | AY3: =CONCATENATE("w",INPUT!E26) -> w360 | BC3: conc, k | BD3: stud | BE3: phiAsFy | BF3: %
A4: Depth(in) | B4: =INPUT!C8 -> 24 | E4: Composite | F4: =INPUT!D30 ->  | I4: 1 | J4: 1010 | K4: 0.206 | L4: =K4*2 -> 0.412 | M4: =L4*$B$6*1000 -> 20600 | N4: =IF((L4*$B$6*1000)/(0.85*$B$12*$F$6)<INPUT!$H$9,(L4*$B$6*1000)/(0.85*$B$12*$F$6),INPUT!$H$9) -> 0.0841503268 | O4: 0.29 | P4: 0.196 | Q4: 0.307 | R4: 0.038 | S4: =$B$11+$B$10+$B$4-(N4/2)-O4 -> 27.66792484 | T4: =$F$7/S4 ->  | U4: =$F$8*M4 -> 18540 | V4: =0.85*0.85*($B$12*$F$6*$B$11) -> 520200 | W4: =0.75*L4*($B$7*1000) -> 20085 | X4: =IF(U4>=T4,1,0) ->  | Y4: =IF(T4<=V4,1,0) ->  | Z4: =IF(W4>=T4,1,0) ->  | AA4: =IF(OR(($F$22/P4)<=240,($F$22/Q4)<=240),1,0) -> 1 | AB4: =IF(X4+Y4+Z4+AA4+AK4=5,J4,"") ->  | AC4: =WEBS!$G$10-WEBS!$B$13 ->  | AD4: =AC4*(1/((INPUT!$C$8-(1+O4))/(PANELS!$I$36-2))) ->  | AE4: 1 | AF4: 0.109 | AG4: =AC4/(2*AE4*AF4) ->  | AH4: =AD4/L4 ->  | AI4: =0.5*(((AH4^2)+(4*(AG4^2)))^0.5) ->  | AJ4: =1*0.6*1000*INPUT!$C$11 -> 30000 | AK4: =IF(AI4<=AJ4,1,0) ->  | AM4: =TC!$B$23+R4+((TC!$B$24*L4*(WEBS!$E$2^2))/(TC!$B$24+L4)) ->  | AN4: =(33*(INPUT!$H$10^1.5)*(INPUT!$H$11)^0.5) -> 3644147.431 | AO4: =29000000/AN4 -> 7.957965628 | AP4: =$F$6*$B$11/AO4 -> 22.61884612 | AQ4: =(AP4*(INPUT!$C$8-O4+$B$10+($B$11/2))+TC!$B$24*(INPUT!$C$8-TC!$B$20-O4))/(AP4+TC!$B$24+L4) ->  | AR4: =R4+TC!$B$23+L4*(AQ4^2)+AP4*(INPUT!$C$8+(INPUT!$H$9/2)+INPUT!$H$6-AQ4-O4)^2+((AP4*INPUT!$H$9^2)/12)+TC!$B$24*(WEBS!$E$2-AQ4)^2 ->  | AS4: =IF(INPUT!$C$8<=16,0.721+0.00725*(INPUT!$C$7/(INPUT!$C$8/12)),0.9*(1-EXP(-0.28*INPUT!$C$7*12/INPUT!$C$8))^2.8) -> 0.8907123659 | AT4: =(1/AS4)-1 -> 0.1226968865 | AU4: =1/((AT4/AM4)+(1/AR4)) ->  | AV4: =INPUT!$D$25*INPUT!$C$10/12 -> 37.38612788 | AW4: =(5*AV4*(INPUT!$C$7*12)^4)/(384*29000000*AU4) ->  | AX4: =INPUT!$C$7*12/INPUT!$E$26 -> 1.333333333 | AY4: =IF(ISNA((384*29000000*AU4*AX4)/(5*(INPUT!$C$7*12)^4)*12)=TRUE,0,(384*29000000*AU4*AX4)/(5*(INPUT!$C$7*12)^4)*12) -> 0 | AZ4: =IF((AV4*12)>AY4,0,1) -> 0 | BA4: =IF(ISNA(AZ4)=TRUE,"",IF(AND(AZ4=1,BF4>=0.5),J4,"")) ->  | BB4: =IF(BA4="","",AW4) ->  | BC4: =0.85*0.85*(INPUT!$H$11/1000)*$F$6*N4 -> 17.51 | BD4: =0.5*0.9*STUDS!$AK$55*MIN(STUDS!$AF$59:$AI$59) ->  | BE4: =$F$8*L4*$B$6 -> 18.54 | BF4: =IF(ISNA(MIN(BC4:BD4)/BE4)=TRUE,0,MIN(BC4:BD4)/BE4) -> 0
A5: Spacing(ft) | B5: =INPUT!C10 -> 6 | I5: 2 | J5: 1210 | K5: 0.261 | L5: 0.522 | M5: 26100 | N5: =IF((L5*$B$6*1000)/(0.85*$B$12*$F$6)<INPUT!$H$9,(L5*$B$6*1000)/(0.85*$B$12*$F$6),INPUT!$H$9) -> 0.1066176471 | O5: 0.353 | P5: 0.247 | Q5: 0.387 | R5: 0.072 | S5: 27.59369118 | U5: 23490 | V5: =0.85*0.85*($B$12*$F$6*$B$11) -> 520200 | W5: =0.75*L5*($B$7*1000) -> 25447.5 | X5: =IF(U5>=T5,1,0) ->  | Y5: =IF(T5<=V5,1,0) ->  | Z5: =IF(W5>=T5,1,0) ->  | AA5: 1 | AB5: =IF(X5+Y5+Z5+AA5+AK5=5,J5,"") ->  | AC5: =WEBS!$G$10-WEBS!$B$13 ->  | AD5: =AC5*(1/((INPUT!$C$8-(1+O5))/(PANELS!$I$36-2))) ->  | AE5: 1.25 | AF5: 0.109 | AG5: =AC5/(2*AE5*AF5) ->  | AI5: =0.5*(((AH5^2)+(4*(AG5^2)))^0.5) ->  | AJ5: =1*0.6*1000*INPUT!$C$11 -> 30000 | AK5: =IF(AI5<=AJ5,1,0) ->  | AM5: =TC!$B$23+R5+((TC!$B$24*L5*(WEBS!$E$2^2))/(TC!$B$24+L5)) ->  | AN5: =(33*(INPUT!$H$10^1.5)*(INPUT!$H$11)^0.5) -> 3644147.431 | AO5: =29000000/AN5 -> 7.957965628 | AP5: =$F$6*$B$11/AO5 -> 22.61884612 | AQ5: =(AP5*(INPUT!$C$8-O5+$B$10+($B$11/2))+TC!$B$24*(INPUT!$C$8-TC!$B$20-O5))/(AP5+TC!$B$24+L5) ->  | AR5: =R5+TC!$B$23+L5*(AQ5^2)+AP5*(INPUT!$C$8+(INPUT!$H$9/2)+INPUT!$H$6-AQ5-O5)^2+((AP5*INPUT!$H$9^2)/12)+TC!$B$24*(WEBS!$E$2-AQ5)^2 ->  | AS5: =IF(INPUT!$C$8<=16,0.721+0.00725*(INPUT!$C$7/(INPUT!$C$8/12)),0.9*(1-EXP(-0.28*INPUT!$C$7*12/INPUT!$C$8))^2.8) -> 0.8907123659 | AT5: =(1/AS5)-1 -> 0.1226968865 | AU5: =1/((AT5/AM5)+(1/AR5)) ->  | AV5: =INPUT!$D$25*INPUT!$C$10/12 -> 37.38612788 | AW5: =(5*AV5*(INPUT!$C$7*12)^4)/(384*29000000*AU5) ->  | AX5: =INPUT!$C$7*12/INPUT!$E$26 -> 1.333333333 | AY5: =IF(ISNA((384*29000000*AU5*AX5)/(5*(INPUT!$C$7*12)^4)*12)=TRUE,0,(384*29000000*AU5*AX5)/(5*(INPUT!$C$7*12)^4)*12) -> 0 | AZ5: =IF((AV5*12)>AY5,0,1) -> 0 | BA5: =IF(ISNA(AZ5)=TRUE,"",IF(AND(AZ5=1,BF5>=0.5),J5,"")) ->  | BB5: =IF(BA5="","",AW5) ->  | BC5: =0.85*0.85*(INPUT!$H$11/1000)*$F$6*N5 -> 22.185 | BD5: =0.5*0.9*STUDS!$AK$55*MIN(STUDS!$AF$59:$AI$59) ->  | BE5: =$F$8*L5*$B$6 -> 23.49 | BF5: =IF(ISNA(MIN(BC5:BD5)/BE5)=TRUE,0,MIN(BC5:BD5)/BE5) -> 0 | HH5: =IF(ROUNDDOWN((INPUT!$C$7*12)/(HG5+8),0)>0,ROUNDDOWN((INPUT!$C$7*12)/(HG5+8),0),0) -> 60
A6: Fy(ksi) | B6: =INPUT!C11 -> 50 | E6: Beff | F6: =(MIN(B5,(B3/4))*12) -> 72 | G6: in | I6: 3 | J6: 1212 | K6: 0.297 | L6: 0.594 | M6: 29700 | N6: =IF((L6*$B$6*1000)/(0.85*$B$12*$F$6)<INPUT!$H$9,(L6*$B$6*1000)/(0.85*$B$12*$F$6),INPUT!$H$9) -> 0.1213235294 | O6: 0.359 | P6: 0.246 | Q6: 0.385 | R6: 0.088 | S6: 27.58033824 | U6: 26730 | V6: 520200 | W6: 28957.5 | AA6: 1 | AC6: =WEBS!$G$10-WEBS!$B$13 ->  | AD6: =AC6*(1/((INPUT!$C$8-(1+O6))/(PANELS!$I$36-2))) ->  | AE6: 1.25 | AF6: 0.125 | AJ6: =1*0.6*1000*INPUT!$C$11 -> 30000 | AM6: =TC!$B$23+R6+((TC!$B$24*L6*(WEBS!$E$2^2))/(TC!$B$24+L6)) ->  | AN6: =(33*(INPUT!$H$10^1.5)*(INPUT!$H$11)^0.5) -> 3644147.431 | AO6: 7.957965628 | AP6: 22.61884612 | AQ6: =(AP6*(INPUT!$C$8-O6+$B$10+($B$11/2))+TC!$B$24*(INPUT!$C$8-TC!$B$20-O6))/(AP6+TC!$B$24+L6) ->  | AR6: =R6+TC!$B$23+L6*(AQ6^2)+AP6*(INPUT!$C$8+(INPUT!$H$9/2)+INPUT!$H$6-AQ6-O6)^2+((AP6*INPUT!$H$9^2)/12)+TC!$B$24*(WEBS!$E$2-AQ6)^2 ->  | AS6: =IF(INPUT!$C$8<=16,0.721+0.00725*(INPUT!$C$7/(INPUT!$C$8/12)),0.9*(1-EXP(-0.28*INPUT!$C$7*12/INPUT!$C$8))^2.8) -> 0.8907123659 | AT6: 0.1226968865 | AV6: =INPUT!$D$25*INPUT!$C$10/12 -> 37.38612788 | AW6: =(5*AV6*(INPUT!$C$7*12)^4)/(384*29000000*AU6) ->  | AX6: =INPUT!$C$7*12/INPUT!$E$26 -> 1.333333333 | AY6: =IF(ISNA((384*29000000*AU6*AX6)/(5*(INPUT!$C$7*12)^4)*12)=TRUE,0,(384*29000000*AU6*AX6)/(5*(INPUT!$C$7*12)^4)*12) -> 0 | AZ6: 0 | BC6: =0.85*0.85*(INPUT!$H$11/1000)*$F$6*N6 -> 25.245 | BD6: =0.5*0.9*STUDS!$AK$55*MIN(STUDS!$AF$59:$AI$59) ->  | BE6: 26.73 | BF6: 0 | HH6: =IF(ROUNDDOWN((INPUT!$C$7*12)/(HG6+8),0)>0,ROUNDDOWN((INPUT!$C$7*12)/(HG6+8),0),0) -> 60
A7: Fu (ksi) | B7: =INPUT!C12 -> 65 | E7: Mu | F7: =((F4/12)*(((B3*12)^2)/8))-(F4*B3) ->  | G7: inlb | I7: 4 | J7: 1510 | K7: 0.315 | L7: 0.63 | M7: 31500 | N7: =IF((L7*$B$6*1000)/(0.85*$B$12*$F$6)<INPUT!$H$9,(L7*$B$6*1000)/(0.85*$B$12*$F$6),INPUT!$H$9) -> 0.1286764706 | O7: 0.415 | P7: 0.297 | Q7: 0.467 | R7: 0.138 | S7: 27.52066176 | U7: 28350 | V7: 520200 | W7: 30712.5 | AA7: 1 | AC7: =WEBS!$G$10-WEBS!$B$13 ->  | AD7: =AC7*(1/((INPUT!$C$8-(1+O7))/(PANELS!$I$36-2))) ->  | AE7: 1.5 | AF7: 0.109 | AJ7: =1*0.6*1000*INPUT!$C$11 -> 30000 | AM7: =TC!$B$23+R7+((TC!$B$24*L7*(WEBS!$E$2^2))/(TC!$B$24+L7)) ->  | AN7: =(33*(INPUT!$H$10^1.5)*(INPUT!$H$11)^0.5) -> 3644147.431 | AO7: 7.957965628 | AP7: 22.61884612 | AQ7: =(AP7*(INPUT!$C$8-O7+$B$10+($B$11/2))+TC!$B$24*(INPUT!$C$8-TC!$B$20-O7))/(AP7+TC!$B$24+L7) ->  | AR7: =R7+TC!$B$23+L7*(AQ7^2)+AP7*(INPUT!$C$8+(INPUT!$H$9/2)+INPUT!$H$6-AQ7-O7)^2+((AP7*INPUT!$H$9^2)/12)+TC!$B$24*(WEBS!$E$2-AQ7)^2 ->  | AS7: =IF(INPUT!$C$8<=16,0.721+0.00725*(INPUT!$C$7/(INPUT!$C$8/12)),0.9*(1-EXP(-0.28*INPUT!$C$7*12/INPUT!$C$8))^2.8) -> 0.8907123659 | AT7: 0.1226968865 | AV7: =INPUT!$D$25*INPUT!$C$10/12 -> 37.38612788 | AW7: =(5*AV7*(INPUT!$C$7*12)^4)/(384*29000000*AU7) ->  | AX7: =INPUT!$C$7*12/INPUT!$E$26 -> 1.333333333 | AY7: =IF(ISNA((384*29000000*AU7*AX7)/(5*(INPUT!$C$7*12)^4)*12)=TRUE,0,(384*29000000*AU7*AX7)/(5*(INPUT!$C$7*12)^4)*12) -> 0 | AZ7: 0 | BC7: =0.85*0.85*(INPUT!$H$11/1000)*$F$6*N7 -> 26.775 | BD7: =0.5*0.9*STUDS!$AK$55*MIN(STUDS!$AF$59:$AI$59) ->  | BE7: 28.35 | BF7: 0 | HH7: =IF(ROUNDDOWN((INPUT!$C$7*12)/(HG7+8),0)>0,ROUNDDOWN((INPUT!$C$7*12)/(HG7+8),0),0) -> 60
E8: phi | F8: 0.9 | I8: 5 | J8: 1512 | K8: 0.354 | L8: 0.708 | M8: 35400 | N8: =IF((L8*$B$6*1000)/(0.85*$B$12*$F$6)<INPUT!$H$9,(L8*$B$6*1000)/(0.85*$B$12*$F$6),INPUT!$H$9) -> 0.1446078431 | O8: 0.42 | P8: 0.296 | Q8: 0.485 | R8: 0.154 | S8: 27.50769608 | U8: 31860 | V8: 520200 | W8: 34515 | AA8: 1 | AC8: =WEBS!$G$10-WEBS!$B$13 ->  | AD8: =AC8*(1/((INPUT!$C$8-(1+O8))/(PANELS!$I$36-2))) ->  | AE8: 1.5 | AF8: 0.123 | AJ8: =1*0.6*1000*INPUT!$C$11 -> 30000 | AM8: =TC!$B$23+R8+((TC!$B$24*L8*(WEBS!$E$2^2))/(TC!$B$24+L8)) ->  | AN8: =(33*(INPUT!$H$10^1.5)*(INPUT!$H$11)^0.5) -> 3644147.431 | AO8: 7.957965628 | AP8: 22.61884612 | AQ8: =(AP8*(INPUT!$C$8-O8+$B$10+($B$11/2))+TC!$B$24*(INPUT!$C$8-TC!$B$20-O8))/(AP8+TC!$B$24+L8) ->  | AR8: =R8+TC!$B$23+L8*(AQ8^2)+AP8*(INPUT!$C$8+(INPUT!$H$9/2)+INPUT!$H$6-AQ8-O8)^2+((AP8*INPUT!$H$9^2)/12)+TC!$B$24*(WEBS!$E$2-AQ8)^2 ->  | AS8: =IF(INPUT!$C$8<=16,0.721+0.00725*(INPUT!$C$7/(INPUT!$C$8/12)),0.9*(1-EXP(-0.28*INPUT!$C$7*12/INPUT!$C$8))^2.8) -> 0.8907123659 | AT8: 0.1226968865 | AV8: =INPUT!$D$25*INPUT!$C$10/12 -> 37.38612788 | AW8: =(5*AV8*(INPUT!$C$7*12)^4)/(384*29000000*AU8) ->  | AX8: =INPUT!$C$7*12/INPUT!$E$26 -> 1.333333333 | AY8: =IF(ISNA((384*29000000*AU8*AX8)/(5*(INPUT!$C$7*12)^4)*12)=TRUE,0,(384*29000000*AU8*AX8)/(5*(INPUT!$C$7*12)^4)*12) -> 0 | AZ8: 0 | BC8: =0.85*0.85*(INPUT!$H$11/1000)*$F$6*N8 -> 30.09 | BD8: =0.5*0.9*STUDS!$AK$55*MIN(STUDS!$AF$59:$AI$59) ->  | BE8: 31.86 | BF8: 0 | HH8: =IF(ROUNDDOWN((INPUT!$C$7*12)/(HG8+8),0)>0,ROUNDDOWN((INPUT!$C$7*12)/(HG8+8),0),0) -> 60
A9: Slab and Deck | E9: Tu | F9: =VLOOKUP(B20,J4:T42,11) ->  | I9: 6 | J9: 1513 | K9: 0.395 | L9: 0.79 | M9: 39500 | N9: =IF((L9*$B$6*1000)/(0.85*$B$12*$F$6)<INPUT!$H$9,(L9*$B$6*1000)/(0.85*$B$12*$F$6),INPUT!$H$9) -> 0.1613562092 | O9: 0.426 | P9: 0.295 | Q9: 0.463 | R9: 0.17 | S9: 27.4933219 | U9: 35550 | V9: 520200 | W9: 38512.5 | AA9: 1 | AC9: =WEBS!$G$10-WEBS!$B$13 ->  | AD9: =AC9*(1/((INPUT!$C$8-(1+O9))/(PANELS!$I$36-2))) ->  | AE9: 1.5 | AF9: 0.138 | AJ9: =1*0.6*1000*INPUT!$C$11 -> 30000 | AM9: =TC!$B$23+R9+((TC!$B$24*L9*(WEBS!$E$2^2))/(TC!$B$24+L9)) ->  | AN9: =(33*(INPUT!$H$10^1.5)*(INPUT!$H$11)^0.5) -> 3644147.431 | AO9: 7.957965628 | AP9: 22.61884612 | AQ9: =(AP9*(INPUT!$C$8-O9+$B$10+($B$11/2))+TC!$B$24*(INPUT!$C$8-TC!$B$20-O9))/(AP9+TC!$B$24+L9) ->  | AR9: =R9+TC!$B$23+L9*(AQ9^2)+AP9*(INPUT!$C$8+(INPUT!$H$9/2)+INPUT!$H$6-AQ9-O9)^2+((AP9*INPUT!$H$9^2)/12)+TC!$B$24*(WEBS!$E$2-AQ9)^2 ->  | AS9: =IF(INPUT!$C$8<=16,0.721+0.00725*(INPUT!$C$7/(INPUT!$C$8/12)),0.9*(1-EXP(-0.28*INPUT!$C$7*12/INPUT!$C$8))^2.8) -> 0.8907123659 | AT9: 0.1226968865 | AV9: =INPUT!$D$25*INPUT!$C$10/12 -> 37.38612788 | AW9: =(5*AV9*(INPUT!$C$7*12)^4)/(384*29000000*AU9) ->  | AX9: =INPUT!$C$7*12/INPUT!$E$26 -> 1.333333333 | AY9: =IF(ISNA((384*29000000*AU9*AX9)/(5*(INPUT!$C$7*12)^4)*12)=TRUE,0,(384*29000000*AU9*AX9)/(5*(INPUT!$C$7*12)^4)*12) -> 0 | AZ9: 0 | BC9: =0.85*0.85*(INPUT!$H$11/1000)*$F$6*N9 -> 33.575 | BD9: =0.5*0.9*STUDS!$AK$55*MIN(STUDS!$AF$59:$AI$59) ->  | BE9: 35.55 | BF9: 0 | HH9: =IF(ROUNDDOWN((INPUT!$C$7*12)/(HG9+8),0)>0,ROUNDDOWN((INPUT!$C$7*12)/(HG9+8),0),0) -> 60
A10: Deck Ht, td(in) | B10: =INPUT!H6 -> 1.5 | E10: a | F10: =VLOOKUP(MAX(B20,F20),J4:N44,5) ->  | I10: 7 | J10: 1515 | K10: 0.441 | L10: 0.882 | M10: 44100 | N10: =IF((L10*$B$6*1000)/(0.85*$B$12*$F$6)<INPUT!$H$9,(L10*$B$6*1000)/(0.85*$B$12*$F$6),INPUT!$H$9) -> 0.1801470588 | O10: 0.432 | P10: 0.295 | Q10: 0.461 | R10: 0.188 | S10: 27.47792647 | U10: 39690 | V10: 520200 | W10: 42997.5 | AA10: 1 | AC10: =WEBS!$G$10-WEBS!$B$13 ->  | AD10: =AC10*(1/((INPUT!$C$8-(1+O10))/(PANELS!$I$36-2))) ->  | AE10: 1.5 | AF10: 0.155 | AJ10: =1*0.6*1000*INPUT!$C$11 -> 30000 | AM10: =TC!$B$23+R10+((TC!$B$24*L10*(WEBS!$E$2^2))/(TC!$B$24+L10)) ->  | AN10: =(33*(INPUT!$H$10^1.5)*(INPUT!$H$11)^0.5) -> 3644147.431 | AO10: 7.957965628 | AP10: 22.61884612 | AQ10: =(AP10*(INPUT!$C$8-O10+$B$10+($B$11/2))+TC!$B$24*(INPUT!$C$8-TC!$B$20-O10))/(AP10+TC!$B$24+L10) ->  | AR10: =R10+TC!$B$23+L10*(AQ10^2)+AP10*(INPUT!$C$8+(INPUT!$H$9/2)+INPUT!$H$6-AQ10-O10)^2+((AP10*INPUT!$H$9^2)/12)+TC!$B$24*(WEBS!$E$2-AQ10)^2 ->  | AS10: =IF(INPUT!$C$8<=16,0.721+0.00725*(INPUT!$C$7/(INPUT!$C$8/12)),0.9*(1-EXP(-0.28*INPUT!$C$7*12/INPUT!$C$8))^2.8) -> 0.8907123659 | AT10: 0.1226968865 | AV10: =INPUT!$D$25*INPUT!$C$10/12 -> 37.38612788 | AW10: =(5*AV10*(INPUT!$C$7*12)^4)/(384*29000000*AU10) ->  | AX10: =INPUT!$C$7*12/INPUT!$E$26 -> 1.333333333 | AY10: =IF(ISNA((384*29000000*AU10*AX10)/(5*(INPUT!$C$7*12)^4)*12)=TRUE,0,(384*29000000*AU10*AX10)/(5*(INPUT!$C$7*12)^4)*12) -> 0 | AZ10: 0 | BC10: =0.85*0.85*(INPUT!$H$11/1000)*$F$6*N10 -> 37.485 | BD10: =0.5*0.9*STUDS!$AK$55*MIN(STUDS!$AF$59:$AI$59) ->  | BE10: 39.69 | BF10: 0 | HH10: =IF(ROUNDDOWN((INPUT!$C$7*12)/(HG10+8),0)>0,ROUNDDOWN((INPUT!$C$7*12)/(HG10+8),0),0) -> 60
A11: Slab Thk, tc(in) | B11: =INPUT!H9 -> 2.5 | I11: 8 | J11: 1517 | K11: 0.481 | L11: 0.962 | M11: 48100 | N11: =IF((L11*$B$6*1000)/(0.85*$B$12*$F$6)<INPUT!$H$9,(L11*$B$6*1000)/(0.85*$B$12*$F$6),INPUT!$H$9) -> 0.1964869281 | O11: 0.437 | P11: 0.294 | Q11: 0.459 | R11: 0.202 | S11: 27.46475654 | U11: 43290 | V11: 520200 | W11: 46897.5 | AA11: 1 | AC11: =WEBS!$G$10-WEBS!$B$13 ->  | AD11: =AC11*(1/((INPUT!$C$8-(1+O11))/(PANELS!$I$36-2))) ->  | AE11: 1.5 | AF11: 0.17 | AJ11: =1*0.6*1000*INPUT!$C$11 -> 30000 | AM11: =TC!$B$23+R11+((TC!$B$24*L11*(WEBS!$E$2^2))/(TC!$B$24+L11)) ->  | AN11: =(33*(INPUT!$H$10^1.5)*(INPUT!$H$11)^0.5) -> 3644147.431 | AO11: 7.957965628 | AP11: 22.61884612 | AQ11: =(AP11*(INPUT!$C$8-O11+$B$10+($B$11/2))+TC!$B$24*(INPUT!$C$8-TC!$B$20-O11))/(AP11+TC!$B$24+L11) ->  | AR11: =R11+TC!$B$23+L11*(AQ11^2)+AP11*(INPUT!$C$8+(INPUT!$H$9/2)+INPUT!$H$6-AQ11-O11)^2+((AP11*INPUT!$H$9^2)/12)+TC!$B$24*(WEBS!$E$2-AQ11)^2 ->  | AS11: =IF(INPUT!$C$8<=16,0.721+0.00725*(INPUT!$C$7/(INPUT!$C$8/12)),0.9*(1-EXP(-0.28*INPUT!$C$7*12/INPUT!$C$8))^2.8) -> 0.8907123659 | AT11: 0.1226968865 | AV11: =INPUT!$D$25*INPUT!$C$10/12 -> 37.38612788 | AW11: =(5*AV11*(INPUT!$C$7*12)^4)/(384*29000000*AU11) ->  | AX11: =INPUT!$C$7*12/INPUT!$E$26 -> 1.333333333 | AY11: =IF(ISNA((384*29000000*AU11*AX11)/(5*(INPUT!$C$7*12)^4)*12)=TRUE,0,(384*29000000*AU11*AX11)/(5*(INPUT!$C$7*12)^4)*12) -> 0 | AZ11: 0 | BC11: =0.85*0.85*(INPUT!$H$11/1000)*$F$6*N11 -> 40.885 | BD11: =0.5*0.9*STUDS!$AK$55*MIN(STUDS!$AF$59:$AI$59) ->  | BE11: 43.29 | BF11: 0 | HH11: =IF(ROUNDDOWN((INPUT!$C$7*12)/(HG11+8),0)>0,ROUNDDOWN((INPUT!$C$7*12)/(HG11+8),0),0) -> 60
A12: Strength, f'c(psi) | B12: =INPUT!H11 -> 4000 | I12: 9 | J12: 1715 | K12: 0.518 | L12: 1.036 | M12: 51800 | N12: =IF((L12*$B$6*1000)/(0.85*$B$12*$F$6)<INPUT!$H$9,(L12*$B$6*1000)/(0.85*$B$12*$F$6),INPUT!$H$9) -> 0.2116013072 | O12: 0.495 | P12: 0.345 | Q12: 0.541 | R12: 0.304 | S12: 27.39919935 | U12: 46620 | V12: 520200 | W12: 50505 | AA12: 1 | AC12: =WEBS!$G$10-WEBS!$B$13 ->  | AD12: =AC12*(1/((INPUT!$C$8-(1+O12))/(PANELS!$I$36-2))) ->  | AE12: 1.75 | AF12: 0.155 | AJ12: =1*0.6*1000*INPUT!$C$11 -> 30000 | AM12: =TC!$B$23+R12+((TC!$B$24*L12*(WEBS!$E$2^2))/(TC!$B$24+L12)) ->  | AN12: =(33*(INPUT!$H$10^1.5)*(INPUT!$H$11)^0.5) -> 3644147.431 | AO12: 7.957965628 | AP12: 22.61884612 | AQ12: =(AP12*(INPUT!$C$8-O12+$B$10+($B$11/2))+TC!$B$24*(INPUT!$C$8-TC!$B$20-O12))/(AP12+TC!$B$24+L12) ->  | AR12: =R12+TC!$B$23+L12*(AQ12^2)+AP12*(INPUT!$C$8+(INPUT!$H$9/2)+INPUT!$H$6-AQ12-O12)^2+((AP12*INPUT!$H$9^2)/12)+TC!$B$24*(WEBS!$E$2-AQ12)^2 ->  | AS12: =IF(INPUT!$C$8<=16,0.721+0.00725*(INPUT!$C$7/(INPUT!$C$8/12)),0.9*(1-EXP(-0.28*INPUT!$C$7*12/INPUT!$C$8))^2.8) -> 0.8907123659 | AT12: 0.1226968865 | AV12: =INPUT!$D$25*INPUT!$C$10/12 -> 37.38612788 | AW12: =(5*AV12*(INPUT!$C$7*12)^4)/(384*29000000*AU12) ->  | AX12: =INPUT!$C$7*12/INPUT!$E$26 -> 1.333333333 | AY12: =IF(ISNA((384*29000000*AU12*AX12)/(5*(INPUT!$C$7*12)^4)*12)=TRUE,0,(384*29000000*AU12*AX12)/(5*(INPUT!$C$7*12)^4)*12) -> 0 | AZ12: 0 | BC12: =0.85*0.85*(INPUT!$H$11/1000)*$F$6*N12 -> 44.03 | BD12: =0.5*0.9*STUDS!$AK$55*MIN(STUDS!$AF$59:$AI$59) ->  | BE12: 46.62 | BF12: 0 | HH12: =IF(ROUNDDOWN((INPUT!$C$7*12)/(HG12+8),0)>0,ROUNDDOWN((INPUT!$C$7*12)/(HG12+8),0),0) -> 60
I13: 10 | J13: 1717 | K13: 0.566 | L13: 1.132 | M13: 56600 | N13: =IF((L13*$B$6*1000)/(0.85*$B$12*$F$6)<INPUT!$H$9,(L13*$B$6*1000)/(0.85*$B$12*$F$6),INPUT!$H$9) -> 0.2312091503 | O13: 0.5 | P13: 0.344 | Q13: 0.539 | R13: 0.33 | S13: 27.38439542 | U13: 50940 | V13: 520200 | W13: 55185 | AA13: 1 | AC13: =WEBS!$G$10-WEBS!$B$13 ->  | AD13: =AC13*(1/((INPUT!$C$8-(1+O13))/(PANELS!$I$36-2))) ->  | AE13: 1.75 | AF13: 0.17 | AJ13: =1*0.6*1000*INPUT!$C$11 -> 30000 | AM13: =TC!$B$23+R13+((TC!$B$24*L13*(WEBS!$E$2^2))/(TC!$B$24+L13)) ->  | AN13: =(33*(INPUT!$H$10^1.5)*(INPUT!$H$11)^0.5) -> 3644147.431 | AO13: 7.957965628 | AP13: 22.61884612 | AQ13: =(AP13*(INPUT!$C$8-O13+$B$10+($B$11/2))+TC!$B$24*(INPUT!$C$8-TC!$B$20-O13))/(AP13+TC!$B$24+L13) ->  | AR13: =R13+TC!$B$23+L13*(AQ13^2)+AP13*(INPUT!$C$8+(INPUT!$H$9/2)+INPUT!$H$6-AQ13-O13)^2+((AP13*INPUT!$H$9^2)/12)+TC!$B$24*(WEBS!$E$2-AQ13)^2 ->  | AS13: =IF(INPUT!$C$8<=16,0.721+0.00725*(INPUT!$C$7/(INPUT!$C$8/12)),0.9*(1-EXP(-0.28*INPUT!$C$7*12/INPUT!$C$8))^2.8) -> 0.8907123659 | AT13: 0.1226968865 | AV13: =INPUT!$D$25*INPUT!$C$10/12 -> 37.38612788 | AW13: =(5*AV13*(INPUT!$C$7*12)^4)/(384*29000000*AU13) ->  | AX13: =INPUT!$C$7*12/INPUT!$E$26 -> 1.333333333 | AY13: =IF(ISNA((384*29000000*AU13*AX13)/(5*(INPUT!$C$7*12)^4)*12)=TRUE,0,(384*29000000*AU13*AX13)/(5*(INPUT!$C$7*12)^4)*12) -> 0 | AZ13: 0 | BC13: =0.85*0.85*(INPUT!$H$11/1000)*$F$6*N13 -> 48.11 | BD13: =0.5*0.9*STUDS!$AK$55*MIN(STUDS!$AF$59:$AI$59) ->  | BE13: 50.94 | BF13: 0 | HH13: =IF(ROUNDDOWN((INPUT!$C$7*12)/(HG13+8),0)>0,ROUNDDOWN((INPUT!$C$7*12)/(HG13+8),0),0) -> 60
A14: design | B14: =MIN(AB4:AB42) ->  | I14: 11 | J14: 2016 | K14: 0.625 | L14: 1.25 | M14: 62500 | N14: =IF((L14*$B$6*1000)/(0.85*$B$12*$F$6)<INPUT!$H$9,(L14*$B$6*1000)/(0.85*$B$12*$F$6),INPUT!$H$9) -> 0.2553104575 | O14: 0.56 | P14: 0.395 | Q14: 0.621 | R14: 0.482 | S14: 27.31234477 | U14: 56250 | V14: 520200 | W14: 60937.5 | AA14: 1 | AC14: =WEBS!$G$10-WEBS!$B$13 ->  | AD14: =AC14*(1/((INPUT!$C$8-(1+O14))/(PANELS!$I$36-2))) ->  | AE14: 2 | AF14: 0.163 | AJ14: =1*0.6*1000*INPUT!$C$11 -> 30000 | AM14: =TC!$B$23+R14+((TC!$B$24*L14*(WEBS!$E$2^2))/(TC!$B$24+L14)) ->  | AN14: =(33*(INPUT!$H$10^1.5)*(INPUT!$H$11)^0.5) -> 3644147.431 | AO14: 7.957965628 | AP14: 22.61884612 | AQ14: =(AP14*(INPUT!$C$8-O14+$B$10+($B$11/2))+TC!$B$24*(INPUT!$C$8-TC!$B$20-O14))/(AP14+TC!$B$24+L14) ->  | AR14: =R14+TC!$B$23+L14*(AQ14^2)+AP14*(INPUT!$C$8+(INPUT!$H$9/2)+INPUT!$H$6-AQ14-O14)^2+((AP14*INPUT!$H$9^2)/12)+TC!$B$24*(WEBS!$E$2-AQ14)^2 ->  | AS14: =IF(INPUT!$C$8<=16,0.721+0.00725*(INPUT!$C$7/(INPUT!$C$8/12)),0.9*(1-EXP(-0.28*INPUT!$C$7*12/INPUT!$C$8))^2.8) -> 0.8907123659 | AT14: 0.1226968865 | AV14: =INPUT!$D$25*INPUT!$C$10/12 -> 37.38612788 | AW14: =(5*AV14*(INPUT!$C$7*12)^4)/(384*29000000*AU14) ->  | AX14: =INPUT!$C$7*12/INPUT!$E$26 -> 1.333333333 | AY14: =IF(ISNA((384*29000000*AU14*AX14)/(5*(INPUT!$C$7*12)^4)*12)=TRUE,0,(384*29000000*AU14*AX14)/(5*(INPUT!$C$7*12)^4)*12) -> 0 | AZ14: 0 | BC14: =0.85*0.85*(INPUT!$H$11/1000)*$F$6*N14 -> 53.125 | BD14: =0.5*0.9*STUDS!$AK$55*MIN(STUDS!$AF$59:$AI$59) ->  | BE14: 56.25 | BF14: 0 | HH14: =IF(ROUNDDOWN((INPUT!$C$7*12)/(HG14+8),0)>0,ROUNDDOWN((INPUT!$C$7*12)/(HG14+8),0),0) -> 60
A15: deflection | B15: =IF(ISERROR(MIN(BA4:BA42)=TRUE),B14,MIN(BA4:BA42)) -> 0 | I15: 12 | J15: 2017 | K15: 0.673 | L15: 1.346 | M15: 67300 | N15: =IF((L15*$B$6*1000)/(0.85*$B$12*$F$6)<INPUT!$H$9,(L15*$B$6*1000)/(0.85*$B$12*$F$6),INPUT!$H$9) -> 0.2749183007 | O15: 0.565 | P15: 0.394 | Q15: 0.619 | R15: 0.516 | S15: 27.29754085 | U15: 60570 | V15: 520200 | W15: 65617.5 | AA15: 1 | AC15: =WEBS!$G$10-WEBS!$B$13 ->  | AD15: =AC15*(1/((INPUT!$C$8-(1+O15))/(PANELS!$I$36-2))) ->  | AE15: 2 | AF15: 0.176 | AJ15: =1*0.6*1000*INPUT!$C$11 -> 30000 | AM15: =TC!$B$23+R15+((TC!$B$24*L15*(WEBS!$E$2^2))/(TC!$B$24+L15)) ->  | AN15: =(33*(INPUT!$H$10^1.5)*(INPUT!$H$11)^0.5) -> 3644147.431 | AO15: 7.957965628 | AP15: 22.61884612 | AQ15: =(AP15*(INPUT!$C$8-O15+$B$10+($B$11/2))+TC!$B$24*(INPUT!$C$8-TC!$B$20-O15))/(AP15+TC!$B$24+L15) ->  | AR15: =R15+TC!$B$23+L15*(AQ15^2)+AP15*(INPUT!$C$8+(INPUT!$H$9/2)+INPUT!$H$6-AQ15-O15)^2+((AP15*INPUT!$H$9^2)/12)+TC!$B$24*(WEBS!$E$2-AQ15)^2 ->  | AS15: =IF(INPUT!$C$8<=16,0.721+0.00725*(INPUT!$C$7/(INPUT!$C$8/12)),0.9*(1-EXP(-0.28*INPUT!$C$7*12/INPUT!$C$8))^2.8) -> 0.8907123659 | AT15: 0.1226968865 | AV15: =INPUT!$D$25*INPUT!$C$10/12 -> 37.38612788 | AW15: =(5*AV15*(INPUT!$C$7*12)^4)/(384*29000000*AU15) ->  | AX15: =INPUT!$C$7*12/INPUT!$E$26 -> 1.333333333 | AY15: =IF(ISNA((384*29000000*AU15*AX15)/(5*(INPUT!$C$7*12)^4)*12)=TRUE,0,(384*29000000*AU15*AX15)/(5*(INPUT!$C$7*12)^4)*12) -> 0 | AZ15: 0 | BC15: =0.85*0.85*(INPUT!$H$11/1000)*$F$6*N15 -> 57.205 | BD15: =0.5*0.9*STUDS!$AK$55*MIN(STUDS!$AF$59:$AI$59) ->  | BE15: 60.57 | BF15: 0 | HH15: =IF(ROUNDDOWN((INPUT!$C$7*12)/(HG15+8),0)>0,ROUNDDOWN((INPUT!$C$7*12)/(HG15+8),0),0) -> 60
A16: what's best? | B16: =MAX(B14:B15) ->  | I16: 13 | J16: 2018 | K16: 0.713 | L16: 1.426 | M16: 71300 | N16: =IF((L16*$B$6*1000)/(0.85*$B$12*$F$6)<INPUT!$H$9,(L16*$B$6*1000)/(0.85*$B$12*$F$6),INPUT!$H$9) -> 0.2912581699 | O16: 0.569 | P16: 0.394 | Q16: 0.617 | R16: 0.544 | S16: 27.28537092 | U16: 64170 | V16: 520200 | W16: 69517.5 | AA16: 1 | AC16: =WEBS!$G$10-WEBS!$B$13 ->  | AD16: =AC16*(1/((INPUT!$C$8-(1+O16))/(PANELS!$I$36-2))) ->  | AE16: 2 | AF16: 0.187 | AJ16: =1*0.6*1000*INPUT!$C$11 -> 30000 | AM16: =TC!$B$23+R16+((TC!$B$24*L16*(WEBS!$E$2^2))/(TC!$B$24+L16)) ->  | AN16: =(33*(INPUT!$H$10^1.5)*(INPUT!$H$11)^0.5) -> 3644147.431 | AO16: 7.957965628 | AP16: 22.61884612 | AQ16: =(AP16*(INPUT!$C$8-O16+$B$10+($B$11/2))+TC!$B$24*(INPUT!$C$8-TC!$B$20-O16))/(AP16+TC!$B$24+L16) ->  | AR16: =R16+TC!$B$23+L16*(AQ16^2)+AP16*(INPUT!$C$8+(INPUT!$H$9/2)+INPUT!$H$6-AQ16-O16)^2+((AP16*INPUT!$H$9^2)/12)+TC!$B$24*(WEBS!$E$2-AQ16)^2 ->  | AS16: =IF(INPUT!$C$8<=16,0.721+0.00725*(INPUT!$C$7/(INPUT!$C$8/12)),0.9*(1-EXP(-0.28*INPUT!$C$7*12/INPUT!$C$8))^2.8) -> 0.8907123659 | AT16: 0.1226968865 | AV16: =INPUT!$D$25*INPUT!$C$10/12 -> 37.38612788 | AW16: =(5*AV16*(INPUT!$C$7*12)^4)/(384*29000000*AU16) ->  | AX16: =INPUT!$C$7*12/INPUT!$E$26 -> 1.333333333 | AY16: =IF(ISNA((384*29000000*AU16*AX16)/(5*(INPUT!$C$7*12)^4)*12)=TRUE,0,(384*29000000*AU16*AX16)/(5*(INPUT!$C$7*12)^4)*12) -> 0 | AZ16: 0 | BC16: =0.85*0.85*(INPUT!$H$11/1000)*$F$6*N16 -> 60.605 | BD16: =0.5*0.9*STUDS!$AK$55*MIN(STUDS!$AF$59:$AI$59) ->  | BE16: 64.17 | BF16: 0 | HH16: =IF(ROUNDDOWN((INPUT!$C$7*12)/(HG16+8),0)>0,ROUNDDOWN((INPUT!$C$7*12)/(HG16+8),0),0) -> 60
I17: 14 | J17: 2020 | K17: 0.778 | L17: 1.556 | M17: 77800 | N17: =IF((L17*$B$6*1000)/(0.85*$B$12*$F$6)<INPUT!$H$9,(L17*$B$6*1000)/(0.85*$B$12*$F$6),INPUT!$H$9) -> 0.3178104575 | O17: 0.575 | P17: 0.393 | Q17: 0.615 | R17: 0.588 | S17: 27.26609477 | U17: 70020 | V17: 520200 | W17: 75855 | AA17: 1 | AC17: =WEBS!$G$10-WEBS!$B$13 ->  | AD17: =AC17*(1/((INPUT!$C$8-(1+O17))/(PANELS!$I$36-2))) ->  | AE17: 2 | AF17: 0.205 | AJ17: =1*0.6*1000*INPUT!$C$11 -> 30000 | AM17: =TC!$B$23+R17+((TC!$B$24*L17*(WEBS!$E$2^2))/(TC!$B$24+L17)) ->  | AN17: =(33*(INPUT!$H$10^1.5)*(INPUT!$H$11)^0.5) -> 3644147.431 | AO17: 7.957965628 | AP17: 22.61884612 | AQ17: =(AP17*(INPUT!$C$8-O17+$B$10+($B$11/2))+TC!$B$24*(INPUT!$C$8-TC!$B$20-O17))/(AP17+TC!$B$24+L17) ->  | AR17: =R17+TC!$B$23+L17*(AQ17^2)+AP17*(INPUT!$C$8+(INPUT!$H$9/2)+INPUT!$H$6-AQ17-O17)^2+((AP17*INPUT!$H$9^2)/12)+TC!$B$24*(WEBS!$E$2-AQ17)^2 ->  | AS17: =IF(INPUT!$C$8<=16,0.721+0.00725*(INPUT!$C$7/(INPUT!$C$8/12)),0.9*(1-EXP(-0.28*INPUT!$C$7*12/INPUT!$C$8))^2.8) -> 0.8907123659 | AT17: 0.1226968865 | AV17: =INPUT!$D$25*INPUT!$C$10/12 -> 37.38612788 | AW17: =(5*AV17*(INPUT!$C$7*12)^4)/(384*29000000*AU17) ->  | AX17: =INPUT!$C$7*12/INPUT!$E$26 -> 1.333333333 | AY17: =IF(ISNA((384*29000000*AU17*AX17)/(5*(INPUT!$C$7*12)^4)*12)=TRUE,0,(384*29000000*AU17*AX17)/(5*(INPUT!$C$7*12)^4)*12) -> 0 | AZ17: 0 | BC17: =0.85*0.85*(INPUT!$H$11/1000)*$F$6*N17 -> 66.13 | BD17: =0.5*0.9*STUDS!$AK$55*MIN(STUDS!$AF$59:$AI$59) ->  | BE17: 70.02 | BF17: 0 | HH17: =IF(ROUNDDOWN((INPUT!$C$7*12)/(HG17+8),0)>0,ROUNDDOWN((INPUT!$C$7*12)/(HG17+8),0),0) -> 60
I18: 15 | J18: 2021 | K18: 0.828 | L18: 1.656 | M18: 82800 | N18: =IF((L18*$B$6*1000)/(0.85*$B$12*$F$6)<INPUT!$H$9,(L18*$B$6*1000)/(0.85*$B$12*$F$6),INPUT!$H$9) -> 0.3382352941 | O18: 0.581 | P18: 0.392 | Q18: 0.613 | R18: 0.622 | S18: 27.24988235 | U18: 74520 | V18: 520200 | W18: 80730 | AA18: 1 | AC18: =WEBS!$G$10-WEBS!$B$13 ->  | AD18: =AC18*(1/((INPUT!$C$8-(1+O18))/(PANELS!$I$36-2))) ->  | AE18: 2 | AF18: 0.219 | AJ18: =1*0.6*1000*INPUT!$C$11 -> 30000 | AM18: =TC!$B$23+R18+((TC!$B$24*L18*(WEBS!$E$2^2))/(TC!$B$24+L18)) ->  | AN18: =(33*(INPUT!$H$10^1.5)*(INPUT!$H$11)^0.5) -> 3644147.431 | AO18: 7.957965628 | AP18: 22.61884612 | AQ18: =(AP18*(INPUT!$C$8-O18+$B$10+($B$11/2))+TC!$B$24*(INPUT!$C$8-TC!$B$20-O18))/(AP18+TC!$B$24+L18) ->  | AR18: =R18+TC!$B$23+L18*(AQ18^2)+AP18*(INPUT!$C$8+(INPUT!$H$9/2)+INPUT!$H$6-AQ18-O18)^2+((AP18*INPUT!$H$9^2)/12)+TC!$B$24*(WEBS!$E$2-AQ18)^2 ->  | AS18: =IF(INPUT!$C$8<=16,0.721+0.00725*(INPUT!$C$7/(INPUT!$C$8/12)),0.9*(1-EXP(-0.28*INPUT!$C$7*12/INPUT!$C$8))^2.8) -> 0.8907123659 | AT18: 0.1226968865 | AV18: =INPUT!$D$25*INPUT!$C$10/12 -> 37.38612788 | AW18: =(5*AV18*(INPUT!$C$7*12)^4)/(384*29000000*AU18) ->  | AX18: =INPUT!$C$7*12/INPUT!$E$26 -> 1.333333333 | AY18: =IF(ISNA((384*29000000*AU18*AX18)/(5*(INPUT!$C$7*12)^4)*12)=TRUE,0,(384*29000000*AU18*AX18)/(5*(INPUT!$C$7*12)^4)*12) -> 0 | AZ18: 0 | BC18: =0.85*0.85*(INPUT!$H$11/1000)*$F$6*N18 -> 70.38 | BD18: =0.5*0.9*STUDS!$AK$55*MIN(STUDS!$AF$59:$AI$59) ->  | BE18: 74.52 | BF18: 0 | HH18: =IF(ROUNDDOWN((INPUT!$C$7*12)/(HG18+8),0)>0,ROUNDDOWN((INPUT!$C$7*12)/(HG18+8),0),0) -> 60
A19: DESIGN BC | E19: DEFLECTION BC | I19: 16 | J19: 2023 | K19: 0.874 | L19: 1.748 | M19: 87400 | N19: =IF((L19*$B$6*1000)/(0.85*$B$12*$F$6)<INPUT!$H$9,(L19*$B$6*1000)/(0.85*$B$12*$F$6),INPUT!$H$9) -> 0.3570261438 | O19: 0.585 | P19: 0.392 | Q19: 0.611 | R19: 0.654 | S19: 27.23648693 | U19: 78660 | V19: 520200 | W19: 85215 | AA19: 1 | AC19: =WEBS!$G$10-WEBS!$B$13 ->  | AD19: =AC19*(1/((INPUT!$C$8-(1+O19))/(PANELS!$I$36-2))) ->  | AE19: 2 | AF19: 0.232 | AJ19: =1*0.6*1000*INPUT!$C$11 -> 30000 | AM19: =TC!$B$23+R19+((TC!$B$24*L19*(WEBS!$E$2^2))/(TC!$B$24+L19)) ->  | AN19: =(33*(INPUT!$H$10^1.5)*(INPUT!$H$11)^0.5) -> 3644147.431 | AO19: 7.957965628 | AP19: 22.61884612 | AQ19: =(AP19*(INPUT!$C$8-O19+$B$10+($B$11/2))+TC!$B$24*(INPUT!$C$8-TC!$B$20-O19))/(AP19+TC!$B$24+L19) ->  | AR19: =R19+TC!$B$23+L19*(AQ19^2)+AP19*(INPUT!$C$8+(INPUT!$H$9/2)+INPUT!$H$6-AQ19-O19)^2+((AP19*INPUT!$H$9^2)/12)+TC!$B$24*(WEBS!$E$2-AQ19)^2 ->  | AS19: =IF(INPUT!$C$8<=16,0.721+0.00725*(INPUT!$C$7/(INPUT!$C$8/12)),0.9*(1-EXP(-0.28*INPUT!$C$7*12/INPUT!$C$8))^2.8) -> 0.8907123659 | AT19: 0.1226968865 | AV19: =INPUT!$D$25*INPUT!$C$10/12 -> 37.38612788 | AW19: =(5*AV19*(INPUT!$C$7*12)^4)/(384*29000000*AU19) ->  | AX19: =INPUT!$C$7*12/INPUT!$E$26 -> 1.333333333 | AY19: =IF(ISNA((384*29000000*AU19*AX19)/(5*(INPUT!$C$7*12)^4)*12)=TRUE,0,(384*29000000*AU19*AX19)/(5*(INPUT!$C$7*12)^4)*12) -> 0 | AZ19: 0 | BC19: =0.85*0.85*(INPUT!$H$11/1000)*$F$6*N19 -> 74.29 | BD19: =0.5*0.9*STUDS!$AK$55*MIN(STUDS!$AF$59:$AI$59) ->  | BE19: 78.66 | BF19: 0 | HH19: =IF(ROUNDDOWN((INPUT!$C$7*12)/(HG19+8),0)>0,ROUNDDOWN((INPUT!$C$7*12)/(HG19+8),0),0) -> 60
A20: BC | B20: =B14 ->  | E20: BC | F20: =MAX(B14,B15) ->  | I20: 17 | J20: 2025 | K20: 0.938 | L20: 1.876 | M20: 93800 | N20: =IF((L20*$B$6*1000)/(0.85*$B$12*$F$6)<INPUT!$H$9,(L20*$B$6*1000)/(0.85*$B$12*$F$6),INPUT!$H$9) -> 0.3831699346 | O20: 0.592 | P20: 0.391 | Q20: 0.609 | R20: 0.696 | S20: 27.21641503 | U20: 84420 | V20: 520200 | W20: 91455 | AA20: 1 | AC20: =WEBS!$G$10-WEBS!$B$13 ->  | AD20: =AC20*(1/((INPUT!$C$8-(1+O20))/(PANELS!$I$36-2))) ->  | AE20: 2 | AF20: 0.25 | AJ20: =1*0.6*1000*INPUT!$C$11 -> 30000 | AM20: =TC!$B$23+R20+((TC!$B$24*L20*(WEBS!$E$2^2))/(TC!$B$24+L20)) ->  | AN20: =(33*(INPUT!$H$10^1.5)*(INPUT!$H$11)^0.5) -> 3644147.431 | AO20: 7.957965628 | AP20: 22.61884612 | AQ20: =(AP20*(INPUT!$C$8-O20+$B$10+($B$11/2))+TC!$B$24*(INPUT!$C$8-TC!$B$20-O20))/(AP20+TC!$B$24+L20) ->  | AR20: =R20+TC!$B$23+L20*(AQ20^2)+AP20*(INPUT!$C$8+(INPUT!$H$9/2)+INPUT!$H$6-AQ20-O20)^2+((AP20*INPUT!$H$9^2)/12)+TC!$B$24*(WEBS!$E$2-AQ20)^2 ->  | AS20: =IF(INPUT!$C$8<=16,0.721+0.00725*(INPUT!$C$7/(INPUT!$C$8/12)),0.9*(1-EXP(-0.28*INPUT!$C$7*12/INPUT!$C$8))^2.8) -> 0.8907123659 | AT20: 0.1226968865 | AV20: =INPUT!$D$25*INPUT!$C$10/12 -> 37.38612788 | AW20: =(5*AV20*(INPUT!$C$7*12)^4)/(384*29000000*AU20) ->  | AX20: =INPUT!$C$7*12/INPUT!$E$26 -> 1.333333333 | AY20: =IF(ISNA((384*29000000*AU20*AX20)/(5*(INPUT!$C$7*12)^4)*12)=TRUE,0,(384*29000000*AU20*AX20)/(5*(INPUT!$C$7*12)^4)*12) -> 0 | AZ20: 0 | BC20: =0.85*0.85*(INPUT!$H$11/1000)*$F$6*N20 -> 79.73 | BD20: =0.5*0.9*STUDS!$AK$55*MIN(STUDS!$AF$59:$AI$59) ->  | BE20: 84.42 | BF20: 0 | HH20: =IF(ROUNDDOWN((INPUT!$C$7*12)/(HG20+8),0)>0,ROUNDDOWN((INPUT!$C$7*12)/(HG20+8),0),0) -> 60
A21: ybar | B21: =VLOOKUP(B20,J4:O42,6) ->  | E21: ybar | F21: =VLOOKUP(F20,J4:O42,6) ->  | I21: 18 | J21: 2518 | K21: 0.9 | L21: 1.8 | M21: 90000 | N21: =IF((L21*$B$6*1000)/(0.85*$B$12*$F$6)<INPUT!$H$9,(L21*$B$6*1000)/(0.85*$B$12*$F$6),INPUT!$H$9) -> 0.3676470588 | O21: 0.694 | P21: 0.495 | Q21: 0.778 | R21: 1.09 | S21: 27.12217647 | U21: 81000 | V21: 520200 | W21: 87750 | AA21: 1 | AC21: =WEBS!$G$10-WEBS!$B$13 ->  | AD21: =AC21*(1/((INPUT!$C$8-(1+O21))/(PANELS!$I$36-2))) ->  | AE21: 2.5 | AF21: 0.187 | AJ21: =1*0.6*1000*INPUT!$C$11 -> 30000 | AM21: =TC!$B$23+R21+((TC!$B$24*L21*(WEBS!$E$2^2))/(TC!$B$24+L21)) ->  | AN21: =(33*(INPUT!$H$10^1.5)*(INPUT!$H$11)^0.5) -> 3644147.431 | AO21: 7.957965628 | AP21: 22.61884612 | AQ21: =(AP21*(INPUT!$C$8-O21+$B$10+($B$11/2))+TC!$B$24*(INPUT!$C$8-TC!$B$20-O21))/(AP21+TC!$B$24+L21) ->  | AR21: =R21+TC!$B$23+L21*(AQ21^2)+AP21*(INPUT!$C$8+(INPUT!$H$9/2)+INPUT!$H$6-AQ21-O21)^2+((AP21*INPUT!$H$9^2)/12)+TC!$B$24*(WEBS!$E$2-AQ21)^2 ->  | AS21: =IF(INPUT!$C$8<=16,0.721+0.00725*(INPUT!$C$7/(INPUT!$C$8/12)),0.9*(1-EXP(-0.28*INPUT!$C$7*12/INPUT!$C$8))^2.8) -> 0.8907123659 | AT21: 0.1226968865 | AV21: =INPUT!$D$25*INPUT!$C$10/12 -> 37.38612788 | AW21: =(5*AV21*(INPUT!$C$7*12)^4)/(384*29000000*AU21) ->  | AX21: =INPUT!$C$7*12/INPUT!$E$26 -> 1.333333333 | AY21: =IF(ISNA((384*29000000*AU21*AX21)/(5*(INPUT!$C$7*12)^4)*12)=TRUE,0,(384*29000000*AU21*AX21)/(5*(INPUT!$C$7*12)^4)*12) -> 0 | AZ21: 0 | BC21: =0.85*0.85*(INPUT!$H$11/1000)*$F$6*N21 -> 76.5 | BD21: =0.5*0.9*STUDS!$AK$55*MIN(STUDS!$AF$59:$AI$59) ->  | BE21: 81 | BF21: 0 | HH21: =IF(ROUNDDOWN((INPUT!$C$7*12)/(HG21+8),0)>0,ROUNDDOWN((INPUT!$C$7*12)/(HG21+8),0),0) -> 60
A22: Lb | B22: =2*PANELS!I33 -> 48 | E22: Lb | F22: =2*PANELS!I33 -> 48 | I22: 19 | J22: 2521 | K22: 1.015 | L22: 2.03 | M22: 101500 | N22: =IF((L22*$B$6*1000)/(0.85*$B$12*$F$6)<INPUT!$H$9,(L22*$B$6*1000)/(0.85*$B$12*$F$6),INPUT!$H$9) -> 0.414624183 | O22: 0.703 | P22: 0.493 | Q22: 0.775 | R22: 1.218 | S22: 27.08968791 | U22: 91350 | V22: 520200 | W22: 98962.5 | AA22: 1 | AC22: =WEBS!$G$10-WEBS!$B$13 ->  | AD22: =AC22*(1/((INPUT!$C$8-(1+O22))/(PANELS!$I$36-2))) ->  | AE22: 2.5 | AF22: 0.212 | AJ22: =1*0.6*1000*INPUT!$C$11 -> 30000 | AM22: =TC!$B$23+R22+((TC!$B$24*L22*(WEBS!$E$2^2))/(TC!$B$24+L22)) ->  | AN22: =(33*(INPUT!$H$10^1.5)*(INPUT!$H$11)^0.5) -> 3644147.431 | AO22: 7.957965628 | AP22: 22.61884612 | AQ22: =(AP22*(INPUT!$C$8-O22+$B$10+($B$11/2))+TC!$B$24*(INPUT!$C$8-TC!$B$20-O22))/(AP22+TC!$B$24+L22) ->  | AR22: =R22+TC!$B$23+L22*(AQ22^2)+AP22*(INPUT!$C$8+(INPUT!$H$9/2)+INPUT!$H$6-AQ22-O22)^2+((AP22*INPUT!$H$9^2)/12)+TC!$B$24*(WEBS!$E$2-AQ22)^2 ->  | AS22: =IF(INPUT!$C$8<=16,0.721+0.00725*(INPUT!$C$7/(INPUT!$C$8/12)),0.9*(1-EXP(-0.28*INPUT!$C$7*12/INPUT!$C$8))^2.8) -> 0.8907123659 | AT22: 0.1226968865 | AV22: =INPUT!$D$25*INPUT!$C$10/12 -> 37.38612788 | AW22: =(5*AV22*(INPUT!$C$7*12)^4)/(384*29000000*AU22) ->  | AX22: =INPUT!$C$7*12/INPUT!$E$26 -> 1.333333333 | AY22: =IF(ISNA((384*29000000*AU22*AX22)/(5*(INPUT!$C$7*12)^4)*12)=TRUE,0,(384*29000000*AU22*AX22)/(5*(INPUT!$C$7*12)^4)*12) -> 0 | AZ22: 0 | BC22: =0.85*0.85*(INPUT!$H$11/1000)*$F$6*N22 -> 86.275 | BD22: =0.5*0.9*STUDS!$AK$55*MIN(STUDS!$AF$59:$AI$59) ->  | BE22: 91.35 | BF22: 0 | HH22: =IF(ROUNDDOWN((INPUT!$C$7*12)/(HG22+8),0)>0,ROUNDDOWN((INPUT!$C$7*12)/(HG22+8),0),0) -> 60
A23: Asbc | B23: =VLOOKUP(B20,J4:L42,3) ->  | E23: Asbc | F23: =VLOOKUP(F20,J4:L42,3) ->  | I23: 20 | J23: 2523 | K23: 1.097 | L23: 2.194 | M23: 109700 | N23: =IF((L23*$B$6*1000)/(0.85*$B$12*$F$6)<INPUT!$H$9,(L23*$B$6*1000)/(0.85*$B$12*$F$6),INPUT!$H$9) -> 0.448120915 | O23: 0.71 | P23: 0.492 | Q23: 0.772 | R23: 1.308 | S23: 27.06593954 | U23: 98730 | V23: 520200 | W23: 106957.5 | AA23: 1 | AC23: =WEBS!$G$10-WEBS!$B$13 ->  | AD23: =AC23*(1/((INPUT!$C$8-(1+O23))/(PANELS!$I$36-2))) ->  | AE23: 2.5 | AF23: 0.23 | AJ23: =1*0.6*1000*INPUT!$C$11 -> 30000 | AM23: =TC!$B$23+R23+((TC!$B$24*L23*(WEBS!$E$2^2))/(TC!$B$24+L23)) ->  | AN23: =(33*(INPUT!$H$10^1.5)*(INPUT!$H$11)^0.5) -> 3644147.431 | AO23: 7.957965628 | AP23: 22.61884612 | AQ23: =(AP23*(INPUT!$C$8-O23+$B$10+($B$11/2))+TC!$B$24*(INPUT!$C$8-TC!$B$20-O23))/(AP23+TC!$B$24+L23) ->  | AR23: =R23+TC!$B$23+L23*(AQ23^2)+AP23*(INPUT!$C$8+(INPUT!$H$9/2)+INPUT!$H$6-AQ23-O23)^2+((AP23*INPUT!$H$9^2)/12)+TC!$B$24*(WEBS!$E$2-AQ23)^2 ->  | AS23: =IF(INPUT!$C$8<=16,0.721+0.00725*(INPUT!$C$7/(INPUT!$C$8/12)),0.9*(1-EXP(-0.28*INPUT!$C$7*12/INPUT!$C$8))^2.8) -> 0.8907123659 | AT23: 0.1226968865 | AV23: =INPUT!$D$25*INPUT!$C$10/12 -> 37.38612788 | AW23: =(5*AV23*(INPUT!$C$7*12)^4)/(384*29000000*AU23) ->  | AX23: =INPUT!$C$7*12/INPUT!$E$26 -> 1.333333333 | AY23: =IF(ISNA((384*29000000*AU23*AX23)/(5*(INPUT!$C$7*12)^4)*12)=TRUE,0,(384*29000000*AU23*AX23)/(5*(INPUT!$C$7*12)^4)*12) -> 0 | AZ23: 0 | BC23: =0.85*0.85*(INPUT!$H$11/1000)*$F$6*N23 -> 93.245 | BD23: =0.5*0.9*STUDS!$AK$55*MIN(STUDS!$AF$59:$AI$59) ->  | BE23: 98.73 | BF23: 0 | HH23: =IF(ROUNDDOWN((INPUT!$C$7*12)/(HG23+8),0)>0,ROUNDDOWN((INPUT!$C$7*12)/(HG23+8),0),0) -> 60
A24: Lbc | B24: =((INPUT!C7*12)-(2*PANELS!I36)+12) -> 432 | E24: Lbc | F24: =((INPUT!C7*12)-(2*PANELS!I36)+12) -> 432 | I24: 21 | J24: 2525 | K24: 1.1880001 | L24: 2.3760002 | M24: 118800.01 | N24: =IF((L24*$B$6*1000)/(0.85*$B$12*$F$6)<INPUT!$H$9,(L24*$B$6*1000)/(0.85*$B$12*$F$6),INPUT!$H$9) -> 0.4852941585 | O24: 0.717 | P24: 0.491 | Q24: 0.769 | R24: 1.406 | S24: 27.04035292 | U24: 106920.009 | V24: 520200 | W24: 115830.0097 | AA24: 1 | AC24: =WEBS!$G$10-WEBS!$B$13 ->  | AD24: =AC24*(1/((INPUT!$C$8-(1+O24))/(PANELS!$I$36-2))) ->  | AE24: 2.5 | AF24: 0.25 | AJ24: =1*0.6*1000*INPUT!$C$11 -> 30000 | AM24: =TC!$B$23+R24+((TC!$B$24*L24*(WEBS!$E$2^2))/(TC!$B$24+L24)) ->  | AN24: =(33*(INPUT!$H$10^1.5)*(INPUT!$H$11)^0.5) -> 3644147.431 | AO24: 7.957965628 | AP24: 22.61884612 | AQ24: =(AP24*(INPUT!$C$8-O24+$B$10+($B$11/2))+TC!$B$24*(INPUT!$C$8-TC!$B$20-O24))/(AP24+TC!$B$24+L24) ->  | AR24: =R24+TC!$B$23+L24*(AQ24^2)+AP24*(INPUT!$C$8+(INPUT!$H$9/2)+INPUT!$H$6-AQ24-O24)^2+((AP24*INPUT!$H$9^2)/12)+TC!$B$24*(WEBS!$E$2-AQ24)^2 ->  | AS24: =IF(INPUT!$C$8<=16,0.721+0.00725*(INPUT!$C$7/(INPUT!$C$8/12)),0.9*(1-EXP(-0.28*INPUT!$C$7*12/INPUT!$C$8))^2.8) -> 0.8907123659 | AT24: 0.1226968865 | AV24: =INPUT!$D$25*INPUT!$C$10/12 -> 37.38612788 | AW24: =(5*AV24*(INPUT!$C$7*12)^4)/(384*29000000*AU24) ->  | AX24: =INPUT!$C$7*12/INPUT!$E$26 -> 1.333333333 | AY24: =IF(ISNA((384*29000000*AU24*AX24)/(5*(INPUT!$C$7*12)^4)*12)=TRUE,0,(384*29000000*AU24*AX24)/(5*(INPUT!$C$7*12)^4)*12) -> 0 | AZ24: 0 | BC24: =0.85*0.85*(INPUT!$H$11/1000)*$F$6*N24 -> 100.9800085 | BD24: =0.5*0.9*STUDS!$AK$55*MIN(STUDS!$AF$59:$AI$59) ->  | BE24: 106.920009 | BF24: 0 | HH24: =IF(ROUNDDOWN((INPUT!$C$7*12)/(HG24+8),0)>0,ROUNDDOWN((INPUT!$C$7*12)/(HG24+8),0),0) -> 60
A25: wt bc | B25: =B23*B24*0.283565 ->  | E25: wt bc | F25: =F23*F24*0.283565 ->  | I25: 22 | J25: 3022 | K25: 1.31 | L25: 2.62 | M25: 131000 | N25: =IF((L25*$B$6*1000)/(0.85*$B$12*$F$6)<INPUT!$H$9,(L25*$B$6*1000)/(0.85*$B$12*$F$6),INPUT!$H$9) -> 0.535130719 | O25: 0.834 | P25: 0.594 | Q25: 0.934 | R25: 2.284 | S25: 26.89843464 | U25: 117900 | V25: 520200 | W25: 127725 | AA25: 1 | AC25: =WEBS!$G$10-WEBS!$B$13 ->  | AD25: =AC25*(1/((INPUT!$C$8-(1+O25))/(PANELS!$I$36-2))) ->  | AE25: 3 | AF25: 0.227 | AJ25: =1*0.6*1000*INPUT!$C$11 -> 30000 | AM25: =TC!$B$23+R25+((TC!$B$24*L25*(WEBS!$E$2^2))/(TC!$B$24+L25)) ->  | AN25: =(33*(INPUT!$H$10^1.5)*(INPUT!$H$11)^0.5) -> 3644147.431 | AO25: 7.957965628 | AP25: 22.61884612 | AQ25: =(AP25*(INPUT!$C$8-O25+$B$10+($B$11/2))+TC!$B$24*(INPUT!$C$8-TC!$B$20-O25))/(AP25+TC!$B$24+L25) ->  | AR25: =R25+TC!$B$23+L25*(AQ25^2)+AP25*(INPUT!$C$8+(INPUT!$H$9/2)+INPUT!$H$6-AQ25-O25)^2+((AP25*INPUT!$H$9^2)/12)+TC!$B$24*(WEBS!$E$2-AQ25)^2 ->  | AS25: =IF(INPUT!$C$8<=16,0.721+0.00725*(INPUT!$C$7/(INPUT!$C$8/12)),0.9*(1-EXP(-0.28*INPUT!$C$7*12/INPUT!$C$8))^2.8) -> 0.8907123659 | AT25: 0.1226968865 | AV25: =INPUT!$D$25*INPUT!$C$10/12 -> 37.38612788 | AW25: =(5*AV25*(INPUT!$C$7*12)^4)/(384*29000000*AU25) ->  | AX25: =INPUT!$C$7*12/INPUT!$E$26 -> 1.333333333 | AY25: =IF(ISNA((384*29000000*AU25*AX25)/(5*(INPUT!$C$7*12)^4)*12)=TRUE,0,(384*29000000*AU25*AX25)/(5*(INPUT!$C$7*12)^4)*12) -> 0 | AZ25: 0 | BC25: =0.85*0.85*(INPUT!$H$11/1000)*$F$6*N25 -> 111.35 | BD25: =0.5*0.9*STUDS!$AK$55*MIN(STUDS!$AF$59:$AI$59) ->  | BE25: 117.9 | BF25: 0 | HH25: =IF(ROUNDDOWN((INPUT!$C$7*12)/(HG25+8),0)>0,ROUNDDOWN((INPUT!$C$7*12)/(HG25+8),0),0) -> 60
A26: Ix bc | B26: =VLOOKUP(B20,J4:R42,9) ->  | E26: Ix bc | F26: =VLOOKUP(F20,J4:R42,9) ->  | I26: 23 | J26: 3025 | K26: 1.438 | L26: 2.876 | M26: 143800 | N26: =IF((L26*$B$6*1000)/(0.85*$B$12*$F$6)<INPUT!$H$9,(L26*$B$6*1000)/(0.85*$B$12*$F$6),INPUT!$H$9) -> 0.5874183007 | O26: 0.842 | P26: 0.592 | Q26: 0.93 | R26: 2.488 | S26: 26.86429085 | U26: 129420 | V26: 520200 | W26: 140205 | AA26: 1 | AC26: =WEBS!$G$10-WEBS!$B$13 ->  | AD26: =AC26*(1/((INPUT!$C$8-(1+O26))/(PANELS!$I$36-2))) ->  | AE26: 3 | AF26: 0.25 | AJ26: =1*0.6*1000*INPUT!$C$11 -> 30000 | AM26: =TC!$B$23+R26+((TC!$B$24*L26*(WEBS!$E$2^2))/(TC!$B$24+L26)) ->  | AN26: =(33*(INPUT!$H$10^1.5)*(INPUT!$H$11)^0.5) -> 3644147.431 | AO26: 7.957965628 | AP26: 22.61884612 | AQ26: =(AP26*(INPUT!$C$8-O26+$B$10+($B$11/2))+TC!$B$24*(INPUT!$C$8-TC!$B$20-O26))/(AP26+TC!$B$24+L26) ->  | AR26: =R26+TC!$B$23+L26*(AQ26^2)+AP26*(INPUT!$C$8+(INPUT!$H$9/2)+INPUT!$H$6-AQ26-O26)^2+((AP26*INPUT!$H$9^2)/12)+TC!$B$24*(WEBS!$E$2-AQ26)^2 ->  | AS26: =IF(INPUT!$C$8<=16,0.721+0.00725*(INPUT!$C$7/(INPUT!$C$8/12)),0.9*(1-EXP(-0.28*INPUT!$C$7*12/INPUT!$C$8))^2.8) -> 0.8907123659 | AT26: 0.1226968865 | AV26: =INPUT!$D$25*INPUT!$C$10/12 -> 37.38612788 | AW26: =(5*AV26*(INPUT!$C$7*12)^4)/(384*29000000*AU26) ->  | AX26: =INPUT!$C$7*12/INPUT!$E$26 -> 1.333333333 | AY26: =IF(ISNA((384*29000000*AU26*AX26)/(5*(INPUT!$C$7*12)^4)*12)=TRUE,0,(384*29000000*AU26*AX26)/(5*(INPUT!$C$7*12)^4)*12) -> 0 | AZ26: 0 | BC26: =0.85*0.85*(INPUT!$H$11/1000)*$F$6*N26 -> 122.23 | BD26: =0.5*0.9*STUDS!$AK$55*MIN(STUDS!$AF$59:$AI$59) ->  | BE26: 129.42 | BF26: 0 | HH26: =IF(ROUNDDOWN((INPUT!$C$7*12)/(HG26+8),0)>0,ROUNDDOWN((INPUT!$C$7*12)/(HG26+8),0),0) -> 60
A27: THK bc | B27: =VLOOKUP(B23,PROPS!C109:D155,2) ->  | E27: THK bc | F27: =VLOOKUP(F23,PROPS!C109:D155,2) ->  | I27: 24 | J27: 3028 | K27: 1.607 | L27: 3.214 | M27: 160700 | N27: =IF((L27*$B$6*1000)/(0.85*$B$12*$F$6)<INPUT!$H$9,(L27*$B$6*1000)/(0.85*$B$12*$F$6),INPUT!$H$9) -> 0.6564542484 | O27: 0.854 | P27: 0.591 | Q27: 0.925 | R27: 2.756 | S27: 26.81777288 | U27: 144630 | V27: 520200 | W27: 156682.5 | AA27: 1 | AC27: =WEBS!$G$10-WEBS!$B$13 ->  | AD27: =AC27*(1/((INPUT!$C$8-(1+O27))/(PANELS!$I$36-2))) ->  | AE27: 3 | AF27: 0.281 | AJ27: =1*0.6*1000*INPUT!$C$11 -> 30000 | AM27: =TC!$B$23+R27+((TC!$B$24*L27*(WEBS!$E$2^2))/(TC!$B$24+L27)) ->  | AN27: =(33*(INPUT!$H$10^1.5)*(INPUT!$H$11)^0.5) -> 3644147.431 | AO27: 7.957965628 | AP27: 22.61884612 | AQ27: =(AP27*(INPUT!$C$8-O27+$B$10+($B$11/2))+TC!$B$24*(INPUT!$C$8-TC!$B$20-O27))/(AP27+TC!$B$24+L27) ->  | AR27: =R27+TC!$B$23+L27*(AQ27^2)+AP27*(INPUT!$C$8+(INPUT!$H$9/2)+INPUT!$H$6-AQ27-O27)^2+((AP27*INPUT!$H$9^2)/12)+TC!$B$24*(WEBS!$E$2-AQ27)^2 ->  | AS27: =IF(INPUT!$C$8<=16,0.721+0.00725*(INPUT!$C$7/(INPUT!$C$8/12)),0.9*(1-EXP(-0.28*INPUT!$C$7*12/INPUT!$C$8))^2.8) -> 0.8907123659 | AT27: 0.1226968865 | AV27: =INPUT!$D$25*INPUT!$C$10/12 -> 37.38612788 | AW27: =(5*AV27*(INPUT!$C$7*12)^4)/(384*29000000*AU27) ->  | AX27: =INPUT!$C$7*12/INPUT!$E$26 -> 1.333333333 | AY27: =IF(ISNA((384*29000000*AU27*AX27)/(5*(INPUT!$C$7*12)^4)*12)=TRUE,0,(384*29000000*AU27*AX27)/(5*(INPUT!$C$7*12)^4)*12) -> 0 | AZ27: 0 | BC27: =0.85*0.85*(INPUT!$H$11/1000)*$F$6*N27 -> 136.595 | BD27: =0.5*0.9*STUDS!$AK$55*MIN(STUDS!$AF$59:$AI$59) ->  | BE27: 144.63 | BF27: 0 | HH27: =IF(ROUNDDOWN((INPUT!$C$7*12)/(HG27+8),0)>0,ROUNDDOWN((INPUT!$C$7*12)/(HG27+8),0),0) -> 60
A28: LEGbc | B28: =VLOOKUP(B23,PROPS!C109:E155,3) ->  | E28: LEGbc | F28: =VLOOKUP(F23,PROPS!C109:E155,3) ->  | I28: 25 | J28: 3031 | K28: 1.775 | L28: 3.55 | M28: 177500 | N28: =IF((L28*$B$6*1000)/(0.85*$B$12*$F$6)<INPUT!$H$9,(L28*$B$6*1000)/(0.85*$B$12*$F$6),INPUT!$H$9) -> 0.7250816993 | O28: 0.865 | P28: 0.588 | Q28: 0.922 | R28: 3.016 | S28: 26.77245915 | U28: 159750 | V28: 520200 | W28: 173062.5 | AA28: 1 | AC28: =WEBS!$G$10-WEBS!$B$13 ->  | AD28: =AC28*(1/((INPUT!$C$8-(1+O28))/(PANELS!$I$36-2))) ->  | AE28: 3 | AF28: 0.312 | AJ28: =1*0.6*1000*INPUT!$C$11 -> 30000 | AM28: =TC!$B$23+R28+((TC!$B$24*L28*(WEBS!$E$2^2))/(TC!$B$24+L28)) ->  | AN28: =(33*(INPUT!$H$10^1.5)*(INPUT!$H$11)^0.5) -> 3644147.431 | AO28: 7.957965628 | AP28: 22.61884612 | AQ28: =(AP28*(INPUT!$C$8-O28+$B$10+($B$11/2))+TC!$B$24*(INPUT!$C$8-TC!$B$20-O28))/(AP28+TC!$B$24+L28) ->  | AR28: =R28+TC!$B$23+L28*(AQ28^2)+AP28*(INPUT!$C$8+(INPUT!$H$9/2)+INPUT!$H$6-AQ28-O28)^2+((AP28*INPUT!$H$9^2)/12)+TC!$B$24*(WEBS!$E$2-AQ28)^2 ->  | AS28: =IF(INPUT!$C$8<=16,0.721+0.00725*(INPUT!$C$7/(INPUT!$C$8/12)),0.9*(1-EXP(-0.28*INPUT!$C$7*12/INPUT!$C$8))^2.8) -> 0.8907123659 | AT28: 0.1226968865 | AV28: =INPUT!$D$25*INPUT!$C$10/12 -> 37.38612788 | AW28: =(5*AV28*(INPUT!$C$7*12)^4)/(384*29000000*AU28) ->  | AX28: =INPUT!$C$7*12/INPUT!$E$26 -> 1.333333333 | AY28: =IF(ISNA((384*29000000*AU28*AX28)/(5*(INPUT!$C$7*12)^4)*12)=TRUE,0,(384*29000000*AU28*AX28)/(5*(INPUT!$C$7*12)^4)*12) -> 0 | AZ28: 0 | BC28: =0.85*0.85*(INPUT!$H$11/1000)*$F$6*N28 -> 150.875 | BD28: =0.5*0.9*STUDS!$AK$55*MIN(STUDS!$AF$59:$AI$59) ->  | BE28: 159.75 | BF28: 0 | HH28: =IF(ROUNDDOWN((INPUT!$C$7*12)/(HG28+8),0)>0,ROUNDDOWN((INPUT!$C$7*12)/(HG28+8),0),0) -> 60
I29: 26 | J29: 3528 | K29: 1.927 | L29: 3.854 | M29: 192700 | N29: =IF((L29*$B$6*1000)/(0.85*$B$12*$F$6)<INPUT!$H$9,(L29*$B$6*1000)/(0.85*$B$12*$F$6),INPUT!$H$9) -> 0.7871732026 | O29: 0.981 | P29: 0.591 | Q29: 1.066 | R29: 4.546 | S29: 26.6254134 | U29: 173430 | V29: 520200 | W29: 187882.5 | AA29: 1 | AC29: =WEBS!$G$10-WEBS!$B$13 ->  | AD29: =AC29*(1/((INPUT!$C$8-(1+O29))/(PANELS!$I$36-2))) ->  | AE29: 3.5 | AF29: 0.287 | AJ29: =1*0.6*1000*INPUT!$C$11 -> 30000 | AM29: =TC!$B$23+R29+((TC!$B$24*L29*(WEBS!$E$2^2))/(TC!$B$24+L29)) ->  | AN29: =(33*(INPUT!$H$10^1.5)*(INPUT!$H$11)^0.5) -> 3644147.431 | AO29: 7.957965628 | AP29: 22.61884612 | AQ29: =(AP29*(INPUT!$C$8-O29+$B$10+($B$11/2))+TC!$B$24*(INPUT!$C$8-TC!$B$20-O29))/(AP29+TC!$B$24+L29) ->  | AR29: =R29+TC!$B$23+L29*(AQ29^2)+AP29*(INPUT!$C$8+(INPUT!$H$9/2)+INPUT!$H$6-AQ29-O29)^2+((AP29*INPUT!$H$9^2)/12)+TC!$B$24*(WEBS!$E$2-AQ29)^2 ->  | AS29: =IF(INPUT!$C$8<=16,0.721+0.00725*(INPUT!$C$7/(INPUT!$C$8/12)),0.9*(1-EXP(-0.28*INPUT!$C$7*12/INPUT!$C$8))^2.8) -> 0.8907123659 | AT29: 0.1226968865 | AV29: =INPUT!$D$25*INPUT!$C$10/12 -> 37.38612788 | AW29: =(5*AV29*(INPUT!$C$7*12)^4)/(384*29000000*AU29) ->  | AX29: =INPUT!$C$7*12/INPUT!$E$26 -> 1.333333333 | AY29: =IF(ISNA((384*29000000*AU29*AX29)/(5*(INPUT!$C$7*12)^4)*12)=TRUE,0,(384*29000000*AU29*AX29)/(5*(INPUT!$C$7*12)^4)*12) -> 0 | AZ29: 0 | BC29: =0.85*0.85*(INPUT!$H$11/1000)*$F$6*N29 -> 163.795 | BD29: =0.5*0.9*STUDS!$AK$55*MIN(STUDS!$AF$59:$AI$59) ->  | BE29: 173.43 | BF29: 0 | HH29: =IF(ROUNDDOWN((INPUT!$C$7*12)/(HG29+8),0)>0,ROUNDDOWN((INPUT!$C$7*12)/(HG29+8),0),0) -> 60
I30: 27 | J30: 3531 | K30: 2.09 | L30: 4.18 | M30: 209000 | N30: =IF((L30*$B$6*1000)/(0.85*$B$12*$F$6)<INPUT!$H$9,(L30*$B$6*1000)/(0.85*$B$12*$F$6),INPUT!$H$9) -> 0.8537581699 | O30: 0.99 | P30: 0.69 | Q30: 1.082 | R30: 4.898 | S30: 26.58312092 | U30: 188100 | V30: 520200 | W30: 203775 | AA30: 1 | AC30: =WEBS!$G$10-WEBS!$B$13 ->  | AD30: =AC30*(1/((INPUT!$C$8-(1+O30))/(PANELS!$I$36-2))) ->  | AE30: 3.5 | AF30: 0.3125 | AJ30: =1*0.6*1000*INPUT!$C$11 -> 30000 | AM30: =TC!$B$23+R30+((TC!$B$24*L30*(WEBS!$E$2^2))/(TC!$B$24+L30)) ->  | AN30: =(33*(INPUT!$H$10^1.5)*(INPUT!$H$11)^0.5) -> 3644147.431 | AO30: 7.957965628 | AP30: 22.61884612 | AQ30: =(AP30*(INPUT!$C$8-O30+$B$10+($B$11/2))+TC!$B$24*(INPUT!$C$8-TC!$B$20-O30))/(AP30+TC!$B$24+L30) ->  | AR30: =R30+TC!$B$23+L30*(AQ30^2)+AP30*(INPUT!$C$8+(INPUT!$H$9/2)+INPUT!$H$6-AQ30-O30)^2+((AP30*INPUT!$H$9^2)/12)+TC!$B$24*(WEBS!$E$2-AQ30)^2 ->  | AS30: =IF(INPUT!$C$8<=16,0.721+0.00725*(INPUT!$C$7/(INPUT!$C$8/12)),0.9*(1-EXP(-0.28*INPUT!$C$7*12/INPUT!$C$8))^2.8) -> 0.8907123659 | AT30: 0.1226968865 | AV30: =INPUT!$D$25*INPUT!$C$10/12 -> 37.38612788 | AW30: =(5*AV30*(INPUT!$C$7*12)^4)/(384*29000000*AU30) ->  | AX30: =INPUT!$C$7*12/INPUT!$E$26 -> 1.333333333 | AY30: =IF(ISNA((384*29000000*AU30*AX30)/(5*(INPUT!$C$7*12)^4)*12)=TRUE,0,(384*29000000*AU30*AX30)/(5*(INPUT!$C$7*12)^4)*12) -> 0 | AZ30: 0 | BC30: =0.85*0.85*(INPUT!$H$11/1000)*$F$6*N30 -> 177.65 | BD30: =0.5*0.9*STUDS!$AK$55*MIN(STUDS!$AF$59:$AI$59) ->  | BE30: 188.1 | BF30: 0 | HH30: =IF(ROUNDDOWN((INPUT!$C$7*12)/(HG30+8),0)>0,ROUNDDOWN((INPUT!$C$7*12)/(HG30+8),0),0) -> 60
I31: 28 | J31: 3534 | K31: 2.29 | L31: 4.58 | M31: 229000 | N31: =IF((L31*$B$6*1000)/(0.85*$B$12*$F$6)<INPUT!$H$9,(L31*$B$6*1000)/(0.85*$B$12*$F$6),INPUT!$H$9) -> 0.9354575163 | O31: 1.002 | P31: 0.688 | Q31: 1.078 | R31: 5.322 | S31: 26.53027124 | U31: 206100 | V31: 520200 | W31: 223275 | AA31: 1 | AC31: =WEBS!$G$10-WEBS!$B$13 ->  | AD31: =AC31*(1/((INPUT!$C$8-(1+O31))/(PANELS!$I$36-2))) ->  | AE31: 3.5 | AF31: 0.344 | AJ31: =1*0.6*1000*INPUT!$C$11 -> 30000 | AM31: =TC!$B$23+R31+((TC!$B$24*L31*(WEBS!$E$2^2))/(TC!$B$24+L31)) ->  | AN31: =(33*(INPUT!$H$10^1.5)*(INPUT!$H$11)^0.5) -> 3644147.431 | AO31: 7.957965628 | AP31: 22.61884612 | AQ31: =(AP31*(INPUT!$C$8-O31+$B$10+($B$11/2))+TC!$B$24*(INPUT!$C$8-TC!$B$20-O31))/(AP31+TC!$B$24+L31) ->  | AR31: =R31+TC!$B$23+L31*(AQ31^2)+AP31*(INPUT!$C$8+(INPUT!$H$9/2)+INPUT!$H$6-AQ31-O31)^2+((AP31*INPUT!$H$9^2)/12)+TC!$B$24*(WEBS!$E$2-AQ31)^2 ->  | AS31: =IF(INPUT!$C$8<=16,0.721+0.00725*(INPUT!$C$7/(INPUT!$C$8/12)),0.9*(1-EXP(-0.28*INPUT!$C$7*12/INPUT!$C$8))^2.8) -> 0.8907123659 | AT31: 0.1226968865 | AV31: =INPUT!$D$25*INPUT!$C$10/12 -> 37.38612788 | AW31: =(5*AV31*(INPUT!$C$7*12)^4)/(384*29000000*AU31) ->  | AX31: =INPUT!$C$7*12/INPUT!$E$26 -> 1.333333333 | AY31: =IF(ISNA((384*29000000*AU31*AX31)/(5*(INPUT!$C$7*12)^4)*12)=TRUE,0,(384*29000000*AU31*AX31)/(5*(INPUT!$C$7*12)^4)*12) -> 0 | AZ31: 0 | BC31: =0.85*0.85*(INPUT!$H$11/1000)*$F$6*N31 -> 194.65 | BD31: =0.5*0.9*STUDS!$AK$55*MIN(STUDS!$AF$59:$AI$59) ->  | BE31: 206.1 | BF31: 0 | HH31: =IF(ROUNDDOWN((INPUT!$C$7*12)/(HG31+8),0)>0,ROUNDDOWN((INPUT!$C$7*12)/(HG31+8),0),0) -> 60
I32: 29 | J32: 3537 | K32: 2.484 | L32: 4.968 | M32: 248400 | N32: =IF((L32*$B$6*1000)/(0.85*$B$12*$F$6)<INPUT!$H$9,(L32*$B$6*1000)/(0.85*$B$12*$F$6),INPUT!$H$9) -> 1.014705882 | O32: 1.013 | P32: 0.687 | Q32: 1.074 | R32: 5.73 | S32: 26.47964706 | U32: 223560 | V32: 520200 | W32: 242190 | AA32: 1 | AC32: =WEBS!$G$10-WEBS!$B$13 ->  | AD32: =AC32*(1/((INPUT!$C$8-(1+O32))/(PANELS!$I$36-2))) ->  | AE32: 3.5 | AF32: 0.375 | AJ32: =1*0.6*1000*INPUT!$C$11 -> 30000 | AM32: =TC!$B$23+R32+((TC!$B$24*L32*(WEBS!$E$2^2))/(TC!$B$24+L32)) ->  | AN32: =(33*(INPUT!$H$10^1.5)*(INPUT!$H$11)^0.5) -> 3644147.431 | AO32: 7.957965628 | AP32: 22.61884612 | AQ32: =(AP32*(INPUT!$C$8-O32+$B$10+($B$11/2))+TC!$B$24*(INPUT!$C$8-TC!$B$20-O32))/(AP32+TC!$B$24+L32) ->  | AR32: =R32+TC!$B$23+L32*(AQ32^2)+AP32*(INPUT!$C$8+(INPUT!$H$9/2)+INPUT!$H$6-AQ32-O32)^2+((AP32*INPUT!$H$9^2)/12)+TC!$B$24*(WEBS!$E$2-AQ32)^2 ->  | AS32: =IF(INPUT!$C$8<=16,0.721+0.00725*(INPUT!$C$7/(INPUT!$C$8/12)),0.9*(1-EXP(-0.28*INPUT!$C$7*12/INPUT!$C$8))^2.8) -> 0.8907123659 | AT32: 0.1226968865 | AV32: =INPUT!$D$25*INPUT!$C$10/12 -> 37.38612788 | AW32: =(5*AV32*(INPUT!$C$7*12)^4)/(384*29000000*AU32) ->  | AX32: =INPUT!$C$7*12/INPUT!$E$26 -> 1.333333333 | AY32: =IF(ISNA((384*29000000*AU32*AX32)/(5*(INPUT!$C$7*12)^4)*12)=TRUE,0,(384*29000000*AU32*AX32)/(5*(INPUT!$C$7*12)^4)*12) -> 0 | AZ32: 0 | BC32: =0.85*0.85*(INPUT!$H$11/1000)*$F$6*N32 -> 211.14 | BD32: =0.5*0.9*STUDS!$AK$55*MIN(STUDS!$AF$59:$AI$59) ->  | BE32: 223.56 | BF32: 0 | HH32: =IF(ROUNDDOWN((INPUT!$C$7*12)/(HG32+8),0)>0,ROUNDDOWN((INPUT!$C$7*12)/(HG32+8),0),0) -> 60
I33: 30 | J33: 4037 | K33: 2.859 | L33: 5.718 | M33: 285900 | N33: =IF((L33*$B$6*1000)/(0.85*$B$12*$F$6)<INPUT!$H$9,(L33*$B$6*1000)/(0.85*$B$12*$F$6),INPUT!$H$9) -> 1.167892157 | O33: 1.138 | P33: 0.788 | Q33: 1.235 | R33: 8.718 | S33: 26.27805392 | U33: 257310 | V33: 520200 | W33: 278752.5 | AA33: 1 | AC33: =WEBS!$G$10-WEBS!$B$13 ->  | AD33: =AC33*(1/((INPUT!$C$8-(1+O33))/(PANELS!$I$36-2))) ->  | AE33: 4 | AF33: 0.375 | AJ33: =1*0.6*1000*INPUT!$C$11 -> 30000 | AM33: =TC!$B$23+R33+((TC!$B$24*L33*(WEBS!$E$2^2))/(TC!$B$24+L33)) ->  | AN33: =(33*(INPUT!$H$10^1.5)*(INPUT!$H$11)^0.5) -> 3644147.431 | AO33: 7.957965628 | AP33: 22.61884612 | AQ33: =(AP33*(INPUT!$C$8-O33+$B$10+($B$11/2))+TC!$B$24*(INPUT!$C$8-TC!$B$20-O33))/(AP33+TC!$B$24+L33) ->  | AR33: =R33+TC!$B$23+L33*(AQ33^2)+AP33*(INPUT!$C$8+(INPUT!$H$9/2)+INPUT!$H$6-AQ33-O33)^2+((AP33*INPUT!$H$9^2)/12)+TC!$B$24*(WEBS!$E$2-AQ33)^2 ->  | AS33: =IF(INPUT!$C$8<=16,0.721+0.00725*(INPUT!$C$7/(INPUT!$C$8/12)),0.9*(1-EXP(-0.28*INPUT!$C$7*12/INPUT!$C$8))^2.8) -> 0.8907123659 | AT33: 0.1226968865 | AV33: =INPUT!$D$25*INPUT!$C$10/12 -> 37.38612788 | AW33: =(5*AV33*(INPUT!$C$7*12)^4)/(384*29000000*AU33) ->  | AX33: =INPUT!$C$7*12/INPUT!$E$26 -> 1.333333333 | AY33: =IF(ISNA((384*29000000*AU33*AX33)/(5*(INPUT!$C$7*12)^4)*12)=TRUE,0,(384*29000000*AU33*AX33)/(5*(INPUT!$C$7*12)^4)*12) -> 0 | AZ33: 0 | BC33: =0.85*0.85*(INPUT!$H$11/1000)*$F$6*N33 -> 243.015 | BD33: =0.5*0.9*STUDS!$AK$55*MIN(STUDS!$AF$59:$AI$59) ->  | BE33: 257.31 | BF33: 0 | HH33: =IF(ROUNDDOWN((INPUT!$C$7*12)/(HG33+8),0)>0,ROUNDDOWN((INPUT!$C$7*12)/(HG33+8),0),0) -> 60
I34: 31 | J34: 4043 | K34: 3.305 | L34: 6.61 | M34: 330500 | N34: =IF((L34*$B$6*1000)/(0.85*$B$12*$F$6)<INPUT!$H$9,(L34*$B$6*1000)/(0.85*$B$12*$F$6),INPUT!$H$9) -> 1.350081699 | O34: 1.161 | P34: 0.785 | Q34: 1.226 | R34: 9.938 | S34: 26.16395915 | U34: 297450 | V34: 520200 | W34: 322237.5 | AA34: 1 | AC34: =WEBS!$G$10-WEBS!$B$13 ->  | AD34: =AC34*(1/((INPUT!$C$8-(1+O34))/(PANELS!$I$36-2))) ->  | AE34: 4 | AF34: 0.437 | AJ34: =1*0.6*1000*INPUT!$C$11 -> 30000 | AM34: =TC!$B$23+R34+((TC!$B$24*L34*(WEBS!$E$2^2))/(TC!$B$24+L34)) ->  | AN34: =(33*(INPUT!$H$10^1.5)*(INPUT!$H$11)^0.5) -> 3644147.431 | AO34: 7.957965628 | AP34: 22.61884612 | AQ34: =(AP34*(INPUT!$C$8-O34+$B$10+($B$11/2))+TC!$B$24*(INPUT!$C$8-TC!$B$20-O34))/(AP34+TC!$B$24+L34) ->  | AR34: =R34+TC!$B$23+L34*(AQ34^2)+AP34*(INPUT!$C$8+(INPUT!$H$9/2)+INPUT!$H$6-AQ34-O34)^2+((AP34*INPUT!$H$9^2)/12)+TC!$B$24*(WEBS!$E$2-AQ34)^2 ->  | AS34: =IF(INPUT!$C$8<=16,0.721+0.00725*(INPUT!$C$7/(INPUT!$C$8/12)),0.9*(1-EXP(-0.28*INPUT!$C$7*12/INPUT!$C$8))^2.8) -> 0.8907123659 | AT34: 0.1226968865 | AV34: =INPUT!$D$25*INPUT!$C$10/12 -> 37.38612788 | AW34: =(5*AV34*(INPUT!$C$7*12)^4)/(384*29000000*AU34) ->  | AX34: =INPUT!$C$7*12/INPUT!$E$26 -> 1.333333333 | AY34: =IF(ISNA((384*29000000*AU34*AX34)/(5*(INPUT!$C$7*12)^4)*12)=TRUE,0,(384*29000000*AU34*AX34)/(5*(INPUT!$C$7*12)^4)*12) -> 0 | AZ34: 0 | BC34: =0.85*0.85*(INPUT!$H$11/1000)*$F$6*N34 -> 280.925 | BD34: =0.5*0.9*STUDS!$AK$55*MIN(STUDS!$AF$59:$AI$59) ->  | BE34: 297.45 | BF34: 0 | HH34: =IF(ROUNDDOWN((INPUT!$C$7*12)/(HG34+8),0)>0,ROUNDDOWN((INPUT!$C$7*12)/(HG34+8),0),0) -> 60
I35: 32 | J35: 4050 | K35: 3.75 | L35: 7.5 | M35: 375000 | N35: =IF((L35*$B$6*1000)/(0.85*$B$12*$F$6)<INPUT!$H$9,(L35*$B$6*1000)/(0.85*$B$12*$F$6),INPUT!$H$9) -> 1.531862745 | O35: 1.183 | P35: 0.782 | Q35: 1.218 | R35: 11.122 | S35: 26.05106863 | U35: 337500 | V35: 520200 | W35: 365625 | AA35: 1 | AC35: =WEBS!$G$10-WEBS!$B$13 ->  | AD35: =AC35*(1/((INPUT!$C$8-(1+O35))/(PANELS!$I$36-2))) ->  | AE35: 4 | AF35: 0.5 | AJ35: =1*0.6*1000*INPUT!$C$11 -> 30000 | AM35: =TC!$B$23+R35+((TC!$B$24*L35*(WEBS!$E$2^2))/(TC!$B$24+L35)) ->  | AN35: =(33*(INPUT!$H$10^1.5)*(INPUT!$H$11)^0.5) -> 3644147.431 | AO35: 7.957965628 | AP35: 22.61884612 | AQ35: =(AP35*(INPUT!$C$8-O35+$B$10+($B$11/2))+TC!$B$24*(INPUT!$C$8-TC!$B$20-O35))/(AP35+TC!$B$24+L35) ->  | AR35: =R35+TC!$B$23+L35*(AQ35^2)+AP35*(INPUT!$C$8+(INPUT!$H$9/2)+INPUT!$H$6-AQ35-O35)^2+((AP35*INPUT!$H$9^2)/12)+TC!$B$24*(WEBS!$E$2-AQ35)^2 ->  | AS35: =IF(INPUT!$C$8<=16,0.721+0.00725*(INPUT!$C$7/(INPUT!$C$8/12)),0.9*(1-EXP(-0.28*INPUT!$C$7*12/INPUT!$C$8))^2.8) -> 0.8907123659 | AT35: 0.1226968865 | AV35: =INPUT!$D$25*INPUT!$C$10/12 -> 37.38612788 | AW35: =(5*AV35*(INPUT!$C$7*12)^4)/(384*29000000*AU35) ->  | AX35: =INPUT!$C$7*12/INPUT!$E$26 -> 1.333333333 | AY35: =IF(ISNA((384*29000000*AU35*AX35)/(5*(INPUT!$C$7*12)^4)*12)=TRUE,0,(384*29000000*AU35*AX35)/(5*(INPUT!$C$7*12)^4)*12) -> 0 | AZ35: 0 | BC35: =0.85*0.85*(INPUT!$H$11/1000)*$F$6*N35 -> 318.75 | BD35: =0.5*0.9*STUDS!$AK$55*MIN(STUDS!$AF$59:$AI$59) ->  | BE35: 337.5 | BF35: 0 | HH35: =IF(ROUNDDOWN((INPUT!$C$7*12)/(HG35+8),0)>0,ROUNDDOWN((INPUT!$C$7*12)/(HG35+8),0),0) -> 60
I36: 33 | J36: 5043 | K36: 4.179 | L36: 8.358 | M36: 417900 | N36: =IF((L36*$B$6*1000)/(0.85*$B$12*$F$6)<INPUT!$H$9,(L36*$B$6*1000)/(0.85*$B$12*$F$6),INPUT!$H$9) -> 1.707107843 | O36: 1.411 | P36: 0.986 | Q36: 1.548 | R36: 20.022 | S36: 25.73544608 | U36: 376110 | V36: 520200 | W36: 407452.5 | AA36: 1 | AC36: =WEBS!$G$10-WEBS!$B$13 ->  | AD36: =AC36*(1/((INPUT!$C$8-(1+O36))/(PANELS!$I$36-2))) ->  | AE36: 5 | AF36: 0.437 | AJ36: =1*0.6*1000*INPUT!$C$11 -> 30000 | AM36: =TC!$B$23+R36+((TC!$B$24*L36*(WEBS!$E$2^2))/(TC!$B$24+L36)) ->  | AN36: =(33*(INPUT!$H$10^1.5)*(INPUT!$H$11)^0.5) -> 3644147.431 | AO36: 7.957965628 | AP36: 22.61884612 | AQ36: =(AP36*(INPUT!$C$8-O36+$B$10+($B$11/2))+TC!$B$24*(INPUT!$C$8-TC!$B$20-O36))/(AP36+TC!$B$24+L36) ->  | AR36: =R36+TC!$B$23+L36*(AQ36^2)+AP36*(INPUT!$C$8+(INPUT!$H$9/2)+INPUT!$H$6-AQ36-O36)^2+((AP36*INPUT!$H$9^2)/12)+TC!$B$24*(WEBS!$E$2-AQ36)^2 ->  | AS36: =IF(INPUT!$C$8<=16,0.721+0.00725*(INPUT!$C$7/(INPUT!$C$8/12)),0.9*(1-EXP(-0.28*INPUT!$C$7*12/INPUT!$C$8))^2.8) -> 0.8907123659 | AT36: 0.1226968865 | AV36: =INPUT!$D$25*INPUT!$C$10/12 -> 37.38612788 | AW36: =(5*AV36*(INPUT!$C$7*12)^4)/(384*29000000*AU36) ->  | AX36: =INPUT!$C$7*12/INPUT!$E$26 -> 1.333333333 | AY36: =IF(ISNA((384*29000000*AU36*AX36)/(5*(INPUT!$C$7*12)^4)*12)=TRUE,0,(384*29000000*AU36*AX36)/(5*(INPUT!$C$7*12)^4)*12) -> 0 | AZ36: 0 | BC36: =0.85*0.85*(INPUT!$H$11/1000)*$F$6*N36 -> 355.215 | BD36: =0.5*0.9*STUDS!$AK$55*MIN(STUDS!$AF$59:$AI$59) ->  | BE36: 376.11 | BF36: 0 | HH36: =IF(ROUNDDOWN((INPUT!$C$7*12)/(HG36+8),0)>0,ROUNDDOWN((INPUT!$C$7*12)/(HG36+8),0),0) -> 60
I37: 34 | J37: 5050 | K37: 4.75 | L37: 9.5 | M37: 475000 | N37: =IF((L37*$B$6*1000)/(0.85*$B$12*$F$6)<INPUT!$H$9,(L37*$B$6*1000)/(0.85*$B$12*$F$6),INPUT!$H$9) -> 1.940359477 | O37: 1.434 | P37: 0.983 | Q37: 1.539 | R37: 22.5 | S37: 25.59582026 | U37: 427500 | V37: 520200 | W37: 463125 | AA37: 1 | AC37: =WEBS!$G$10-WEBS!$B$13 ->  | AD37: =AC37*(1/((INPUT!$C$8-(1+O37))/(PANELS!$I$36-2))) ->  | AE37: 5 | AF37: 0.5 | AJ37: =1*0.6*1000*INPUT!$C$11 -> 30000 | AM37: =TC!$B$23+R37+((TC!$B$24*L37*(WEBS!$E$2^2))/(TC!$B$24+L37)) ->  | AN37: =(33*(INPUT!$H$10^1.5)*(INPUT!$H$11)^0.5) -> 3644147.431 | AO37: 7.957965628 | AP37: 22.61884612 | AQ37: =(AP37*(INPUT!$C$8-O37+$B$10+($B$11/2))+TC!$B$24*(INPUT!$C$8-TC!$B$20-O37))/(AP37+TC!$B$24+L37) ->  | AR37: =R37+TC!$B$23+L37*(AQ37^2)+AP37*(INPUT!$C$8+(INPUT!$H$9/2)+INPUT!$H$6-AQ37-O37)^2+((AP37*INPUT!$H$9^2)/12)+TC!$B$24*(WEBS!$E$2-AQ37)^2 ->  | AS37: =IF(INPUT!$C$8<=16,0.721+0.00725*(INPUT!$C$7/(INPUT!$C$8/12)),0.9*(1-EXP(-0.28*INPUT!$C$7*12/INPUT!$C$8))^2.8) -> 0.8907123659 | AT37: 0.1226968865 | AV37: =INPUT!$D$25*INPUT!$C$10/12 -> 37.38612788 | AW37: =(5*AV37*(INPUT!$C$7*12)^4)/(384*29000000*AU37) ->  | AX37: =INPUT!$C$7*12/INPUT!$E$26 -> 1.333333333 | AY37: =IF(ISNA((384*29000000*AU37*AX37)/(5*(INPUT!$C$7*12)^4)*12)=TRUE,0,(384*29000000*AU37*AX37)/(5*(INPUT!$C$7*12)^4)*12) -> 0 | AZ37: 0 | BC37: =0.85*0.85*(INPUT!$H$11/1000)*$F$6*N37 -> 403.75 | BD37: =0.5*0.9*STUDS!$AK$55*MIN(STUDS!$AF$59:$AI$59) ->  | BE37: 427.5 | BF37: 0 | HH37: =IF(ROUNDDOWN((INPUT!$C$7*12)/(HG37+8),0)>0,ROUNDDOWN((INPUT!$C$7*12)/(HG37+8),0),0) -> 60
I38: 35 | J38: 6043 | K38: 5.053 | L38: 10.106 | M38: 505300 | N38: =IF((L38*$B$6*1000)/(0.85*$B$12*$F$6)<INPUT!$H$9,(L38*$B$6*1000)/(0.85*$B$12*$F$6),INPUT!$H$9) -> 2.064133987 | O38: 1.662 | P38: 1.189 | Q38: 1.87 | R38: 35.328 | S38: 25.30593301 | U38: 454770 | V38: 520200 | W38: 492667.5 | AA38: 1 | AC38: =WEBS!$G$10-WEBS!$B$13 ->  | AD38: =AC38*(1/((INPUT!$C$8-(1+O38))/(PANELS!$I$36-2))) ->  | AE38: 6 | AF38: 0.437 | AJ38: =1*0.6*1000*INPUT!$C$11 -> 30000 | AM38: =TC!$B$23+R38+((TC!$B$24*L38*(WEBS!$E$2^2))/(TC!$B$24+L38)) ->  | AN38: =(33*(INPUT!$H$10^1.5)*(INPUT!$H$11)^0.5) -> 3644147.431 | AO38: 7.957965628 | AP38: 22.61884612 | AQ38: =(AP38*(INPUT!$C$8-O38+$B$10+($B$11/2))+TC!$B$24*(INPUT!$C$8-TC!$B$20-O38))/(AP38+TC!$B$24+L38) ->  | AR38: =R38+TC!$B$23+L38*(AQ38^2)+AP38*(INPUT!$C$8+(INPUT!$H$9/2)+INPUT!$H$6-AQ38-O38)^2+((AP38*INPUT!$H$9^2)/12)+TC!$B$24*(WEBS!$E$2-AQ38)^2 ->  | AS38: =IF(INPUT!$C$8<=16,0.721+0.00725*(INPUT!$C$7/(INPUT!$C$8/12)),0.9*(1-EXP(-0.28*INPUT!$C$7*12/INPUT!$C$8))^2.8) -> 0.8907123659 | AT38: 0.1226968865 | AV38: =INPUT!$D$25*INPUT!$C$10/12 -> 37.38612788 | AW38: =(5*AV38*(INPUT!$C$7*12)^4)/(384*29000000*AU38) ->  | AX38: =INPUT!$C$7*12/INPUT!$E$26 -> 1.333333333 | AY38: =IF(ISNA((384*29000000*AU38*AX38)/(5*(INPUT!$C$7*12)^4)*12)=TRUE,0,(384*29000000*AU38*AX38)/(5*(INPUT!$C$7*12)^4)*12) -> 0 | AZ38: 0 | BC38: =0.85*0.85*(INPUT!$H$11/1000)*$F$6*N38 -> 429.505 | BD38: =0.5*0.9*STUDS!$AK$55*MIN(STUDS!$AF$59:$AI$59) ->  | BE38: 454.77 | BF38: 0 | HH38: =IF(ROUNDDOWN((INPUT!$C$7*12)/(HG38+8),0)>0,ROUNDDOWN((INPUT!$C$7*12)/(HG38+8),0),0) -> 60
I39: 36 | J39: 6050 | K39: 5.75 | L39: 11.5 | M39: 575000 | N39: =IF((L39*$B$6*1000)/(0.85*$B$12*$F$6)<INPUT!$H$9,(L39*$B$6*1000)/(0.85*$B$12*$F$6),INPUT!$H$9) -> 2.348856209 | O39: 1.685 | P39: 1.185 | Q39: 1.861 | R39: 39.816 | S39: 25.1405719 | U39: 517500 | V39: 520200 | W39: 560625 | AA39: 1 | AC39: =WEBS!$G$10-WEBS!$B$13 ->  | AD39: =AC39*(1/((INPUT!$C$8-(1+O39))/(PANELS!$I$36-2))) ->  | AE39: 6 | AF39: 0.5 | AJ39: =1*0.6*1000*INPUT!$C$11 -> 30000 | AM39: =TC!$B$23+R39+((TC!$B$24*L39*(WEBS!$E$2^2))/(TC!$B$24+L39)) ->  | AN39: =(33*(INPUT!$H$10^1.5)*(INPUT!$H$11)^0.5) -> 3644147.431 | AO39: 7.957965628 | AP39: 22.61884612 | AQ39: =(AP39*(INPUT!$C$8-O39+$B$10+($B$11/2))+TC!$B$24*(INPUT!$C$8-TC!$B$20-O39))/(AP39+TC!$B$24+L39) ->  | AR39: =R39+TC!$B$23+L39*(AQ39^2)+AP39*(INPUT!$C$8+(INPUT!$H$9/2)+INPUT!$H$6-AQ39-O39)^2+((AP39*INPUT!$H$9^2)/12)+TC!$B$24*(WEBS!$E$2-AQ39)^2 ->  | AS39: =IF(INPUT!$C$8<=16,0.721+0.00725*(INPUT!$C$7/(INPUT!$C$8/12)),0.9*(1-EXP(-0.28*INPUT!$C$7*12/INPUT!$C$8))^2.8) -> 0.8907123659 | AT39: 0.1226968865 | AV39: =INPUT!$D$25*INPUT!$C$10/12 -> 37.38612788 | AW39: =(5*AV39*(INPUT!$C$7*12)^4)/(384*29000000*AU39) ->  | AX39: =INPUT!$C$7*12/INPUT!$E$26 -> 1.333333333 | AY39: =IF(ISNA((384*29000000*AU39*AX39)/(5*(INPUT!$C$7*12)^4)*12)=TRUE,0,(384*29000000*AU39*AX39)/(5*(INPUT!$C$7*12)^4)*12) -> 0 | AZ39: 0 | BC39: =0.85*0.85*(INPUT!$H$11/1000)*$F$6*N39 -> 488.75 | BD39: =0.5*0.9*STUDS!$AK$55*MIN(STUDS!$AF$59:$AI$59) ->  | BE39: 517.5 | BF39: 0 | HH39: =IF(ROUNDDOWN((INPUT!$C$7*12)/(HG39+8),0)>0,ROUNDDOWN((INPUT!$C$7*12)/(HG39+8),0),0) -> 60
I40: 37 | J40: 6056 | K40: 6.428 | L40: 12.856 | M40: 642800 | N40: =IF((L40*$B$6*1000)/(0.85*$B$12*$F$6)<INPUT!$H$9,(L40*$B$6*1000)/(0.85*$B$12*$F$6),INPUT!$H$9) -> 2.5 | O40: 1.707 | P40: 1.181 | Q40: 1.852 | R40: 44.098 | S40: 25.043 | U40: 578520 | V40: 520200 | W40: 626730 | AA40: 1 | AC40: =WEBS!$G$10-WEBS!$B$13 ->  | AD40: =AC40*(1/((INPUT!$C$8-(1+O40))/(PANELS!$I$36-2))) ->  | AE40: 6 | AF40: 0.562 | AJ40: =1*0.6*1000*INPUT!$C$11 -> 30000 | AM40: =TC!$B$23+R40+((TC!$B$24*L40*(WEBS!$E$2^2))/(TC!$B$24+L40)) ->  | AN40: =(33*(INPUT!$H$10^1.5)*(INPUT!$H$11)^0.5) -> 3644147.431 | AO40: 7.957965628 | AP40: 22.61884612 | AQ40: =(AP40*(INPUT!$C$8-O40+$B$10+($B$11/2))+TC!$B$24*(INPUT!$C$8-TC!$B$20-O40))/(AP40+TC!$B$24+L40) ->  | AR40: =R40+TC!$B$23+L40*(AQ40^2)+AP40*(INPUT!$C$8+(INPUT!$H$9/2)+INPUT!$H$6-AQ40-O40)^2+((AP40*INPUT!$H$9^2)/12)+TC!$B$24*(WEBS!$E$2-AQ40)^2 ->  | AS40: =IF(INPUT!$C$8<=16,0.721+0.00725*(INPUT!$C$7/(INPUT!$C$8/12)),0.9*(1-EXP(-0.28*INPUT!$C$7*12/INPUT!$C$8))^2.8) -> 0.8907123659 | AT40: 0.1226968865 | AV40: =INPUT!$D$25*INPUT!$C$10/12 -> 37.38612788 | AW40: =(5*AV40*(INPUT!$C$7*12)^4)/(384*29000000*AU40) ->  | AX40: =INPUT!$C$7*12/INPUT!$E$26 -> 1.333333333 | AY40: =IF(ISNA((384*29000000*AU40*AX40)/(5*(INPUT!$C$7*12)^4)*12)=TRUE,0,(384*29000000*AU40*AX40)/(5*(INPUT!$C$7*12)^4)*12) -> 0 | AZ40: 0 | BC40: =0.85*0.85*(INPUT!$H$11/1000)*$F$6*N40 -> 520.2 | BD40: =0.5*0.9*STUDS!$AK$55*MIN(STUDS!$AF$59:$AI$59) ->  | BE40: 578.52 | BF40: 0 | HH40: =IF(ROUNDDOWN((INPUT!$C$7*12)/(HG40+8),0)>0,ROUNDDOWN((INPUT!$C$7*12)/(HG40+8),0),0) -> 60
I41: 38 | J41: 6062 | K41: 7.109 | L41: 14.218 | M41: 710900 | N41: =IF((L41*$B$6*1000)/(0.85*$B$12*$F$6)<INPUT!$H$9,(L41*$B$6*1000)/(0.85*$B$12*$F$6),INPUT!$H$9) -> 2.5 | O41: 1.73 | P41: 1.178 | Q41: 1.843 | R41: 48.316 | S41: 25.02 | U41: 639810 | V41: 520200 | W41: 693127.5 | AA41: 1 | AC41: =WEBS!$G$10-WEBS!$B$13 ->  | AD41: =AC41*(1/((INPUT!$C$8-(1+O41))/(PANELS!$I$36-2))) ->  | AE41: 6 | AF41: 0.625 | AJ41: =1*0.6*1000*INPUT!$C$11 -> 30000 | AM41: =TC!$B$23+R41+((TC!$B$24*L41*(WEBS!$E$2^2))/(TC!$B$24+L41)) ->  | AN41: =(33*(INPUT!$H$10^1.5)*(INPUT!$H$11)^0.5) -> 3644147.431 | AO41: 7.957965628 | AP41: 22.61884612 | AQ41: =(AP41*(INPUT!$C$8-O41+$B$10+($B$11/2))+TC!$B$24*(INPUT!$C$8-TC!$B$20-O41))/(AP41+TC!$B$24+L41) ->  | AR41: =R41+TC!$B$23+L41*(AQ41^2)+AP41*(INPUT!$C$8+(INPUT!$H$9/2)+INPUT!$H$6-AQ41-O41)^2+((AP41*INPUT!$H$9^2)/12)+TC!$B$24*(WEBS!$E$2-AQ41)^2 ->  | AS41: =IF(INPUT!$C$8<=16,0.721+0.00725*(INPUT!$C$7/(INPUT!$C$8/12)),0.9*(1-EXP(-0.28*INPUT!$C$7*12/INPUT!$C$8))^2.8) -> 0.8907123659 | AT41: 0.1226968865 | AV41: =INPUT!$D$25*INPUT!$C$10/12 -> 37.38612788 | AW41: =(5*AV41*(INPUT!$C$7*12)^4)/(384*29000000*AU41) ->  | AX41: =INPUT!$C$7*12/INPUT!$E$26 -> 1.333333333 | AY41: =IF(ISNA((384*29000000*AU41*AX41)/(5*(INPUT!$C$7*12)^4)*12)=TRUE,0,(384*29000000*AU41*AX41)/(5*(INPUT!$C$7*12)^4)*12) -> 0 | AZ41: 0 | BC41: =0.85*0.85*(INPUT!$H$11/1000)*$F$6*N41 -> 520.2 | BD41: =0.5*0.9*STUDS!$AK$55*MIN(STUDS!$AF$59:$AI$59) ->  | BE41: 639.81 | BF41: 0 | HH41: =IF(ROUNDDOWN((INPUT!$C$7*12)/(HG41+8),0)>0,ROUNDDOWN((INPUT!$C$7*12)/(HG41+8),0),0) -> 60
I42: 39 | J42: 6075 | K42: 8.438 | L42: 16.876 | M42: 843800 | N42: =IF((L42*$B$6*1000)/(0.85*$B$12*$F$6)<INPUT!$H$9,(L42*$B$6*1000)/(0.85*$B$12*$F$6),INPUT!$H$9) -> 2.5 | O42: 1.775 | P42: 1.173 | Q42: 1.827 | R42: 56.31 | S42: 24.975 | U42: 759420 | V42: 520200 | W42: 822705 | AA42: 1 | AC42: =WEBS!$G$10-WEBS!$B$13 ->  | AD42: =AC42*(1/((INPUT!$C$8-(1+O42))/(PANELS!$I$36-2))) ->  | AE42: 6 | AF42: 0.75 | AJ42: =1*0.6*1000*INPUT!$C$11 -> 30000 | AM42: =TC!$B$23+R42+((TC!$B$24*L42*(WEBS!$E$2^2))/(TC!$B$24+L42)) ->  | AN42: =(33*(INPUT!$H$10^1.5)*(INPUT!$H$11)^0.5) -> 3644147.431 | AO42: 7.957965628 | AP42: 22.61884612 | AQ42: =(AP42*(INPUT!$C$8-O42+$B$10+($B$11/2))+TC!$B$24*(INPUT!$C$8-TC!$B$20-O42))/(AP42+TC!$B$24+L42) ->  | AR42: =R42+TC!$B$23+L42*(AQ42^2)+AP42*(INPUT!$C$8+(INPUT!$H$9/2)+INPUT!$H$6-AQ42-O42)^2+((AP42*INPUT!$H$9^2)/12)+TC!$B$24*(WEBS!$E$2-AQ42)^2 ->  | AS42: =IF(INPUT!$C$8<=16,0.721+0.00725*(INPUT!$C$7/(INPUT!$C$8/12)),0.9*(1-EXP(-0.28*INPUT!$C$7*12/INPUT!$C$8))^2.8) -> 0.8907123659 | AT42: 0.1226968865 | AV42: =INPUT!$D$25*INPUT!$C$10/12 -> 37.38612788 | AW42: =(5*AV42*(INPUT!$C$7*12)^4)/(384*29000000*AU42) ->  | AX42: =INPUT!$C$7*12/INPUT!$E$26 -> 1.333333333 | AY42: =IF(ISNA((384*29000000*AU42*AX42)/(5*(INPUT!$C$7*12)^4)*12)=TRUE,0,(384*29000000*AU42*AX42)/(5*(INPUT!$C$7*12)^4)*12) -> 0 | AZ42: 0 | BC42: =0.85*0.85*(INPUT!$H$11/1000)*$F$6*N42 -> 520.2 | BD42: =0.5*0.9*STUDS!$AK$55*MIN(STUDS!$AF$59:$AI$59) ->  | BE42: 759.42 | BF42: 0 | HH42: =IF(ROUNDDOWN((INPUT!$C$7*12)/(HG42+8),0)>0,ROUNDDOWN((INPUT!$C$7*12)/(HG42+8),0),0) -> 60
HH43: =IF(ROUNDDOWN((INPUT!$C$7*12)/(HG43+8),0)>0,ROUNDDOWN((INPUT!$C$7*12)/(HG43+8),0),0) -> 60

Sheet TC (hidden)
EP1: =EK33/12 -> 26.2849917
I2: MATERIALS | AA2: CONSTRUCTION STRESSES @ MID-JOIST | BC2: =(180/3.14159)*BC33 ->  | BD2: =(180/3.14159)*BD33 ->  | EK2: BRIDGED JOIST UNDER SELF WEIGHT, ERECTOR(S), & STACKED DECK
H3: temp | V3: Ftc | AB3: ME | AL3: Fe (lambda max) | AN3: Fe(x) (interaction) | AR3: FILLERS?>>>>>> | AW3: END PANEL CHECK | BA3: endweb | BB3: 1st sec | BD3: n/a w/ rounds | BG3: TC ONLY | BH3: w/ CSM | BM3: TC ONLY | BN3: w/ CSM | BO3: TC ONLY | BP3: w/ CSM | BQ3: TC ONLY | BR3: w/ CSM | BT3: TC ONLY | BU3: w/ CSM | BV3: TC ONLY | BW3: w/ CSM | BX3: TC ONLY | BY3: w/ CSM | BZ3: TC ONLY | CA3: TC ONLY | CB3: TC ONLY | CC3: w/ CSM | CD3: TC ONLY | CE3: w/ CSM | CF3: TC ONLY | CG3: w/ CSM | CH3: ultimate | CI3: TC ONLY | CJ3: w/ CSM | CK3: TC ONLY | CL3: w/ CSM | CM3: TC ONLY | CN3: w/ CSM | CO3: TC ONLY | CP3: w/ CSM | CQ3: TC ONLY | CR3: w/ CSM | CS3: TC ONLY | CT3: w/ CSM | CU3: TC ONLY | CV3: w/ CSM | CW3: TC ONLY | CX3: w/ CSM | CY3: TC ONLY | CZ3: w/ CSM: | DA3: fillers | DC3: TC PROPS | DH3: BC PROPS | DM3: UNBRIDGED JOIST UNDER SELF WEIGHT AND ONE ERECTOR | EK3: looking at just 170ryy tc | EO3: add a row if necessary to prevent bumping tc | EV3: initial seed
A4: General | G4: gap | H4: Iyy | J4: matl | K4: leg | L4: TK | M4: AREA | N4: XBAR | O4: IX | P4: IZ | Q4: Q | R4: RX | S4: RYY | T4: RZ | U4: deff | V4: PuConstr | W4: k | X4: min thk | Y4: min leg | Z4: mat'l | AA4: fau | AB4: Mpp | AC4: fbup | AD4: Mmid | AE4: fmid | AF4: fbpp+fa | AG4: stress | AH4: KL/rx | AI4: KL/ry | AJ4: KL/rz | AK4: KL/rmax | AM4: Fcrit | AN4: Euler | AO4: Cm | AP4: interact | AR4: Fe (z) | AS4: Fcrit | AT4: interact | AW4: Lep | AX4: L 1st | AY4: Lp | AZ4: Lb | BA4: alpha | BB4: beta | BC4: delta | BD4: gamma | BE4: REACTION | BF4: Ftcep | BG4: fcu | BH4: fcu | BI4: CF1 | BJ4: CF2 | BK4: X | BL4: Me | BM4: fbup | BN4: fbup | BO4: fcu+fbup | BP4: fcu+fbup | BS4: Mi | BT4: fbum | BU4: fbum | BV4: lamda Z | BW4: lamda | BX4: Fcr | BY4: Fnc | BZ4: Fe (lambda Z) | CA4: Fe (lambda X) | CB4: Cm | CC4: Cm | CD4: INTERACT | CE4: INTERACT | CH4: LR | CI4: fcu | CJ4: fcu | CK4: fbup | CL4: fbup | CM4: fbum | CN4: fbum | CO4: fcu+fbup | CP4: fcu+fbup | CS4: Cm | CT4: Cm | CU4: INTERACT | CV4: INTERACT | DC4: Atc | DD4: ttc | DE4: Iytc | DF4: ytc | DG4: leg | DH4: Abc | DI4: tbc | DJ4: Iybc | DK4: ybc | DL4: leg | DM4: L | DN4: d | DO4: P | DP4: E | DQ4: G | DR4: pi | DS4: w | DT4: k | DU4: A | DV4: de | DW4: J | DX4: y | DY4: Iy | DZ4: Ix | EA4: yo | EB4: Cw | EC4: Bx | ED4: a | EF4: b | EG4: c | EH4: Pcr | EK4: 170ryy tc | EL4: # rows | EM4: Lbr | EN4: Fcr br (tc) | EP4: # rows | EQ4: Lbr | ER4: Fcr br (tc) | EU4: new w | EV4: 200 ryy | EW4: f(L) | EX4: g(L) | EY4: x1 | EZ4: f(L) | FA4: g(L) | FB4: x2 | FC4: f(L) | FD4: g(L) | FE4: x3 | FF4: f(L) | FG4: g(L) | FH4: x4 | FI4: f(L) | FJ4: g(L) | FK4: x5 | FL4: f(L) | FM4: g(L) | FN4: x6 | FO4: f(L) | FP4: g(L) | FQ4: x7 | FR4: f(L) | FS4: g(L) | FT4: x8 | FU4: f(L) | FV4: g(L) | FW4: x9 | FX4: f(L) | FY4: g(L) | FZ4: x10 | GA4: f(L) | GB4: g(L) | GC4: x11 | GD4: f(L) | GE4: g(L) | GF4: x12 | GG4: f(L) | GH4: g(L) | GI4: x13 | GJ4: f(L) | GK4: g(L) | GL4: x14 | GM4: f(L) | GN4: g(L) | GO4: x15 | GP4: f(L) | GQ4: g(L) | GR4: x16 | GS4: f(L) | GT4: g(L) | GU4: x17 | GV4: f(L) | GW4: g(L) | GX4: x18 | GY4: f(L) | GZ4: g(L) | HA4: x19 | HB4: f(L) | HC4: g(L) | HD4: x20 | HE4: f(L) | HF4: g(L) | HG4: x21 | HH4: # x
A5: Span(ft) | B5: =INPUT!C7 -> 40 | E5: depth | F5: panel | G5: 1 | H5: =2*(O5+(M5*(N5+(G5/2))^2)) -> 0.2951292 | I5: 1 | J5: 1010 | K5: 1 | L5: 0.109 | M5: 0.206 | N5: 0.29 | O5: 0.019 | P5: 0.008 | Q5: 1 | R5: 0.307 | S5: =(H5/(2*M5))^0.5 -> 0.8463645844 | T5: 0.196 | U5: =$B$6-MAX(BC!$B$21,BC!$F$21)-TC!N5 ->  | V5: =$B$15/U5 ->  | W5: 0.25 | X5: =IF(INPUT!H12<>"",IF(INPUT!H12=0.375,0.125,IF(INPUT!H12=0.5,0.167,IF(INPUT!H12=0.625,0.209,IF(INPUT!H12=0.75,0.25)))),(IF(OR(INPUT!H6=2,INPUT!H6=3),(0.5/3),0.125))) -> 0.167 | Y5: =IF(INPUT!H12<>"",IF(INPUT!H12=0.375,1.5,IF(INPUT!H12=0.5,1.75,IF(INPUT!H12=0.625,2,IF(INPUT!H12=0.75,2.5)))),1.5) -> 1.75 | Z5: =IF(AND(L5>=X5,K5>=Y5,$F$56/R5<=90,36/S5<=90,($F$56/2)/T5<=90),1,0) -> 0 | AA5: =V5/(2*M5) ->  | AB5: =(($B$13/12)*($F$56)^2)/(12) ->  | AC5: =(AB5*(K5-N5))/(2*O5) ->  | AD5: =(($B$13/12)*($F$56)^2)/(24) ->  | AE5: =(AD5*N5)/(2*O5) ->  | AF5: =AC5+AA5 ->  | AG5: =IF(AF5<=(0.9*$B$8*1000),1,0) ->  | AH5: =((0.75*$F$56)/(R5)) -> 58.63192182 | AI5: =(36/S5) -> 42.53486106 | AJ5: =((0.5*$F$56)/T5) -> 61.2244898 | AK5: =MAX(AH5:AJ5) -> 61.2244898 | AL5: =((3.14159^2)*(29*(10^6)))/((AK5)^2) -> 76356.61377 | AM5: =IF(AK5<=4.71*(((29*10^6)/(Q5*$B$8*1000))^0.5),(Q5*$B$8*1000)*(0.658^((Q5*$B$8*1000)/AL5)),0.877*AL5) -> 38013.71356 | AN5: =((3.14159^2)*(29*(10^6)))/((AH5)^2) -> 83258.53222 | AO5: =1-((0.4*AA5)/($B$19*AN5)) ->  | AP5: =IF(AA5/($B$19*AM5)>=0.2,(AA5/($B$19*AM5)+((AO5*AE5)/((1-(AA5/($B$19*AN5)))*Q5*$B$19*($B$8*1000)))*(8/9)),(AA5/(2*$B$19*AM5)+((AO5*AE5)/((1-(AA5/($B$19*AN5)))*Q5*$B$19*($B$8*1000))))) ->  | AQ5: =IF(AP5<=1,1,0) ->  | AR5: =((3.14159^2)*(29*(10^6)))/(((0.75*$F$56)/T5)^2) -> 33936.27279 | AS5: =IF(AJ5<=4.71*(((29*10^6)/(Q5*$B$8*1000))^0.5),(Q5*$B$8*1000)*(0.658^((Q5*$B$8*1000)/AR5)),0.877*AR5) -> 26986.91026 | AT5: =IF(AA5/($B$19*AS5)>=0.2,(AA5/($B$19*AS5)+((AO5*AE5)/((1-(AA5/AN5))*Q5*$B$19*($B$8*1000)))*(8/9)),(AA5/(2*$B$19*AS5)+((AO5*AE5)/((1-(AA5/AN5))*Q5*$B$19*($B$8*1000))))) ->  | AU5: =IF(AT5<=1,1,0) ->  | AV5: =IF(Z5+AG5+AQ5=3,J5,"") ->  | AW5: =PANELS!$I$27-2 -> 23 | AX5: =PANELS!$I$30 -> 23 | AY5: =$F$56 -> 24 | AZ5: =PANELS!$I$36-2 -> 28 | BA5: =ATAN(U5/(AZ5)) ->  | BB5: =IF(AZ5-AW5=0,1.570795,ATAN(U5/(AZ5-AW5))) ->  | BC5: =IF((AW5+AX5)-AZ5=0,1.570795,ATAN(U5/((AW5+AX5)-AZ5))) ->  | BD5: =ATAN(U5/AY5) ->  | BE5: =$B$5*$B$13/2 ->  | BF5: =(BE5-((($B$13/12)*AW5)/2))/(TAN(BA5)) ->  | BG5: =BF5/(M5*2) ->  | BH5: =BF5/(PROPS!AB62*2) ->  | BI5: =AX5/AW5 -> 1 | BJ5: 1.043478261 | BK5: =((14*BI5)+(12*BJ5)+(7*(BI5)^4)+(12*((BI5)^3)*BJ5)-(4*BI5*(BJ5)^3))/((28*BI5)+(24*BJ5)+(21*(BI5)^2)+(24*BI5*BJ5)) -> 0.4188111889 | BL5: =(($B$13/12)*((AW5)^2)*(BK5))/4 ->  | BM5: =(BL5*(K5-N5))/(2*O5) ->  | BN5: =(BL5*(PROPS!AC62))/(2*PROPS!AK62) ->  | BO5: =BG5+BM5 ->  | BQ5: =IF(AND(AW5/R5<=120,AX5/R5<=120,(AW5/2)/T5<=120,(AX5/2)/T5<=120,BO5<=(0.9*$B$19*($B$8*1000))),1,0) ->  | BR5: =IF(BP5<=(0.9*$B$19*($B$8*1000)),1,0) ->  | BS5: =((($B$13/12)*(AW5)^2)/(8))*(1-((2*BL5)/(($B$13/12)*(AW5)^2)))^2 ->  | BT5: =(BS5*(N5))/(2*O5) ->  | BU5: =(BS5*(N5))/(2*PROPS!AK62) ->  | BV5: =((AW5)/(T5)) -> 117.3469388 | BW5: =((AW5)/(3.14159*PROPS!AQ62)*(($B$8/(29*(10)^3))^0.5)) ->  | BX5: =IF(BV5<=4.71*(((29*10^6)/(Q5*$B$8*1000))^0.5),(Q5*$B$8*1000)*(0.658^((Q5*$B$8*1000)/BZ5)),0.877*BZ5) -> 18228.58987 | BY5: =IF(BW5*(PROPS!AA62^0.5)<=1.5,(PROPS!AA62*$B$8*1000)*(0.658^(PROPS!AA62*(BW5^2))),(0.877*$B$8*1000)/((BW5)^2)) ->  | BZ5: =((3.14159)^2)*((29*(10^6))/(BV5^2)) -> 20785.16518 | CA5: =((3.14159)^2)*((29*(10^6))/((AW5/R5)^2)) -> 50993.88363 | CB5: =1-((0.3*BG5)/($B$19*CA5)) ->  | CC5: =1-((0.3*BH5)/CA5) ->  | CD5: =IF(BG5/($B$19*BX5)>=0.2,(BG5/($B$19*BX5)+((CB5*BT5)/((1-(BG5/BZ5))*Q5*$B$19*($B$8*1000)))*(8/9)),(BG5/(2*$B$19*BX5)+((CB5*BT5)/((1-(BG5/BZ5))*Q5*$B$19*($B$8*1000))))) ->  | CE5: =IF(BH5/($B$19*BY5)>=0.2,(BH5/($B$19*BY5)+((CC5*BU5)/((1-(BH5/CA5))*PROPS!AA62*$B$19*($B$8*1000)))*(8/9)),(BH5/(2*$B$19*BY5)+((CC5*BU5)/((1-(BH5/CA5))*PROPS!AA62*$B$19*($B$8*1000))))) ->  | CF5: =IF(AND(CD5<=0.9*1,CD5>=0),1,0) ->  | CG5: =IF(AND(CE5<=0.9*1,CE5>=0),1,0) ->  | CH5: =$B$14/$B$13 ->  | CI5: =BG5*CH5 ->  | CJ5: =BH5*CH5 ->  | CK5: =BM5*CH5 ->  | CL5: =BN5*CH5 ->  | CM5: =BT5*CH5 ->  | CN5: =BU5*CH5 ->  | CO5: =CI5+CK5 ->  | CQ5: =IF(CO5<=(0.9*$B$19*($B$8*1000)),1,0) ->  | CR5: =IF(CP5<=(0.9*$B$19*($B$8*1000)),1,0) ->  | CS5: =1-((0.3*CI5)/($B$19*CA5)) ->  | CT5: =1-((0.3*CJ5)/CA5) ->  | CU5: =IF(CI5/($B$19*BX5)>=0.2,(CI5/($B$19*BX5)+((CS5*CM5)/((1-(CI5/CA5))*Q5*$B$19*($B$8*1000)))*(8/9)),(CI5/(2*$B$19*BX5)+((CS5*CM5)/((1-(CI5/CA5))*Q5*$B$19*($B$8*1000))))) ->  | CV5: =IF(CJ5/($B$19*BY5)>=0.2,(CJ5/($B$19*BY5)+((CT5*CN5)/((1-(CJ5/CA5))*Q5*$B$19*($B$8*1000)))*(8/9)),(CJ5/(2*$B$19*BY5)+((CT5*CN5)/((1-(CJ5/CA5))*Q5*$B$19*($B$8*1000))))) ->  | CW5: =IF(AND(CU5<=0.9*1,CU5>=0),1,0) ->  | CX5: =IF(AND(CV5<=0.9*1,CV5>=0),1,0) ->  | CY5: =IF(Z5+AG5+AQ5+BQ5+CF5+CQ5+CW5+ES5=8,J5,"") ->  | CZ5: =IF(AND(Z5+AG5+AQ5+BR5+CG5+CR5+CX5=7,W5+K5<=PROPS!$A$71),PROPS!O62,"") ->  | DA5: =IF(CY5="","",IF(AU5=1,"NO FILLERS","FILLERS")) ->  | DC5: =2*M5 -> 0.412 | DD5: =L5 -> 0.109 | DE5: =H5 -> 0.2951292 | DF5: =N5 -> 0.29 | DG5: =K5 -> 1 | DH5: =BC!$F$23 ->  | DI5: =BC!$F$27 ->  | DJ5: =2*((BC!$F$26/2)+((BC!$F$23/2)*(BC!$F$21+(G5/2))^2)) ->  | DK5: =BC!$F$21 ->  | DL5: =BC!$F$28 ->  | DM5: =INPUT!$C$7*12 -> 480 | DN5: =INPUT!$C$8 -> 24 | DO5: =(1.2*INPUT!$I$22)/(0.8*1*1*0.9) -> 416.6666667 | DP5: 29000000 | DQ5: =0.385*DP5 -> 11165000 | DR5: 3.14159 | DS5: =1.3*(BC!$F$25+(0.283565*M5*24*INPUT!$C$7))/(INPUT!$C$7*12) ->  | DT5: =INPUT!$I$23 -> 0.85 | DU5: =DC5+DH5 ->  | DV5: =U5 ->  | DW5: =(1/3)*((DC5*(DD5^2))+(DH5*(DI5^2))) ->  | DX5: =(DH5*DV5)/DU5 ->  | DY5: =DE5+DJ5 ->  | DZ5: =(DC5*(DX5^2))+(DH5*((DV5-DX5)^2)) ->  | EA5: =(-DX5)+((DJ5*DV5)/DY5) ->  | EB5: =((DV5^2)*DJ5*DE5)/DY5 ->  | EC5: =(1/DZ5)*((DH5*(DV5-DX5)^3)-(DC5*(DX5^3)))-2*EA5 ->  | ED5: =DF5+EA5+DX5 ->  | EE5: =(((3.14159^2)+4)/16)^2 -> 0.7514275928 | EF5: =(DS5*DM5*(((DR5^2)+3)/12)*(((DR5^2)+4)/16))-(((((DR5^4)*DP5*DY5)/(2*(DT5*DM5)^3))/144)*(((EC5*(((DR5^2)-4)/16))-ED5)/12)) ->  | EG5: =((DS5*DM5)^2)*((((DR5^2)+3)/24)^2)-(((DR5^4)*DP5*DY5)/(288*(DT5*DM5)^3))*(((DS5*DM5)*(((EC5*(((DR5^2)-3)/24))-(EA5/2))/12))+((((DR5^4)*DP5*EB5)/(2*((DT5*DM5)^3)))/20736)+(((DR5^2)*DQ5*DW5)/(288*DT5*DM5))) ->  | EH5: =(-EF5+((EF5^2)-(4*EE5*EG5))^0.5)/(2*EE5) ->  | EI5: =IF(EH5>DO5,1,0) ->  | EK5: =170*S5 -> 143.8819793 | EL5: =ROUNDDOWN(($B$5*12)/(MIN(EK5,EK49)),0) -> 4 | EM5: =(($B$5*12)/(EL5+1))+8 -> 104 | EN5: =((3.14159^2)*(29*10^6))/(((0.9*EM5)/(S5))^2) -> 23402.39346 | EO5: =IF(EN5>=12200,1,0) -> 1 | EP5: =IF(EO5=0,EL5+1,EL5) -> 4 | EQ5: =(($B$5*12)/(EP5+1))+8 -> 104 | ER5: =((3.14159^2)*(29*10^6))/(((0.9*EQ5)/(S5))^2) -> 23402.39346 | ES5: =IF(ER5>=12200,1,0) -> 1 | EU5: =DM5*DS5 ->  | EV5: =((DE5/DC5)^0.5)*200 -> 169.2729169 | EW5: =((((3.14159^2/24)+0.125)^2)*($DS5^2)*(EV5^2))+((($DO5/192)*((3.14159^2)+3)*((3.14159^2)+4))-(((3.14159^4)/2)*(29*10^6)*($DY5/(($DT5^3)*(EV5^3))))*(((((3.14159^2)/24)-0.125)*$EC5)-$EA5/2))*$DS5*EV5+(((((3.14159^2)/16)+0.25)^2)*($DO5^2))-(((3.14159^4)/2)*(29*10^6)*($DY5/(($DT5^3)*(EV5^3))))*((((3.14159^4)/2)*(29*10^6)*($EB5/(($DT5^3)*(EV5^3))))+(((3.14159^2)/2)*$DQ5*($DW5/($DT5*EV5)))+(($DO5)*(((((3.14159^2)/16)-0.25)*$EC5)-$ED5))) ->  | EX5: =(2*((((3.14159^2)/24)+(1/8))^2)*($DS5^2)*(EV5)+(($DO5*$DS5/192)*((3.14159^2)+3)*((3.14159^2)+4))+(((3.14159^4))*(29*10^6)*($DY5/(($DT5^3)*(EV5^3))))*(((((3.14159^2)/24)-0.125)*$EC5)-$EA5/2)*$DS5+(((3.14159^4)*(3/2))*(29*10^6)*($DY5/(($DT5^3)*(EV5^4))))*((((3.14159^4)/2)*(29*10^6)*($EB5/(($DT5^3)*(EV5^3))))+(((3.14159^2)/2)*$DQ5*($DW5/($DT5*EV5)))+(($DO5)*(((((3.14159^2)/16)-0.25)*$EC5)-$ED5))))-((((3.14159^4)/2)*(29*10^6)*($DY5/(($DT5^3)*(EV5^3))))*((((3.14159^4)*(-3/2))*(29*10^6)*($EB5/(($DT5^3)*(EV5^4))))-(((3.14159^2)/2)*$DQ5*($DW5/($DT5*(EV5^2)))))) ->  | EY5: =EV5-(EW5/EX5) ->  | EZ5: =((((3.14159^2/24)+0.125)^2)*($DS5^2)*(EY5^2))+((($DO5/192)*((3.14159^2)+3)*((3.14159^2)+4))-(((3.14159^4)/2)*(29*10^6)*($DY5/(($DT5^3)*(EY5^3))))*(((((3.14159^2)/24)-0.125)*$EC5)-$EA5/2))*$DS5*EY5+(((((3.14159^2)/16)+0.25)^2)*($DO5^2))-(((3.14159^4)/2)*(29*10^6)*($DY5/(($DT5^3)*(EY5^3))))*((((3.14159^4)/2)*(29*10^6)*($EB5/(($DT5^3)*(EY5^3))))+(((3.14159^2)/2)*$DQ5*($DW5/($DT5*EY5)))+(($DO5)*(((((3.14159^2)/16)-0.25)*$EC5)-$ED5))) ->  | FA5: =(2*((((3.14159^2)/24)+(1/8))^2)*($DS5^2)*(EY5)+(($DO5*$DS5/192)*((3.14159^2)+3)*((3.14159^2)+4))+(((3.14159^4))*(29*10^6)*($DY5/(($DT5^3)*(EY5^3))))*(((((3.14159^2)/24)-0.125)*$EC5)-$EA5/2)*$DS5+(((3.14159^4)*(3/2))*(29*10^6)*($DY5/(($DT5^3)*(EY5^4))))*((((3.14159^4)/2)*(29*10^6)*($EB5/(($DT5^3)*(EY5^3))))+(((3.14159^2)/2)*$DQ5*($DW5/($DT5*EY5)))+(($DO5)*(((((3.14159^2)/16)-0.25)*$EC5)-$ED5))))-((((3.14159^4)/2)*(29*10^6)*($DY5/(($DT5^3)*(EY5^3))))*((((3.14159^4)*(-3/2))*(29*10^6)*($EB5/(($DT5^3)*(EY5^4))))-(((3.14159^2)/2)*$DQ5*($DW5/($DT5*(EY5^2)))))) ->  | FB5: =EY5-(EZ5/FA5) ->  | FC5: =((((3.14159^2/24)+0.125)^2)*($DS5^2)*(FB5^2))+((($DO5/192)*((3.14159^2)+3)*((3.14159^2)+4))-(((3.14159^4)/2)*(29*10^6)*($DY5/(($DT5^3)*(FB5^3))))*(((((3.14159^2)/24)-0.125)*$EC5)-$EA5/2))*$DS5*FB5+(((((3.14159^2)/16)+0.25)^2)*($DO5^2))-(((3.14159^4)/2)*(29*10^6)*($DY5/(($DT5^3)*(FB5^3))))*((((3.14159^4)/2)*(29*10^6)*($EB5/(($DT5^3)*(FB5^3))))+(((3.14159^2)/2)*$DQ5*($DW5/($DT5*FB5)))+(($DO5)*(((((3.14159^2)/16)-0.25)*$EC5)-$ED5))) ->  | FD5: =(2*((((3.14159^2)/24)+(1/8))^2)*($DS5^2)*(FB5)+(($DO5*$DS5/192)*((3.14159^2)+3)*((3.14159^2)+4))+(((3.14159^4))*(29*10^6)*($DY5/(($DT5^3)*(FB5^3))))*(((((3.14159^2)/24)-0.125)*$EC5)-$EA5/2)*$DS5+(((3.14159^4)*(3/2))*(29*10^6)*($DY5/(($DT5^3)*(FB5^4))))*((((3.14159^4)/2)*(29*10^6)*($EB5/(($DT5^3)*(FB5^3))))+(((3.14159^2)/2)*$DQ5*($DW5/($DT5*FB5)))+(($DO5)*(((((3.14159^2)/16)-0.25)*$EC5)-$ED5))))-((((3.14159^4)/2)*(29*10^6)*($DY5/(($DT5^3)*(FB5^3))))*((((3.14159^4)*(-3/2))*(29*10^6)*($EB5/(($DT5^3)*(FB5^4))))-(((3.14159^2)/2)*$DQ5*($DW5/($DT5*(FB5^2)))))) ->  | FE5: =FB5-(FC5/FD5) ->  | FF5: =((((3.14159^2/24)+0.125)^2)*($DS5^2)*(FE5^2))+((($DO5/192)*((3.14159^2)+3)*((3.14159^2)+4))-(((3.14159^4)/2)*(29*10^6)*($DY5/(($DT5^3)*(FE5^3))))*(((((3.14159^2)/24)-0.125)*$EC5)-$EA5/2))*$DS5*FE5+(((((3.14159^2)/16)+0.25)^2)*($DO5^2))-(((3.14159^4)/2)*(29*10^6)*($DY5/(($DT5^3)*(FE5^3))))*((((3.14159^4)/2)*(29*10^6)*($EB5/(($DT5^3)*(FE5^3))))+(((3.14159^2)/2)*$DQ5*($DW5/($DT5*FE5)))+(($DO5)*(((((3.14159^2)/16)-0.25)*$EC5)-$ED5))) ->  | FG5: =(2*((((3.14159^2)/24)+(1/8))^2)*($DS5^2)*(FE5)+(($DO5*$DS5/192)*((3.14159^2)+3)*((3.14159^2)+4))+(((3.14159^4))*(29*10^6)*($DY5/(($DT5^3)*(FE5^3))))*(((((3.14159^2)/24)-0.125)*$EC5)-$EA5/2)*$DS5+(((3.14159^4)*(3/2))*(29*10^6)*($DY5/(($DT5^3)*(FE5^4))))*((((3.14159^4)/2)*(29*10^6)*($EB5/(($DT5^3)*(FE5^3))))+(((3.14159^2)/2)*$DQ5*($DW5/($DT5*FE5)))+(($DO5)*(((((3.14159^2)/16)-0.25)*$EC5)-$ED5))))-((((3.14159^4)/2)*(29*10^6)*($DY5/(($DT5^3)*(FE5^3))))*((((3.14159^4)*(-3/2))*(29*10^6)*($EB5/(($DT5^3)*(FE5^4))))-(((3.14159^2)/2)*$DQ5*($DW5/($DT5*(FE5^2)))))) ->  | FH5: =FE5-(FF5/FG5) ->  | FI5: =((((3.14159^2/24)+0.125)^2)*($DS5^2)*(FH5^2))+((($DO5/192)*((3.14159^2)+3)*((3.14159^2)+4))-(((3.14159^4)/2)*(29*10^6)*($DY5/(($DT5^3)*(FH5^3))))*(((((3.14159^2)/24)-0.125)*$EC5)-$EA5/2))*$DS5*FH5+(((((3.14159^2)/16)+0.25)^2)*($DO5^2))-(((3.14159^4)/2)*(29*10^6)*($DY5/(($DT5^3)*(FH5^3))))*((((3.14159^4)/2)*(29*10^6)*($EB5/(($DT5^3)*(FH5^3))))+(((3.14159^2)/2)*$DQ5*($DW5/($DT5*FH5)))+(($DO5)*(((((3.14159^2)/16)-0.25)*$EC5)-$ED5))) ->  | FJ5: =(2*((((3.14159^2)/24)+(1/8))^2)*($DS5^2)*(FH5)+(($DO5*$DS5/192)*((3.14159^2)+3)*((3.14159^2)+4))+(((3.14159^4))*(29*10^6)*($DY5/(($DT5^3)*(FH5^3))))*(((((3.14159^2)/24)-0.125)*$EC5)-$EA5/2)*$DS5+(((3.14159^4)*(3/2))*(29*10^6)*($DY5/(($DT5^3)*(FH5^4))))*((((3.14159^4)/2)*(29*10^6)*($EB5/(($DT5^3)*(FH5^3))))+(((3.14159^2)/2)*$DQ5*($DW5/($DT5*FH5)))+(($DO5)*(((((3.14159^2)/16)-0.25)*$EC5)-$ED5))))-((((3.14159^4)/2)*(29*10^6)*($DY5/(($DT5^3)*(FH5^3))))*((((3.14159^4)*(-3/2))*(29*10^6)*($EB5/(($DT5^3)*(FH5^4))))-(((3.14159^2)/2)*$DQ5*($DW5/($DT5*(FH5^2)))))) ->  | FK5: =FH5-(FI5/FJ5) ->  | FL5: =((((3.14159^2/24)+0.125)^2)*($DS5^2)*(FK5^2))+((($DO5/192)*((3.14159^2)+3)*((3.14159^2)+4))-(((3.14159^4)/2)*(29*10^6)*($DY5/(($DT5^3)*(FK5^3))))*(((((3.14159^2)/24)-0.125)*$EC5)-$EA5/2))*$DS5*FK5+(((((3.14159^2)/16)+0.25)^2)*($DO5^2))-(((3.14159^4)/2)*(29*10^6)*($DY5/(($DT5^3)*(FK5^3))))*((((3.14159^4)/2)*(29*10^6)*($EB5/(($DT5^3)*(FK5^3))))+(((3.14159^2)/2)*$DQ5*($DW5/($DT5*FK5)))+(($DO5)*(((((3.14159^2)/16)-0.25)*$EC5)-$ED5))) ->  | FM5: =(2*((((3.14159^2)/24)+(1/8))^2)*($DS5^2)*(FK5)+(($DO5*$DS5/192)*((3.14159^2)+3)*((3.14159^2)+4))+(((3.14159^4))*(29*10^6)*($DY5/(($DT5^3)*(FK5^3))))*(((((3.14159^2)/24)-0.125)*$EC5)-$EA5/2)*$DS5+(((3.14159^4)*(3/2))*(29*10^6)*($DY5/(($DT5^3)*(FK5^4))))*((((3.14159^4)/2)*(29*10^6)*($EB5/(($DT5^3)*(FK5^3))))+(((3.14159^2)/2)*$DQ5*($DW5/($DT5*FK5)))+(($DO5)*(((((3.14159^2)/16)-0.25)*$EC5)-$ED5))))-((((3.14159^4)/2)*(29*10^6)*($DY5/(($DT5^3)*(FK5^3))))*((((3.14159^4)*(-3/2))*(29*10^6)*($EB5/(($DT5^3)*(FK5^4))))-(((3.14159^2)/2)*$DQ5*($DW5/($DT5*(FK5^2)))))) ->  | FN5: =FK5-(FL5/FM5) ->  | FO5: =((((3.14159^2/24)+0.125)^2)*($DS5^2)*(FN5^2))+((($DO5/192)*((3.14159^2)+3)*((3.14159^2)+4))-(((3.14159^4)/2)*(29*10^6)*($DY5/(($DT5^3)*(FN5^3))))*(((((3.14159^2)/24)-0.125)*$EC5)-$EA5/2))*$DS5*FN5+(((((3.14159^2)/16)+0.25)^2)*($DO5^2))-(((3.14159^4)/2)*(29*10^6)*($DY5/(($DT5^3)*(FN5^3))))*((((3.14159^4)/2)*(29*10^6)*($EB5/(($DT5^3)*(FN5^3))))+(((3.14159^2)/2)*$DQ5*($DW5/($DT5*FN5)))+(($DO5)*(((((3.14159^2)/16)-0.25)*$EC5)-$ED5))) ->  | FP5: =(2*((((3.14159^2)/24)+(1/8))^2)*($DS5^2)*(FN5)+(($DO5*$DS5/192)*((3.14159^2)+3)*((3.14159^2)+4))+(((3.14159^4))*(29*10^6)*($DY5/(($DT5^3)*(FN5^3))))*(((((3.14159^2)/24)-0.125)*$EC5)-$EA5/2)*$DS5+(((3.14159^4)*(3/2))*(29*10^6)*($DY5/(($DT5^3)*(FN5^4))))*((((3.14159^4)/2)*(29*10^6)*($EB5/(($DT5^3)*(FN5^3))))+(((3.14159^2)/2)*$DQ5*($DW5/($DT5*FN5)))+(($DO5)*(((((3.14159^2)/16)-0.25)*$EC5)-$ED5))))-((((3.14159^4)/2)*(29*10^6)*($DY5/(($DT5^3)*(FN5^3))))*((((3.14159^4)*(-3/2))*(29*10^6)*($EB5/(($DT5^3)*(FN5^4))))-(((3.14159^2)/2)*$DQ5*($DW5/($DT5*(FN5^2)))))) ->  | FQ5: =FN5-(FO5/FP5) ->  | FR5: =((((3.14159^2/24)+0.125)^2)*($DS5^2)*(FQ5^2))+((($DO5/192)*((3.14159^2)+3)*((3.14159^2)+4))-(((3.14159^4)/2)*(29*10^6)*($DY5/(($DT5^3)*(FQ5^3))))*(((((3.14159^2)/24)-0.125)*$EC5)-$EA5/2))*$DS5*FQ5+(((((3.14159^2)/16)+0.25)^2)*($DO5^2))-(((3.14159^4)/2)*(29*10^6)*($DY5/(($DT5^3)*(FQ5^3))))*((((3.14159^4)/2)*(29*10^6)*($EB5/(($DT5^3)*(FQ5^3))))+(((3.14159^2)/2)*$DQ5*($DW5/($DT5*FQ5)))+(($DO5)*(((((3.14159^2)/16)-0.25)*$EC5)-$ED5))) ->  | FS5: =(2*((((3.14159^2)/24)+(1/8))^2)*($DS5^2)*(FQ5)+(($DO5*$DS5/192)*((3.14159^2)+3)*((3.14159^2)+4))+(((3.14159^4))*(29*10^6)*($DY5/(($DT5^3)*(FQ5^3))))*(((((3.14159^2)/24)-0.125)*$EC5)-$EA5/2)*$DS5+(((3.14159^4)*(3/2))*(29*10^6)*($DY5/(($DT5^3)*(FQ5^4))))*((((3.14159^4)/2)*(29*10^6)*($EB5/(($DT5^3)*(FQ5^3))))+(((3.14159^2)/2)*$DQ5*($DW5/($DT5*FQ5)))+(($DO5)*(((((3.14159^2)/16)-0.25)*$EC5)-$ED5))))-((((3.14159^4)/2)*(29*10^6)*($DY5/(($DT5^3)*(FQ5^3))))*((((3.14159^4)*(-3/2))*(29*10^6)*($EB5/(($DT5^3)*(FQ5^4))))-(((3.14159^2)/2)*$DQ5*($DW5/($DT5*(FQ5^2)))))) ->  | FT5: =FQ5-(FR5/FS5) ->  | FU5: =((((3.14159^2/24)+0.125)^2)*($DS5^2)*(FT5^2))+((($DO5/192)*((3.14159^2)+3)*((3.14159^2)+4))-(((3.14159^4)/2)*(29*10^6)*($DY5/(($DT5^3)*(FT5^3))))*(((((3.14159^2)/24)-0.125)*$EC5)-$EA5/2))*$DS5*FT5+(((((3.14159^2)/16)+0.25)^2)*($DO5^2))-(((3.14159^4)/2)*(29*10^6)*($DY5/(($DT5^3)*(FT5^3))))*((((3.14159^4)/2)*(29*10^6)*($EB5/(($DT5^3)*(FT5^3))))+(((3.14159^2)/2)*$DQ5*($DW5/($DT5*FT5)))+(($DO5)*(((((3.14159^2)/16)-0.25)*$EC5)-$ED5))) ->  | FV5: =(2*((((3.14159^2)/24)+(1/8))^2)*($DS5^2)*(FT5)+(($DO5*$DS5/192)*((3.14159^2)+3)*((3.14159^2)+4))+(((3.14159^4))*(29*10^6)*($DY5/(($DT5^3)*(FT5^3))))*(((((3.14159^2)/24)-0.125)*$EC5)-$EA5/2)*$DS5+(((3.14159^4)*(3/2))*(29*10^6)*($DY5/(($DT5^3)*(FT5^4))))*((((3.14159^4)/2)*(29*10^6)*($EB5/(($DT5^3)*(FT5^3))))+(((3.14159^2)/2)*$DQ5*($DW5/($DT5*FT5)))+(($DO5)*(((((3.14159^2)/16)-0.25)*$EC5)-$ED5))))-((((3.14159^4)/2)*(29*10^6)*($DY5/(($DT5^3)*(FT5^3))))*((((3.14159^4)*(-3/2))*(29*10^6)*($EB5/(($DT5^3)*(FT5^4))))-(((3.14159^2)/2)*$DQ5*($DW5/($DT5*(FT5^2)))))) ->  | FW5: =FT5-(FU5/FV5) ->  | FX5: =((((3.14159^2/24)+0.125)^2)*($DS5^2)*(FW5^2))+((($DO5/192)*((3.14159^2)+3)*((3.14159^2)+4))-(((3.14159^4)/2)*(29*10^6)*($DY5/(($DT5^3)*(FW5^3))))*(((((3.14159^2)/24)-0.125)*$EC5)-$EA5/2))*$DS5*FW5+(((((3.14159^2)/16)+0.25)^2)*($DO5^2))-(((3.14159^4)/2)*(29*10^6)*($DY5/(($DT5^3)*(FW5^3))))*((((3.14159^4)/2)*(29*10^6)*($EB5/(($DT5^3)*(FW5^3))))+(((3.14159^2)/2)*$DQ5*($DW5/($DT5*FW5)))+(($DO5)*(((((3.14159^2)/16)-0.25)*$EC5)-$ED5))) ->  | FY5: =(2*((((3.14159^2)/24)+(1/8))^2)*($DS5^2)*(FW5)+(($DO5*$DS5/192)*((3.14159^2)+3)*((3.14159^2)+4))+(((3.14159^4))*(29*10^6)*($DY5/(($DT5^3)*(FW5^3))))*(((((3.14159^2)/24)-0.125)*$EC5)-$EA5/2)*$DS5+(((3.14159^4)*(3/2))*(29*10^6)*($DY5/(($DT5^3)*(FW5^4))))*((((3.14159^4)/2)*(29*10^6)*($EB5/(($DT5^3)*(FW5^3))))+(((3.14159^2)/2)*$DQ5*($DW5/($DT5*FW5)))+(($DO5)*(((((3.14159^2)/16)-0.25)*$EC5)-$ED5))))-((((3.14159^4)/2)*(29*10^6)*($DY5/(($DT5^3)*(FW5^3))))*((((3.14159^4)*(-3/2))*(29*10^6)*($EB5/(($DT5^3)*(FW5^4))))-(((3.14159^2)/2)*$DQ5*($DW5/($DT5*(FW5^2)))))) ->  | FZ5: =FW5-(FX5/FY5) ->  | GA5: =((((3.14159^2/24)+0.125)^2)*($DS5^2)*(FZ5^2))+((($DO5/192)*((3.14159^2)+3)*((3.14159^2)+4))-(((3.14159^4)/2)*(29*10^6)*($DY5/(($DT5^3)*(FZ5^3))))*(((((3.14159^2)/24)-0.125)*$EC5)-$EA5/2))*$DS5*FZ5+(((((3.14159^2)/16)+0.25)^2)*($DO5^2))-(((3.14159^4)/2)*(29*10^6)*($DY5/(($DT5^3)*(FZ5^3))))*((((3.14159^4)/2)*(29*10^6)*($EB5/(($DT5^3)*(FZ5^3))))+(((3.14159^2)/2)*$DQ5*($DW5/($DT5*FZ5)))+(($DO5)*(((((3.14159^2)/16)-0.25)*$EC5)-$ED5))) ->  | GB5: =(2*((((3.14159^2)/24)+(1/8))^2)*($DS5^2)*(FZ5)+(($DO5*$DS5/192)*((3.14159^2)+3)*((3.14159^2)+4))+(((3.14159^4))*(29*10^6)*($DY5/(($DT5^3)*(FZ5^3))))*(((((3.14159^2)/24)-0.125)*$EC5)-$EA5/2)*$DS5+(((3.14159^4)*(3/2))*(29*10^6)*($DY5/(($DT5^3)*(FZ5^4))))*((((3.14159^4)/2)*(29*10^6)*($EB5/(($DT5^3)*(FZ5^3))))+(((3.14159^2)/2)*$DQ5*($DW5/($DT5*FZ5)))+(($DO5)*(((((3.14159^2)/16)-0.25)*$EC5)-$ED5))))-((((3.14159^4)/2)*(29*10^6)*($DY5/(($DT5^3)*(FZ5^3))))*((((3.14159^4)*(-3/2))*(29*10^6)*($EB5/(($DT5^3)*(FZ5^4))))-(((3.14159^2)/2)*$DQ5*($DW5/($DT5*(FZ5^2)))))) ->  | GC5: =FZ5-(GA5/GB5) ->  | GD5: =((((3.14159^2/24)+0.125)^2)*($DS5^2)*(GC5^2))+((($DO5/192)*((3.14159^2)+3)*((3.14159^2)+4))-(((3.14159^4)/2)*(29*10^6)*($DY5/(($DT5^3)*(GC5^3))))*(((((3.14159^2)/24)-0.125)*$EC5)-$EA5/2))*$DS5*GC5+(((((3.14159^2)/16)+0.25)^2)*($DO5^2))-(((3.14159^4)/2)*(29*10^6)*($DY5/(($DT5^3)*(GC5^3))))*((((3.14159^4)/2)*(29*10^6)*($EB5/(($DT5^3)*(GC5^3))))+(((3.14159^2)/2)*$DQ5*($DW5/($DT5*GC5)))+(($DO5)*(((((3.14159^2)/16)-0.25)*$EC5)-$ED5))) ->  | GE5: =(2*((((3.14159^2)/24)+(1/8))^2)*($DS5^2)*(GC5)+(($DO5*$DS5/192)*((3.14159^2)+3)*((3.14159^2)+4))+(((3.14159^4))*(29*10^6)*($DY5/(($DT5^3)*(GC5^3))))*(((((3.14159^2)/24)-0.125)*$EC5)-$EA5/2)*$DS5+(((3.14159^4)*(3/2))*(29*10^6)*($DY5/(($DT5^3)*(GC5^4))))*((((3.14159^4)/2)*(29*10^6)*($EB5/(($DT5^3)*(GC5^3))))+(((3.14159^2)/2)*$DQ5*($DW5/($DT5*GC5)))+(($DO5)*(((((3.14159^2)/16)-0.25)*$EC5)-$ED5))))-((((3.14159^4)/2)*(29*10^6)*($DY5/(($DT5^3)*(GC5^3))))*((((3.14159^4)*(-3/2))*(29*10^6)*($EB5/(($DT5^3)*(GC5^4))))-(((3.14159^2)/2)*$DQ5*($DW5/($DT5*(GC5^2)))))) ->  | GF5: =GC5-(GD5/GE5) ->  | GG5: =((((3.14159^2/24)+0.125)^2)*($DS5^2)*(GF5^2))+((($DO5/192)*((3.14159^2)+3)*((3.14159^2)+4))-(((3.14159^4)/2)*(29*10^6)*($DY5/(($DT5^3)*(GF5^3))))*(((((3.14159^2)/24)-0.125)*$EC5)-$EA5/2))*$DS5*GF5+(((((3.14159^2)/16)+0.25)^2)*($DO5^2))-(((3.14159^4)/2)*(29*10^6)*($DY5/(($DT5^3)*(GF5^3))))*((((3.14159^4)/2)*(29*10^6)*($EB5/(($DT5^3)*(GF5^3))))+(((3.14159^2)/2)*$DQ5*($DW5/($DT5*GF5)))+(($DO5)*(((((3.14159^2)/16)-0.25)*$EC5)-$ED5))) ->  | GH5: =(2*((((3.14159^2)/24)+(1/8))^2)*($DS5^2)*(GF5)+(($DO5*$DS5/192)*((3.14159^2)+3)*((3.14159^2)+4))+(((3.14159^4))*(29*10^6)*($DY5/(($DT5^3)*(GF5^3))))*(((((3.14159^2)/24)-0.125)*$EC5)-$EA5/2)*$DS5+(((3.14159^4)*(3/2))*(29*10^6)*($DY5/(($DT5^3)*(GF5^4))))*((((3.14159^4)/2)*(29*10^6)*($EB5/(($DT5^3)*(GF5^3))))+(((3.14159^2)/2)*$DQ5*($DW5/($DT5*GF5)))+(($DO5)*(((((3.14159^2)/16)-0.25)*$EC5)-$ED5))))-((((3.14159^4)/2)*(29*10^6)*($DY5/(($DT5^3)*(GF5^3))))*((((3.14159^4)*(-3/2))*(29*10^6)*($EB5/(($DT5^3)*(GF5^4))))-(((3.14159^2)/2)*$DQ5*($DW5/($DT5*(GF5^2)))))) ->  | GI5: =GF5-(GG5/GH5) ->  | GJ5: =((((3.14159^2/24)+0.125)^2)*($DS5^2)*(GI5^2))+((($DO5/192)*((3.14159^2)+3)*((3.14159^2)+4))-(((3.14159^4)/2)*(29*10^6)*($DY5/(($DT5^3)*(GI5^3))))*(((((3.14159^2)/24)-0.125)*$EC5)-$EA5/2))*$DS5*GI5+(((((3.14159^2)/16)+0.25)^2)*($DO5^2))-(((3.14159^4)/2)*(29*10^6)*($DY5/(($DT5^3)*(GI5^3))))*((((3.14159^4)/2)*(29*10^6)*($EB5/(($DT5^3)*(GI5^3))))+(((3.14159^2)/2)*$DQ5*($DW5/($DT5*GI5)))+(($DO5)*(((((3.14159^2)/16)-0.25)*$EC5)-$ED5))) ->  | GK5: =(2*((((3.14159^2)/24)+(1/8))^2)*($DS5^2)*(GI5)+(($DO5*$DS5/192)*((3.14159^2)+3)*((3.14159^2)+4))+(((3.14159^4))*(29*10^6)*($DY5/(($DT5^3)*(GI5^3))))*(((((3.14159^2)/24)-0.125)*$EC5)-$EA5/2)*$DS5+(((3.14159^4)*(3/2))*(29*10^6)*($DY5/(($DT5^3)*(GI5^4))))*((((3.14159^4)/2)*(29*10^6)*($EB5/(($DT5^3)*(GI5^3))))+(((3.14159^2)/2)*$DQ5*($DW5/($DT5*GI5)))+(($DO5)*(((((3.14159^2)/16)-0.25)*$EC5)-$ED5))))-((((3.14159^4)/2)*(29*10^6)*($DY5/(($DT5^3)*(GI5^3))))*((((3.14159^4)*(-3/2))*(29*10^6)*($EB5/(($DT5^3)*(GI5^4))))-(((3.14159^2)/2)*$DQ5*($DW5/($DT5*(GI5^2)))))) ->  | GL5: =GI5-(GJ5/GK5) ->  | GM5: =((((3.14159^2/24)+0.125)^2)*($DS5^2)*(GL5^2))+((($DO5/192)*((3.14159^2)+3)*((3.14159^2)+4))-(((3.14159^4)/2)*(29*10^6)*($DY5/(($DT5^3)*(GL5^3))))*(((((3.14159^2)/24)-0.125)*$EC5)-$EA5/2))*$DS5*GL5+(((((3.14159^2)/16)+0.25)^2)*($DO5^2))-(((3.14159^4)/2)*(29*10^6)*($DY5/(($DT5^3)*(GL5^3))))*((((3.14159^4)/2)*(29*10^6)*($EB5/(($DT5^3)*(GL5^3))))+(((3.14159^2)/2)*$DQ5*($DW5/($DT5*GL5)))+(($DO5)*(((((3.14159^2)/16)-0.25)*$EC5)-$ED5))) ->  | GN5: =(2*((((3.14159^2)/24)+(1/8))^2)*($DS5^2)*(GL5)+(($DO5*$DS5/192)*((3.14159^2)+3)*((3.14159^2)+4))+(((3.14159^4))*(29*10^6)*($DY5/(($DT5^3)*(GL5^3))))*(((((3.14159^2)/24)-0.125)*$EC5)-$EA5/2)*$DS5+(((3.14159^4)*(3/2))*(29*10^6)*($DY5/(($DT5^3)*(GL5^4))))*((((3.14159^4)/2)*(29*10^6)*($EB5/(($DT5^3)*(GL5^3))))+(((3.14159^2)/2)*$DQ5*($DW5/($DT5*GL5)))+(($DO5)*(((((3.14159^2)/16)-0.25)*$EC5)-$ED5))))-((((3.14159^4)/2)*(29*10^6)*($DY5/(($DT5^3)*(GL5^3))))*((((3.14159^4)*(-3/2))*(29*10^6)*($EB5/(($DT5^3)*(GL5^4))))-(((3.14159^2)/2)*$DQ5*($DW5/($DT5*(GL5^2)))))) ->  | GO5: =GL5-(GM5/GN5) ->  | GP5: =((((3.14159^2/24)+0.125)^2)*($DS5^2)*(GO5^2))+((($DO5/192)*((3.14159^2)+3)*((3.14159^2)+4))-(((3.14159^4)/2)*(29*10^6)*($DY5/(($DT5^3)*(GO5^3))))*(((((3.14159^2)/24)-0.125)*$EC5)-$EA5/2))*$DS5*GO5+(((((3.14159^2)/16)+0.25)^2)*($DO5^2))-(((3.14159^4)/2)*(29*10^6)*($DY5/(($DT5^3)*(GO5^3))))*((((3.14159^4)/2)*(29*10^6)*($EB5/(($DT5^3)*(GO5^3))))+(((3.14159^2)/2)*$DQ5*($DW5/($DT5*GO5)))+(($DO5)*(((((3.14159^2)/16)-0.25)*$EC5)-$ED5))) ->  | GQ5: =(2*((((3.14159^2)/24)+(1/8))^2)*($DS5^2)*(GO5)+(($DO5*$DS5/192)*((3.14159^2)+3)*((3.14159^2)+4))+(((3.14159^4))*(29*10^6)*($DY5/(($DT5^3)*(GO5^3))))*(((((3.14159^2)/24)-0.125)*$EC5)-$EA5/2)*$DS5+(((3.14159^4)*(3/2))*(29*10^6)*($DY5/(($DT5^3)*(GO5^4))))*((((3.14159^4)/2)*(29*10^6)*($EB5/(($DT5^3)*(GO5^3))))+(((3.14159^2)/2)*$DQ5*($DW5/($DT5*GO5)))+(($DO5)*(((((3.14159^2)/16)-0.25)*$EC5)-$ED5))))-((((3.14159^4)/2)*(29*10^6)*($DY5/(($DT5^3)*(GO5^3))))*((((3.14159^4)*(-3/2))*(29*10^6)*($EB5/(($DT5^3)*(GO5^4))))-(((3.14159^2)/2)*$DQ5*($DW5/($DT5*(GO5^2)))))) ->  | GR5: =GO5-(GP5/GQ5) ->  | GS5: =((((3.14159^2/24)+0.125)^2)*($DS5^2)*(GR5^2))+((($DO5/192)*((3.14159^2)+3)*((3.14159^2)+4))-(((3.14159^4)/2)*(29*10^6)*($DY5/(($DT5^3)*(GR5^3))))*(((((3.14159^2)/24)-0.125)*$EC5)-$EA5/2))*$DS5*GR5+(((((3.14159^2)/16)+0.25)^2)*($DO5^2))-(((3.14159^4)/2)*(29*10^6)*($DY5/(($DT5^3)*(GR5^3))))*((((3.14159^4)/2)*(29*10^6)*($EB5/(($DT5^3)*(GR5^3))))+(((3.14159^2)/2)*$DQ5*($DW5/($DT5*GR5)))+(($DO5)*(((((3.14159^2)/16)-0.25)*$EC5)-$ED5))) ->  | GT5: =(2*((((3.14159^2)/24)+(1/8))^2)*($DS5^2)*(GR5)+(($DO5*$DS5/192)*((3.14159^2)+3)*((3.14159^2)+4))+(((3.14159^4))*(29*10^6)*($DY5/(($DT5^3)*(GR5^3))))*(((((3.14159^2)/24)-0.125)*$EC5)-$EA5/2)*$DS5+(((3.14159^4)*(3/2))*(29*10^6)*($DY5/(($DT5^3)*(GR5^4))))*((((3.14159^4)/2)*(29*10^6)*($EB5/(($DT5^3)*(GR5^3))))+(((3.14159^2)/2)*$DQ5*($DW5/($DT5*GR5)))+(($DO5)*(((((3.14159^2)/16)-0.25)*$EC5)-$ED5))))-((((3.14159^4)/2)*(29*10^6)*($DY5/(($DT5^3)*(GR5^3))))*((((3.14159^4)*(-3/2))*(29*10^6)*($EB5/(($DT5^3)*(GR5^4))))-(((3.14159^2)/2)*$DQ5*($DW5/($DT5*(GR5^2)))))) ->  | GU5: =GR5-(GS5/GT5) ->  | GV5: =((((3.14159^2/24)+0.125)^2)*($DS5^2)*(GU5^2))+((($DO5/192)*((3.14159^2)+3)*((3.14159^2)+4))-(((3.14159^4)/2)*(29*10^6)*($DY5/(($DT5^3)*(GU5^3))))*(((((3.14159^2)/24)-0.125)*$EC5)-$EA5/2))*$DS5*GU5+(((((3.14159^2)/16)+0.25)^2)*($DO5^2))-(((3.14159^4)/2)*(29*10^6)*($DY5/(($DT5^3)*(GU5^3))))*((((3.14159^4)/2)*(29*10^6)*($EB5/(($DT5^3)*(GU5^3))))+(((3.14159^2)/2)*$DQ5*($DW5/($DT5*GU5)))+(($DO5)*(((((3.14159^2)/16)-0.25)*$EC5)-$ED5))) ->  | GW5: =(2*((((3.14159^2)/24)+(1/8))^2)*($DS5^2)*(GU5)+(($DO5*$DS5/192)*((3.14159^2)+3)*((3.14159^2)+4))+(((3.14159^4))*(29*10^6)*($DY5/(($DT5^3)*(GU5^3))))*(((((3.14159^2)/24)-0.125)*$EC5)-$EA5/2)*$DS5+(((3.14159^4)*(3/2))*(29*10^6)*($DY5/(($DT5^3)*(GU5^4))))*((((3.14159^4)/2)*(29*10^6)*($EB5/(($DT5^3)*(GU5^3))))+(((3.14159^2)/2)*$DQ5*($DW5/($DT5*GU5)))+(($DO5)*(((((3.14159^2)/16)-0.25)*$EC5)-$ED5))))-((((3.14159^4)/2)*(29*10^6)*($DY5/(($DT5^3)*(GU5^3))))*((((3.14159^4)*(-3/2))*(29*10^6)*($EB5/(($DT5^3)*(GU5^4))))-(((3.14159^2)/2)*$DQ5*($DW5/($DT5*(GU5^2)))))) ->  | GX5: =GU5-(GV5/GW5) ->  | GY5: =((((3.14159^2/24)+0.125)^2)*($DS5^2)*(GX5^2))+((($DO5/192)*((3.14159^2)+3)*((3.14159^2)+4))-(((3.14159^4)/2)*(29*10^6)*($DY5/(($DT5^3)*(GX5^3))))*(((((3.14159^2)/24)-0.125)*$EC5)-$EA5/2))*$DS5*GX5+(((((3.14159^2)/16)+0.25)^2)*($DO5^2))-(((3.14159^4)/2)*(29*10^6)*($DY5/(($DT5^3)*(GX5^3))))*((((3.14159^4)/2)*(29*10^6)*($EB5/(($DT5^3)*(GX5^3))))+(((3.14159^2)/2)*$DQ5*($DW5/($DT5*GX5)))+(($DO5)*(((((3.14159^2)/16)-0.25)*$EC5)-$ED5))) ->  | GZ5: =(2*((((3.14159^2)/24)+(1/8))^2)*($DS5^2)*(GX5)+(($DO5*$DS5/192)*((3.14159^2)+3)*((3.14159^2)+4))+(((3.14159^4))*(29*10^6)*($DY5/(($DT5^3)*(GX5^3))))*(((((3.14159^2)/24)-0.125)*$EC5)-$EA5/2)*$DS5+(((3.14159^4)*(3/2))*(29*10^6)*($DY5/(($DT5^3)*(GX5^4))))*((((3.14159^4)/2)*(29*10^6)*($EB5/(($DT5^3)*(GX5^3))))+(((3.14159^2)/2)*$DQ5*($DW5/($DT5*GX5)))+(($DO5)*(((((3.14159^2)/16)-0.25)*$EC5)-$ED5))))-((((3.14159^4)/2)*(29*10^6)*($DY5/(($DT5^3)*(GX5^3))))*((((3.14159^4)*(-3/2))*(29*10^6)*($EB5/(($DT5^3)*(GX5^4))))-(((3.14159^2)/2)*$DQ5*($DW5/($DT5*(GX5^2)))))) ->  | HA5: =GX5-(GY5/GZ5) ->  | HB5: =((((3.14159^2/24)+0.125)^2)*($DS5^2)*(HA5^2))+((($DO5/192)*((3.14159^2)+3)*((3.14159^2)+4))-(((3.14159^4)/2)*(29*10^6)*($DY5/(($DT5^3)*(HA5^3))))*(((((3.14159^2)/24)-0.125)*$EC5)-$EA5/2))*$DS5*HA5+(((((3.14159^2)/16)+0.25)^2)*($DO5^2))-(((3.14159^4)/2)*(29*10^6)*($DY5/(($DT5^3)*(HA5^3))))*((((3.14159^4)/2)*(29*10^6)*($EB5/(($DT5^3)*(HA5^3))))+(((3.14159^2)/2)*$DQ5*($DW5/($DT5*HA5)))+(($DO5)*(((((3.14159^2)/16)-0.25)*$EC5)-$ED5))) ->  | HC5: =(2*((((3.14159^2)/24)+(1/8))^2)*($DS5^2)*(HA5)+(($DO5*$DS5/192)*((3.14159^2)+3)*((3.14159^2)+4))+(((3.14159^4))*(29*10^6)*($DY5/(($DT5^3)*(HA5^3))))*(((((3.14159^2)/24)-0.125)*$EC5)-$EA5/2)*$DS5+(((3.14159^4)*(3/2))*(29*10^6)*($DY5/(($DT5^3)*(HA5^4))))*((((3.14159^4)/2)*(29*10^6)*($EB5/(($DT5^3)*(HA5^3))))+(((3.14159^2)/2)*$DQ5*($DW5/($DT5*HA5)))+(($DO5)*(((((3.14159^2)/16)-0.25)*$EC5)-$ED5))))-((((3.14159^4)/2)*(29*10^6)*($DY5/(($DT5^3)*(HA5^3))))*((((3.14159^4)*(-3/2))*(29*10^6)*($EB5/(($DT5^3)*(HA5^4))))-(((3.14159^2)/2)*$DQ5*($DW5/($DT5*(HA5^2)))))) ->  | HD5: =HA5-(HB5/HC5) ->  | HE5: =((((3.14159^2/24)+0.125)^2)*($DS5^2)*(HD5^2))+((($DO5/192)*((3.14159^2)+3)*((3.14159^2)+4))-(((3.14159^4)/2)*(29*10^6)*($DY5/(($DT5^3)*(HD5^3))))*(((((3.14159^2)/24)-0.125)*$EC5)-$EA5/2))*$DS5*HD5+(((((3.14159^2)/16)+0.25)^2)*($DO5^2))-(((3.14159^4)/2)*(29*10^6)*($DY5/(($DT5^3)*(HD5^3))))*((((3.14159^4)/2)*(29*10^6)*($EB5/(($DT5^3)*(HD5^3))))+(((3.14159^2)/2)*$DQ5*($DW5/($DT5*HD5)))+(($DO5)*(((((3.14159^2)/16)-0.25)*$EC5)-$ED5))) ->  | HF5: =(2*((((3.14159^2)/24)+(1/8))^2)*($DS5^2)*(HD5)+(($DO5*$DS5/192)*((3.14159^2)+3)*((3.14159^2)+4))+(((3.14159^4))*(29*10^6)*($DY5/(($DT5^3)*(HD5^3))))*(((((3.14159^2)/24)-0.125)*$EC5)-$EA5/2)*$DS5+(((3.14159^4)*(3/2))*(29*10^6)*($DY5/(($DT5^3)*(HD5^4))))*((((3.14159^4)/2)*(29*10^6)*($EB5/(($DT5^3)*(HD5^3))))+(((3.14159^2)/2)*$DQ5*($DW5/($DT5*HD5)))+(($DO5)*(((((3.14159^2)/16)-0.25)*$EC5)-$ED5))))-((((3.14159^4)/2)*(29*10^6)*($DY5/(($DT5^3)*(HD5^3))))*((((3.14159^4)*(-3/2))*(29*10^6)*($EB5/(($DT5^3)*(HD5^4))))-(((3.14159^2)/2)*$DQ5*($DW5/($DT5*(HD5^2)))))) ->  | HG5: =HD5-(HE5/HF5) ->  | HH5: =IF(ROUNDDOWN((INPUT!$C$7*12)/(HG5+8),0)>0,ROUNDDOWN((INPUT!$C$7*12)/(HG5+8),0),0) -> 
A6: Depth(in) | B6: =INPUT!C8 -> 24 | E6: 8 | F6: 20 | G6: =G5 -> 1 | H6: =2*(O6+(M6*(N6+(G6/2))^2)) -> 0.451811898 | I6: 2 | J6: 1210 | K6: 1.25 | L6: 0.109 | M6: 0.261 | N6: 0.353 | O6: 0.036 | P6: 0.016 | Q6: 0.977526684 | R6: 0.387 | S6: =(H6/(2*M6))^0.5 -> 0.9303440409 | T6: 0.247 | U6: =$B$6-MAX(BC!$B$21,BC!$F$21)-TC!N6 ->  | W6: 0.25 | X6: =X5 -> 0.167 | Y6: =Y5 -> 1.75 | Z6: 0 | AG6: =IF(AF6<=(0.9*$B$8*1000),1,0) ->  | AH6: =((0.75*$F$56)/(R6)) -> 46.51162791 | AI6: 38.69536259 | AJ6: =((0.5*$F$56)/T6) -> 48.58299595 | AK6: =MAX(AH6:AJ6) -> 48.58299595 | AL6: =((3.14159^2)*(29*(10^6)))/((AK6)^2) -> 121263.0323 | AM6: =IF(AK6<=4.71*(((29*10^6)/(Q6*$B$8*1000))^0.5),(Q6*$B$8*1000)*(0.658^((Q6*$B$8*1000)/AL6)),0.877*AL6) -> 41288.83888 | AN6: =((3.14159^2)*(29*(10^6)))/((AH6)^2) -> 132304.2909 | AO6: =1-((0.4*AA6)/($B$19*AN6)) ->  | AP6: =IF(AA6/($B$19*AM6)>=0.2,(AA6/($B$19*AM6)+((AO6*AE6)/((1-(AA6/($B$19*AN6)))*Q6*$B$19*($B$8*1000)))*(8/9)),(AA6/(2*$B$19*AM6)+((AO6*AE6)/((1-(AA6/($B$19*AN6)))*Q6*$B$19*($B$8*1000))))) ->  | AQ6: =IF(AP6<=1,1,0) ->  | AR6: =((3.14159^2)*(29*(10^6)))/(((0.75*$F$56)/T6)^2) -> 53894.68103 | AS6: 33438.76468 | AU6: =IF(AT6<=1,1,0) ->  | AV6: =IF(Z6+AG6+AQ6=3,J6,"") ->  | AW6: =PANELS!$I$27-2 -> 23 | AX6: =PANELS!$I$30 -> 23 | AY6: 24 | AZ6: =PANELS!$I$36-2 -> 28 | BA6: =ATAN(U6/(AZ6)) ->  | BB6: =IF(AZ6-AW6=0,1.570795,ATAN(U6/(AZ6-AW6))) ->  | BC6: =IF((AW6+AX6)-AZ6=0,1.570795,ATAN(U6/((AW6+AX6)-AZ6))) ->  | BH6: =BF6/(PROPS!AB63*2) ->  | BI6: 1 | BJ6: 1.043478261 | BK6: 0.4188111889 | BN6: =(BL6*(PROPS!AC63))/(2*PROPS!AK63) ->  | BQ6: =IF(AND(AW6/R6<=120,AX6/R6<=120,(AW6/2)/T6<=120,(AX6/2)/T6<=120,BO6<=(0.9*$B$19*($B$8*1000))),1,0) ->  | BR6: =IF(BP6<=(0.9*$B$19*($B$8*1000)),1,0) ->  | BU6: =(BS6*(N6))/(2*PROPS!AK63) ->  | BV6: 93.11740891 | BW6: =((AW6)/(3.14159*PROPS!AQ63)*(($B$8/(29*(10)^3))^0.5)) ->  | BX6: 26299.53054 | BY6: =IF(BW6*(PROPS!AA63^0.5)<=1.5,(PROPS!AA63*$B$8*1000)*(0.658^(PROPS!AA63*(BW6^2))),(0.877*$B$8*1000)/((BW6)^2)) ->  | BZ6: 33009.21863 | CA6: =((3.14159)^2)*((29*(10^6))/((AW6/R6)^2)) -> 81033.25189 | CE6: =IF(BH6/($B$19*BY6)>=0.2,(BH6/($B$19*BY6)+((CC6*BU6)/((1-(BH6/CA6))*PROPS!AA63*$B$19*($B$8*1000)))*(8/9)),(BH6/(2*$B$19*BY6)+((CC6*BU6)/((1-(BH6/CA6))*PROPS!AA63*$B$19*($B$8*1000))))) ->  | CF6: =IF(AND(CD6<=0.9*1,CD6>=0),1,0) ->  | CG6: =IF(AND(CE6<=0.9*1,CE6>=0),1,0) ->  | CQ6: =IF(CO6<=(0.9*$B$19*($B$8*1000)),1,0) ->  | CR6: =IF(CP6<=(0.9*$B$19*($B$8*1000)),1,0) ->  | CW6: =IF(AND(CU6<=0.9*1,CU6>=0),1,0) ->  | CX6: =IF(AND(CV6<=0.9*1,CV6>=0),1,0) ->  | CY6: =IF(Z6+AG6+AQ6+BQ6+CF6+CQ6+CW6+ES6=8,J6,"") ->  | CZ6: =IF(AND(Z6+AG6+AQ6+BR6+CG6+CR6+CX6=7,W6+K6<=PROPS!$A$71),PROPS!O63,"") ->  | DA6: =IF(CY6="","",IF(AU6=1,"NO FILLERS","FILLERS")) ->  | DC6: 0.522 | DD6: =L6 -> 0.109 | DE6: =H6 -> 0.451811898 | DF6: =N6 -> 0.353 | DG6: =K6 -> 1.25 | DH6: =BC!$F$23 ->  | DI6: =BC!$F$27 ->  | DJ6: =2*((BC!$F$26/2)+((BC!$F$23/2)*(BC!$F$21+(G6/2))^2)) ->  | DK6: =BC!$F$21 ->  | DL6: =BC!$F$28 ->  | DM6: =INPUT!$C$7*12 -> 480 | DN6: =INPUT!$C$8 -> 24 | DO6: =(1.2*INPUT!$I$22)/(0.8*1*1*0.9) -> 416.6666667 | DP6: 29000000 | DQ6: =0.385*DP6 -> 11165000 | DR6: 3.14159 | DS6: =1.3*(BC!$F$25+(0.283565*M6*24*INPUT!$C$7))/(INPUT!$C$7*12) ->  | DT6: =INPUT!$I$23 -> 0.85 | DU6: =DC6+DH6 ->  | DV6: =U6 ->  | DW6: =(1/3)*((DC6*(DD6^2))+(DH6*(DI6^2))) ->  | DX6: =(DH6*DV6)/DU6 ->  | DY6: =DE6+DJ6 ->  | DZ6: =(DC6*(DX6^2))+(DH6*((DV6-DX6)^2)) ->  | EA6: =(-DX6)+((DJ6*DV6)/DY6) ->  | EB6: =((DV6^2)*DJ6*DE6)/DY6 ->  | EC6: =(1/DZ6)*((DH6*(DV6-DX6)^3)-(DC6*(DX6^3)))-2*EA6 ->  | EE6: =(((3.14159^2)+4)/16)^2 -> 0.7514275928 | EI6: =IF(EH6>DO6,1,0) ->  | EK6: =170*S6 -> 158.158487 | EL6: =ROUNDDOWN(($B$5*12)/(MIN(EK6,EK50)),0) -> 3 | EM6: =(($B$5*12)/(EL6+1))+8 -> 128 | EN6: =((3.14159^2)*(29*10^6))/(((0.9*EM6)/(S6))^2) -> 18667.20135 | EO6: =IF(EN6>=12200,1,0) -> 1 | EP6: =IF(EO6=0,EL6+1,EL6) -> 3 | EQ6: 128 | ER6: =((3.14159^2)*(29*10^6))/(((0.9*EQ6)/(S6))^2) -> 18667.20135 | ES6: =IF(ER6>=12200,1,0) -> 1 | EU6: =DM6*DS6 ->  | EV6: =((DE6/DC6)^0.5)*200 -> 186.0688082 | EW6: =((((3.14159^2/24)+0.125)^2)*($DS6^2)*(EV6^2))+((($DO6/192)*((3.14159^2)+3)*((3.14159^2)+4))-(((3.14159^4)/2)*(29*10^6)*($DY6/(($DT6^3)*(EV6^3))))*(((((3.14159^2)/24)-0.125)*$EC6)-$EA6/2))*$DS6*EV6+(((((3.14159^2)/16)+0.25)^2)*($DO6^2))-(((3.14159^4)/2)*(29*10^6)*($DY6/(($DT6^3)*(EV6^3))))*((((3.14159^4)/2)*(29*10^6)*($EB6/(($DT6^3)*(EV6^3))))+(((3.14159^2)/2)*$DQ6*($DW6/($DT6*EV6)))+(($DO6)*(((((3.14159^2)/16)-0.25)*$EC6)-$ED6))) ->  | EX6: =(2*((((3.14159^2)/24)+(1/8))^2)*($DS6^2)*(EV6)+(($DO6*$DS6/192)*((3.14159^2)+3)*((3.14159^2)+4))+(((3.14159^4))*(29*10^6)*($DY6/(($DT6^3)*(EV6^3))))*(((((3.14159^2)/24)-0.125)*$EC6)-$EA6/2)*$DS6+(((3.14159^4)*(3/2))*(29*10^6)*($DY6/(($DT6^3)*(EV6^4))))*((((3.14159^4)/2)*(29*10^6)*($EB6/(($DT6^3)*(EV6^3))))+(((3.14159^2)/2)*$DQ6*($DW6/($DT6*EV6)))+(($DO6)*(((((3.14159^2)/16)-0.25)*$EC6)-$ED6))))-((((3.14159^4)/2)*(29*10^6)*($DY6/(($DT6^3)*(EV6^3))))*((((3.14159^4)*(-3/2))*(29*10^6)*($EB6/(($DT6^3)*(EV6^4))))-(((3.14159^2)/2)*$DQ6*($DW6/($DT6*(EV6^2)))))) ->  | EY6: =EV6-(EW6/EX6) ->  | EZ6: =((((3.14159^2/24)+0.125)^2)*($DS6^2)*(EY6^2))+((($DO6/192)*((3.14159^2)+3)*((3.14159^2)+4))-(((3.14159^4)/2)*(29*10^6)*($DY6/(($DT6^3)*(EY6^3))))*(((((3.14159^2)/24)-0.125)*$EC6)-$EA6/2))*$DS6*EY6+(((((3.14159^2)/16)+0.25)^2)*($DO6^2))-(((3.14159^4)/2)*(29*10^6)*($DY6/(($DT6^3)*(EY6^3))))*((((3.14159^4)/2)*(29*10^6)*($EB6/(($DT6^3)*(EY6^3))))+(((3.14159^2)/2)*$DQ6*($DW6/($DT6*EY6)))+(($DO6)*(((((3.14159^2)/16)-0.25)*$EC6)-$ED6))) ->  | FA6: =(2*((((3.14159^2)/24)+(1/8))^2)*($DS6^2)*(EY6)+(($DO6*$DS6/192)*((3.14159^2)+3)*((3.14159^2)+4))+(((3.14159^4))*(29*10^6)*($DY6/(($DT6^3)*(EY6^3))))*(((((3.14159^2)/24)-0.125)*$EC6)-$EA6/2)*$DS6+(((3.14159^4)*(3/2))*(29*10^6)*($DY6/(($DT6^3)*(EY6^4))))*((((3.14159^4)/2)*(29*10^6)*($EB6/(($DT6^3)*(EY6^3))))+(((3.14159^2)/2)*$DQ6*($DW6/($DT6*EY6)))+(($DO6)*(((((3.14159^2)/16)-0.25)*$EC6)-$ED6))))-((((3.14159^4)/2)*(29*10^6)*($DY6/(($DT6^3)*(EY6^3))))*((((3.14159^4)*(-3/2))*(29*10^6)*($EB6/(($DT6^3)*(EY6^4))))-(((3.14159^2)/2)*$DQ6*($DW6/($DT6*(EY6^2)))))) ->  | FB6: =EY6-(EZ6/FA6) ->  | FC6: =((((3.14159^2/24)+0.125)^2)*($DS6^2)*(FB6^2))+((($DO6/192)*((3.14159^2)+3)*((3.14159^2)+4))-(((3.14159^4)/2)*(29*10^6)*($DY6/(($DT6^3)*(FB6^3))))*(((((3.14159^2)/24)-0.125)*$EC6)-$EA6/2))*$DS6*FB6+(((((3.14159^2)/16)+0.25)^2)*($DO6^2))-(((3.14159^4)/2)*(29*10^6)*($DY6/(($DT6^3)*(FB6^3))))*((((3.14159^4)/2)*(29*10^6)*($EB6/(($DT6^3)*(FB6^3))))+(((3.14159^2)/2)*$DQ6*($DW6/($DT6*FB6)))+(($DO6)*(((((3.14159^2)/16)-0.25)*$EC6)-$ED6))) ->  | FD6: =(2*((((3.14159^2)/24)+(1/8))^2)*($DS6^2)*(FB6)+(($DO6*$DS6/192)*((3.14159^2)+3)*((3.14159^2)+4))+(((3.14159^4))*(29*10^6)*($DY6/(($DT6^3)*(FB6^3))))*(((((3.14159^2)/24)-0.125)*$EC6)-$EA6/2)*$DS6+(((3.14159^4)*(3/2))*(29*10^6)*($DY6/(($DT6^3)*(FB6^4))))*((((3.14159^4)/2)*(29*10^6)*($EB6/(($DT6^3)*(FB6^3))))+(((3.14159^2)/2)*$DQ6*($DW6/($DT6*FB6)))+(($DO6)*(((((3.14159^2)/16)-0.25)*$EC6)-$ED6))))-((((3.14159^4)/2)*(29*10^6)*($DY6/(($DT6^3)*(FB6^3))))*((((3.14159^4)*(-3/2))*(29*10^6)*($EB6/(($DT6^3)*(FB6^4))))-(((3.14159^2)/2)*$DQ6*($DW6/($DT6*(FB6^2)))))) ->  | FE6: =FB6-(FC6/FD6) ->  | FF6: =((((3.14159^2/24)+0.125)^2)*($DS6^2)*(FE6^2))+((($DO6/192)*((3.14159^2)+3)*((3.14159^2)+4))-(((3.14159^4)/2)*(29*10^6)*($DY6/(($DT6^3)*(FE6^3))))*(((((3.14159^2)/24)-0.125)*$EC6)-$EA6/2))*$DS6*FE6+(((((3.14159^2)/16)+0.25)^2)*($DO6^2))-(((3.14159^4)/2)*(29*10^6)*($DY6/(($DT6^3)*(FE6^3))))*((((3.14159^4)/2)*(29*10^6)*($EB6/(($DT6^3)*(FE6^3))))+(((3.14159^2)/2)*$DQ6*($DW6/($DT6*FE6)))+(($DO6)*(((((3.14159^2)/16)-0.25)*$EC6)-$ED6))) ->  | FG6: =(2*((((3.14159^2)/24)+(1/8))^2)*($DS6^2)*(FE6)+(($DO6*$DS6/192)*((3.14159^2)+3)*((3.14159^2)+4))+(((3.14159^4))*(29*10^6)*($DY6/(($DT6^3)*(FE6^3))))*(((((3.14159^2)/24)-0.125)*$EC6)-$EA6/2)*$DS6+(((3.14159^4)*(3/2))*(29*10^6)*($DY6/(($DT6^3)*(FE6^4))))*((((3.14159^4)/2)*(29*10^6)*($EB6/(($DT6^3)*(FE6^3))))+(((3.14159^2)/2)*$DQ6*($DW6/($DT6*FE6)))+(($DO6)*(((((3.14159^2)/16)-0.25)*$EC6)-$ED6))))-((((3.14159^4)/2)*(29*10^6)*($DY6/(($DT6^3)*(FE6^3))))*((((3.14159^4)*(-3/2))*(29*10^6)*($EB6/(($DT6^3)*(FE6^4))))-(((3.14159^2)/2)*$DQ6*($DW6/($DT6*(FE6^2)))))) ->  | FH6: =FE6-(FF6/FG6) ->  | FI6: =((((3.14159^2/24)+0.125)^2)*($DS6^2)*(FH6^2))+((($DO6/192)*((3.14159^2)+3)*((3.14159^2)+4))-(((3.14159^4)/2)*(29*10^6)*($DY6/(($DT6^3)*(FH6^3))))*(((((3.14159^2)/24)-0.125)*$EC6)-$EA6/2))*$DS6*FH6+(((((3.14159^2)/16)+0.25)^2)*($DO6^2))-(((3.14159^4)/2)*(29*10^6)*($DY6/(($DT6^3)*(FH6^3))))*((((3.14159^4)/2)*(29*10^6)*($EB6/(($DT6^3)*(FH6^3))))+(((3.14159^2)/2)*$DQ6*($DW6/($DT6*FH6)))+(($DO6)*(((((3.14159^2)/16)-0.25)*$EC6)-$ED6))) ->  | FJ6: =(2*((((3.14159^2)/24)+(1/8))^2)*($DS6^2)*(FH6)+(($DO6*$DS6/192)*((3.14159^2)+3)*((3.14159^2)+4))+(((3.14159^4))*(29*10^6)*($DY6/(($DT6^3)*(FH6^3))))*(((((3.14159^2)/24)-0.125)*$EC6)-$EA6/2)*$DS6+(((3.14159^4)*(3/2))*(29*10^6)*($DY6/(($DT6^3)*(FH6^4))))*((((3.14159^4)/2)*(29*10^6)*($EB6/(($DT6^3)*(FH6^3))))+(((3.14159^2)/2)*$DQ6*($DW6/($DT6*FH6)))+(($DO6)*(((((3.14159^2)/16)-0.25)*$EC6)-$ED6))))-((((3.14159^4)/2)*(29*10^6)*($DY6/(($DT6^3)*(FH6^3))))*((((3.14159^4)*(-3/2))*(29*10^6)*($EB6/(($DT6^3)*(FH6^4))))-(((3.14159^2)/2)*$DQ6*($DW6/($DT6*(FH6^2)))))) ->  | FK6: =FH6-(FI6/FJ6) ->  | FL6: =((((3.14159^2/24)+0.125)^2)*($DS6^2)*(FK6^2))+((($DO6/192)*((3.14159^2)+3)*((3.14159^2)+4))-(((3.14159^4)/2)*(29*10^6)*($DY6/(($DT6^3)*(FK6^3))))*(((((3.14159^2)/24)-0.125)*$EC6)-$EA6/2))*$DS6*FK6+(((((3.14159^2)/16)+0.25)^2)*($DO6^2))-(((3.14159^4)/2)*(29*10^6)*($DY6/(($DT6^3)*(FK6^3))))*((((3.14159^4)/2)*(29*10^6)*($EB6/(($DT6^3)*(FK6^3))))+(((3.14159^2)/2)*$DQ6*($DW6/($DT6*FK6)))+(($DO6)*(((((3.14159^2)/16)-0.25)*$EC6)-$ED6))) ->  | FM6: =(2*((((3.14159^2)/24)+(1/8))^2)*($DS6^2)*(FK6)+(($DO6*$DS6/192)*((3.14159^2)+3)*((3.14159^2)+4))+(((3.14159^4))*(29*10^6)*($DY6/(($DT6^3)*(FK6^3))))*(((((3.14159^2)/24)-0.125)*$EC6)-$EA6/2)*$DS6+(((3.14159^4)*(3/2))*(29*10^6)*($DY6/(($DT6^3)*(FK6^4))))*((((3.14159^4)/2)*(29*10^6)*($EB6/(($DT6^3)*(FK6^3))))+(((3.14159^2)/2)*$DQ6*($DW6/($DT6*FK6)))+(($DO6)*(((((3.14159^2)/16)-0.25)*$EC6)-$ED6))))-((((3.14159^4)/2)*(29*10^6)*($DY6/(($DT6^3)*(FK6^3))))*((((3.14159^4)*(-3/2))*(29*10^6)*($EB6/(($DT6^3)*(FK6^4))))-(((3.14159^2)/2)*$DQ6*($DW6/($DT6*(FK6^2)))))) ->  | FN6: =FK6-(FL6/FM6) ->  | FO6: =((((3.14159^2/24)+0.125)^2)*($DS6^2)*(FN6^2))+((($DO6/192)*((3.14159^2)+3)*((3.14159^2)+4))-(((3.14159^4)/2)*(29*10^6)*($DY6/(($DT6^3)*(FN6^3))))*(((((3.14159^2)/24)-0.125)*$EC6)-$EA6/2))*$DS6*FN6+(((((3.14159^2)/16)+0.25)^2)*($DO6^2))-(((3.14159^4)/2)*(29*10^6)*($DY6/(($DT6^3)*(FN6^3))))*((((3.14159^4)/2)*(29*10^6)*($EB6/(($DT6^3)*(FN6^3))))+(((3.14159^2)/2)*$DQ6*($DW6/($DT6*FN6)))+(($DO6)*(((((3.14159^2)/16)-0.25)*$EC6)-$ED6))) ->  | FP6: =(2*((((3.14159^2)/24)+(1/8))^2)*($DS6^2)*(FN6)+(($DO6*$DS6/192)*((3.14159^2)+3)*((3.14159^2)+4))+(((3.14159^4))*(29*10^6)*($DY6/(($DT6^3)*(FN6^3))))*(((((3.14159^2)/24)-0.125)*$EC6)-$EA6/2)*$DS6+(((3.14159^4)*(3/2))*(29*10^6)*($DY6/(($DT6^3)*(FN6^4))))*((((3.14159^4)/2)*(29*10^6)*($EB6/(($DT6^3)*(FN6^3))))+(((3.14159^2)/2)*$DQ6*($DW6/($DT6*FN6)))+(($DO6)*(((((3.14159^2)/16)-0.25)*$EC6)-$ED6))))-((((3.14159^4)/2)*(29*10^6)*($DY6/(($DT6^3)*(FN6^3))))*((((3.14159^4)*(-3/2))*(29*10^6)*($EB6/(($DT6^3)*(FN6^4))))-(((3.14159^2)/2)*$DQ6*($DW6/($DT6*(FN6^2)))))) ->  | FQ6: =FN6-(FO6/FP6) ->  | FR6: =((((3.14159^2/24)+0.125)^2)*($DS6^2)*(FQ6^2))+((($DO6/192)*((3.14159^2)+3)*((3.14159^2)+4))-(((3.14159^4)/2)*(29*10^6)*($DY6/(($DT6^3)*(FQ6^3))))*(((((3.14159^2)/24)-0.125)*$EC6)-$EA6/2))*$DS6*FQ6+(((((3.14159^2)/16)+0.25)^2)*($DO6^2))-(((3.14159^4)/2)*(29*10^6)*($DY6/(($DT6^3)*(FQ6^3))))*((((3.14159^4)/2)*(29*10^6)*($EB6/(($DT6^3)*(FQ6^3))))+(((3.14159^2)/2)*$DQ6*($DW6/($DT6*FQ6)))+(($DO6)*(((((3.14159^2)/16)-0.25)*$EC6)-$ED6))) ->  | FS6: =(2*((((3.14159^2)/24)+(1/8))^2)*($DS6^2)*(FQ6)+(($DO6*$DS6/192)*((3.14159^2)+3)*((3.14159^2)+4))+(((3.14159^4))*(29*10^6)*($DY6/(($DT6^3)*(FQ6^3))))*(((((3.14159^2)/24)-0.125)*$EC6)-$EA6/2)*$DS6+(((3.14159^4)*(3/2))*(29*10^6)*($DY6/(($DT6^3)*(FQ6^4))))*((((3.14159^4)/2)*(29*10^6)*($EB6/(($DT6^3)*(FQ6^3))))+(((3.14159^2)/2)*$DQ6*($DW6/($DT6*FQ6)))+(($DO6)*(((((3.14159^2)/16)-0.25)*$EC6)-$ED6))))-((((3.14159^4)/2)*(29*10^6)*($DY6/(($DT6^3)*(FQ6^3))))*((((3.14159^4)*(-3/2))*(29*10^6)*($EB6/(($DT6^3)*(FQ6^4))))-(((3.14159^2)/2)*$DQ6*($DW6/($DT6*(FQ6^2)))))) ->  | FT6: =FQ6-(FR6/FS6) ->  | FU6: =((((3.14159^2/24)+0.125)^2)*($DS6^2)*(FT6^2))+((($DO6/192)*((3.14159^2)+3)*((3.14159^2)+4))-(((3.14159^4)/2)*(29*10^6)*($DY6/(($DT6^3)*(FT6^3))))*(((((3.14159^2)/24)-0.125)*$EC6)-$EA6/2))*$DS6*FT6+(((((3.14159^2)/16)+0.25)^2)*($DO6^2))-(((3.14159^4)/2)*(29*10^6)*($DY6/(($DT6^3)*(FT6^3))))*((((3.14159^4)/2)*(29*10^6)*($EB6/(($DT6^3)*(FT6^3))))+(((3.14159^2)/2)*$DQ6*($DW6/($DT6*FT6)))+(($DO6)*(((((3.14159^2)/16)-0.25)*$EC6)-$ED6))) ->  | FV6: =(2*((((3.14159^2)/24)+(1/8))^2)*($DS6^2)*(FT6)+(($DO6*$DS6/192)*((3.14159^2)+3)*((3.14159^2)+4))+(((3.14159^4))*(29*10^6)*($DY6/(($DT6^3)*(FT6^3))))*(((((3.14159^2)/24)-0.125)*$EC6)-$EA6/2)*$DS6+(((3.14159^4)*(3/2))*(29*10^6)*($DY6/(($DT6^3)*(FT6^4))))*((((3.14159^4)/2)*(29*10^6)*($EB6/(($DT6^3)*(FT6^3))))+(((3.14159^2)/2)*$DQ6*($DW6/($DT6*FT6)))+(($DO6)*(((((3.14159^2)/16)-0.25)*$EC6)-$ED6))))-((((3.14159^4)/2)*(29*10^6)*($DY6/(($DT6^3)*(FT6^3))))*((((3.14159^4)*(-3/2))*(29*10^6)*($EB6/(($DT6^3)*(FT6^4))))-(((3.14159^2)/2)*$DQ6*($DW6/($DT6*(FT6^2)))))) ->  | FW6: =FT6-(FU6/FV6) ->  | FX6: =((((3.14159^2/24)+0.125)^2)*($DS6^2)*(FW6^2))+((($DO6/192)*((3.14159^2)+3)*((3.14159^2)+4))-(((3.14159^4)/2)*(29*10^6)*($DY6/(($DT6^3)*(FW6^3))))*(((((3.14159^2)/24)-0.125)*$EC6)-$EA6/2))*$DS6*FW6+(((((3.14159^2)/16)+0.25)^2)*($DO6^2))-(((3.14159^4)/2)*(29*10^6)*($DY6/(($DT6^3)*(FW6^3))))*((((3.14159^4)/2)*(29*10^6)*($EB6/(($DT6^3)*(FW6^3))))+(((3.14159^2)/2)*$DQ6*($DW6/($DT6*FW6)))+(($DO6)*(((((3.14159^2)/16)-0.25)*$EC6)-$ED6))) ->  | FY6: =(2*((((3.14159^2)/24)+(1/8))^2)*($DS6^2)*(FW6)+(($DO6*$DS6/192)*((3.14159^2)+3)*((3.14159^2)+4))+(((3.14159^4))*(29*10^6)*($DY6/(($DT6^3)*(FW6^3))))*(((((3.14159^2)/24)-0.125)*$EC6)-$EA6/2)*$DS6+(((3.14159^4)*(3/2))*(29*10^6)*($DY6/(($DT6^3)*(FW6^4))))*((((3.14159^4)/2)*(29*10^6)*($EB6/(($DT6^3)*(FW6^3))))+(((3.14159^2)/2)*$DQ6*($DW6/($DT6*FW6)))+(($DO6)*(((((3.14159^2)/16)-0.25)*$EC6)-$ED6))))-((((3.14159^4)/2)*(29*10^6)*($DY6/(($DT6^3)*(FW6^3))))*((((3.14159^4)*(-3/2))*(29*10^6)*($EB6/(($DT6^3)*(FW6^4))))-(((3.14159^2)/2)*$DQ6*($DW6/($DT6*(FW6^2)))))) ->  | FZ6: =FW6-(FX6/FY6) ->  | GA6: =((((3.14159^2/24)+0.125)^2)*($DS6^2)*(FZ6^2))+((($DO6/192)*((3.14159^2)+3)*((3.14159^2)+4))-(((3.14159^4)/2)*(29*10^6)*($DY6/(($DT6^3)*(FZ6^3))))*(((((3.14159^2)/24)-0.125)*$EC6)-$EA6/2))*$DS6*FZ6+(((((3.14159^2)/16)+0.25)^2)*($DO6^2))-(((3.14159^4)/2)*(29*10^6)*($DY6/(($DT6^3)*(FZ6^3))))*((((3.14159^4)/2)*(29*10^6)*($EB6/(($DT6^3)*(FZ6^3))))+(((3.14159^2)/2)*$DQ6*($DW6/($DT6*FZ6)))+(($DO6)*(((((3.14159^2)/16)-0.25)*$EC6)-$ED6))) ->  | GB6: =(2*((((3.14159^2)/24)+(1/8))^2)*($DS6^2)*(FZ6)+(($DO6*$DS6/192)*((3.14159^2)+3)*((3.14159^2)+4))+(((3.14159^4))*(29*10^6)*($DY6/(($DT6^3)*(FZ6^3))))*(((((3.14159^2)/24)-0.125)*$EC6)-$EA6/2)*$DS6+(((3.14159^4)*(3/2))*(29*10^6)*($DY6/(($DT6^3)*(FZ6^4))))*((((3.14159^4)/2)*(29*10^6)*($EB6/(($DT6^3)*(FZ6^3))))+(((3.14159^2)/2)*$DQ6*($DW6/($DT6*FZ6)))+(($DO6)*(((((3.14159^2)/16)-0.25)*$EC6)-$ED6))))-((((3.14159^4)/2)*(29*10^6)*($DY6/(($DT6^3)*(FZ6^3))))*((((3.14159^4)*(-3/2))*(29*10^6)*($EB6/(($DT6^3)*(FZ6^4))))-(((3.14159^2)/2)*$DQ6*($DW6/($DT6*(FZ6^2)))))) ->  | GC6: =FZ6-(GA6/GB6) ->  | GD6: =((((3.14159^2/24)+0.125)^2)*($DS6^2)*(GC6^2))+((($DO6/192)*((3.14159^2)+3)*((3.14159^2)+4))-(((3.14159^4)/2)*(29*10^6)*($DY6/(($DT6^3)*(GC6^3))))*(((((3.14159^2)/24)-0.125)*$EC6)-$EA6/2))*$DS6*GC6+(((((3.14159^2)/16)+0.25)^2)*($DO6^2))-(((3.14159^4)/2)*(29*10^6)*($DY6/(($DT6^3)*(GC6^3))))*((((3.14159^4)/2)*(29*10^6)*($EB6/(($DT6^3)*(GC6^3))))+(((3.14159^2)/2)*$DQ6*($DW6/($DT6*GC6)))+(($DO6)*(((((3.14159^2)/16)-0.25)*$EC6)-$ED6))) ->  | GE6: =(2*((((3.14159^2)/24)+(1/8))^2)*($DS6^2)*(GC6)+(($DO6*$DS6/192)*((3.14159^2)+3)*((3.14159^2)+4))+(((3.14159^4))*(29*10^6)*($DY6/(($DT6^3)*(GC6^3))))*(((((3.14159^2)/24)-0.125)*$EC6)-$EA6/2)*$DS6+(((3.14159^4)*(3/2))*(29*10^6)*($DY6/(($DT6^3)*(GC6^4))))*((((3.14159^4)/2)*(29*10^6)*($EB6/(($DT6^3)*(GC6^3))))+(((3.14159^2)/2)*$DQ6*($DW6/($DT6*GC6)))+(($DO6)*(((((3.14159^2)/16)-0.25)*$EC6)-$ED6))))-((((3.14159^4)/2)*(29*10^6)*($DY6/(($DT6^3)*(GC6^3))))*((((3.14159^4)*(-3/2))*(29*10^6)*($EB6/(($DT6^3)*(GC6^4))))-(((3.14159^2)/2)*$DQ6*($DW6/($DT6*(GC6^2)))))) ->  | GF6: =GC6-(GD6/GE6) ->  | GG6: =((((3.14159^2/24)+0.125)^2)*($DS6^2)*(GF6^2))+((($DO6/192)*((3.14159^2)+3)*((3.14159^2)+4))-(((3.14159^4)/2)*(29*10^6)*($DY6/(($DT6^3)*(GF6^3))))*(((((3.14159^2)/24)-0.125)*$EC6)-$EA6/2))*$DS6*GF6+(((((3.14159^2)/16)+0.25)^2)*($DO6^2))-(((3.14159^4)/2)*(29*10^6)*($DY6/(($DT6^3)*(GF6^3))))*((((3.14159^4)/2)*(29*10^6)*($EB6/(($DT6^3)*(GF6^3))))+(((3.14159^2)/2)*$DQ6*($DW6/($DT6*GF6)))+(($DO6)*(((((3.14159^2)/16)-0.25)*$EC6)-$ED6))) ->  | GH6: =(2*((((3.14159^2)/24)+(1/8))^2)*($DS6^2)*(GF6)+(($DO6*$DS6/192)*((3.14159^2)+3)*((3.14159^2)+4))+(((3.14159^4))*(29*10^6)*($DY6/(($DT6^3)*(GF6^3))))*(((((3.14159^2)/24)-0.125)*$EC6)-$EA6/2)*$DS6+(((3.14159^4)*(3/2))*(29*10^6)*($DY6/(($DT6^3)*(GF6^4))))*((((3.14159^4)/2)*(29*10^6)*($EB6/(($DT6^3)*(GF6^3))))+(((3.14159^2)/2)*$DQ6*($DW6/($DT6*GF6)))+(($DO6)*(((((3.14159^2)/16)-0.25)*$EC6)-$ED6))))-((((3.14159^4)/2)*(29*10^6)*($DY6/(($DT6^3)*(GF6^3))))*((((3.14159^4)*(-3/2))*(29*10^6)*($EB6/(($DT6^3)*(GF6^4))))-(((3.14159^2)/2)*$DQ6*($DW6/($DT6*(GF6^2)))))) ->  | GI6: =GF6-(GG6/GH6) ->  | GJ6: =((((3.14159^2/24)+0.125)^2)*($DS6^2)*(GI6^2))+((($DO6/192)*((3.14159^2)+3)*((3.14159^2)+4))-(((3.14159^4)/2)*(29*10^6)*($DY6/(($DT6^3)*(GI6^3))))*(((((3.14159^2)/24)-0.125)*$EC6)-$EA6/2))*$DS6*GI6+(((((3.14159^2)/16)+0.25)^2)*($DO6^2))-(((3.14159^4)/2)*(29*10^6)*($DY6/(($DT6^3)*(GI6^3))))*((((3.14159^4)/2)*(29*10^6)*($EB6/(($DT6^3)*(GI6^3))))+(((3.14159^2)/2)*$DQ6*($DW6/($DT6*GI6)))+(($DO6)*(((((3.14159^2)/16)-0.25)*$EC6)-$ED6))) ->  | GK6: =(2*((((3.14159^2)/24)+(1/8))^2)*($DS6^2)*(GI6)+(($DO6*$DS6/192)*((3.14159^2)+3)*((3.14159^2)+4))+(((3.14159^4))*(29*10^6)*($DY6/(($DT6^3)*(GI6^3))))*(((((3.14159^2)/24)-0.125)*$EC6)-$EA6/2)*$DS6+(((3.14159^4)*(3/2))*(29*10^6)*($DY6/(($DT6^3)*(GI6^4))))*((((3.14159^4)/2)*(29*10^6)*($EB6/(($DT6^3)*(GI6^3))))+(((3.14159^2)/2)*$DQ6*($DW6/($DT6*GI6)))+(($DO6)*(((((3.14159^2)/16)-0.25)*$EC6)-$ED6))))-((((3.14159^4)/2)*(29*10^6)*($DY6/(($DT6^3)*(GI6^3))))*((((3.14159^4)*(-3/2))*(29*10^6)*($EB6/(($DT6^3)*(GI6^4))))-(((3.14159^2)/2)*$DQ6*($DW6/($DT6*(GI6^2)))))) ->  | GL6: =GI6-(GJ6/GK6) ->  | GM6: =((((3.14159^2/24)+0.125)^2)*($DS6^2)*(GL6^2))+((($DO6/192)*((3.14159^2)+3)*((3.14159^2)+4))-(((3.14159^4)/2)*(29*10^6)*($DY6/(($DT6^3)*(GL6^3))))*(((((3.14159^2)/24)-0.125)*$EC6)-$EA6/2))*$DS6*GL6+(((((3.14159^2)/16)+0.25)^2)*($DO6^2))-(((3.14159^4)/2)*(29*10^6)*($DY6/(($DT6^3)*(GL6^3))))*((((3.14159^4)/2)*(29*10^6)*($EB6/(($DT6^3)*(GL6^3))))+(((3.14159^2)/2)*$DQ6*($DW6/($DT6*GL6)))+(($DO6)*(((((3.14159^2)/16)-0.25)*$EC6)-$ED6))) ->  | GN6: =(2*((((3.14159^2)/24)+(1/8))^2)*($DS6^2)*(GL6)+(($DO6*$DS6/192)*((3.14159^2)+3)*((3.14159^2)+4))+(((3.14159^4))*(29*10^6)*($DY6/(($DT6^3)*(GL6^3))))*(((((3.14159^2)/24)-0.125)*$EC6)-$EA6/2)*$DS6+(((3.14159^4)*(3/2))*(29*10^6)*($DY6/(($DT6^3)*(GL6^4))))*((((3.14159^4)/2)*(29*10^6)*($EB6/(($DT6^3)*(GL6^3))))+(((3.14159^2)/2)*$DQ6*($DW6/($DT6*GL6)))+(($DO6)*(((((3.14159^2)/16)-0.25)*$EC6)-$ED6))))-((((3.14159^4)/2)*(29*10^6)*($DY6/(($DT6^3)*(GL6^3))))*((((3.14159^4)*(-3/2))*(29*10^6)*($EB6/(($DT6^3)*(GL6^4))))-(((3.14159^2)/2)*$DQ6*($DW6/($DT6*(GL6^2)))))) ->  | GO6: =GL6-(GM6/GN6) ->  | GP6: =((((3.14159^2/24)+0.125)^2)*($DS6^2)*(GO6^2))+((($DO6/192)*((3.14159^2)+3)*((3.14159^2)+4))-(((3.14159^4)/2)*(29*10^6)*($DY6/(($DT6^3)*(GO6^3))))*(((((3.14159^2)/24)-0.125)*$EC6)-$EA6/2))*$DS6*GO6+(((((3.14159^2)/16)+0.25)^2)*($DO6^2))-(((3.14159^4)/2)*(29*10^6)*($DY6/(($DT6^3)*(GO6^3))))*((((3.14159^4)/2)*(29*10^6)*($EB6/(($DT6^3)*(GO6^3))))+(((3.14159^2)/2)*$DQ6*($DW6/($DT6*GO6)))+(($DO6)*(((((3.14159^2)/16)-0.25)*$EC6)-$ED6))) ->  | GQ6: =(2*((((3.14159^2)/24)+(1/8))^2)*($DS6^2)*(GO6)+(($DO6*$DS6/192)*((3.14159^2)+3)*((3.14159^2)+4))+(((3.14159^4))*(29*10^6)*($DY6/(($DT6^3)*(GO6^3))))*(((((3.14159^2)/24)-0.125)*$EC6)-$EA6/2)*$DS6+(((3.14159^4)*(3/2))*(29*10^6)*($DY6/(($DT6^3)*(GO6^4))))*((((3.14159^4)/2)*(29*10^6)*($EB6/(($DT6^3)*(GO6^3))))+(((3.14159^2)/2)*$DQ6*($DW6/($DT6*GO6)))+(($DO6)*(((((3.14159^2)/16)-0.25)*$EC6)-$ED6))))-((((3.14159^4)/2)*(29*10^6)*($DY6/(($DT6^3)*(GO6^3))))*((((3.14159^4)*(-3/2))*(29*10^6)*($EB6/(($DT6^3)*(GO6^4))))-(((3.14159^2)/2)*$DQ6*($DW6/($DT6*(GO6^2)))))) ->  | GR6: =GO6-(GP6/GQ6) ->  | GS6: =((((3.14159^2/24)+0.125)^2)*($DS6^2)*(GR6^2))+((($DO6/192)*((3.14159^2)+3)*((3.14159^2)+4))-(((3.14159^4)/2)*(29*10^6)*($DY6/(($DT6^3)*(GR6^3))))*(((((3.14159^2)/24)-0.125)*$EC6)-$EA6/2))*$DS6*GR6+(((((3.14159^2)/16)+0.25)^2)*($DO6^2))-(((3.14159^4)/2)*(29*10^6)*($DY6/(($DT6^3)*(GR6^3))))*((((3.14159^4)/2)*(29*10^6)*($EB6/(($DT6^3)*(GR6^3))))+(((3.14159^2)/2)*$DQ6*($DW6/($DT6*GR6)))+(($DO6)*(((((3.14159^2)/16)-0.25)*$EC6)-$ED6))) ->  | GT6: =(2*((((3.14159^2)/24)+(1/8))^2)*($DS6^2)*(GR6)+(($DO6*$DS6/192)*((3.14159^2)+3)*((3.14159^2)+4))+(((3.14159^4))*(29*10^6)*($DY6/(($DT6^3)*(GR6^3))))*(((((3.14159^2)/24)-0.125)*$EC6)-$EA6/2)*$DS6+(((3.14159^4)*(3/2))*(29*10^6)*($DY6/(($DT6^3)*(GR6^4))))*((((3.14159^4)/2)*(29*10^6)*($EB6/(($DT6^3)*(GR6^3))))+(((3.14159^2)/2)*$DQ6*($DW6/($DT6*GR6)))+(($DO6)*(((((3.14159^2)/16)-0.25)*$EC6)-$ED6))))-((((3.14159^4)/2)*(29*10^6)*($DY6/(($DT6^3)*(GR6^3))))*((((3.14159^4)*(-3/2))*(29*10^6)*($EB6/(($DT6^3)*(GR6^4))))-(((3.14159^2)/2)*$DQ6*($DW6/($DT6*(GR6^2)))))) ->  | GU6: =GR6-(GS6/GT6) ->  | GV6: =((((3.14159^2/24)+0.125)^2)*($DS6^2)*(GU6^2))+((($DO6/192)*((3.14159^2)+3)*((3.14159^2)+4))-(((3.14159^4)/2)*(29*10^6)*($DY6/(($DT6^3)*(GU6^3))))*(((((3.14159^2)/24)-0.125)*$EC6)-$EA6/2))*$DS6*GU6+(((((3.14159^2)/16)+0.25)^2)*($DO6^2))-(((3.14159^4)/2)*(29*10^6)*($DY6/(($DT6^3)*(GU6^3))))*((((3.14159^4)/2)*(29*10^6)*($EB6/(($DT6^3)*(GU6^3))))+(((3.14159^2)/2)*$DQ6*($DW6/($DT6*GU6)))+(($DO6)*(((((3.14159^2)/16)-0.25)*$EC6)-$ED6))) ->  | GW6: =(2*((((3.14159^2)/24)+(1/8))^2)*($DS6^2)*(GU6)+(($DO6*$DS6/192)*((3.14159^2)+3)*((3.14159^2)+4))+(((3.14159^4))*(29*10^6)*($DY6/(($DT6^3)*(GU6^3))))*(((((3.14159^2)/24)-0.125)*$EC6)-$EA6/2)*$DS6+(((3.14159^4)*(3/2))*(29*10^6)*($DY6/(($DT6^3)*(GU6^4))))*((((3.14159^4)/2)*(29*10^6)*($EB6/(($DT6^3)*(GU6^3))))+(((3.14159^2)/2)*$DQ6*($DW6/($DT6*GU6)))+(($DO6)*(((((3.14159^2)/16)-0.25)*$EC6)-$ED6))))-((((3.14159^4)/2)*(29*10^6)*($DY6/(($DT6^3)*(GU6^3))))*((((3.14159^4)*(-3/2))*(29*10^6)*($EB6/(($DT6^3)*(GU6^4))))-(((3.14159^2)/2)*$DQ6*($DW6/($DT6*(GU6^2)))))) ->  | GX6: =GU6-(GV6/GW6) ->  | GY6: =((((3.14159^2/24)+0.125)^2)*($DS6^2)*(GX6^2))+((($DO6/192)*((3.14159^2)+3)*((3.14159^2)+4))-(((3.14159^4)/2)*(29*10^6)*($DY6/(($DT6^3)*(GX6^3))))*(((((3.14159^2)/24)-0.125)*$EC6)-$EA6/2))*$DS6*GX6+(((((3.14159^2)/16)+0.25)^2)*($DO6^2))-(((3.14159^4)/2)*(29*10^6)*($DY6/(($DT6^3)*(GX6^3))))*((((3.14159^4)/2)*(29*10^6)*($EB6/(($DT6^3)*(GX6^3))))+(((3.14159^2)/2)*$DQ6*($DW6/($DT6*GX6)))+(($DO6)*(((((3.14159^2)/16)-0.25)*$EC6)-$ED6))) ->  | GZ6: =(2*((((3.14159^2)/24)+(1/8))^2)*($DS6^2)*(GX6)+(($DO6*$DS6/192)*((3.14159^2)+3)*((3.14159^2)+4))+(((3.14159^4))*(29*10^6)*($DY6/(($DT6^3)*(GX6^3))))*(((((3.14159^2)/24)-0.125)*$EC6)-$EA6/2)*$DS6+(((3.14159^4)*(3/2))*(29*10^6)*($DY6/(($DT6^3)*(GX6^4))))*((((3.14159^4)/2)*(29*10^6)*($EB6/(($DT6^3)*(GX6^3))))+(((3.14159^2)/2)*$DQ6*($DW6/($DT6*GX6)))+(($DO6)*(((((3.14159^2)/16)-0.25)*$EC6)-$ED6))))-((((3.14159^4)/2)*(29*10^6)*($DY6/(($DT6^3)*(GX6^3))))*((((3.14159^4)*(-3/2))*(29*10^6)*($EB6/(($DT6^3)*(GX6^4))))-(((3.14159^2)/2)*$DQ6*($DW6/($DT6*(GX6^2)))))) ->  | HA6: =GX6-(GY6/GZ6) ->  | HB6: =((((3.14159^2/24)+0.125)^2)*($DS6^2)*(HA6^2))+((($DO6/192)*((3.14159^2)+3)*((3.14159^2)+4))-(((3.14159^4)/2)*(29*10^6)*($DY6/(($DT6^3)*(HA6^3))))*(((((3.14159^2)/24)-0.125)*$EC6)-$EA6/2))*$DS6*HA6+(((((3.14159^2)/16)+0.25)^2)*($DO6^2))-(((3.14159^4)/2)*(29*10^6)*($DY6/(($DT6^3)*(HA6^3))))*((((3.14159^4)/2)*(29*10^6)*($EB6/(($DT6^3)*(HA6^3))))+(((3.14159^2)/2)*$DQ6*($DW6/($DT6*HA6)))+(($DO6)*(((((3.14159^2)/16)-0.25)*$EC6)-$ED6))) ->  | HC6: =(2*((((3.14159^2)/24)+(1/8))^2)*($DS6^2)*(HA6)+(($DO6*$DS6/192)*((3.14159^2)+3)*((3.14159^2)+4))+(((3.14159^4))*(29*10^6)*($DY6/(($DT6^3)*(HA6^3))))*(((((3.14159^2)/24)-0.125)*$EC6)-$EA6/2)*$DS6+(((3.14159^4)*(3/2))*(29*10^6)*($DY6/(($DT6^3)*(HA6^4))))*((((3.14159^4)/2)*(29*10^6)*($EB6/(($DT6^3)*(HA6^3))))+(((3.14159^2)/2)*$DQ6*($DW6/($DT6*HA6)))+(($DO6)*(((((3.14159^2)/16)-0.25)*$EC6)-$ED6))))-((((3.14159^4)/2)*(29*10^6)*($DY6/(($DT6^3)*(HA6^3))))*((((3.14159^4)*(-3/2))*(29*10^6)*($EB6/(($DT6^3)*(HA6^4))))-(((3.14159^2)/2)*$DQ6*($DW6/($DT6*(HA6^2)))))) ->  | HD6: =HA6-(HB6/HC6) ->  | HE6: =((((3.14159^2/24)+0.125)^2)*($DS6^2)*(HD6^2))+((($DO6/192)*((3.14159^2)+3)*((3.14159^2)+4))-(((3.14159^4)/2)*(29*10^6)*($DY6/(($DT6^3)*(HD6^3))))*(((((3.14159^2)/24)-0.125)*$EC6)-$EA6/2))*$DS6*HD6+(((((3.14159^2)/16)+0.25)^2)*($DO6^2))-(((3.14159^4)/2)*(29*10^6)*($DY6/(($DT6^3)*(HD6^3))))*((((3.14159^4)/2)*(29*10^6)*($EB6/(($DT6^3)*(HD6^3))))+(((3.14159^2)/2)*$DQ6*($DW6/($DT6*HD6)))+(($DO6)*(((((3.14159^2)/16)-0.25)*$EC6)-$ED6))) ->  | HF6: =(2*((((3.14159^2)/24)+(1/8))^2)*($DS6^2)*(HD6)+(($DO6*$DS6/192)*((3.14159^2)+3)*((3.14159^2)+4))+(((3.14159^4))*(29*10^6)*($DY6/(($DT6^3)*(HD6^3))))*(((((3.14159^2)/24)-0.125)*$EC6)-$EA6/2)*$DS6+(((3.14159^4)*(3/2))*(29*10^6)*($DY6/(($DT6^3)*(HD6^4))))*((((3.14159^4)/2)*(29*10^6)*($EB6/(($DT6^3)*(HD6^3))))+(((3.14159^2)/2)*$DQ6*($DW6/($DT6*HD6)))+(($DO6)*(((((3.14159^2)/16)-0.25)*$EC6)-$ED6))))-((((3.14159^4)/2)*(29*10^6)*($DY6/(($DT6^3)*(HD6^3))))*((((3.14159^4)*(-3/2))*(29*10^6)*($EB6/(($DT6^3)*(HD6^4))))-(((3.14159^2)/2)*$DQ6*($DW6/($DT6*(HD6^2)))))) ->  | HG6: =HD6-(HE6/HF6) ->  | HH6: =IF(ROUNDDOWN((INPUT!$C$7*12)/(HG6+8),0)>0,ROUNDDOWN((INPUT!$C$7*12)/(HG6+8),0),0) -> 
E7: 10 | F7: 20 | G7: =G6 -> 1 | H7: 0.526301314 | I7: 3 | J7: 1212 | K7: 1.25 | L7: 0.125 | M7: 0.297 | N7: 0.359 | O7: 0.044 | P7: 0.018 | Q7: 1 | R7: 0.385 | S7: 0.9412912133 | T7: 0.246 | U7: =$B$6-MAX(BC!$B$21,BC!$F$21)-TC!N7 ->  | W7: 0.25 | X7: =X6 -> 0.167 | Y7: 1.75 | Z7: 0 | AH7: 46.75324675 | AI7: 38.24533735 | AJ7: 48.7804878 | AK7: 48.7804878 | AL7: 120283.133 | AM7: 42015.45538 | AN7: 130940.3382 | AR7: 53459.17024 | AS7: 33803.20765 | AW7: =PANELS!$I$27-2 -> 23 | AX7: =PANELS!$I$30 -> 23 | AY7: 24 | AZ7: =PANELS!$I$36-2 -> 28 | BH7: =BF7/(PROPS!AB64*2) ->  | BI7: 1 | BJ7: 1.043478261 | BK7: 0.4188111889 | BN7: =(BL7*(PROPS!AC64))/(2*PROPS!AK64) ->  | BU7: =(BS7*(N7))/(2*PROPS!AK64) ->  | BV7: 93.49593496 | BW7: =((AW7)/(3.14159*PROPS!AQ64)*(($B$8/(29*(10)^3))^0.5)) ->  | BX7: 26386.90993 | BY7: =IF(BW7*(PROPS!AA64^0.5)<=1.5,(PROPS!AA64*$B$8*1000)*(0.658^(PROPS!AA64*(BW7^2))),(0.877*$B$8*1000)/((BW7)^2)) ->  | BZ7: 32742.47856 | CA7: 80197.86312 | CE7: =IF(BH7/($B$19*BY7)>=0.2,(BH7/($B$19*BY7)+((CC7*BU7)/((1-(BH7/CA7))*PROPS!AA64*$B$19*($B$8*1000)))*(8/9)),(BH7/(2*$B$19*BY7)+((CC7*BU7)/((1-(BH7/CA7))*PROPS!AA64*$B$19*($B$8*1000))))) ->  | CZ7: =IF(AND(Z7+AG7+AQ7+BR7+CG7+CR7+CX7=7,W7+K7<=PROPS!$A$71),PROPS!O64,"") ->  | DC7: 0.594 | DD7: 0.125 | DE7: 0.526301314 | DF7: 0.359 | DG7: 1.25 | DH7: =BC!$F$23 ->  | DI7: =BC!$F$27 ->  | DJ7: =2*((BC!$F$26/2)+((BC!$F$23/2)*(BC!$F$21+(G7/2))^2)) ->  | DK7: =BC!$F$21 ->  | DL7: =BC!$F$28 ->  | DM7: =INPUT!$C$7*12 -> 480 | DN7: =INPUT!$C$8 -> 24 | DO7: =(1.2*INPUT!$I$22)/(0.8*1*1*0.9) -> 416.6666667 | DP7: 29000000 | DQ7: 11165000 | DR7: 3.14159 | DS7: =1.3*(BC!$F$25+(0.283565*M7*24*INPUT!$C$7))/(INPUT!$C$7*12) ->  | DT7: =INPUT!$I$23 -> 0.85 | EE7: 0.7514275928 | EK7: 160.0195063 | EL7: 3 | EM7: 128 | EN7: 19109.09242 | EO7: 1 | EP7: 3 | EQ7: 128 | ER7: 19109.09242 | ES7: 1 | EV7: 188.2582427 | HH7: =IF(ROUNDDOWN((INPUT!$C$7*12)/(HG7+8),0)>0,ROUNDDOWN((INPUT!$C$7*12)/(HG7+8),0),0) -> 
A8: Fy(ksi) | B8: =INPUT!C11 -> 50 | E8: 12 | F8: 20 | G8: 1 | H8: 0.66545175 | I8: 4 | J8: 1510 | K8: 1.5 | L8: 0.109 | M8: 0.315 | N8: 0.415 | O8: 0.069 | P8: 0.028 | Q8: 0.905032021 | R8: 0.467 | S8: 1.027751244 | T8: 0.297 | U8: =$B$6-MAX(BC!$B$21,BC!$F$21)-TC!N8 ->  | W8: 0.25 | X8: 0.167 | Y8: 1.75 | Z8: 0 | AH8: 38.54389722 | AI8: 35.02793134 | AJ8: 40.4040404 | AK8: 40.4040404 | AL8: 175326.4406 | AM8: 40617.96974 | AN8: 192657.4291 | AR8: 77922.86251 | AS8: 35487.3475 | AW8: =PANELS!$I$27-2 -> 23 | AX8: =PANELS!$I$30 -> 23 | AY8: 24 | AZ8: =PANELS!$I$36-2 -> 28 | BH8: =BF8/(PROPS!AB65*2) ->  | BI8: 1 | BJ8: 1.043478261 | BK8: 0.4188111889 | BN8: =(BL8*(PROPS!AC65))/(2*PROPS!AK65) ->  | BU8: =(BS8*(N8))/(2*PROPS!AK65) ->  | BV8: 77.44107744 | BW8: =((AW8)/(3.14159*PROPS!AQ65)*(($B$8/(29*(10)^3))^0.5)) ->  | BX8: 30428.72627 | BY8: =IF(BW8*(PROPS!AA65^0.5)<=1.5,(PROPS!AA65*$B$8*1000)*(0.658^(PROPS!AA65*(BW8^2))),(0.877*$B$8*1000)/((BW8)^2)) ->  | BZ8: 47725.91201 | CA8: 117998.1229 | CE8: =IF(BH8/($B$19*BY8)>=0.2,(BH8/($B$19*BY8)+((CC8*BU8)/((1-(BH8/CA8))*PROPS!AA65*$B$19*($B$8*1000)))*(8/9)),(BH8/(2*$B$19*BY8)+((CC8*BU8)/((1-(BH8/CA8))*PROPS!AA65*$B$19*($B$8*1000))))) ->  | CZ8: =IF(AND(Z8+AG8+AQ8+BR8+CG8+CR8+CX8=7,W8+K8<=PROPS!$A$71),PROPS!O65,"") ->  | DC8: 0.63 | DD8: 0.109 | DE8: 0.66545175 | DF8: 0.415 | DG8: 1.5 | DH8: =BC!$F$23 ->  | DI8: =BC!$F$27 ->  | DJ8: =2*((BC!$F$26/2)+((BC!$F$23/2)*(BC!$F$21+(G8/2))^2)) ->  | DK8: =BC!$F$21 ->  | DL8: =BC!$F$28 ->  | DM8: =INPUT!$C$7*12 -> 480 | DN8: =INPUT!$C$8 -> 24 | DO8: =(1.2*INPUT!$I$22)/(0.8*1*1*0.9) -> 416.6666667 | DP8: 29000000 | DQ8: 11165000 | DR8: 3.14159 | DS8: =1.3*(BC!$F$25+(0.283565*M8*24*INPUT!$C$7))/(INPUT!$C$7*12) ->  | DT8: =INPUT!$I$23 -> 0.85 | EE8: 0.7514275928 | EK8: 174.7177114 | EL8: 3 | EM8: 128 | EN8: 22780.75291 | EO8: 1 | EP8: 3 | EQ8: 128 | ER8: 22780.75291 | ES8: 1 | EV8: 205.5502488 | HH8: =IF(ROUNDDOWN((INPUT!$C$7*12)/(HG8+8),0)>0,ROUNDDOWN((INPUT!$C$7*12)/(HG8+8),0),0) -> 
E9: 14 | F9: 20 | G9: 1 | H9: 0.7532512 | I9: 5 | J9: 1512 | K9: 1.5 | L9: 0.123 | M9: 0.354 | N9: 0.42 | O9: 0.077 | P9: 0.031 | Q9: 0.954540572 | R9: 0.485 | S9: 1.031462129 | T9: 0.296 | U9: =$B$6-MAX(BC!$B$21,BC!$F$21)-TC!N9 ->  | W9: 0.25 | X9: 0.167 | Y9: 1.75 | Z9: 0 | AH9: 37.11340206 | AI9: 34.90191154 | AJ9: 40.54054054 | AK9: 40.54054054 | AL9: 174147.7788 | AM9: 42554.67647 | AN9: 207795.1834 | AR9: 77399.01282 | AS9: 36870.23564 | AW9: =PANELS!$I$27-2 -> 23 | AX9: =PANELS!$I$30 -> 23 | AY9: 24 | AZ9: =PANELS!$I$36-2 -> 28 | BH9: =BF9/(PROPS!AB66*2) ->  | BI9: 1 | BJ9: 1.043478261 | BK9: 0.4188111889 | BN9: =(BL9*(PROPS!AC66))/(2*PROPS!AK66) ->  | BU9: =(BS9*(N9))/(2*PROPS!AK66) ->  | BV9: 77.7027027 | BW9: =((AW9)/(3.14159*PROPS!AQ66)*(($B$8/(29*(10)^3))^0.5)) ->  | BX9: 31315.23901 | BY9: =IF(BW9*(PROPS!AA66^0.5)<=1.5,(PROPS!AA66*$B$8*1000)*(0.658^(PROPS!AA66*(BW9^2))),(0.877*$B$8*1000)/((BW9)^2)) ->  | BZ9: 47405.06645 | CA9: 127269.6397 | CE9: =IF(BH9/($B$19*BY9)>=0.2,(BH9/($B$19*BY9)+((CC9*BU9)/((1-(BH9/CA9))*PROPS!AA66*$B$19*($B$8*1000)))*(8/9)),(BH9/(2*$B$19*BY9)+((CC9*BU9)/((1-(BH9/CA9))*PROPS!AA66*$B$19*($B$8*1000))))) ->  | CZ9: =IF(AND(Z9+AG9+AQ9+BR9+CG9+CR9+CX9=7,W9+K9<=PROPS!$A$71),PROPS!O66,"") ->  | DC9: 0.708 | DD9: 0.123 | DE9: 0.7532512 | DF9: 0.42 | DG9: 1.5 | DH9: =BC!$F$23 ->  | DI9: =BC!$F$27 ->  | DJ9: =2*((BC!$F$26/2)+((BC!$F$23/2)*(BC!$F$21+(G9/2))^2)) ->  | DK9: =BC!$F$21 ->  | DL9: =BC!$F$28 ->  | DM9: =INPUT!$C$7*12 -> 480 | DN9: =INPUT!$C$8 -> 24 | DO9: =(1.2*INPUT!$I$22)/(0.8*1*1*0.9) -> 416.6666667 | DP9: 29000000 | DQ9: 11165000 | DR9: 3.14159 | DS9: =1.3*(BC!$F$25+(0.283565*M9*24*INPUT!$C$7))/(INPUT!$C$7*12) ->  | DT9: =INPUT!$I$23 -> 0.85 | EE9: 0.7514275928 | EK9: 175.348562 | EL9: 3 | EM9: 128 | EN9: 22945.55813 | EO9: 1 | EP9: 3 | EQ9: 128 | ER9: 22945.55813 | ES9: 1 | EV9: 206.2924259 | HH9: =IF(ROUNDDOWN((INPUT!$C$7*12)/(HG9+8),0)>0,ROUNDDOWN((INPUT!$C$7*12)/(HG9+8),0),0) -> 
A10: Stud Dia, (in) | B10: =INPUT!H12 -> 0.5 | E10: 16 | F10: 24 | G10: 1 | H10: 0.84740604 | I10: 6 | J10: 1513 | K10: 1.5 | L10: 0.138 | M10: 0.395 | N10: 0.426 | O10: 0.085 | P10: 0.034 | Q10: 0.996438336 | R10: 0.463 | S10: 1.03569584 | T10: 0.295 | U10: =$B$6-MAX(BC!$B$21,BC!$F$21)-TC!N10 ->  | W10: 0.25 | X10: 0.167 | Y10: 1.75 | Z10: 0 | AH10: 38.87688985 | AI10: 34.75923973 | AJ10: 40.6779661 | AK10: 40.6779661 | AL10: 172973.0923 | AM10: 44163.50515 | AN10: 189371.2219 | AR10: 76876.9299 | AS10: 37985.46206 | AW10: =PANELS!$I$27-2 -> 23 | AX10: =PANELS!$I$30 -> 23 | AY10: 24 | AZ10: =PANELS!$I$36-2 -> 28 | BH10: =BF10/(PROPS!AB67*2) ->  | BI10: 1 | BJ10: 1.043478261 | BK10: 0.4188111889 | BN10: =(BL10*(PROPS!AC67))/(2*PROPS!AK67) ->  | BU10: =(BS10*(N10))/(2*PROPS!AK67) ->  | BV10: 77.96610169 | BW10: =((AW10)/(3.14159*PROPS!AQ67)*(($B$8/(29*(10)^3))^0.5)) ->  | BX10: 31994.95863 | BY10: =IF(BW10*(PROPS!AA67^0.5)<=1.5,(PROPS!AA67*$B$8*1000)*(0.658^(PROPS!AA67*(BW10^2))),(0.877*$B$8*1000)/((BW10)^2)) ->  | BZ10: 47085.303 | CA10: 115985.3987 | CE10: =IF(BH10/($B$19*BY10)>=0.2,(BH10/($B$19*BY10)+((CC10*BU10)/((1-(BH10/CA10))*PROPS!AA67*$B$19*($B$8*1000)))*(8/9)),(BH10/(2*$B$19*BY10)+((CC10*BU10)/((1-(BH10/CA10))*PROPS!AA67*$B$19*($B$8*1000))))) ->  | CZ10: =IF(AND(Z10+AG10+AQ10+BR10+CG10+CR10+CX10=7,W10+K10<=PROPS!$A$71),PROPS!O67,"") ->  | DC10: 0.79 | DD10: 0.138 | DE10: 0.84740604 | DF10: 0.426 | DG10: 1.5 | DH10: =BC!$F$23 ->  | DI10: =BC!$F$27 ->  | DJ10: =2*((BC!$F$26/2)+((BC!$F$23/2)*(BC!$F$21+(G10/2))^2)) ->  | DK10: =BC!$F$21 ->  | DL10: =BC!$F$28 ->  | DM10: =INPUT!$C$7*12 -> 480 | DN10: =INPUT!$C$8 -> 24 | DO10: =(1.2*INPUT!$I$22)/(0.8*1*1*0.9) -> 416.6666667 | DP10: 29000000 | DQ10: 11165000 | DR10: 3.14159 | DS10: =1.3*(BC!$F$25+(0.283565*M10*24*INPUT!$C$7))/(INPUT!$C$7*12) ->  | DT10: =INPUT!$I$23 -> 0.85 | EE10: 0.7514275928 | EK10: 176.0682928 | EL10: 3 | EM10: 128 | EN10: 23134.30811 | EO10: 1 | EP10: 3 | EQ10: 128 | ER10: 23134.30811 | ES10: 1 | EV10: 207.139168 | HH10: =IF(ROUNDDOWN((INPUT!$C$7*12)/(HG10+8),0)>0,ROUNDDOWN((INPUT!$C$7*12)/(HG10+8),0),0) -> 
E11: 18 | F11: 24 | G11: 1 | H11: 0.954126368 | I11: 7 | J11: 1515 | K11: 1.5 | L11: 0.155 | M11: 0.441 | N11: 0.432 | O11: 0.094 | P11: 0.038 | Q11: 1 | R11: 0.461 | S11: 1.040084577 | T11: 0.295 | U11: =$B$6-MAX(BC!$B$21,BC!$F$21)-TC!N11 ->  | W11: 0.25 | X11: 0.167 | Y11: 1.75 | Z11: 0 | AH11: 39.04555315 | AI11: 34.61256978 | AJ11: 40.6779661 | AK11: 40.6779661 | AL11: 172973.0923 | AM11: 44302.2683 | AN11: 187738.719 | AR11: 76876.9299 | AS11: 38084.29418 | AW11: =PANELS!$I$27-2 -> 23 | AX11: =PANELS!$I$30 -> 23 | AY11: 24 | AZ11: =PANELS!$I$36-2 -> 28 | BH11: =BF11/(PROPS!AB68*2) ->  | BI11: 1 | BJ11: 1.043478261 | BK11: 0.4188111889 | BN11: =(BL11*(PROPS!AC68))/(2*PROPS!AK68) ->  | BU11: =(BS11*(N11))/(2*PROPS!AK68) ->  | BV11: 77.96610169 | BW11: =((AW11)/(3.14159*PROPS!AQ68)*(($B$8/(29*(10)^3))^0.5)) ->  | BX11: 32058.53189 | BY11: =IF(BW11*(PROPS!AA68^0.5)<=1.5,(PROPS!AA68*$B$8*1000)*(0.658^(PROPS!AA68*(BW11^2))),(0.877*$B$8*1000)/((BW11)^2)) ->  | BZ11: 47085.303 | CA11: 114985.5292 | CE11: =IF(BH11/($B$19*BY11)>=0.2,(BH11/($B$19*BY11)+((CC11*BU11)/((1-(BH11/CA11))*PROPS!AA68*$B$19*($B$8*1000)))*(8/9)),(BH11/(2*$B$19*BY11)+((CC11*BU11)/((1-(BH11/CA11))*PROPS!AA68*$B$19*($B$8*1000))))) ->  | CZ11: =IF(AND(Z11+AG11+AQ11+BR11+CG11+CR11+CX11=7,W11+K11<=PROPS!$A$71),PROPS!O68,"") ->  | DC11: 0.882 | DD11: 0.155 | DE11: 0.954126368 | DF11: 0.432 | DG11: 1.5 | DH11: =BC!$F$23 ->  | DI11: =BC!$F$27 ->  | DJ11: =2*((BC!$F$26/2)+((BC!$F$23/2)*(BC!$F$21+(G11/2))^2)) ->  | DK11: =BC!$F$21 ->  | DL11: =BC!$F$28 ->  | DM11: =INPUT!$C$7*12 -> 480 | DN11: =INPUT!$C$8 -> 24 | DO11: =(1.2*INPUT!$I$22)/(0.8*1*1*0.9) -> 416.6666667 | DP11: 29000000 | DQ11: 11165000 | DR11: 3.14159 | DS11: =1.3*(BC!$F$25+(0.283565*M11*24*INPUT!$C$7))/(INPUT!$C$7*12) ->  | DT11: =INPUT!$I$23 -> 0.85 | EE11: 0.7514275928 | EK11: 176.8143781 | EL11: 3 | EM11: 128 | EN11: 23330.78569 | EO11: 1 | EP11: 3 | EQ11: 128 | ER11: 23330.78569 | ES11: 1 | EV11: 208.0169154 | HH11: =IF(ROUNDDOWN((INPUT!$C$7*12)/(HG11+8),0)>0,ROUNDDOWN((INPUT!$C$7*12)/(HG11+8),0),0) -> 
A12: Total Factored Loads (plf) | E12: 20 | F12: 24 | G12: 1 | H12: 1.046606178 | I12: 8 | J12: 1517 | K12: 1.5 | L12: 0.17 | M12: 0.481 | N12: 0.437 | O12: 0.101 | P12: 0.042 | Q12: 1 | R12: 0.459 | S12: 1.043047559 | T12: 0.294 | U12: =$B$6-MAX(BC!$B$21,BC!$F$21)-TC!N12 ->  | W12: 0.25 | X12: 0.167 | Y12: 1.75 | Z12: 0 | AH12: 39.21568627 | AI12: 34.51424597 | AJ12: 40.81632653 | AK12: 40.81632653 | AL12: 171802.381 | AM12: 44265.75873 | AN12: 186113.2832 | AR12: 76356.61377 | AS12: 38013.71356 | AW12: =PANELS!$I$27-2 -> 23 | AX12: =PANELS!$I$30 -> 23 | AY12: 24 | AZ12: =PANELS!$I$36-2 -> 28 | BH12: =BF12/(PROPS!AB69*2) ->  | BI12: 1 | BJ12: 1.043478261 | BK12: 0.4188111889 | BN12: =(BL12*(PROPS!AC69))/(2*PROPS!AK69) ->  | BU12: =(BS12*(N12))/(2*PROPS!AK69) ->  | BV12: 78.23129252 | BW12: =((AW12)/(3.14159*PROPS!AQ69)*(($B$8/(29*(10)^3))^0.5)) ->  | BX12: 31961.58383 | BY12: =IF(BW12*(PROPS!AA69^0.5)<=1.5,(PROPS!AA69*$B$8*1000)*(0.658^(PROPS!AA69*(BW12^2))),(0.877*$B$8*1000)/((BW12)^2)) ->  | BZ12: 46766.62167 | CA12: 113989.9882 | CE12: =IF(BH12/($B$19*BY12)>=0.2,(BH12/($B$19*BY12)+((CC12*BU12)/((1-(BH12/CA12))*PROPS!AA69*$B$19*($B$8*1000)))*(8/9)),(BH12/(2*$B$19*BY12)+((CC12*BU12)/((1-(BH12/CA12))*PROPS!AA69*$B$19*($B$8*1000))))) ->  | CZ12: =IF(AND(Z12+AG12+AQ12+BR12+CG12+CR12+CX12=7,W12+K12<=PROPS!$A$71),PROPS!O69,"") ->  | DC12: 0.962 | DD12: 0.17 | DE12: 1.046606178 | DF12: 0.437 | DG12: 1.5 | DH12: =BC!$F$23 ->  | DI12: =BC!$F$27 ->  | DJ12: =2*((BC!$F$26/2)+((BC!$F$23/2)*(BC!$F$21+(G12/2))^2)) ->  | DK12: =BC!$F$21 ->  | DL12: =BC!$F$28 ->  | DM12: =INPUT!$C$7*12 -> 480 | DN12: =INPUT!$C$8 -> 24 | DO12: =(1.2*INPUT!$I$22)/(0.8*1*1*0.9) -> 416.6666667 | DP12: 29000000 | DQ12: 11165000 | DR12: 3.14159 | DS12: =1.3*(BC!$F$25+(0.283565*M12*24*INPUT!$C$7))/(INPUT!$C$7*12) ->  | DT12: =INPUT!$I$23 -> 0.85 | EE12: 0.7514275928 | EK12: 177.318085 | EL12: 3 | EM12: 128 | EN12: 23463.90402 | EO12: 1 | EP12: 3 | EQ12: 128 | ER12: 23463.90402 | ES12: 1 | EV12: 208.6095118 | HH12: =IF(ROUNDDOWN((INPUT!$C$7*12)/(HG12+8),0)>0,ROUNDDOWN((INPUT!$C$7*12)/(HG12+8),0),0) -> 
A13: Construction | B13: =INPUT!D29 ->  | E13: 22 | F13: 24 | G13: 1 | H13: 1.3296659 | I13: 9 | J13: 1715 | K13: 1.75 | L13: 0.155 | M13: 0.518 | N13: 0.495 | O13: 0.152 | P13: 0.062 | Q13: 0.983139174 | R13: 0.541 | S13: 1.132899507 | T13: 0.345 | U13: =$B$6-MAX(BC!$B$21,BC!$F$21)-TC!N13 ->  | W13: 0.25 | X13: 0.167 | Y13: 1.75 | Z13: 0 | AH13: 33.27171904 | AI13: 31.77686968 | AJ13: 34.7826087 | AK13: 34.7826087 | AL13: 236577.1021 | AM13: 45062.4954 | AN13: 258551.1832 | AR13: 105145.3787 | AS13: 40420.62531 | AW13: =PANELS!$I$27-2 -> 23 | AX13: =PANELS!$I$30 -> 23 | AY13: 24 | AZ13: =PANELS!$I$36-2 -> 28 | BH13: =BF13/(PROPS!AB70*2) ->  | BI13: 1 | BJ13: 1.043478261 | BK13: 0.4188111889 | BN13: =(BL13*(PROPS!AC70))/(2*PROPS!AK70) ->  | BU13: =(BS13*(N13))/(2*PROPS!AK70) ->  | BV13: 66.66666667 | BW13: =((AW13)/(3.14159*PROPS!AQ70)*(($B$8/(29*(10)^3))^0.5)) ->  | BX13: 35713.59477 | BY13: =IF(BW13*(PROPS!AA70^0.5)<=1.5,(PROPS!AA70*$B$8*1000)*(0.658^(PROPS!AA70*(BW13^2))),(0.877*$B$8*1000)/((BW13)^2)) ->  | BZ13: 64399.05993 | CA13: 158356.4903 | CE13: =IF(BH13/($B$19*BY13)>=0.2,(BH13/($B$19*BY13)+((CC13*BU13)/((1-(BH13/CA13))*PROPS!AA70*$B$19*($B$8*1000)))*(8/9)),(BH13/(2*$B$19*BY13)+((CC13*BU13)/((1-(BH13/CA13))*PROPS!AA70*$B$19*($B$8*1000))))) ->  | CZ13: =IF(AND(Z13+AG13+AQ13+BR13+CG13+CR13+CX13=7,W13+K13<=PROPS!$A$71),PROPS!O70,"") ->  | DC13: 1.036 | DD13: 0.155 | DE13: 1.3296659 | DF13: 0.495 | DG13: 1.75 | DH13: =BC!$F$23 ->  | DI13: =BC!$F$27 ->  | DJ13: =2*((BC!$F$26/2)+((BC!$F$23/2)*(BC!$F$21+(G13/2))^2)) ->  | DK13: =BC!$F$21 ->  | DL13: =BC!$F$28 ->  | DM13: =INPUT!$C$7*12 -> 480 | DN13: =INPUT!$C$8 -> 24 | DO13: =(1.2*INPUT!$I$22)/(0.8*1*1*0.9) -> 416.6666667 | DP13: 29000000 | DQ13: 11165000 | DR13: 3.14159 | DS13: =1.3*(BC!$F$25+(0.283565*M13*24*INPUT!$C$7))/(INPUT!$C$7*12) ->  | DT13: =INPUT!$I$23 -> 0.85 | EE13: 0.7514275928 | EK13: 192.5929162 | EL13: 3 | EM13: 128 | EN13: 27680.55715 | EO13: 1 | EP13: 3 | EQ13: 128 | ER13: 27680.55715 | ES13: 1 | EV13: 226.5799014 | HH13: =IF(ROUNDDOWN((INPUT!$C$7*12)/(HG13+8),0)>0,ROUNDDOWN((INPUT!$C$7*12)/(HG13+8),0),0) -> 
A14: Composite | B14: =INPUT!D30 ->  | E14: 24 | F14: 24 | G14: 1 | H14: 1.462 | I14: 10 | J14: 1717 | K14: 1.75 | L14: 0.17 | M14: 0.566 | N14: 0.5 | O14: 0.165 | P14: 0.067 | Q14: 1 | R14: 0.539 | S14: 1.136450366 | T14: 0.344 | U14: =$B$6-MAX(BC!$B$21,BC!$F$21)-TC!N14 ->  | W14: 0.25 | X14: 0.167 | Y14: 1.75 | Z14: 1 | AH14: 33.39517625 | AI14: 31.6775823 | AJ14: 34.88372093 | AK14: 34.88372093 | AL14: 235207.6283 | AM14: 45743.43807 | AN14: 256643.0629 | AR14: 104536.7237 | AS14: 40928.63881 | AW14: =PANELS!$I$27-2 -> 23 | AX14: =PANELS!$I$30 -> 23 | AY14: 24 | AZ14: =PANELS!$I$36-2 -> 28 | BH14: =BF14/(PROPS!AB71*2) ->  | BI14: 1 | BJ14: 1.043478261 | BK14: 0.4188111889 | BN14: =(BL14*(PROPS!AC71))/(2*PROPS!AK71) ->  | BU14: =(BS14*(N14))/(2*PROPS!AK71) ->  | BV14: 66.86046512 | BW14: =((AW14)/(3.14159*PROPS!AQ71)*(($B$8/(29*(10)^3))^0.5)) ->  | BX14: 36059.29718 | BY14: =IF(BW14*(PROPS!AA71^0.5)<=1.5,(PROPS!AA71*$B$8*1000)*(0.658^(PROPS!AA71*(BW14^2))),(0.877*$B$8*1000)/((BW14)^2)) ->  | BZ14: 64026.2731 | CA14: 157187.8117 | CE14: =IF(BH14/($B$19*BY14)>=0.2,(BH14/($B$19*BY14)+((CC14*BU14)/((1-(BH14/CA14))*PROPS!AA71*$B$19*($B$8*1000)))*(8/9)),(BH14/(2*$B$19*BY14)+((CC14*BU14)/((1-(BH14/CA14))*PROPS!AA71*$B$19*($B$8*1000))))) ->  | CZ14: =IF(AND(Z14+AG14+AQ14+BR14+CG14+CR14+CX14=7,W14+K14<=PROPS!$A$71),PROPS!O71,"") ->  | DC14: 1.132 | DD14: 0.17 | DE14: 1.462 | DF14: 0.5 | DG14: 1.75 | DH14: =BC!$F$23 ->  | DI14: =BC!$F$27 ->  | DJ14: =2*((BC!$F$26/2)+((BC!$F$23/2)*(BC!$F$21+(G14/2))^2)) ->  | DK14: =BC!$F$21 ->  | DL14: =BC!$F$28 ->  | DM14: =INPUT!$C$7*12 -> 480 | DN14: =INPUT!$C$8 -> 24 | DO14: =(1.2*INPUT!$I$22)/(0.8*1*1*0.9) -> 416.6666667 | DP14: 29000000 | DQ14: 11165000 | DR14: 3.14159 | DS14: =1.3*(BC!$F$25+(0.283565*M14*24*INPUT!$C$7))/(INPUT!$C$7*12) ->  | DT14: =INPUT!$I$23 -> 0.85 | EE14: 0.7514275928 | EK14: 193.1965622 | EL14: 3 | EM14: 128 | EN14: 27854.348 | EO14: 1 | EP14: 3 | EQ14: 128 | ER14: 27854.348 | ES14: 1 | EV14: 227.2900732 | HH14: =IF(ROUNDDOWN((INPUT!$C$7*12)/(HG14+8),0)>0,ROUNDDOWN((INPUT!$C$7*12)/(HG14+8),0),0) -> 
A15: Constr Mu | B15: =((B13/12)*(B5*12)^2)/8 ->  | D15: =MAX(MIN(CY5:CY43),D19) ->  | E15: 26 | F15: 24 | G15: 1 | H15: 1.8865 | I15: 11 | J15: 2016 | K15: 2 | L15: 0.163 | M15: 0.625 | N15: 0.56 | O15: 0.241 | P15: 0.098 | Q15: 0.95217579 | R15: 0.621 | S15: 1.228495014 | T15: 0.395 | U15: =$B$6-MAX(BC!$B$21,BC!$F$21)-TC!N15 ->  | W15: 0.375 | X15: 0.167 | Y15: 1.75 | Z15: 0 | AH15: 28.98550725 | AI15: 29.30414823 | AJ15: 30.37974684 | AK15: 30.37974684 | AL15: 310119.2384 | AM15: 44645.90164 | AN15: 340671.027 | AR15: 137830.7726 | AS15: 41200.23296 | AW15: =PANELS!$I$27-2 -> 23 | AX15: =PANELS!$I$30 -> 23 | AY15: 24 | AZ15: =PANELS!$I$36-2 -> 28 | BH15: =BF15/(PROPS!AB72*2) ->  | BI15: 1 | BJ15: 1.043478261 | BK15: 0.4188111889 | BN15: =(BL15*(PROPS!AC72))/(2*PROPS!AK72) ->  | BU15: =(BS15*(N15))/(2*PROPS!AK72) ->  | BV15: 58.2278481 | BW15: =((AW15)/(3.14159*PROPS!AQ72)*(($B$8/(29*(10)^3))^0.5)) ->  | BX15: 37598.71767 | BY15: =IF(BW15*(PROPS!AA72^0.5)<=1.5,(PROPS!AA72*$B$8*1000)*(0.658^(PROPS!AA72*(BW15^2))),(0.877*$B$8*1000)/((BW15)^2)) ->  | BZ15: 84418.09137 | CA15: 208652.9542 | CE15: =IF(BH15/($B$19*BY15)>=0.2,(BH15/($B$19*BY15)+((CC15*BU15)/((1-(BH15/CA15))*PROPS!AA72*$B$19*($B$8*1000)))*(8/9)),(BH15/(2*$B$19*BY15)+((CC15*BU15)/((1-(BH15/CA15))*PROPS!AA72*$B$19*($B$8*1000))))) ->  | CZ15: =IF(AND(Z15+AG15+AQ15+BR15+CG15+CR15+CX15=7,W15+K15<=PROPS!$A$71),PROPS!O72,"") ->  | DC15: 1.25 | DD15: 0.163 | DE15: 1.8865 | DF15: 0.56 | DG15: 2 | DH15: =BC!$F$23 ->  | DI15: =BC!$F$27 ->  | DJ15: =2*((BC!$F$26/2)+((BC!$F$23/2)*(BC!$F$21+(G15/2))^2)) ->  | DK15: =BC!$F$21 ->  | DL15: =BC!$F$28 ->  | DM15: =INPUT!$C$7*12 -> 480 | DN15: =INPUT!$C$8 -> 24 | DO15: =(1.2*INPUT!$I$22)/(0.8*1*1*0.9) -> 416.6666667 | DP15: 29000000 | DQ15: 11165000 | DR15: 3.14159 | DS15: =1.3*(BC!$F$25+(0.283565*M15*24*INPUT!$C$7))/(INPUT!$C$7*12) ->  | DT15: =INPUT!$I$23 -> 0.85 | EE15: 0.7514275928 | EK15: 208.8441524 | EL15: 2 | EM15: 168 | EN15: 18894.7097 | EO15: 1 | EP15: 2 | EQ15: 168 | ER15: 18894.7097 | ES15: 1 | EV15: 245.6990028 | HH15: =IF(ROUNDDOWN((INPUT!$C$7*12)/(HG15+8),0)>0,ROUNDDOWN((INPUT!$C$7*12)/(HG15+8),0),0) -> 
E16: 28 | F16: 24 | G16: 1 | H16: 2.04266685 | I16: 12 | J16: 2017 | K16: 2 | L16: 0.176 | M16: 0.673 | N16: 0.565 | O16: 0.258 | P16: 0.105 | Q16: 0.980821896 | R16: 0.619 | S16: 1.231902227 | T16: 0.394 | U16: =$B$6-MAX(BC!$B$21,BC!$F$21)-TC!N16 ->  | W16: 0.375 | X16: 0.167 | Y16: 1.75 | Z16: 1 | AH16: 29.07915994 | AI16: 29.22309839 | AJ16: 30.45685279 | AK16: 30.45685279 | AL16: 308551.0021 | AM16: 45884.8146 | AN16: 338480.2222 | AR16: 137133.7787 | AS16: 42223.576 | AW16: =PANELS!$I$27-2 -> 23 | AX16: =PANELS!$I$30 -> 23 | AY16: 24 | AZ16: =PANELS!$I$36-2 -> 28 | BH16: =BF16/(PROPS!AB73*2) ->  | BI16: 1 | BJ16: 1.043478261 | BK16: 0.4188111889 | BN16: =(BL16*(PROPS!AC73))/(2*PROPS!AK73) ->  | BU16: =(BS16*(N16))/(2*PROPS!AK73) ->  | BV16: 58.37563452 | BW16: =((AW16)/(3.14159*PROPS!AQ73)*(($B$8/(29*(10)^3))^0.5)) ->  | BX16: 38408.31132 | BY16: =IF(BW16*(PROPS!AA73^0.5)<=1.5,(PROPS!AA73*$B$8*1000)*(0.658^(PROPS!AA73*(BW16^2))),(0.877*$B$8*1000)/((BW16)^2)) ->  | BZ16: 83991.19905 | CA16: 207311.138 | CE16: =IF(BH16/($B$19*BY16)>=0.2,(BH16/($B$19*BY16)+((CC16*BU16)/((1-(BH16/CA16))*PROPS!AA73*$B$19*($B$8*1000)))*(8/9)),(BH16/(2*$B$19*BY16)+((CC16*BU16)/((1-(BH16/CA16))*PROPS!AA73*$B$19*($B$8*1000))))) ->  | CZ16: =IF(AND(Z16+AG16+AQ16+BR16+CG16+CR16+CX16=7,W16+K16<=PROPS!$A$71),PROPS!O73,"") ->  | DC16: 1.346 | DD16: 0.176 | DE16: 2.04266685 | DF16: 0.565 | DG16: 2 | DH16: =BC!$F$23 ->  | DI16: =BC!$F$27 ->  | DJ16: =2*((BC!$F$26/2)+((BC!$F$23/2)*(BC!$F$21+(G16/2))^2)) ->  | DK16: =BC!$F$21 ->  | DL16: =BC!$F$28 ->  | DM16: =INPUT!$C$7*12 -> 480 | DN16: =INPUT!$C$8 -> 24 | DO16: =(1.2*INPUT!$I$22)/(0.8*1*1*0.9) -> 416.6666667 | DP16: 29000000 | DQ16: 11165000 | DR16: 3.14159 | DS16: =1.3*(BC!$F$25+(0.283565*M16*24*INPUT!$C$7))/(INPUT!$C$7*12) ->  | DT16: =INPUT!$I$23 -> 0.85 | EE16: 0.7514275928 | EK16: 209.4233787 | EL16: 2 | EM16: 168 | EN16: 18999.66346 | EO16: 1 | EP16: 2 | EQ16: 168 | ER16: 18999.66346 | ES16: 1 | EV16: 246.3804455 | HH16: =IF(ROUNDDOWN((INPUT!$C$7*12)/(HG16+8),0)>0,ROUNDDOWN((INPUT!$C$7*12)/(HG16+8),0),0) -> 
A17: TC | B17: =MIN(CY5:CY43) ->  | C17: =VLOOKUP(B17,J5:DA43,96) ->  | D17: =MIN(CY5:CY43) ->  | E17: 30 | F17: 24 | G17: 1 | H17: 2.173577186 | I17: 13 | J17: 2018 | K17: 2 | L17: 0.187 | M17: 0.713 | N17: 0.569 | O17: 0.272 | P17: 0.111 | Q17: 1 | R17: 0.617 | S17: 1.234604259 | T17: 0.394 | U17: =$B$6-MAX(BC!$B$21,BC!$F$21)-TC!N17 ->  | W17: 0.4375 | X17: 0.167 | Y17: 1.75 | Z17: 1 | AH17: 29.17341977 | AI17: 29.15914127 | AJ17: 30.45685279 | AK17: 30.45685279 | AL17: 308551.0021 | AM17: 46721.19226 | AN17: 336296.4846 | AR17: 137133.7787 | AS17: 42923.36955 | AW17: =PANELS!$I$27-2 -> 23 | AX17: =PANELS!$I$30 -> 23 | AY17: 24 | AZ17: =PANELS!$I$36-2 -> 28 | BH17: =BF17/(PROPS!AB74*2) ->  | BI17: 1 | BJ17: 1.043478261 | BK17: 0.4188111889 | BN17: =(BL17*(PROPS!AC74))/(2*PROPS!AK74) ->  | BU17: =(BS17*(N17))/(2*PROPS!AK74) ->  | BV17: 58.37563452 | BW17: =((AW17)/(3.14159*PROPS!AQ74)*(($B$8/(29*(10)^3))^0.5)) ->  | BX17: 38972.63714 | BY17: =IF(BW17*(PROPS!AA74^0.5)<=1.5,(PROPS!AA74*$B$8*1000)*(0.658^(PROPS!AA74*(BW17^2))),(0.877*$B$8*1000)/((BW17)^2)) ->  | BZ17: 83991.19905 | CA17: 205973.6503 | CE17: =IF(BH17/($B$19*BY17)>=0.2,(BH17/($B$19*BY17)+((CC17*BU17)/((1-(BH17/CA17))*PROPS!AA74*$B$19*($B$8*1000)))*(8/9)),(BH17/(2*$B$19*BY17)+((CC17*BU17)/((1-(BH17/CA17))*PROPS!AA74*$B$19*($B$8*1000))))) ->  | CZ17: =IF(AND(Z17+AG17+AQ17+BR17+CG17+CR17+CX17=7,W17+K17<=PROPS!$A$71),PROPS!O74,"") ->  | DC17: 1.426 | DD17: 0.187 | DE17: 2.173577186 | DF17: 0.569 | DG17: 2 | DH17: =BC!$F$23 ->  | DI17: =BC!$F$27 ->  | DJ17: =2*((BC!$F$26/2)+((BC!$F$23/2)*(BC!$F$21+(G17/2))^2)) ->  | DK17: =BC!$F$21 ->  | DL17: =BC!$F$28 ->  | DM17: =INPUT!$C$7*12 -> 480 | DN17: =INPUT!$C$8 -> 24 | DO17: =(1.2*INPUT!$I$22)/(0.8*1*1*0.9) -> 416.6666667 | DP17: 29000000 | DQ17: 11165000 | DR17: 3.14159 | DS17: =1.3*(BC!$F$25+(0.283565*M17*24*INPUT!$C$7))/(INPUT!$C$7*12) ->  | DT17: =INPUT!$I$23 -> 0.85 | EE17: 0.7514275928 | EK17: 209.882724 | EL17: 2 | EM17: 168 | EN17: 19083.10188 | EO17: 1 | EP17: 2 | EQ17: 168 | ER17: 19083.10188 | ES17: 1 | EV17: 246.9208518 | HH17: =IF(ROUNDDOWN((INPUT!$C$7*12)/(HG17+8),0)>0,ROUNDDOWN((INPUT!$C$7*12)/(HG17+8),0),0) -> 
A18: CSM | B18: MIN(CZ5:CZ43) | E18: 32 | F18: 32 | G18: 1 | H18: 2.3861525 | I18: 14 | J18: 2020 | K18: 2 | L18: 0.205 | M18: 0.778 | N18: 0.575 | O18: 0.294 | P18: 0.12 | Q18: 1 | R18: 0.615 | S18: 1.238352547 | T18: 0.393 | U18: =$B$6-MAX(BC!$B$21,BC!$F$21)-TC!N18 ->  | W18: 0.4375 | X18: 0.167 | Y18: 1.75 | Z18: 1 | AH18: 29.26829268 | AI18: 29.07088138 | AJ18: 30.53435115 | AK18: 30.53435115 | AL18: 306986.7409 | AM18: 46705.04796 | AN18: 334119.814 | AR18: 136438.5515 | AS18: 42890.0048 | AW18: =PANELS!$I$27-2 -> 23 | AX18: =PANELS!$I$30 -> 23 | AY18: 24 | AZ18: =PANELS!$I$36-2 -> 28 | BH18: =BF18/(PROPS!AB75*2) ->  | BI18: 1 | BJ18: 1.043478261 | BK18: 0.4188111889 | BN18: =(BL18*(PROPS!AC75))/(2*PROPS!AK75) ->  | BU18: =(BS18*(N18))/(2*PROPS!AK75) ->  | BV18: 58.52417303 | BW18: =((AW18)/(3.14159*PROPS!AQ75)*(($B$8/(29*(10)^3))^0.5)) ->  | BX18: 38923.18812 | BY18: =IF(BW18*(PROPS!AA75^0.5)<=1.5,(PROPS!AA75*$B$8*1000)*(0.658^(PROPS!AA75*(BW18^2))),(0.877*$B$8*1000)/((BW18)^2)) ->  | BZ18: 83565.38884 | CA18: 204640.491 | CE18: =IF(BH18/($B$19*BY18)>=0.2,(BH18/($B$19*BY18)+((CC18*BU18)/((1-(BH18/CA18))*PROPS!AA75*$B$19*($B$8*1000)))*(8/9)),(BH18/(2*$B$19*BY18)+((CC18*BU18)/((1-(BH18/CA18))*PROPS!AA75*$B$19*($B$8*1000))))) ->  | CZ18: =IF(AND(Z18+AG18+AQ18+BR18+CG18+CR18+CX18=7,W18+K18<=PROPS!$A$71),PROPS!O75,"") ->  | DC18: 1.556 | DD18: 0.205 | DE18: 2.3861525 | DF18: 0.575 | DG18: 2 | DH18: =BC!$F$23 ->  | DI18: =BC!$F$27 ->  | DJ18: =2*((BC!$F$26/2)+((BC!$F$23/2)*(BC!$F$21+(G18/2))^2)) ->  | DK18: =BC!$F$21 ->  | DL18: =BC!$F$28 ->  | DM18: =INPUT!$C$7*12 -> 480 | DN18: =INPUT!$C$8 -> 24 | DO18: =(1.2*INPUT!$I$22)/(0.8*1*1*0.9) -> 416.6666667 | DP18: 29000000 | DQ18: 11165000 | DR18: 3.14159 | DS18: =1.3*(BC!$F$25+(0.283565*M18*24*INPUT!$C$7))/(INPUT!$C$7*12) ->  | DT18: =INPUT!$I$23 -> 0.85 | EE18: 0.7514275928 | EK18: 210.519933 | EL18: 2 | EM18: 168 | EN18: 19199.15129 | EO18: 1 | EP18: 2 | EQ18: 168 | ER18: 19199.15129 | ES18: 1 | EV18: 247.6705094 | HH18: =IF(ROUNDDOWN((INPUT!$C$7*12)/(HG18+8),0)>0,ROUNDDOWN((INPUT!$C$7*12)/(HG18+8),0),0) -> 
A19: phi Compr | B19: 0.9 | D19: =MIN(AU49:AU87) ->  | E19: 34 | F19: 34 | G19: 1 | H19: 2.557137016 | I19: 15 | J19: 2021 | K19: 2 | L19: 0.219 | M19: 0.828 | N19: 0.581 | O19: 0.311 | P19: 0.127 | Q19: 1 | R19: 0.613 | S19: 1.242644303 | T19: 0.392 | U19: =$B$6-MAX(BC!$B$21,BC!$F$21)-TC!N19 ->  | W19: 0.4375 | X19: 0.167 | Y19: 1.75 | Z19: 1 | AH19: 29.36378467 | AI19: 28.97047844 | AJ19: 30.6122449 | AK19: 30.6122449 | AL19: 305426.4551 | AM19: 46688.78559 | AN19: 331950.2106 | AR19: 135745.0911 | AS19: 42856.41062 | AW19: =PANELS!$I$27-2 -> 23 | AX19: =PANELS!$I$30 -> 23 | AY19: 24 | AZ19: =PANELS!$I$36-2 -> 28 | BH19: =BF19/(PROPS!AB76*2) ->  | BI19: 1 | BJ19: 1.043478261 | BK19: 0.4188111889 | BN19: =(BL19*(PROPS!AC76))/(2*PROPS!AK76) ->  | BU19: =(BS19*(N19))/(2*PROPS!AK76) ->  | BV19: 58.67346939 | BW19: =((AW19)/(3.14159*PROPS!AQ76)*(($B$8/(29*(10)^3))^0.5)) ->  | BX19: 38873.42365 | BY19: =IF(BW19*(PROPS!AA76^0.5)<=1.5,(PROPS!AA76*$B$8*1000)*(0.658^(PROPS!AA76*(BW19^2))),(0.877*$B$8*1000)/((BW19)^2)) ->  | BZ19: 83140.66074 | CA19: 203311.6601 | CE19: =IF(BH19/($B$19*BY19)>=0.2,(BH19/($B$19*BY19)+((CC19*BU19)/((1-(BH19/CA19))*PROPS!AA76*$B$19*($B$8*1000)))*(8/9)),(BH19/(2*$B$19*BY19)+((CC19*BU19)/((1-(BH19/CA19))*PROPS!AA76*$B$19*($B$8*1000))))) ->  | CZ19: =IF(AND(Z19+AG19+AQ19+BR19+CG19+CR19+CX19=7,W19+K19<=PROPS!$A$71),PROPS!O76,"") ->  | DC19: 1.656 | DD19: 0.219 | DE19: 2.557137016 | DF19: 0.581 | DG19: 2 | DH19: =BC!$F$23 ->  | DI19: =BC!$F$27 ->  | DJ19: =2*((BC!$F$26/2)+((BC!$F$23/2)*(BC!$F$21+(G19/2))^2)) ->  | DK19: =BC!$F$21 ->  | DL19: =BC!$F$28 ->  | DM19: =INPUT!$C$7*12 -> 480 | DN19: =INPUT!$C$8 -> 24 | DO19: =(1.2*INPUT!$I$22)/(0.8*1*1*0.9) -> 416.6666667 | DP19: 29000000 | DQ19: 11165000 | DR19: 3.14159 | DS19: =1.3*(BC!$F$25+(0.283565*M19*24*INPUT!$C$7))/(INPUT!$C$7*12) ->  | DT19: =INPUT!$I$23 -> 0.85 | EE19: 0.7514275928 | EK19: 211.2495316 | EL19: 2 | EM19: 168 | EN19: 19332.45882 | EO19: 1 | EP19: 2 | EQ19: 168 | ER19: 19332.45882 | ES19: 1 | EV19: 248.5288607 | HH19: =IF(ROUNDDOWN((INPUT!$C$7*12)/(HG19+8),0)>0,ROUNDDOWN((INPUT!$C$7*12)/(HG19+8),0),0) -> 
A20: ybar tc | B20: =VLOOKUP(B17,J5:N43,5) ->  | E20: 36 | F20: 36 | G20: 1 | H20: 2.7117893 | I20: 16 | J20: 2023 | K20: 2 | L20: 0.232 | M20: 0.874 | N20: 0.585 | O20: 0.327 | P20: 0.134 | Q20: 1 | R20: 0.611 | S20: 1.24553879 | T20: 0.392 | U20: =$B$6-MAX(BC!$B$21,BC!$F$21)-TC!N20 ->  | W20: 0.4375 | X20: 0.167 | Y20: 1.75 | Z20: 1 | AH20: 29.4599018 | AI20: 28.90315444 | AJ20: 30.6122449 | AK20: 30.6122449 | AL20: 305426.4551 | AM20: 46688.78559 | AN20: 329787.6742 | AR20: 135745.0911 | AS20: 42856.41062 | AW20: =PANELS!$I$27-2 -> 23 | AX20: =PANELS!$I$30 -> 23 | AY20: 24 | AZ20: =PANELS!$I$36-2 -> 28 | BH20: =BF20/(PROPS!AB77*2) ->  | BI20: 1 | BJ20: 1.043478261 | BK20: 0.4188111889 | BN20: =(BL20*(PROPS!AC77))/(2*PROPS!AK77) ->  | BU20: =(BS20*(N20))/(2*PROPS!AK77) ->  | BV20: 58.67346939 | BW20: =((AW20)/(3.14159*PROPS!AQ77)*(($B$8/(29*(10)^3))^0.5)) ->  | BX20: 38873.42365 | BY20: =IF(BW20*(PROPS!AA77^0.5)<=1.5,(PROPS!AA77*$B$8*1000)*(0.658^(PROPS!AA77*(BW20^2))),(0.877*$B$8*1000)/((BW20)^2)) ->  | BZ20: 83140.66074 | CA20: 201987.1577 | CE20: =IF(BH20/($B$19*BY20)>=0.2,(BH20/($B$19*BY20)+((CC20*BU20)/((1-(BH20/CA20))*PROPS!AA77*$B$19*($B$8*1000)))*(8/9)),(BH20/(2*$B$19*BY20)+((CC20*BU20)/((1-(BH20/CA20))*PROPS!AA77*$B$19*($B$8*1000))))) ->  | CZ20: =IF(AND(Z20+AG20+AQ20+BR20+CG20+CR20+CX20=7,W20+K20<=PROPS!$A$71),PROPS!O77,"") ->  | DC20: 1.748 | DD20: 0.232 | DE20: 2.7117893 | DF20: 0.585 | DG20: 2 | DH20: =BC!$F$23 ->  | DI20: =BC!$F$27 ->  | DJ20: =2*((BC!$F$26/2)+((BC!$F$23/2)*(BC!$F$21+(G20/2))^2)) ->  | DK20: =BC!$F$21 ->  | DL20: =BC!$F$28 ->  | DM20: =INPUT!$C$7*12 -> 480 | DN20: =INPUT!$C$8 -> 24 | DO20: =(1.2*INPUT!$I$22)/(0.8*1*1*0.9) -> 416.6666667 | DP20: 29000000 | DQ20: 11165000 | DR20: 3.14159 | DS20: =1.3*(BC!$F$25+(0.283565*M20*24*INPUT!$C$7))/(INPUT!$C$7*12) ->  | DT20: =INPUT!$I$23 -> 0.85 | EE20: 0.7514275928 | EK20: 211.7415942 | EL20: 2 | EM20: 168 | EN20: 19422.62574 | EO20: 1 | EP20: 2 | EQ20: 168 | ER20: 19422.62574 | ES20: 1 | EV20: 249.1077579 | HH20: =IF(ROUNDDOWN((INPUT!$C$7*12)/(HG20+8),0)>0,ROUNDDOWN((INPUT!$C$7*12)/(HG20+8),0),0) -> 
A21: TC WT | B21: =VLOOKUP(B17,J5:M43,4)*2*INPUT!C7*12*0.283565 ->  | E21: 38 | F21: 38 | G21: 1 | H21: 2.933062464 | I21: 17 | J21: 2025 | K21: 2 | L21: 0.25 | M21: 0.938 | N21: 0.592 | O21: 0.348 | P21: 0.143 | Q21: 1 | R21: 0.609 | S21: 1.250386393 | T21: 0.391 | U21: =$B$6-MAX(BC!$B$21,BC!$F$21)-TC!N21 ->  | W21: 0.5 | X21: 0.167 | Y21: 1.75 | Z21: 1 | AH21: 29.55665025 | AI21: 28.79110025 | AJ21: 30.69053708 | AK21: 30.69053708 | AL21: 303870.1445 | AM21: 46672.40401 | AN21: 327632.205 | AR21: 135053.3975 | AS21: 42822.58497 | AW21: =PANELS!$I$27-2 -> 23 | AX21: =PANELS!$I$30 -> 23 | AY21: 24 | AZ21: =PANELS!$I$36-2 -> 28 | BH21: =BF21/(PROPS!AB78*2) ->  | BI21: 1 | BJ21: 1.043478261 | BK21: 0.4188111889 | BN21: =(BL21*(PROPS!AC78))/(2*PROPS!AK78) ->  | BU21: =(BS21*(N21))/(2*PROPS!AK78) ->  | BV21: 58.82352941 | BW21: =((AW21)/(3.14159*PROPS!AQ78)*(($B$8/(29*(10)^3))^0.5)) ->  | BX21: 38823.34122 | BY21: =IF(BW21*(PROPS!AA78^0.5)<=1.5,(PROPS!AA78*$B$8*1000)*(0.658^(PROPS!AA78*(BW21^2))),(0.877*$B$8*1000)/((BW21)^2)) ->  | BZ21: 82717.01475 | CA21: 200666.9838 | CE21: =IF(BH21/($B$19*BY21)>=0.2,(BH21/($B$19*BY21)+((CC21*BU21)/((1-(BH21/CA21))*PROPS!AA78*$B$19*($B$8*1000)))*(8/9)),(BH21/(2*$B$19*BY21)+((CC21*BU21)/((1-(BH21/CA21))*PROPS!AA78*$B$19*($B$8*1000))))) ->  | CZ21: =IF(AND(Z21+AG21+AQ21+BR21+CG21+CR21+CX21=7,W21+K21<=PROPS!$A$71),PROPS!O78,"") ->  | DC21: 1.876 | DD21: 0.25 | DE21: 2.933062464 | DF21: 0.592 | DG21: 2 | DH21: =BC!$F$23 ->  | DI21: =BC!$F$27 ->  | DJ21: =2*((BC!$F$26/2)+((BC!$F$23/2)*(BC!$F$21+(G21/2))^2)) ->  | DK21: =BC!$F$21 ->  | DL21: =BC!$F$28 ->  | DM21: =INPUT!$C$7*12 -> 480 | DN21: =INPUT!$C$8 -> 24 | DO21: =(1.2*INPUT!$I$22)/(0.8*1*1*0.9) -> 416.6666667 | DP21: 29000000 | DQ21: 11165000 | DR21: 3.14159 | DS21: =1.3*(BC!$F$25+(0.283565*M21*24*INPUT!$C$7))/(INPUT!$C$7*12) ->  | DT21: =INPUT!$I$23 -> 0.85 | EE21: 0.7514275928 | EK21: 212.5656868 | EL21: 2 | EM21: 168 | EN21: 19574.10462 | EO21: 1 | EP21: 2 | EQ21: 168 | ER21: 19574.10462 | ES21: 1 | EV21: 250.0772786 | HH21: =IF(ROUNDDOWN((INPUT!$C$7*12)/(HG21+8),0)>0,ROUNDDOWN((INPUT!$C$7*12)/(HG21+8),0),0) -> 
A22: CSM WT | B22: =IF(B18="MIN(CZ5:CZ43)",0,VLOOKUP(B18,J5:M43,4)*4*(PANELS!I27+6)*0.283565) -> 0 | E22: 40 | F22: 40 | G22: 1 | H22: 3.6561448 | I22: 18 | J22: 2518 | K22: 2.5 | L22: 0.187 | M22: 0.9 | N22: 0.694 | O22: 0.545 | P22: 0.22 | Q22: 0.917437525 | R22: 0.778 | S22: 1.425198778 | T22: 0.495 | U22: =$B$6-MAX(BC!$B$21,BC!$F$21)-TC!N22 ->  | W22: 0.4375 | X22: 0.167 | Y22: 1.75 | Z22: 1 | AH22: 23.13624679 | AI22: 25.25963435 | AJ22: 24.24242424 | AK22: 25.25963435 | AL22: 448583.082 | AM22: 43949.94915 | AN22: 534701.2426 | AR22: 216452.3959 | AS22: 41978.20428 | AW22: =PANELS!$I$27-2 -> 23 | AX22: =PANELS!$I$30 -> 23 | AY22: 24 | AZ22: =PANELS!$I$36-2 -> 28 | BH22: =BF22/(PROPS!AB79*2) ->  | BI22: 1 | BJ22: 1.043478261 | BK22: 0.4188111889 | BN22: =(BL22*(PROPS!AC79))/(2*PROPS!AK79) ->  | BU22: =(BS22*(N22))/(2*PROPS!AK79) ->  | BV22: 46.46464646 | BW22: =((AW22)/(3.14159*PROPS!AQ79)*(($B$8/(29*(10)^3))^0.5)) ->  | BX22: 39687.15428 | BY22: =IF(BW22*(PROPS!AA79^0.5)<=1.5,(PROPS!AA79*$B$8*1000)*(0.658^(PROPS!AA79*(BW22^2))),(0.877*$B$8*1000)/((BW22)^2)) ->  | BZ22: 132571.9778 | CA22: 327491.8764 | CE22: =IF(BH22/($B$19*BY22)>=0.2,(BH22/($B$19*BY22)+((CC22*BU22)/((1-(BH22/CA22))*PROPS!AA79*$B$19*($B$8*1000)))*(8/9)),(BH22/(2*$B$19*BY22)+((CC22*BU22)/((1-(BH22/CA22))*PROPS!AA79*$B$19*($B$8*1000))))) ->  | CZ22: =IF(AND(Z22+AG22+AQ22+BR22+CG22+CR22+CX22=7,W22+K22<=PROPS!$A$71),PROPS!O79,"") ->  | DC22: 1.8 | DD22: 0.187 | DE22: 3.6561448 | DF22: 0.694 | DG22: 2.5 | DH22: =BC!$F$23 ->  | DI22: =BC!$F$27 ->  | DJ22: =2*((BC!$F$26/2)+((BC!$F$23/2)*(BC!$F$21+(G22/2))^2)) ->  | DK22: =BC!$F$21 ->  | DL22: =BC!$F$28 ->  | DM22: =INPUT!$C$7*12 -> 480 | DN22: =INPUT!$C$8 -> 24 | DO22: =(1.2*INPUT!$I$22)/(0.8*1*1*0.9) -> 416.6666667 | DP22: 29000000 | DQ22: 11165000 | DR22: 3.14159 | DS22: =1.3*(BC!$F$25+(0.283565*M22*24*INPUT!$C$7))/(INPUT!$C$7*12) ->  | DT22: =INPUT!$I$23 -> 0.85 | EE22: 0.7514275928 | EK22: 242.2837922 | EL22: 2 | EM22: 168 | EN22: 25429.87993 | EO22: 1 | EP22: 2 | EQ22: 168 | ER22: 25429.87993 | ES22: 1 | EV22: 285.0397555 | HH22: =IF(ROUNDDOWN((INPUT!$C$7*12)/(HG22+8),0)>0,ROUNDDOWN((INPUT!$C$7*12)/(HG22+8),0),0) -> 
A23: Ix tc | B23: =2*VLOOKUP(B17,J5:O43,6) ->  | E23: 42 | F23: 42 | G23: 1 | H23: 4.15583427 | I23: 19 | J23: 2521 | K23: 2.5 | L23: 0.212 | M23: 1.015 | N23: 0.703 | O23: 0.609 | P23: 0.247 | Q23: 0.967268006 | R23: 0.775 | S23: 1.430807115 | T23: 0.493 | U23: =$B$6-MAX(BC!$B$21,BC!$F$21)-TC!N23 ->  | W23: 0.5 | X23: =X22 -> 0.167 | Y23: 1.75 | Z23: 1 | AH23: 23.22580645 | AI23: 25.16062412 | AJ23: 24.34077079 | AK23: 25.16062412 | AL23: 452120.4906 | AM23: 46245.8134 | AN23: 530585.5332 | AR23: 214706.8191 | AS23: 44012.0529 | AW23: =PANELS!$I$27-2 -> 23 | AX23: =PANELS!$I$30 -> 23 | AY23: 24 | AZ23: =PANELS!$I$36-2 -> 28 | BH23: =BF23/(PROPS!AB80*2) ->  | BI23: 1 | BJ23: 1.043478261 | BK23: 0.4188111889 | BN23: =(BL23*(PROPS!AC80))/(2*PROPS!AK80) ->  | BU23: =(BS23*(N23))/(2*PROPS!AK80) ->  | BV23: 46.65314402 | BW23: =((AW23)/(3.14159*PROPS!AQ80)*(($B$8/(29*(10)^3))^0.5)) ->  | BX23: 41463.40278 | BY23: =IF(BW23*(PROPS!AA80^0.5)<=1.5,(PROPS!AA80*$B$8*1000)*(0.658^(PROPS!AA80*(BW23^2))),(0.877*$B$8*1000)/((BW23)^2)) ->  | BZ23: 131502.8533 | CA23: 324971.1016 | CE23: =IF(BH23/($B$19*BY23)>=0.2,(BH23/($B$19*BY23)+((CC23*BU23)/((1-(BH23/CA23))*PROPS!AA80*$B$19*($B$8*1000)))*(8/9)),(BH23/(2*$B$19*BY23)+((CC23*BU23)/((1-(BH23/CA23))*PROPS!AA80*$B$19*($B$8*1000))))) ->  | CZ23: =IF(AND(Z23+AG23+AQ23+BR23+CG23+CR23+CX23=7,W23+K23<=PROPS!$A$71),PROPS!O80,"") ->  | DC23: 2.03 | DD23: 0.212 | DE23: 4.15583427 | DF23: 0.703 | DG23: 2.5 | DH23: =BC!$F$23 ->  | DI23: =BC!$F$27 ->  | DJ23: =2*((BC!$F$26/2)+((BC!$F$23/2)*(BC!$F$21+(G23/2))^2)) ->  | DK23: =BC!$F$21 ->  | DL23: =BC!$F$28 ->  | DM23: =INPUT!$C$7*12 -> 480 | DN23: =INPUT!$C$8 -> 24 | DO23: =(1.2*INPUT!$I$22)/(0.8*1*1*0.9) -> 416.6666667 | DP23: 29000000 | DQ23: 11165000 | DR23: 3.14159 | DS23: =1.3*(BC!$F$25+(0.283565*M23*24*INPUT!$C$7))/(INPUT!$C$7*12) ->  | DT23: =INPUT!$I$23 -> 0.85 | EE23: 0.7514275928 | EK23: 243.2372095 | EL23: 2 | EM23: 168 | EN23: 25630.4133 | EO23: 1 | EP23: 2 | EQ23: 168 | ER23: 25630.4133 | ES23: 1 | EV23: 286.161423 | HH23: =IF(ROUNDDOWN((INPUT!$C$7*12)/(HG23+8),0)>0,ROUNDDOWN((INPUT!$C$7*12)/(HG23+8),0),0) -> 
A24: Atc | B24: =2*VLOOKUP(B17,J5:M43,4) ->  | E24: 44 | F24: 44 | G24: 1 | H24: 4.5202354 | I24: 20 | J24: 2523 | K24: 2.5 | L24: 0.23 | M24: 1.097 | N24: 0.71 | O24: 0.654 | P24: 0.266 | Q24: 0.996438336 | R24: 0.772 | S24: 1.435364545 | T24: 0.492 | U24: =$B$6-MAX(BC!$B$21,BC!$F$21)-TC!N24 ->  | W24: 0.5625 | X24: 0.167 | Y24: 1.75 | Z24: 1 | AH24: 23.31606218 | AI24: 25.08073655 | AJ24: 24.3902439 | AK24: 25.08073655 | AL24: 455005.2806 | AM24: 47590.10155 | AN24: 526485.7247 | AR24: 213836.681 | AS24: 45192.75226 | AW24: =PANELS!$I$27-2 -> 23 | AX24: =PANELS!$I$30 -> 23 | AY24: 24 | AZ24: =PANELS!$I$36-2 -> 28 | BH24: =BF24/(PROPS!AB81*2) ->  | BI24: 1 | BJ24: 1.043478261 | BK24: 0.4188111889 | BN24: =(BL24*(PROPS!AC81))/(2*PROPS!AK81) ->  | BU24: =(BS24*(N24))/(2*PROPS!AK81) ->  | BV24: 46.74796748 | BW24: =((AW24)/(3.14159*PROPS!AQ81)*(($B$8/(29*(10)^3))^0.5)) ->  | BX24: 42488.58106 | BY24: =IF(BW24*(PROPS!AA81^0.5)<=1.5,(PROPS!AA81*$B$8*1000)*(0.658^(PROPS!AA81*(BW24^2))),(0.877*$B$8*1000)/((BW24)^2)) ->  | BZ24: 130969.9142 | CA24: 322460.0658 | CE24: =IF(BH24/($B$19*BY24)>=0.2,(BH24/($B$19*BY24)+((CC24*BU24)/((1-(BH24/CA24))*PROPS!AA81*$B$19*($B$8*1000)))*(8/9)),(BH24/(2*$B$19*BY24)+((CC24*BU24)/((1-(BH24/CA24))*PROPS!AA81*$B$19*($B$8*1000))))) ->  | CZ24: =IF(AND(Z24+AG24+AQ24+BR24+CG24+CR24+CX24=7,W24+K24<=PROPS!$A$71),PROPS!O81,"") ->  | DC24: 2.194 | DD24: 0.23 | DE24: 4.5202354 | DF24: 0.71 | DG24: 2.5 | DH24: =BC!$F$23 ->  | DI24: =BC!$F$27 ->  | DJ24: =2*((BC!$F$26/2)+((BC!$F$23/2)*(BC!$F$21+(G24/2))^2)) ->  | DK24: =BC!$F$21 ->  | DL24: =BC!$F$28 ->  | DM24: =INPUT!$C$7*12 -> 480 | DN24: =INPUT!$C$8 -> 24 | DO24: =(1.2*INPUT!$I$22)/(0.8*1*1*0.9) -> 416.6666667 | DP24: 29000000 | DQ24: 11165000 | DR24: 3.14159 | DS24: =1.3*(BC!$F$25+(0.283565*M24*24*INPUT!$C$7))/(INPUT!$C$7*12) ->  | DT24: =INPUT!$I$23 -> 0.85 | EE24: 0.7514275928 | EK24: 244.0119726 | EL24: 2 | EM24: 168 | EN24: 25793.95015 | EO24: 1 | EP24: 2 | EQ24: 168 | ER24: 25793.95015 | ES24: 1 | EV24: 287.072909 | HH24: =IF(ROUNDDOWN((INPUT!$C$7*12)/(HG24+8),0)>0,ROUNDDOWN((INPUT!$C$7*12)/(HG24+8),0),0) -> 
A25: THK tc | B25: =VLOOKUP(B17,J5:L43,3) ->  | E25: 46 | F25: 46 | G25: 1 | H25: 4.92506776 | I25: 21 | J25: 2525 | K25: 2.5 | L25: 0.25 | M25: 1.1880001 | N25: 0.717 | O25: 0.703 | P25: 0.287 | Q25: 1 | R25: 0.769 | S25: 1.439736015 | T25: 0.491 | U25: =$B$6-MAX(BC!$B$21,BC!$F$21)-TC!N25 ->  | W25: 0.5625 | X25: 0.167 | Y25: 1.75 | Z25: 1 | AH25: 23.40702211 | AI25: 25.00458392 | AJ25: 24.43991853 | AK25: 25.00458392 | AL25: 457780.9807 | AM25: 47765.70315 | AN25: 522401.8172 | AR25: 212968.3095 | AS25: 45320.39401 | AW25: =PANELS!$I$27-2 -> 23 | AX25: =PANELS!$I$30 -> 23 | AY25: 24 | AZ25: =PANELS!$I$36-2 -> 28 | BH25: =BF25/(PROPS!AB82*2) ->  | BI25: 1 | BJ25: 1.043478261 | BK25: 0.4188111889 | BN25: =(BL25*(PROPS!AC82))/(2*PROPS!AK82) ->  | BU25: =(BS25*(N25))/(2*PROPS!AK82) ->  | BV25: 46.84317719 | BW25: =((AW25)/(3.14159*PROPS!AQ82)*(($B$8/(29*(10)^3))^0.5)) ->  | BX25: 42588.43483 | BY25: =IF(BW25*(PROPS!AA82^0.5)<=1.5,(PROPS!AA82*$B$8*1000)*(0.658^(PROPS!AA82*(BW25^2))),(0.877*$B$8*1000)/((BW25)^2)) ->  | BZ25: 130438.0573 | CA25: 319958.769 | CE25: =IF(BH25/($B$19*BY25)>=0.2,(BH25/($B$19*BY25)+((CC25*BU25)/((1-(BH25/CA25))*PROPS!AA82*$B$19*($B$8*1000)))*(8/9)),(BH25/(2*$B$19*BY25)+((CC25*BU25)/((1-(BH25/CA25))*PROPS!AA82*$B$19*($B$8*1000))))) ->  | CZ25: =IF(AND(Z25+AG25+AQ25+BR25+CG25+CR25+CX25=7,W25+K25<=PROPS!$A$71),PROPS!O82,"") ->  | DC25: 2.3760002 | DD25: 0.25 | DE25: 4.92506776 | DF25: 0.717 | DG25: 2.5 | DH25: =BC!$F$23 ->  | DI25: =BC!$F$27 ->  | DJ25: =2*((BC!$F$26/2)+((BC!$F$23/2)*(BC!$F$21+(G25/2))^2)) ->  | DK25: =BC!$F$21 ->  | DL25: =BC!$F$28 ->  | DM25: =INPUT!$C$7*12 -> 480 | DN25: =INPUT!$C$8 -> 24 | DO25: =(1.2*INPUT!$I$22)/(0.8*1*1*0.9) -> 416.6666667 | DP25: 29000000 | DQ25: 11165000 | DR25: 3.14159 | DS25: =1.3*(BC!$F$25+(0.283565*M25*24*INPUT!$C$7))/(INPUT!$C$7*12) ->  | DT25: =INPUT!$I$23 -> 0.85 | EE25: 0.7514275928 | EF25: =(DS25*DM25*(((DR25^2)+3)/12)*(((DR25^2)+4)/16))-(((((DR25^4)*DP25*DY25)/(2*(DT25*DM25)^3))/144)*(((EC25*(((DR25^2)-4)/16))-ED25)/12)) ->  | EG25: =((DS25*DM25)^2)*((((DR25^2)+3)/24)^2)-(((DR25^4)*DP25*DY25)/(288*(DT25*DM25)^3))*(((DS25*DM25)*(((EC25*(((DR25^2)-3)/24))-(EA25/2))/12))+((((DR25^4)*DP25*EB25)/(2*((DT25*DM25)^3)))/20736)+(((DR25^2)*DQ25*DW25)/(288*DT25*DM25))) ->  | EH25: =(-EF25+((EF25^2)-(4*EE25*EG25))^0.5)/(2*EE25) ->  | EK25: 244.7551225 | EL25: 2 | EM25: 168 | EN25: 25951.30276 | EO25: 1 | EP25: 2 | EQ25: 168 | ER25: 25951.30276 | ES25: 1 | EU25: =DM25*DS25 ->  | EV25: 287.9472029 | HH25: =IF(ROUNDDOWN((INPUT!$C$7*12)/(HG25+8),0)>0,ROUNDDOWN((INPUT!$C$7*12)/(HG25+8),0),0) -> 
A26: LEGtc | B26: =VLOOKUP(B17,J5:K43,2) ->  | E26: 48 | F26: 48 | G26: 1 | H26: 6.94643672 | I26: 22 | J26: 3022 | K26: 3 | L26: 0.227 | M26: 1.31 | N26: 0.834 | O26: 1.142 | P26: 0.462 | Q26: 0.922277448 | R26: 0.934 | S26: 1.628284903 | T26: 0.594 | U26: =$B$6-MAX(BC!$B$21,BC!$F$21)-TC!N26 ->  | W26: 0.5625 | X26: 0.167 | Y26: 1.75 | Z26: 1 | AH26: 19.27194861 | AI26: 22.10915297 | AJ26: 20.2020202 | AK26: 22.10915297 | AL26: 585534.92 | AM26: 44618.60132 | AN26: 770629.7163 | AR26: 311691.45 | AS26: 43344.96198 | AW26: =PANELS!$I$27-2 -> 23 | AX26: =PANELS!$I$30 -> 23 | AY26: 24 | AZ26: =PANELS!$I$36-2 -> 28 | BH26: =BF26/(PROPS!AB83*2) ->  | BI26: 1 | BJ26: 1.043478261 | BK26: 0.4188111889 | BN26: =(BL26*(PROPS!AC83))/(2*PROPS!AK83) ->  | BU26: =(BS26*(N26))/(2*PROPS!AK83) ->  | BV26: 38.72053872 | BW26: =((AW26)/(3.14159*PROPS!AQ83)*(($B$8/(29*(10)^3))^0.5)) ->  | BX26: 41679.54932 | BY26: =IF(BW26*(PROPS!AA83^0.5)<=1.5,(PROPS!AA83*$B$8*1000)*(0.658^(PROPS!AA83*(BW26^2))),(0.877*$B$8*1000)/((BW26)^2)) ->  | BZ26: 190903.648 | CA26: 471992.4917 | CE26: =IF(BH26/($B$19*BY26)>=0.2,(BH26/($B$19*BY26)+((CC26*BU26)/((1-(BH26/CA26))*PROPS!AA83*$B$19*($B$8*1000)))*(8/9)),(BH26/(2*$B$19*BY26)+((CC26*BU26)/((1-(BH26/CA26))*PROPS!AA83*$B$19*($B$8*1000))))) ->  | CZ26: =IF(AND(Z26+AG26+AQ26+BR26+CG26+CR26+CX26=7,W26+K26<=PROPS!$A$71),PROPS!O83,"") ->  | DC26: 2.62 | DD26: 0.227 | DE26: 6.94643672 | DF26: 0.834 | DG26: 3 | DH26: =BC!$F$23 ->  | DI26: =BC!$F$27 ->  | DJ26: =2*((BC!$F$26/2)+((BC!$F$23/2)*(BC!$F$21+(G26/2))^2)) ->  | DK26: =BC!$F$21 ->  | DL26: =BC!$F$28 ->  | DM26: =INPUT!$C$7*12 -> 480 | DN26: =INPUT!$C$8 -> 24 | DO26: =(1.2*INPUT!$I$22)/(0.8*1*1*0.9) -> 416.6666667 | DP26: 29000000 | DQ26: 11165000 | DR26: 3.14159 | DS26: =1.3*(BC!$F$25+(0.283565*M26*24*INPUT!$C$7))/(INPUT!$C$7*12) ->  | DT26: =INPUT!$I$23 -> 0.85 | EE26: 0.7514275928 | EF26: =(DS26*DM26*(((DR26^2)+3)/12)*(((DR26^2)+4)/16))-(((((DR26^4)*DP26*DY26)/(2*(DT26*DM26)^3))/144)*(((EC26*(((DR26^2)-4)/16))-ED26)/12)) ->  | EG26: =((DS26*DM26)^2)*((((DR26^2)+3)/24)^2)-(((DR26^4)*DP26*DY26)/(288*(DT26*DM26)^3))*(((DS26*DM26)*(((EC26*(((DR26^2)-3)/24))-(EA26/2))/12))+((((DR26^4)*DP26*EB26)/(2*((DT26*DM26)^3)))/20736)+(((DR26^2)*DQ26*DW26)/(288*DT26*DM26))) ->  | EH26: =(-EF26+((EF26^2)-(4*EE26*EG26))^0.5)/(2*EE26) ->  | EK26: 276.8084335 | EL26: 2 | EM26: 168 | EN26: 33193.58957 | EO26: 1 | EP26: 2 | EQ26: 168 | ER26: 33193.58957 | ES26: 1 | EV26: 325.6569806 | HH26: =IF(ROUNDDOWN((INPUT!$C$7*12)/(HG26+8),0)>0,ROUNDDOWN((INPUT!$C$7*12)/(HG26+8),0),0) -> 
A27: deff | B27: =$B$6-BC!$F$21-B20 ->  | D27: =IF(Z20+AG20+AQ20=3,J20,"") ->  | E27: 50 | F27: 50 | G27: 1 | H27: 7.667572464 | I27: 23 | J27: 3025 | K27: 3 | L27: 0.25 | M27: 1.438 | N27: 0.842 | O27: 1.244 | P27: 0.504 | Q27: 0.960707923 | R27: 0.93 | S27: 1.632805685 | T27: 0.592 | U27: =$B$6-MAX(BC!$B$21,BC!$F$21)-TC!N27 ->  | W27: 0.5625 | X27: 0.167 | Y27: 1.75 | Z27: 1 | AH27: 19.35483871 | AI27: 22.04793892 | AJ27: 20.27027027 | AK27: 22.04793892 | AL27: 588790.8 | AM27: 46422.83685 | AN27: 764043.1678 | AR27: 309596.0513 | AS27: 45015.09832 | AW27: =PANELS!$I$27-2 -> 23 | AX27: =PANELS!$I$30 -> 23 | AY27: 24 | AZ27: =PANELS!$I$36-2 -> 28 | BH27: =BF27/(PROPS!AB84*2) ->  | BI27: 1 | BJ27: 1.043478261 | BK27: 0.4188111889 | BN27: =(BL27*(PROPS!AC84))/(2*PROPS!AK84) ->  | BU27: =(BS27*(N27))/(2*PROPS!AK84) ->  | BV27: 38.85135135 | BW27: =((AW27)/(3.14159*PROPS!AQ84)*(($B$8/(29*(10)^3))^0.5)) ->  | BX27: 43202.96988 | BY27: =IF(BW27*(PROPS!AA84^0.5)<=1.5,(PROPS!AA84*$B$8*1000)*(0.658^(PROPS!AA84*(BW27^2))),(0.877*$B$8*1000)/((BW27)^2)) ->  | BZ27: 189620.2658 | CA27: 467958.3863 | CE27: =IF(BH27/($B$19*BY27)>=0.2,(BH27/($B$19*BY27)+((CC27*BU27)/((1-(BH27/CA27))*PROPS!AA84*$B$19*($B$8*1000)))*(8/9)),(BH27/(2*$B$19*BY27)+((CC27*BU27)/((1-(BH27/CA27))*PROPS!AA84*$B$19*($B$8*1000))))) ->  | CZ27: =IF(AND(Z27+AG27+AQ27+BR27+CG27+CR27+CX27=7,W27+K27<=PROPS!$A$71),PROPS!O84,"") ->  | DC27: 2.876 | DD27: 0.25 | DE27: 7.667572464 | DF27: 0.842 | DG27: 3 | DH27: =BC!$F$23 ->  | DI27: =BC!$F$27 ->  | DJ27: =2*((BC!$F$26/2)+((BC!$F$23/2)*(BC!$F$21+(G27/2))^2)) ->  | DK27: =BC!$F$21 ->  | DL27: =BC!$F$28 ->  | DM27: =INPUT!$C$7*12 -> 480 | DN27: =INPUT!$C$8 -> 24 | DO27: =(1.2*INPUT!$I$22)/(0.8*1*1*0.9) -> 416.6666667 | DP27: 29000000 | DQ27: 11165000 | DR27: 3.14159 | DS27: =1.3*(BC!$F$25+(0.283565*M27*24*INPUT!$C$7))/(INPUT!$C$7*12) ->  | DT27: =INPUT!$I$23 -> 0.85 | EE27: 0.7514275928 | EK27: 277.5769664 | EL27: 2 | EM27: 168 | EN27: 33378.16327 | EO27: 1 | EP27: 2 | EQ27: 168 | ER27: 33378.16327 | ES27: 1 | EV27: 326.5611369 | HH27: =IF(ROUNDDOWN((INPUT!$C$7*12)/(HG27+8),0)>0,ROUNDDOWN((INPUT!$C$7*12)/(HG27+8),0),0) -> 
A28: k | B28: =VLOOKUP(B17,PROPS!B3:T43,19) ->  | E28: 54 | F28: 54 | G28: 1 | H28: 8.648277624 | I28: 24 | J28: 3028 | K28: 3 | L28: 0.281 | M28: 1.607 | N28: 0.854 | O28: 1.378 | P28: 0.561 | Q28: 1 | R28: 0.925 | S28: 1.640370216 | T28: 0.591 | U28: =$B$6-MAX(BC!$B$21,BC!$F$21)-TC!N28 ->  | W28: 0.5625 | X28: 0.167 | Y28: 1.75 | Z28: 1 | AH28: 19.45945946 | AI28: 21.94626534 | AJ28: 20.30456853 | AK28: 21.94626534 | AL28: 594258.9871 | AM28: 48269.83586 | AN28: 755849.7346 | AR28: 308551.0021 | AS28: 46721.19226 | AW28: =PANELS!$I$27-2 -> 23 | AX28: =PANELS!$I$30 -> 23 | AY28: 24 | AZ28: =PANELS!$I$36-2 -> 28 | BH28: =BF28/(PROPS!AB85*2) ->  | BI28: 1 | BJ28: 1.043478261 | BK28: 0.4188111889 | BN28: =(BL28*(PROPS!AC85))/(2*PROPS!AK85) ->  | BU28: =(BS28*(N28))/(2*PROPS!AK85) ->  | BV28: 38.91708968 | BW28: =((AW28)/(3.14159*PROPS!AQ85)*(($B$8/(29*(10)^3))^0.5)) ->  | BX28: 44758.60862 | BY28: =IF(BW28*(PROPS!AA85^0.5)<=1.5,(PROPS!AA85*$B$8*1000)*(0.658^(PROPS!AA85*(BW28^2))),(0.877*$B$8*1000)/((BW28)^2)) ->  | BZ28: 188980.1979 | CA28: 462940.1021 | CE28: =IF(BH28/($B$19*BY28)>=0.2,(BH28/($B$19*BY28)+((CC28*BU28)/((1-(BH28/CA28))*PROPS!AA85*$B$19*($B$8*1000)))*(8/9)),(BH28/(2*$B$19*BY28)+((CC28*BU28)/((1-(BH28/CA28))*PROPS!AA85*$B$19*($B$8*1000))))) ->  | CZ28: =IF(AND(Z28+AG28+AQ28+BR28+CG28+CR28+CX28=7,W28+K28<=PROPS!$A$71),PROPS!O85,"") ->  | DC28: 3.214 | DD28: 0.281 | DE28: 8.648277624 | DF28: 0.854 | DG28: 3 | DH28: =BC!$F$23 ->  | DI28: =BC!$F$27 ->  | DJ28: =2*((BC!$F$26/2)+((BC!$F$23/2)*(BC!$F$21+(G28/2))^2)) ->  | DK28: =BC!$F$21 ->  | DL28: =BC!$F$28 ->  | DM28: =INPUT!$C$7*12 -> 480 | DN28: =INPUT!$C$8 -> 24 | DO28: =(1.2*INPUT!$I$22)/(0.8*1*1*0.9) -> 416.6666667 | DP28: 29000000 | DQ28: 11165000 | DR28: 3.14159 | DS28: =1.3*(BC!$F$25+(0.283565*M28*24*INPUT!$C$7))/(INPUT!$C$7*12) ->  | DT28: =INPUT!$I$23 -> 0.85 | EE28: 0.7514275928 | EK28: 278.8629367 | EL28: 2 | EM28: 168 | EN28: 33688.1512 | EO28: 1 | EP28: 2 | EQ28: 168 | ER28: 33688.1512 | ES28: 1 | EV28: 328.0740431 | HH28: =IF(ROUNDDOWN((INPUT!$C$7*12)/(HG28+8),0)>0,ROUNDDOWN((INPUT!$C$7*12)/(HG28+8),0),0) -> 
E29: 56 | F29: 56 | G29: 1 | H29: 9.63044875 | I29: 25 | J29: 3031 | K29: 3 | L29: 0.312 | M29: 1.775 | N29: 0.865 | O29: 1.508 | P29: 0.616 | Q29: 1 | R29: 0.922 | S29: 1.647058731 | T29: 0.588 | U29: =$B$6-MAX(BC!$B$21,BC!$F$21)-TC!N29 ->  | W29: 0.625 | X29: 0.167 | Y29: 1.75 | Z29: 1 | AH29: 19.52277657 | AI29: 21.85714408 | AJ29: 20.40816327 | AK29: 21.85714408 | AL29: 599114.9811 | AM29: 48283.61581 | AN29: 750954.876 | AR29: 305426.4551 | AS29: 46688.78559 | AW29: =PANELS!$I$27-2 -> 23 | AX29: =PANELS!$I$30 -> 23 | AY29: 24 | AZ29: =PANELS!$I$36-2 -> 28 | BH29: =BF29/(PROPS!AB86*2) ->  | BI29: 1 | BJ29: 1.043478261 | BK29: 0.4188111889 | BN29: =(BL29*(PROPS!AC86))/(2*PROPS!AK86) ->  | BU29: =(BS29*(N29))/(2*PROPS!AK86) ->  | BV29: 39.11564626 | BW29: =((AW29)/(3.14159*PROPS!AQ86)*(($B$8/(29*(10)^3))^0.5)) ->  | BX29: 44707.93145 | BY29: =IF(BW29*(PROPS!AA86^0.5)<=1.5,(PROPS!AA86*$B$8*1000)*(0.658^(PROPS!AA86*(BW29^2))),(0.877*$B$8*1000)/((BW29)^2)) ->  | BZ29: 187066.4867 | CA29: 459942.1168 | CE29: =IF(BH29/($B$19*BY29)>=0.2,(BH29/($B$19*BY29)+((CC29*BU29)/((1-(BH29/CA29))*PROPS!AA86*$B$19*($B$8*1000)))*(8/9)),(BH29/(2*$B$19*BY29)+((CC29*BU29)/((1-(BH29/CA29))*PROPS!AA86*$B$19*($B$8*1000))))) ->  | CZ29: =IF(AND(Z29+AG29+AQ29+BR29+CG29+CR29+CX29=7,W29+K29<=PROPS!$A$71),PROPS!O86,"") ->  | DC29: 3.55 | DD29: 0.312 | DE29: 9.63044875 | DF29: 0.865 | DG29: 3 | DH29: =BC!$F$23 ->  | DI29: =BC!$F$27 ->  | DJ29: =2*((BC!$F$26/2)+((BC!$F$23/2)*(BC!$F$21+(G29/2))^2)) ->  | DK29: =BC!$F$21 ->  | DL29: =BC!$F$28 ->  | DM29: =INPUT!$C$7*12 -> 480 | DN29: =INPUT!$C$8 -> 24 | DO29: =(1.2*INPUT!$I$22)/(0.8*1*1*0.9) -> 416.6666667 | DP29: 29000000 | DQ29: 11165000 | DR29: 3.14159 | DS29: =1.3*(BC!$F$25+(0.283565*M29*24*INPUT!$C$7))/(INPUT!$C$7*12) ->  | DT29: =INPUT!$I$23 -> 0.85 | EE29: 0.7514275928 | EK29: 279.9999843 | EL29: 2 | EM29: 168 | EN29: 33963.4343 | EO29: 1 | EP29: 2 | EQ29: 168 | ER29: 33963.4343 | ES29: 1 | EV29: 329.4117463 | HH29: =IF(ROUNDDOWN((INPUT!$C$7*12)/(HG29+8),0)>0,ROUNDDOWN((INPUT!$C$7*12)/(HG29+8),0),0) -> 
E30: 60 | F30: 60 | G30: 1 | H30: 12.99921329 | I30: 26 | J30: 3528 | K30: 3.5 | L30: 0.287 | M30: 1.927 | N30: 0.981 | O30: 2.273 | P30: 0.921 | Q30: 0.954540572 | R30: 1.066 | S30: 1.836549675 | T30: 0.591 | U30: =$B$6-MAX(BC!$B$21,BC!$F$21)-TC!N30 ->  | W30: 0.6875 | X30: 0.167 | Y30: 1.75 | Z30: 1 | AH30: 16.88555347 | AI30: 19.60197455 | AJ30: 20.30456853 | AK30: 20.30456853 | AL30: 694239.7546 | AM30: 46373.29324 | AN30: 1003844.419 | AR30: 308551.0021 | AS30: 44734.99222 | AW30: =PANELS!$I$27-2 -> 23 | AX30: =PANELS!$I$30 -> 23 | AY30: 24 | AZ30: =PANELS!$I$36-2 -> 28 | BH30: =BF30/(PROPS!AB87*2) ->  | BI30: 1 | BJ30: 1.043478261 | BK30: 0.4188111889 | BN30: =(BL30*(PROPS!AC87))/(2*PROPS!AK87) ->  | BU30: =(BS30*(N30))/(2*PROPS!AK87) ->  | BV30: 38.91708968 | BW30: =((AW30)/(3.14159*PROPS!AQ87)*(($B$8/(29*(10)^3))^0.5)) ->  | BX30: 42939.52833 | BY30: =IF(BW30*(PROPS!AA87^0.5)<=1.5,(PROPS!AA87*$B$8*1000)*(0.658^(PROPS!AA87*(BW30^2))),(0.877*$B$8*1000)/((BW30)^2)) ->  | BZ30: 188980.1979 | CA30: 614830.9863 | CE30: =IF(BH30/($B$19*BY30)>=0.2,(BH30/($B$19*BY30)+((CC30*BU30)/((1-(BH30/CA30))*PROPS!AA87*$B$19*($B$8*1000)))*(8/9)),(BH30/(2*$B$19*BY30)+((CC30*BU30)/((1-(BH30/CA30))*PROPS!AA87*$B$19*($B$8*1000))))) ->  | CZ30: =IF(AND(Z30+AG30+AQ30+BR30+CG30+CR30+CX30=7,W30+K30<=PROPS!$A$71),PROPS!O87,"") ->  | DC30: 3.854 | DD30: 0.287 | DE30: 12.99921329 | DF30: 0.981 | DG30: 3.5 | DH30: =BC!$F$23 ->  | DI30: =BC!$F$27 ->  | DJ30: =2*((BC!$F$26/2)+((BC!$F$23/2)*(BC!$F$21+(G30/2))^2)) ->  | DK30: =BC!$F$21 ->  | DL30: =BC!$F$28 ->  | DM30: =INPUT!$C$7*12 -> 480 | DN30: =INPUT!$C$8 -> 24 | DO30: =(1.2*INPUT!$I$22)/(0.8*1*1*0.9) -> 416.6666667 | DP30: 29000000 | DQ30: 11165000 | DR30: 3.14159 | DS30: =1.3*(BC!$F$25+(0.283565*M30*24*INPUT!$C$7))/(INPUT!$C$7*12) ->  | DT30: =INPUT!$I$23 -> 0.85 | EE30: 0.7514275928 | EK30: 312.2134448 | EL30: 1 | EM30: 248 | EN30: 19378.22475 | EO30: 1 | EP30: 1 | EQ30: 248 | ER30: 19378.22475 | ES30: 1 | EV30: 367.3099351 | HH30: =IF(ROUNDDOWN((INPUT!$C$7*12)/(HG30+8),0)>0,ROUNDDOWN((INPUT!$C$7*12)/(HG30+8),0),0) -> 
E31: 64 | F31: 64 | G31: 1 | H31: 14.178018 | I31: 27 | J31: 3531 | K31: 3.5 | L31: 0.3125 | M31: 2.09 | N31: 0.99 | O31: 2.449 | P31: 0.995 | Q31: 0.985994061 | R31: 1.082 | S31: 1.841703107 | T31: 0.69 | U31: =$B$6-MAX(BC!$B$21,BC!$F$21)-TC!N31 ->  | W31: 0.6875 | X31: 0.167 | Y31: 1.75 | Z31: 1 | AH31: 16.63585952 | AI31: 19.54712454 | AJ31: 17.39130435 | AK31: 19.54712454 | AL31: 749085.2571 | AM31: 47960.21999 | AN31: 1034204.733 | AR31: 420581.5148 | AS31: 46939.35474 | AW31: =PANELS!$I$27-2 -> 23 | AX31: =PANELS!$I$30 -> 23 | AY31: 24 | AZ31: =PANELS!$I$36-2 -> 28 | BH31: =BF31/(PROPS!AB88*2) ->  | BI31: 1 | BJ31: 1.043478261 | BK31: 0.4188111889 | BN31: =(BL31*(PROPS!AC88))/(2*PROPS!AK88) ->  | BU31: =(BS31*(N31))/(2*PROPS!AK88) ->  | BV31: 33.33333333 | BW31: =((AW31)/(3.14159*PROPS!AQ88)*(($B$8/(29*(10)^3))^0.5)) ->  | BX31: 45504.6434 | BY31: =IF(BW31*(PROPS!AA88^0.5)<=1.5,(PROPS!AA88*$B$8*1000)*(0.658^(PROPS!AA88*(BW31^2))),(0.877*$B$8*1000)/((BW31)^2)) ->  | BZ31: 257596.2397 | CA31: 633425.9612 | CE31: =IF(BH31/($B$19*BY31)>=0.2,(BH31/($B$19*BY31)+((CC31*BU31)/((1-(BH31/CA31))*PROPS!AA88*$B$19*($B$8*1000)))*(8/9)),(BH31/(2*$B$19*BY31)+((CC31*BU31)/((1-(BH31/CA31))*PROPS!AA88*$B$19*($B$8*1000))))) ->  | CZ31: =IF(AND(Z31+AG31+AQ31+BR31+CG31+CR31+CX31=7,W31+K31<=PROPS!$A$71),PROPS!O88,"") ->  | DC31: 4.18 | DD31: 0.3125 | DE31: 14.178018 | DF31: 0.99 | DG31: 3.5 | DH31: =BC!$F$23 ->  | DI31: =BC!$F$27 ->  | DJ31: =2*((BC!$F$26/2)+((BC!$F$23/2)*(BC!$F$21+(G31/2))^2)) ->  | DK31: =BC!$F$21 ->  | DL31: =BC!$F$28 ->  | DM31: =INPUT!$C$7*12 -> 480 | DN31: =INPUT!$C$8 -> 24 | DO31: =(1.2*INPUT!$I$22)/(0.8*1*1*0.9) -> 416.6666667 | DP31: 29000000 | DQ31: 11165000 | DR31: 3.14159 | DS31: =1.3*(BC!$F$25+(0.283565*M31*24*INPUT!$C$7))/(INPUT!$C$7*12) ->  | DT31: =INPUT!$I$23 -> 0.85 | EE31: 0.7514275928 | EK31: 313.0895282 | EL31: 1 | EM31: 248 | EN31: 19487.12948 | EO31: 1 | EP31: 1 | EQ31: 248 | ER31: 19487.12948 | ES31: 1 | EV31: 368.3406214 | HH31: =IF(ROUNDDOWN((INPUT!$C$7*12)/(HG31+8),0)>0,ROUNDDOWN((INPUT!$C$7*12)/(HG31+8),0),0) -> 
E32: 68 | F32: 68 | G32: 1 | H32: 15.65449832 | I32: 28 | J32: 3534 | K32: 3.5 | L32: 0.344 | M32: 2.29 | N32: 1.002 | O32: 2.661 | P32: 1.085 | Q32: 1 | R32: 1.078 | S32: 1.848786828 | T32: 0.688 | U32: =$B$6-MAX(BC!$B$21,BC!$F$21)-TC!N32 ->  | W32: 0.75 | X32: 0.167 | Y32: 1.75 | Z32: 1 | AH32: 16.69758813 | AI32: 19.47222874 | AJ32: 17.44186047 | AK32: 19.47222874 | AL32: 754858.7341 | AM32: 48632.85115 | AN32: 1026572.252 | AR32: 418146.8947 | AS32: 47559.17677 | AW32: =PANELS!$I$27-2 -> 23 | AX32: =PANELS!$I$30 -> 23 | AY32: 24 | AZ32: =PANELS!$I$36-2 -> 28 | BH32: =BF32/(PROPS!AB89*2) ->  | BI32: 1 | BJ32: 1.043478261 | BK32: 0.4188111889 | BN32: =(BL32*(PROPS!AC89))/(2*PROPS!AK89) ->  | BU32: =(BS32*(N32))/(2*PROPS!AK89) ->  | BV32: 33.43023256 | BW32: =((AW32)/(3.14159*PROPS!AQ89)*(($B$8/(29*(10)^3))^0.5)) ->  | BX32: 46076.74777 | BY32: =IF(BW32*(PROPS!AA89^0.5)<=1.5,(PROPS!AA89*$B$8*1000)*(0.658^(PROPS!AA89*(BW32^2))),(0.877*$B$8*1000)/((BW32)^2)) ->  | BZ32: 256105.0924 | CA32: 628751.2468 | CE32: =IF(BH32/($B$19*BY32)>=0.2,(BH32/($B$19*BY32)+((CC32*BU32)/((1-(BH32/CA32))*PROPS!AA89*$B$19*($B$8*1000)))*(8/9)),(BH32/(2*$B$19*BY32)+((CC32*BU32)/((1-(BH32/CA32))*PROPS!AA89*$B$19*($B$8*1000))))) ->  | CZ32: =IF(AND(Z32+AG32+AQ32+BR32+CG32+CR32+CX32=7,W32+K32<=PROPS!$A$71),PROPS!O89,"") ->  | DC32: 4.58 | DD32: 0.344 | DE32: 15.65449832 | DF32: 1.002 | DG32: 3.5 | DH32: =BC!$F$23 ->  | DI32: =BC!$F$27 ->  | DJ32: =2*((BC!$F$26/2)+((BC!$F$23/2)*(BC!$F$21+(G32/2))^2)) ->  | DK32: =BC!$F$21 ->  | DL32: =BC!$F$28 ->  | DM32: =INPUT!$C$7*12 -> 480 | DN32: =INPUT!$C$8 -> 24 | DO32: =(1.2*INPUT!$I$22)/(0.8*1*1*0.9) -> 416.6666667 | DP32: 29000000 | DQ32: 11165000 | DR32: 3.14159 | DS32: =1.3*(BC!$F$25+(0.283565*M32*24*INPUT!$C$7))/(INPUT!$C$7*12) ->  | DT32: =INPUT!$I$23 -> 0.85 | EE32: 0.7514275928 | EK32: 314.2937607 | EL32: 1 | EM32: 248 | EN32: 19637.32399 | EO32: 1 | EP32: 1 | EQ32: 248 | ER32: 19637.32399 | ES32: 1 | EV32: 369.7573655 | HH32: =IF(ROUNDDOWN((INPUT!$C$7*12)/(HG32+8),0)>0,ROUNDDOWN((INPUT!$C$7*12)/(HG32+8),0),0) -> 
E33: 72 | F33: 72 | G33: 1 | H33: 17.10259159 | I33: 29 | J33: 3537 | K33: 3.5 | L33: 0.375 | M33: 2.484 | N33: 1.013 | O33: 2.865 | P33: 1.172 | Q33: 1 | R33: 1.074 | S33: 1.855411179 | T33: 0.687 | U33: =$B$6-MAX(BC!$B$21,BC!$F$21)-TC!N33 ->  | W33: 0.75 | X33: 0.167 | Y33: 1.75 | Z33: 1 | AH33: 16.75977654 | AI33: 19.40270729 | AJ33: 17.46724891 | AK33: 19.40270729 | AL33: 760277.8639 | AM33: 48642.46244 | AN33: 1018968.039 | AR33: 416932.2348 | AS33: =IF(AJ33<=4.71*(((29*10^6)/(Q33*$B$8*1000))^0.5),(Q33*$B$8*1000)*(0.658^((Q33*$B$8*1000)/AR33)),0.877*AR33) -> 47552.24282 | AW33: =PANELS!$I$27-2 -> 23 | AX33: =PANELS!$I$30 -> 23 | AY33: 24 | AZ33: =PANELS!$I$36-2 -> 28 | BF33: =(BE33-((($B$13/12)*AW33)/2))/(TAN(BA33)) ->  | BH33: =BF33/(PROPS!AB90*2) ->  | BI33: 1 | BJ33: 1.043478261 | BK33: 0.4188111889 | BN33: =(BL33*(PROPS!AC90))/(2*PROPS!AK90) ->  | BU33: =(BS33*(N33))/(2*PROPS!AK90) ->  | BV33: =((AW33)/(T33)) -> 33.47889374 | BW33: =((AW33)/(3.14159*PROPS!AQ90)*(($B$8/(29*(10)^3))^0.5)) ->  | BX33: =IF(BV33<=4.71*(((29*10^6)/(Q33*$B$8*1000))^0.5),(Q33*$B$8*1000)*(0.658^((Q33*$B$8*1000)/BZ33)),0.877*BZ33) -> 46065.77998 | BY33: =IF(BW33*(PROPS!AA90^0.5)<=1.5,(PROPS!AA90*$B$8*1000)*(0.658^(PROPS!AA90*(BW33^2))),(0.877*$B$8*1000)/((BW33)^2)) ->  | BZ33: =((3.14159)^2)*((29*(10^6))/(BV33^2)) -> 255361.1419 | CA33: 624093.8462 | CB33: =1-((0.3*BG33)/($B$19*CA33)) ->  | CE33: =IF(BH33/($B$19*BY33)>=0.2,(BH33/($B$19*BY33)+((CC33*BU33)/((1-(BH33/CA33))*PROPS!AA90*$B$19*($B$8*1000)))*(8/9)),(BH33/(2*$B$19*BY33)+((CC33*BU33)/((1-(BH33/CA33))*PROPS!AA90*$B$19*($B$8*1000))))) ->  | CS33: =1-((0.3*CI33)/($B$19*CA33)) ->  | CU33: =IF(CI33/($B$19*BX33)>=0.2,(CI33/($B$19*BX33)+((CS33*CM33)/((1-(CI33/CA33))*Q33*$B$19*($B$8*1000)))*(8/9)),(CI33/(2*$B$19*BX33)+((CS33*CM33)/((1-(CI33/CA33))*Q33*$B$19*($B$8*1000))))) ->  | CZ33: =IF(AND(Z33+AG33+AQ33+BR33+CG33+CR33+CX33=7,W33+K33<=PROPS!$A$71),PROPS!O90,"") ->  | DC33: 4.968 | DD33: 0.375 | DE33: 17.10259159 | DF33: 1.013 | DG33: 3.5 | DH33: =BC!$F$23 ->  | DI33: =BC!$F$27 ->  | DJ33: =2*((BC!$F$26/2)+((BC!$F$23/2)*(BC!$F$21+(G33/2))^2)) ->  | DK33: =BC!$F$21 ->  | DL33: =BC!$F$28 ->  | DM33: =INPUT!$C$7*12 -> 480 | DN33: =INPUT!$C$8 -> 24 | DO33: =(1.2*INPUT!$I$22)/(0.8*1*1*0.9) -> 416.6666667 | DP33: 29000000 | DQ33: 11165000 | DR33: 3.14159 | DS33: =1.3*(BC!$F$25+(0.283565*M33*24*INPUT!$C$7))/(INPUT!$C$7*12) ->  | DT33: =INPUT!$I$23 -> 0.85 | ED33: =DF33+EA33+DX33 ->  | EE33: 0.7514275928 | EK33: 315.4199004 | EL33: 1 | EM33: 248 | EN33: 19778.30031 | EO33: 1 | EP33: 1 | EQ33: 248 | ER33: 19778.30031 | ES33: 1 | EV33: 371.0822358 | HH33: =IF(ROUNDDOWN((INPUT!$C$7*12)/(HG33+8),0)>0,ROUNDDOWN((INPUT!$C$7*12)/(HG33+8),0),0) ->  | HJ33: =HG33/12 -> 
E34: 76 | F34: 76 | G34: 1 | H34: 24.05964559 | I34: 30 | J34: 4037 | K34: 4 | L34: 0.375 | M34: 2.859 | N34: 1.138 | O34: 4.359 | P34: 1.774 | Q34: 1 | R34: 1.235 | S34: 2.051268625 | T34: 0.788 | U34: =$B$6-MAX(BC!$B$21,BC!$F$21)-TC!N34 ->  | W34: 0.75 | X34: 0.167 | Y34: 1.75 | Z34: 1 | AH34: 14.57489879 | AI34: 17.55011487 | AJ34: 15.2284264 | AK34: 17.55011487 | AL34: 929259.6565 | AM34: 48886.55308 | AN34: 1347367.026 | AR34: 548535.1148 | AS34: =IF(AJ34<=4.71*(((29*10^6)/(Q34*$B$8*1000))^0.5),(Q34*$B$8*1000)*(0.658^((Q34*$B$8*1000)/AR34)),0.877*AR34) -> 48128.34803 | AW34: =PANELS!$I$27-2 -> 23 | AX34: =PANELS!$I$30 -> 23 | AY34: 24 | AZ34: =PANELS!$I$36-2 -> 28 | BF34: =(BE34-((($B$13/12)*AW34)/2))/(TAN(BA34)) ->  | BH34: =BF34/(PROPS!AB91*2) ->  | BI34: 1 | BJ34: 1.043478261 | BK34: 0.4188111889 | BN34: =(BL34*(PROPS!AC91))/(2*PROPS!AK91) ->  | BU34: =(BS34*(N34))/(2*PROPS!AK91) ->  | BV34: =((AW34)/(T34)) -> 29.18781726 | BW34: =((AW34)/(3.14159*PROPS!AQ91)*(($B$8/(29*(10)^3))^0.5)) ->  | BX34: =IF(BV34<=4.71*(((29*10^6)/(Q34*$B$8*1000))^0.5),(Q34*$B$8*1000)*(0.658^((Q34*$B$8*1000)/BZ34)),0.877*BZ34) -> 46980.48023 | BY34: =IF(BW34*(PROPS!AA91^0.5)<=1.5,(PROPS!AA91*$B$8*1000)*(0.658^(PROPS!AA91*(BW34^2))),(0.877*$B$8*1000)/((BW34)^2)) ->  | BZ34: =((3.14159)^2)*((29*(10^6))/(BV34^2)) -> 335964.7962 | CA34: 825230.4657 | CB34: =1-((0.3*BG34)/($B$19*CA34)) ->  | CE34: =IF(BH34/($B$19*BY34)>=0.2,(BH34/($B$19*BY34)+((CC34*BU34)/((1-(BH34/CA34))*PROPS!AA91*$B$19*($B$8*1000)))*(8/9)),(BH34/(2*$B$19*BY34)+((CC34*BU34)/((1-(BH34/CA34))*PROPS!AA91*$B$19*($B$8*1000))))) ->  | CS34: =1-((0.3*CI34)/($B$19*CA34)) ->  | CU34: =IF(CI34/($B$19*BX34)>=0.2,(CI34/($B$19*BX34)+((CS34*CM34)/((1-(CI34/CA34))*Q34*$B$19*($B$8*1000)))*(8/9)),(CI34/(2*$B$19*BX34)+((CS34*CM34)/((1-(CI34/CA34))*Q34*$B$19*($B$8*1000))))) ->  | CZ34: =IF(AND(Z34+AG34+AQ34+BR34+CG34+CR34+CX34=7,W34+K34<=PROPS!$A$71),PROPS!O91,"") ->  | DC34: 5.718 | DD34: 0.375 | DE34: 24.05964559 | DF34: 1.138 | DG34: 4 | DH34: =BC!$F$23 ->  | DI34: =BC!$F$27 ->  | DJ34: =2*((BC!$F$26/2)+((BC!$F$23/2)*(BC!$F$21+(G34/2))^2)) ->  | DK34: =BC!$F$21 ->  | DL34: =BC!$F$28 ->  | DM34: =INPUT!$C$7*12 -> 480 | DN34: =INPUT!$C$8 -> 24 | DO34: =(1.2*INPUT!$I$22)/(0.8*1*1*0.9) -> 416.6666667 | DP34: 29000000 | DQ34: 11165000 | DR34: 3.14159 | DS34: =1.3*(BC!$F$25+(0.283565*M34*24*INPUT!$C$7))/(INPUT!$C$7*12) ->  | DT34: =INPUT!$I$23 -> 0.85 | ED34: =DF34+EA34+DX34 ->  | EE34: 0.7514275928 | EK34: 348.7156662 | EL34: 1 | EM34: 248 | EN34: 24174.28867 | EO34: 1 | EP34: 1 | EQ34: 248 | ER34: 24174.28867 | ES34: 1 | EV34: 410.253725 | HH34: =IF(ROUNDDOWN((INPUT!$C$7*12)/(HG34+8),0)>0,ROUNDDOWN((INPUT!$C$7*12)/(HG34+8),0),0) -> 
E35: 80 | F35: 80 | G35: 1 | H35: 28.17446781 | I35: 31 | J35: 4043 | K35: 4 | L35: 0.437 | M35: 3.305 | N35: 1.161 | O35: 4.969 | P35: 2.035 | Q35: 1 | R35: 1.226 | S35: 2.064558204 | T35: 0.785 | U35: =$B$6-MAX(BC!$B$21,BC!$F$21)-TC!N35 ->  | W35: 0.9375 | X35: 0.167 | Y35: 1.75 | Z35: 1 | AH35: 14.68189233 | AI35: 17.43714463 | AJ35: 15.2866242 | AK35: 17.43714463 | AL35: 941339.4724 | AM35: 48900.68324 | AN35: 1327800.842 | AR35: 544366.402 | AS35: 48114.2888 | AW35: =PANELS!$I$27-2 -> 23 | AX35: =PANELS!$I$30 -> 23 | AY35: 24 | AZ35: =PANELS!$I$36-2 -> 28 | BH35: =BF35/(PROPS!AB92*2) ->  | BI35: 1 | BJ35: 1.043478261 | BK35: 0.4188111889 | BN35: =(BL35*(PROPS!AC92))/(2*PROPS!AK92) ->  | BU35: =(BS35*(N35))/(2*PROPS!AK92) ->  | BV35: 29.29936306 | BW35: =((AW35)/(3.14159*PROPS!AQ92)*(($B$8/(29*(10)^3))^0.5)) ->  | BX35: 46958.07504 | BY35: =IF(BW35*(PROPS!AA92^0.5)<=1.5,(PROPS!AA92*$B$8*1000)*(0.658^(PROPS!AA92*(BW35^2))),(0.877*$B$8*1000)/((BW35)^2)) ->  | BZ35: 333411.5581 | CA35: 813246.6406 | CE35: =IF(BH35/($B$19*BY35)>=0.2,(BH35/($B$19*BY35)+((CC35*BU35)/((1-(BH35/CA35))*PROPS!AA92*$B$19*($B$8*1000)))*(8/9)),(BH35/(2*$B$19*BY35)+((CC35*BU35)/((1-(BH35/CA35))*PROPS!AA92*$B$19*($B$8*1000))))) ->  | CZ35: =IF(AND(Z35+AG35+AQ35+BR35+CG35+CR35+CX35=7,W35+K35<=PROPS!$A$71),PROPS!O92,"") ->  | DC35: 6.61 | DD35: 0.437 | DE35: 28.17446781 | DF35: 1.161 | DG35: 4 | DH35: =BC!$F$23 ->  | DI35: =BC!$F$27 ->  | DJ35: =2*((BC!$F$26/2)+((BC!$F$23/2)*(BC!$F$21+(G35/2))^2)) ->  | DK35: =BC!$F$21 ->  | DL35: =BC!$F$28 ->  | DM35: =INPUT!$C$7*12 -> 480 | DN35: =INPUT!$C$8 -> 24 | DO35: =(1.2*INPUT!$I$22)/(0.8*1*1*0.9) -> 416.6666667 | DP35: 29000000 | DQ35: 11165000 | DR35: 3.14159 | DS35: =1.3*(BC!$F$25+(0.283565*M35*24*INPUT!$C$7))/(INPUT!$C$7*12) ->  | DT35: =INPUT!$I$23 -> 0.85 | EE35: 0.7514275928 | EK35: 350.9748946 | EL35: 1 | EM35: 248 | EN35: 24488.53986 | EO35: 1 | EP35: 1 | EQ35: 248 | ER35: 24488.53986 | ES35: 1 | EV35: 412.9116407 | HH35: =IF(ROUNDDOWN((INPUT!$C$7*12)/(HG35+8),0)>0,ROUNDDOWN((INPUT!$C$7*12)/(HG35+8),0),0) -> 
E36: 82 | F36: 82 | G36: 1 | H36: 32.3656675 | I36: 32 | J36: 4050 | K36: 4 | L36: 0.5 | M36: 3.75 | N36: 1.183 | O36: 5.561 | P36: 2.295 | Q36: 1 | R36: 1.218 | S36: 2.077359462 | T36: 0.782 | U36: =$B$6-MAX(BC!$B$21,BC!$F$21)-TC!N36 ->  | W36: 0.875 | X36: 0.167 | Y36: 1.75 | Z36: 1 | AH36: 14.77832512 | AI36: 17.32969217 | AJ36: 15.34526854 | AK36: 17.32969217 | AL36: 953049.1819 | AM36: 48914.04231 | AN36: 1310528.82 | AR36: 540213.5902 | AS36: 48100.07164 | AW36: =PANELS!$I$27-2 -> 23 | AX36: =PANELS!$I$30 -> 23 | AY36: 24 | AZ36: =PANELS!$I$36-2 -> 28 | BH36: =BF36/(PROPS!AB93*2) ->  | BI36: 1 | BJ36: 1.043478261 | BK36: 0.4188111889 | BN36: =(BL36*(PROPS!AC93))/(2*PROPS!AK93) ->  | BU36: =(BS36*(N36))/(2*PROPS!AK93) ->  | BV36: 29.41176471 | BW36: =((AW36)/(3.14159*PROPS!AQ93)*(($B$8/(29*(10)^3))^0.5)) ->  | BX36: 46935.42238 | BY36: =IF(BW36*(PROPS!AA93^0.5)<=1.5,(PROPS!AA93*$B$8*1000)*(0.658^(PROPS!AA93*(BW36^2))),(0.877*$B$8*1000)/((BW36)^2)) ->  | BZ36: 330868.059 | CA36: 802667.9351 | CE36: =IF(BH36/($B$19*BY36)>=0.2,(BH36/($B$19*BY36)+((CC36*BU36)/((1-(BH36/CA36))*PROPS!AA93*$B$19*($B$8*1000)))*(8/9)),(BH36/(2*$B$19*BY36)+((CC36*BU36)/((1-(BH36/CA36))*PROPS!AA93*$B$19*($B$8*1000))))) ->  | CZ36: =IF(AND(Z36+AG36+AQ36+BR36+CG36+CR36+CX36=7,W36+K36<=PROPS!$A$71),PROPS!O93,"") ->  | DC36: 7.5 | DD36: 0.5 | DE36: 32.3656675 | DF36: 1.183 | DG36: 4 | DH36: =BC!$F$23 ->  | DI36: =BC!$F$27 ->  | DJ36: =2*((BC!$F$26/2)+((BC!$F$23/2)*(BC!$F$21+(G36/2))^2)) ->  | DK36: =BC!$F$21 ->  | DL36: =BC!$F$28 ->  | DM36: =INPUT!$C$7*12 -> 480 | DN36: =INPUT!$C$8 -> 24 | DO36: =(1.2*INPUT!$I$22)/(0.8*1*1*0.9) -> 416.6666667 | DP36: 29000000 | DQ36: 11165000 | DR36: 3.14159 | DS36: =1.3*(BC!$F$25+(0.283565*M36*24*INPUT!$C$7))/(INPUT!$C$7*12) ->  | DT36: =INPUT!$I$23 -> 0.85 | EE36: 0.7514275928 | EK36: 353.1511085 | EL36: 1 | EM36: 248 | EN36: 24793.1629 | EO36: 1 | EP36: 1 | EQ36: 248 | ER36: 24793.1629 | ES36: 1 | EV36: 415.4718924 | HH36: =IF(ROUNDDOWN((INPUT!$C$7*12)/(HG36+8),0)>0,ROUNDDOWN((INPUT!$C$7*12)/(HG36+8),0),0) -> 
E37: 84 | F37: 84 | G37: 1 | H37: 50.54475572 | I37: 33 | J37: 5043 | K37: 5 | L37: 0.437 | M37: 4.179 | N37: 1.411 | O37: 10.011 | P37: 4.064 | Q37: 0.978356143 | R37: 1.548 | S37: 2.459160461 | T37: 0.986 | U37: =$B$6-MAX(BC!$B$21,BC!$F$21)-TC!N37 ->  | W37: 0.9375 | X37: 0.167 | Y37: 1.75 | Z37: 1 | AH37: 11.62790698 | AI37: 14.63914233 | AJ37: 12.1703854 | AK37: 14.63914233 | AL37: 1335567.195 | AM37: 48173.60442 | AN37: 2116868.654 | AR37: 858827.2766 | AS37: 47765.39109 | AW37: =PANELS!$I$27-2 -> 23 | AX37: =PANELS!$I$30 -> 23 | AY37: 24 | AZ37: =PANELS!$I$36-2 -> 28 | BH37: =BF37/(PROPS!AB94*2) ->  | BI37: 1 | BJ37: 1.043478261 | BK37: 0.4188111889 | BN37: =(BL37*(PROPS!AC94))/(2*PROPS!AK94) ->  | BU37: =(BS37*(N37))/(2*PROPS!AK94) ->  | BV37: 23.32657201 | BW37: =((AW37)/(3.14159*PROPS!AQ94)*(($B$8/(29*(10)^3))^0.5)) ->  | BX37: 47050.30273 | BY37: =IF(BW37*(PROPS!AA94^0.5)<=1.5,(PROPS!AA94*$B$8*1000)*(0.658^(PROPS!AA94*(BW37^2))),(0.877*$B$8*1000)/((BW37)^2)) ->  | BZ37: 526011.4133 | CA37: 1296532.03 | CE37: =IF(BH37/($B$19*BY37)>=0.2,(BH37/($B$19*BY37)+((CC37*BU37)/((1-(BH37/CA37))*PROPS!AA94*$B$19*($B$8*1000)))*(8/9)),(BH37/(2*$B$19*BY37)+((CC37*BU37)/((1-(BH37/CA37))*PROPS!AA94*$B$19*($B$8*1000))))) ->  | CZ37: =IF(AND(Z37+AG37+AQ37+BR37+CG37+CR37+CX37=7,W37+K37<=PROPS!$A$71),PROPS!O94,"") ->  | DC37: 8.358 | DD37: 0.437 | DE37: 50.54475572 | DF37: 1.411 | DG37: 5 | DH37: =BC!$F$23 ->  | DI37: =BC!$F$27 ->  | DJ37: =2*((BC!$F$26/2)+((BC!$F$23/2)*(BC!$F$21+(G37/2))^2)) ->  | DK37: =BC!$F$21 ->  | DL37: =BC!$F$28 ->  | DM37: =INPUT!$C$7*12 -> 480 | DN37: =INPUT!$C$8 -> 24 | DO37: =(1.2*INPUT!$I$22)/(0.8*1*1*0.9) -> 416.6666667 | DP37: 29000000 | DQ37: 11165000 | DR37: 3.14159 | DS37: =1.3*(BC!$F$25+(0.283565*M37*24*INPUT!$C$7))/(INPUT!$C$7*12) ->  | DT37: =INPUT!$I$23 -> 0.85 | EE37: 0.7514275928 | EK37: 418.0572784 | EL37: 1 | EM37: 248 | EN37: 34744.20383 | EO37: 1 | EP37: 1 | EQ37: 248 | ER37: 34744.20383 | ES37: 1 | EV37: 491.8320923 | HH37: =IF(ROUNDDOWN((INPUT!$C$7*12)/(HG37+8),0)>0,ROUNDDOWN((INPUT!$C$7*12)/(HG37+8),0),0) -> 
E38: 86 | F38: 86 | G38: 1 | H38: 58.033382 | I38: 34 | J38: 5050 | K38: 5 | L38: 0.5 | M38: 4.75 | N38: 1.434 | O38: 11.25 | P38: 4.589 | Q38: 1 | R38: 1.539 | S38: 2.471594031 | T38: 0.983 | U38: =$B$6-MAX(BC!$B$21,BC!$F$21)-TC!N38 ->  | W38: 1 | X38: 0.167 | Y38: 1.75 | Z38: 1 | AH38: 11.69590643 | AI38: 14.56549885 | AJ38: 12.20752798 | AK38: 14.56549885 | AL38: 1349106.651 | AM38: 49230.37818 | AN38: 2092325.457 | AR38: 853609.0976 | AS38: 48789.07885 | AW38: =PANELS!$I$27-2 -> 23 | AX38: =PANELS!$I$30 -> 23 | AY38: 24 | AZ38: =PANELS!$I$36-2 -> 28 | BH38: =BF38/(PROPS!AB95*2) ->  | BI38: 1 | BJ38: 1.043478261 | BK38: 0.4188111889 | BN38: =(BL38*(PROPS!AC95))/(2*PROPS!AK95) ->  | BU38: =(BS38*(N38))/(2*PROPS!AK95) ->  | BV38: 23.39776195 | BW38: =((AW38)/(3.14159*PROPS!AQ95)*(($B$8/(29*(10)^3))^0.5)) ->  | BX38: 48038.10275 | BY38: =IF(BW38*(PROPS!AA95^0.5)<=1.5,(PROPS!AA95*$B$8*1000)*(0.658^(PROPS!AA95*(BW38^2))),(0.877*$B$8*1000)/((BW38)^2)) ->  | BZ38: 522815.4019 | CA38: 1281499.902 | CE38: =IF(BH38/($B$19*BY38)>=0.2,(BH38/($B$19*BY38)+((CC38*BU38)/((1-(BH38/CA38))*PROPS!AA95*$B$19*($B$8*1000)))*(8/9)),(BH38/(2*$B$19*BY38)+((CC38*BU38)/((1-(BH38/CA38))*PROPS!AA95*$B$19*($B$8*1000))))) ->  | CZ38: =IF(AND(Z38+AG38+AQ38+BR38+CG38+CR38+CX38=7,W38+K38<=PROPS!$A$71),PROPS!O95,"") ->  | DC38: 9.5 | DD38: 0.5 | DE38: 58.033382 | DF38: 1.434 | DG38: 5 | DH38: =BC!$F$23 ->  | DI38: =BC!$F$27 ->  | DJ38: =2*((BC!$F$26/2)+((BC!$F$23/2)*(BC!$F$21+(G38/2))^2)) ->  | DK38: =BC!$F$21 ->  | DL38: =BC!$F$28 ->  | DM38: =INPUT!$C$7*12 -> 480 | DN38: =INPUT!$C$8 -> 24 | DO38: =(1.2*INPUT!$I$22)/(0.8*1*1*0.9) -> 416.6666667 | DP38: 29000000 | DQ38: 11165000 | DR38: 3.14159 | DS38: =1.3*(BC!$F$25+(0.283565*M38*24*INPUT!$C$7))/(INPUT!$C$7*12) ->  | DT38: =INPUT!$I$23 -> 0.85 | EE38: 0.7514275928 | EK38: 420.1709852 | EL38: 1 | EM38: 248 | EN38: 35096.42693 | EO38: 1 | EP38: 1 | EQ38: 248 | ER38: 35096.42693 | ES38: 1 | EV38: 494.3188061 | HH38: =IF(ROUNDDOWN((INPUT!$C$7*12)/(HG38+8),0)>0,ROUNDDOWN((INPUT!$C$7*12)/(HG38+8),0),0) -> 
E39: 88 | F39: 88 | G39: 1 | H39: 82.56590986 | I39: 35 | J39: 6043 | K39: 6 | L39: 0.437 | M39: 5.053 | N39: 1.662 | O39: 17.664 | P39: 7.138 | Q39: 0.906027371 | R39: 1.87 | S39: 2.858319279 | T39: 1.189 | U39: =$B$6-MAX(BC!$B$21,BC!$F$21)-TC!N39 ->  | W39: 0.9375 | X39: =X38 -> 0.167 | Y39: 1.75 | Z39: 1 | AH39: 9.625668449 | AI39: 12.59481411 | AJ39: 10.09251472 | AK39: 12.59481411 | AL39: 1804319.677 | AM39: 44827.80644 | AN39: 3089123.082 | AR39: 1248865.616 | AS39: 44618.77532 | AW39: =PANELS!$I$27-2 -> 23 | AX39: =PANELS!$I$30 -> 23 | AY39: 24 | AZ39: =PANELS!$I$36-2 -> 28 | BH39: =BF39/(PROPS!AB96*2) ->  | BI39: 1 | BJ39: 1.043478261 | BK39: 0.4188111889 | BN39: =(BL39*(PROPS!AC96))/(2*PROPS!AK96) ->  | BU39: =(BS39*(N39))/(2*PROPS!AK96) ->  | BV39: 19.34398654 | BW39: =((AW39)/(3.14159*PROPS!AQ96)*(($B$8/(29*(10)^3))^0.5)) ->  | BX39: 44192.21002 | BY39: =IF(BW39*(PROPS!AA96^0.5)<=1.5,(PROPS!AA96*$B$8*1000)*(0.658^(PROPS!AA96*(BW39^2))),(0.877*$B$8*1000)/((BW39)^2)) ->  | BZ39: 764900.6797 | CA39: 1892014.893 | CE39: =IF(BH39/($B$19*BY39)>=0.2,(BH39/($B$19*BY39)+((CC39*BU39)/((1-(BH39/CA39))*PROPS!AA96*$B$19*($B$8*1000)))*(8/9)),(BH39/(2*$B$19*BY39)+((CC39*BU39)/((1-(BH39/CA39))*PROPS!AA96*$B$19*($B$8*1000))))) ->  | CZ39: =IF(AND(Z39+AG39+AQ39+BR39+CG39+CR39+CX39=7,W39+K39<=PROPS!$A$71),PROPS!O96,"") ->  | DC39: 10.106 | DD39: 0.437 | DE39: 82.56590986 | DF39: 1.662 | DG39: 6 | DH39: =BC!$F$23 ->  | DI39: =BC!$F$27 ->  | DJ39: =2*((BC!$F$26/2)+((BC!$F$23/2)*(BC!$F$21+(G39/2))^2)) ->  | DK39: =BC!$F$21 ->  | DL39: =BC!$F$28 ->  | DM39: =INPUT!$C$7*12 -> 480 | DN39: =INPUT!$C$8 -> 24 | DO39: =(1.2*INPUT!$I$22)/(0.8*1*1*0.9) -> 416.6666667 | DP39: 29000000 | DQ39: 11165000 | DR39: 3.14159 | DS39: =1.3*(BC!$F$25+(0.283565*M39*24*INPUT!$C$7))/(INPUT!$C$7*12) ->  | DT39: =INPUT!$I$23 -> 0.85 | EE39: 0.7514275928 | EK39: 485.9142775 | EL39: 1 | EM39: 248 | EN39: 46938.59721 | EO39: 1 | EP39: 1 | EQ39: 248 | ER39: 46938.59721 | ES39: 1 | EV39: 571.6638558 | HH39: =IF(ROUNDDOWN((INPUT!$C$7*12)/(HG39+8),0)>0,ROUNDDOWN((INPUT!$C$7*12)/(HG39+8),0),0) -> 
E40: 90 | F40: 90 | G40: 1 | H40: 94.7195875 | I40: 36 | J40: 6050 | K40: 6 | L40: 0.5 | M40: 5.75 | N40: 1.685 | O40: 19.908 | P40: 8.071 | Q40: 0.960707923 | R40: 1.861 | S40: 2.869927851 | T40: 1.185 | U40: =$B$6-MAX(BC!$B$21,BC!$F$21)-TC!N40 ->  | W40: 1 | X40: 0.167 | Y40: 1.75 | Z40: 1 | AH40: 9.672219237 | AI40: 12.54386935 | AJ40: 10.12658228 | AK40: 12.54386935 | AL40: 1819005.306 | AM40: 47507.39046 | AN40: 3059459.762 | AR40: 1240476.954 | AS40: 47263.12988 | AW40: =PANELS!$I$27-2 -> 23 | AX40: =PANELS!$I$30 -> 23 | AY40: 24 | AZ40: =PANELS!$I$36-2 -> 28 | BH40: =BF40/(PROPS!AB97*2) ->  | BI40: 1 | BJ40: 1.043478261 | BK40: 0.4188111889 | BN40: =(BL40*(PROPS!AC97))/(2*PROPS!AK97) ->  | BU40: =(BS40*(N40))/(2*PROPS!AK97) ->  | BV40: 19.4092827 | BW40: =((AW40)/(3.14159*PROPS!AQ97)*(($B$8/(29*(10)^3))^0.5)) ->  | BX40: 46780.93033 | BY40: =IF(BW40*(PROPS!AA97^0.5)<=1.5,(PROPS!AA97*$B$8*1000)*(0.658^(PROPS!AA97*(BW40^2))),(0.877*$B$8*1000)/((BW40)^2)) ->  | BZ40: 759762.8223 | CA40: 1873846.811 | CE40: =IF(BH40/($B$19*BY40)>=0.2,(BH40/($B$19*BY40)+((CC40*BU40)/((1-(BH40/CA40))*PROPS!AA97*$B$19*($B$8*1000)))*(8/9)),(BH40/(2*$B$19*BY40)+((CC40*BU40)/((1-(BH40/CA40))*PROPS!AA97*$B$19*($B$8*1000))))) ->  | CZ40: =IF(AND(Z40+AG40+AQ40+BR40+CG40+CR40+CX40=7,W40+K40<=PROPS!$A$71),PROPS!O97,"") ->  | DC40: 11.5 | DD40: 0.5 | DE40: 94.7195875 | DF40: 1.685 | DG40: 6 | DH40: =BC!$F$23 ->  | DI40: =BC!$F$27 ->  | DJ40: =2*((BC!$F$26/2)+((BC!$F$23/2)*(BC!$F$21+(G40/2))^2)) ->  | DK40: =BC!$F$21 ->  | DL40: =BC!$F$28 ->  | DM40: =INPUT!$C$7*12 -> 480 | DN40: =INPUT!$C$8 -> 24 | DO40: =(1.2*INPUT!$I$22)/(0.8*1*1*0.9) -> 416.6666667 | DP40: 29000000 | DQ40: 11165000 | DR40: 3.14159 | DS40: =1.3*(BC!$F$25+(0.283565*M40*24*INPUT!$C$7))/(INPUT!$C$7*12) ->  | DT40: =INPUT!$I$23 -> 0.85 | EE40: 0.7514275928 | EK40: 487.8877347 | EL40: 1 | EM40: 248 | EN40: 47320.6375 | EO40: 1 | EP40: 1 | EQ40: 248 | ER40: 47320.6375 | ES40: 1 | EV40: 573.9855702 | HH40: =IF(ROUNDDOWN((INPUT!$C$7*12)/(HG40+8),0)>0,ROUNDDOWN((INPUT!$C$7*12)/(HG40+8),0),0) -> 
E41: 92 | F41: 92 | G41: 1 | H41: 106.7176347 | I41: 37 | J41: 6056 | K41: 6 | L41: 0.562 | M41: 6.428 | N41: 1.707 | O41: 22.049 | P41: 8.972 | Q41: 1 | R41: 1.852 | S41: 2.881145319 | T41: 1.181 | U41: =$B$6-MAX(BC!$B$21,BC!$F$21)-TC!N41 ->  | W41: 1.0625 | X41: 0.167 | Y41: 1.75 | Z41: 1 | AH41: 9.719222462 | AI41: 12.49503098 | AJ41: 10.16088061 | AK41: 12.49503098 | AL41: 1833252.709 | AM41: 49432.46991 | AN41: 3029939.551 | AR41: 1232116.56 | AS41: 49157.92089 | AW41: =PANELS!$I$27-2 -> 23 | AX41: =PANELS!$I$30 -> 23 | AY41: 24 | AZ41: =PANELS!$I$36-2 -> 28 | BH41: =BF41/(PROPS!AB98*2) ->  | BI41: 1 | BJ41: 1.043478261 | BK41: 0.4188111889 | BN41: =(BL41*(PROPS!AC98))/(2*PROPS!AK98) ->  | BU41: =(BS41*(N41))/(2*PROPS!AK98) ->  | BV41: 19.47502117 | BW41: =((AW41)/(3.14159*PROPS!AQ98)*(($B$8/(29*(10)^3))^0.5)) ->  | BX41: 48632.46442 | BY41: =IF(BW41*(PROPS!AA98^0.5)<=1.5,(PROPS!AA98*$B$8*1000)*(0.658^(PROPS!AA98*(BW41^2))),(0.877*$B$8*1000)/((BW41)^2)) ->  | BZ41: 754642.2787 | CA41: 1855766.379 | CE41: =IF(BH41/($B$19*BY41)>=0.2,(BH41/($B$19*BY41)+((CC41*BU41)/((1-(BH41/CA41))*PROPS!AA98*$B$19*($B$8*1000)))*(8/9)),(BH41/(2*$B$19*BY41)+((CC41*BU41)/((1-(BH41/CA41))*PROPS!AA98*$B$19*($B$8*1000))))) ->  | CZ41: =IF(AND(Z41+AG41+AQ41+BR41+CG41+CR41+CX41=7,W41+K41<=PROPS!$A$71),PROPS!O98,"") ->  | DC41: 12.856 | DD41: 0.562 | DE41: 106.7176347 | DF41: 1.707 | DG41: 6 | DH41: =BC!$F$23 ->  | DI41: =BC!$F$27 ->  | DJ41: =2*((BC!$F$26/2)+((BC!$F$23/2)*(BC!$F$21+(G41/2))^2)) ->  | DK41: =BC!$F$21 ->  | DL41: =BC!$F$28 ->  | DM41: =INPUT!$C$7*12 -> 480 | DN41: =INPUT!$C$8 -> 24 | DO41: =(1.2*INPUT!$I$22)/(0.8*1*1*0.9) -> 416.6666667 | DP41: 29000000 | DQ41: 11165000 | DR41: 3.14159 | DS41: =1.3*(BC!$F$25+(0.283565*M41*24*INPUT!$C$7))/(INPUT!$C$7*12) ->  | DT41: =INPUT!$I$23 -> 0.85 | EE41: 0.7514275928 | EK41: 489.7947042 | EL41: 1 | EM41: 248 | EN41: 47691.27755 | EO41: 1 | EP41: 1 | EQ41: 248 | ER41: 47691.27755 | ES41: 1 | EV41: 576.2290637 | HH41: =IF(ROUNDDOWN((INPUT!$C$7*12)/(HG41+8),0)>0,ROUNDDOWN((INPUT!$C$7*12)/(HG41+8),0),0) -> 
E42: 94 | F42: 94 | G42: 1 | H42: 119.0206922 | I42: 38 | J42: 6062 | K42: 6 | L42: 0.625 | M42: 7.109 | N42: 1.73 | O42: 24.158 | P42: 9.871 | Q42: 1 | R42: 1.843 | S42: 2.893290099 | T42: 1.178 | U42: =$B$6-MAX(BC!$B$21,BC!$F$21)-TC!N42 ->  | W42: 1.125 | X42: 0.167 | Y42: 1.75 | Z42: 1 | AH42: 9.766684753 | AI42: 12.44258224 | AJ42: 10.18675722 | AK42: 12.44258224 | AL42: 1848740.562 | AM42: 49437.19754 | AN42: 3000562.449 | AR42: 1225864.816 | AS42: 49153.66296 | AW42: =PANELS!$I$27-2 -> 23 | AX42: =PANELS!$I$30 -> 23 | AY42: 24 | AZ42: =PANELS!$I$36-2 -> 28 | BH42: =BF42/(PROPS!AB99*2) ->  | BI42: 1 | BJ42: 1.043478261 | BK42: 0.4188111889 | BN42: =(BL42*(PROPS!AC99))/(2*PROPS!AK99) ->  | BU42: =(BS42*(N42))/(2*PROPS!AK99) ->  | BV42: 19.524618 | BW42: =((AW42)/(3.14159*PROPS!AQ99)*(($B$8/(29*(10)^3))^0.5)) ->  | BX42: 48625.58691 | BY42: =IF(BW42*(PROPS!AA99^0.5)<=1.5,(PROPS!AA99*$B$8*1000)*(0.658^(PROPS!AA99*(BW42^2))),(0.877*$B$8*1000)/((BW42)^2)) ->  | BZ42: 750813.2331 | CA42: 1837773.598 | CE42: =IF(BH42/($B$19*BY42)>=0.2,(BH42/($B$19*BY42)+((CC42*BU42)/((1-(BH42/CA42))*PROPS!AA99*$B$19*($B$8*1000)))*(8/9)),(BH42/(2*$B$19*BY42)+((CC42*BU42)/((1-(BH42/CA42))*PROPS!AA99*$B$19*($B$8*1000))))) ->  | CZ42: =IF(AND(Z42+AG42+AQ42+BR42+CG42+CR42+CX42=7,W42+K42<=PROPS!$A$71),PROPS!O99,"") ->  | DC42: 14.218 | DD42: 0.625 | DE42: 119.0206922 | DF42: 1.73 | DG42: 6 | DH42: =BC!$F$23 ->  | DI42: =BC!$F$27 ->  | DJ42: =2*((BC!$F$26/2)+((BC!$F$23/2)*(BC!$F$21+(G42/2))^2)) ->  | DK42: =BC!$F$21 ->  | DL42: =BC!$F$28 ->  | DM42: =INPUT!$C$7*12 -> 480 | DN42: =INPUT!$C$8 -> 24 | DO42: =(1.2*INPUT!$I$22)/(0.8*1*1*0.9) -> 416.6666667 | DP42: 29000000 | DQ42: 11165000 | DR42: 3.14159 | DS42: =1.3*(BC!$F$25+(0.283565*M42*24*INPUT!$C$7))/(INPUT!$C$7*12) ->  | DT42: =INPUT!$I$23 -> 0.85 | EE42: 0.7514275928 | EK42: 491.8593169 | EL42: 1 | EM42: 248 | EN42: 48094.18736 | EO42: 1 | EP42: 1 | EQ42: 248 | ER42: 48094.18736 | ES42: 1 | EV42: 578.6580199 | HH42: =IF(ROUNDDOWN((INPUT!$C$7*12)/(HG42+8),0)>0,ROUNDDOWN((INPUT!$C$7*12)/(HG42+8),0),0) -> 
E43: 96 | F43: 96 | G43: 1 | H43: 143.6538475 | I43: 39 | J43: 6075 | K43: 6 | L43: 0.75 | M43: 8.438 | N43: 1.775 | O43: 28.155 | P43: 11.617 | Q43: 1 | R43: 1.827 | S43: 2.917587387 | T43: 1.173 | U43: =$B$6-MAX(BC!$B$21,BC!$F$21)-TC!N43 ->  | W43: 1.25 | X43: 0.167 | Y43: 1.75 | Z43: 1 | AH43: 9.852216749 | AI43: 12.33896204 | AJ43: 10.23017903 | AK43: 12.33896204 | AL43: 1879921.668 | AM43: 49446.48054 | AN43: 2948689.845 | AR43: 1215480.578 | AS43: 49146.49449 | AW43: =PANELS!$I$27-2 -> 23 | AX43: =PANELS!$I$30 -> 23 | AY43: 24 | AZ43: =PANELS!$I$36-2 -> 28 | BH43: =BF43/(PROPS!AB100*2) ->  | BI43: 1 | BJ43: 1.043478261 | BK43: 0.4188111889 | BN43: =(BL43*(PROPS!AC100))/(2*PROPS!AK100) ->  | BU43: =(BS43*(N43))/(2*PROPS!AK100) ->  | BV43: 19.60784314 | BW43: =((AW43)/(3.14159*PROPS!AQ100)*(($B$8/(29*(10)^3))^0.5)) ->  | BX43: 48614.00913 | BY43: =IF(BW43*(PROPS!AA100^0.5)<=1.5,(PROPS!AA100*$B$8*1000)*(0.658^(PROPS!AA100*(BW43^2))),(0.877*$B$8*1000)/((BW43)^2)) ->  | BZ43: 744453.1327 | CA43: 1806002.854 | CE43: =IF(BH43/($B$19*BY43)>=0.2,(BH43/($B$19*BY43)+((CC43*BU43)/((1-(BH43/CA43))*PROPS!AA100*$B$19*($B$8*1000)))*(8/9)),(BH43/(2*$B$19*BY43)+((CC43*BU43)/((1-(BH43/CA43))*PROPS!AA100*$B$19*($B$8*1000))))) ->  | CZ43: =IF(AND(Z43+AG43+AQ43+BR43+CG43+CR43+CX43=7,W43+K43<=PROPS!$A$71),PROPS!O100,"") ->  | DC43: 16.876 | DD43: 0.75 | DE43: 143.6538475 | DF43: 1.775 | DG43: 6 | DH43: =BC!$F$23 ->  | DI43: =BC!$F$27 ->  | DJ43: =2*((BC!$F$26/2)+((BC!$F$23/2)*(BC!$F$21+(G43/2))^2)) ->  | DK43: =BC!$F$21 ->  | DL43: =BC!$F$28 ->  | DM43: =INPUT!$C$7*12 -> 480 | DN43: =INPUT!$C$8 -> 24 | DO43: =(1.2*INPUT!$I$22)/(0.8*1*1*0.9) -> 416.6666667 | DP43: 29000000 | DQ43: 11165000 | DR43: 3.14159 | DS43: =1.3*(BC!$F$25+(0.283565*M43*24*INPUT!$C$7))/(INPUT!$C$7*12) ->  | DT43: =INPUT!$I$23 -> 0.85 | EE43: 0.7514275928 | EK43: 495.9898557 | EL43: 1 | EM43: 248 | EN43: 48905.35037 | EO43: 1 | EP43: 1 | EQ43: 248 | ER43: 48905.35037 | ES43: 1 | EV43: 583.5174773 | HH43: =IF(ROUNDDOWN((INPUT!$C$7*12)/(HG43+8),0)>0,ROUNDDOWN((INPUT!$C$7*12)/(HG43+8),0),0) -> 
E44: 98 | F44: 98
E45: 100 | F45: 100 | S45: CONVRG | BQ45: =IF($B$26<=2,IF(AND(AW5/R5<=120,AX5/R5<=120,(AW5/2)/T5<=120,(AX5/2)/T5<=120,BO5<=(0.9*$B$19*($B$8*1000))),1,0),IF(AND(AW5/R5<=120,AX5/R5<=120,(AW5/2)/T5<=120,(AX5/2)/T5<=120,BO5<=($B$19*($B$8*1000))),1,0)) ->  | CF45: =IF($B$26<=2,IF(AND(CD5<=0.9,CD5>=0),1,0),IF(AND(CD5<=1,CD5>=0),1,0)) ->  | CQ45: =IF($B$26<=2,IF(CO5<=(0.9*$B$19*($B$8*1000)),1,0),IF(CO5<=($B$19*($B$8*1000)),1,0)) ->  | CW45: =IF($B$26<=2,IF(AND(CU5<=0.9,CU5>=0),1,0),IF(AND(CU5<=1,CU5>=0),1,0)) ->  | FB45: =EZ25/FA25 ->  | FE45: =FC25/FD25 ->  | FH45: =FF25/FG25 ->  | FK45: =FI25/FJ25 ->  | FN45: =FL25/FM25 ->  | FQ45: =FO25/FP25 ->  | FT45: =FR25/FS25 ->  | FW45: =FU25/FV25 ->  | FZ45: =FX25/FY25 ->  | GC45: =GA25/GB25 ->  | GF45: =GD25/GE25 ->  | GI45: =GG25/GH25 ->  | GL45: =GJ25/GK25 ->  | GO45: =GM25/GN25 ->  | GR45: =GP25/GQ25 ->  | GU45: =GS25/GT25 ->  | GX45: =GV25/GW25 ->  | HA45: =GY25/GZ25 ->  | HD45: =HB25/HC25 ->  | HG45: =HE25/HF25 -> 
E46: 102 | F46: 102 | I46: HORIZ BRIDGING (see also EJ4:EN4) | S46: =VLOOKUP(B17,CY5:GO43,95)/12 -> 
E47: 104 | F47: 104 | I47: Fcr br (tc) | J47: =VLOOKUP(B17,J5:ER43,139) ->  | M47: HORIZONTAL | Q47: X-BRIDGING | AD47: TC PP CHECK AT W3/W4 | AH47: bot tip | AP47: TOTAL | EX47: f(L) pieces
E48: 106 | F48: 106 | I48: matl | J48: AREA | K48: RZ | L48: Fcr | M48: phiAbrFbr | N48: Pbr | Q48: phiAbrFtbr | R48: Pbr | U48: TOT ROWS | V48: X ROWS | W48: BRDG | Z48: type | AA48: H | AB48: X | AD48: Lss | AE48: Ftc v | AF48: ftc | AG48: Mppdl | AH48: fppdl | AI48: ybartc | AJ48: Icomptc | AK48: Stip | AL48: Sheel | AM48: wT | AN48: Mppcomp | AO48: ftip | AP48: fbotT | AQ48: V | AR48: fv | AS48: fvmodtc | AT48: check | EK48: Equation 104.5-1a per SJI Composite brdg sub-committee 4/16/07 | EW48: 1 | EX48: =((((3.14159^2/24)+0.125)^2)*($DS33^2)*($DM33^2)) -> 
E49: 108 | F49: 108 | I49: 1010 | J49: 0.206 | K49: 0.196 | L49: =(0.877*(3.14159^2)*(29*10^6))/(((INPUT!$C$10*12)/(K49))^2) -> 1860.131952 | M49: =$B$19*J49*L49 -> 344.8684639 | N49: =0.0025*8*MAX(12200,((3.14159^2)*(29*10^6))/(((0.9*EK49)/S5)^2))*$B$24 ->  | O49: =IF(AND(M49>1.4*N49,INPUT!$C$10*12/K49<=300),I49,"") ->  | Q49: =$B$19*J49*($B$8*1000) -> 9270 | R49: =(0.0025*2*MAX(12200,((3.14159^2)*(29*10^6))/(((0.9*EK49)/S5)^2))*$B$24)/COS(ATAN(WEBS!$E$2/(INPUT!$C$10*12))) ->  | S49: =IF(AND(Q49>1.4*R49,(0.5*((((INPUT!$C$10*12)^2)+((INPUT!$C$8)^2))^0.5))/K49<=200),I49,"") ->  | U49: =MAX(EP5,1) -> 4 | V49: =IF(INPUT!$C$7>60,MAX(2,U49),IF(MIN($O$49:$O$87)<=2525,HH5,U49)) ->  | W49: =IF(AND(U49>0,V49>0,V49<U49),CONCATENATE("(",V49,")X+(",U49-V49,")H"),IF(AND(U49>0,V49=0,MIN($O$49:$O$87)<3022),CONCATENATE("(",U49,")H"),IF(OR(V49>=U49,MIN($O$49:$O$87)>=3022),CONCATENATE("(",MAX(U49,V49,1),")X")))) ->  | X49: =IF(AND(U49>0,V49>0,V49<U49),CONCATENATE(VLOOKUP(MIN($S$49:$S$87),PROPS!$B$3:$AF$43,31),"X+",VLOOKUP(MIN($O$49:$O$87),PROPS!$B$3:$AF$43,31),"H"),IF(AND(U49>0,V49=0,MIN($O$49:$O$87)<3022),CONCATENATE(VLOOKUP(MIN($O$49:$O$87),PROPS!$B$3:$AF$43,31),"H"),IF(OR(V49>=U49,MIN($O$49:$O$87)>=3022),CONCATENATE(VLOOKUP(MIN($S$49:$S$87),PROPS!$B$3:$AF$43,31),"X")))) ->  | Y49: =VLOOKUP(B17,I49:W87,15) ->  | Z49: qty | AA49: =(VLOOKUP(B17,I49:U87,13)-VLOOKUP(B17,I49:V87,14))*2 ->  | AB49: =VLOOKUP(B17,I49:V87,14)*2 ->  | AC49: 1010 | AD49: =SUM(AW5+AX5+2) -> 48 | AE49: =(((WEBS!$G$10*AD49)-((INPUT!$D$30/12)*((AD49^2)/2)))/(INPUT!$C$8-BC!$F$21-N5))-(AD49*STUDS!$AK$55*(MIN(STUDS!$AF$59:$AI$59)*1000))/(INPUT!$C$7*12) ->  | AF49: =AE49/(2*M5) ->  | AG49: =1.2*(INPUT!$E$15*INPUT!$C$10/12)*(PANELS!$I$33^2)/12 ->  | AH49: =AG49*(K5-N5)/(2*O5) ->  | AI49: =((DEFL!$C$7*INPUT!$H$9/2)+(2*M5)*(N5+INPUT!$H$6+INPUT!$H$9))/((2*M5)+DEFL!$C$7) -> 1.304382718 | AJ49: =(BC!$F$6/(12*DEFL!$C$6))*(INPUT!$H$9^3)+(2*O5)+((AI49-(INPUT!$H$9/2))^2)*(DEFL!$C$7)+((INPUT!$H$9+INPUT!$H$6+N5-AI49)^2)*(2*M5) -> 15.55807496 | AK49: =AJ49/(INPUT!$H$6+INPUT!$H$9+K5-AI49) -> 4.209871794 | AL49: =AJ49/(INPUT!$H$6+INPUT!$H$9-AI49) -> 5.771618641 | AM49: =((1.2*INPUT!$C$23*INPUT!$C$10)+(1.6*INPUT!$D$25*INPUT!$C$10))/12 -> 65.8178046 | AN49: =AM49*(PANELS!$I$33^2)/12 -> 3159.254621 | AO49: =AN49/AK49 -> 750.4396276 | AP49: =AH49+AF49+AO49 ->  | AQ49: =WEBS!$G$10-($AD$49*($B$14/12)) ->  | AR49: =AQ49/(2*K5*L5) ->  | AS49: =0.5*((AF49^2)+4*(AR49^2))^0.5 ->  | AT49: =IF(AND(AS49<=1*0.6*$B$8*1000,L5>=X5),1,0) ->  | AU49: =IF(AT49=0,"",AC49) ->  | AW49: 10 | AX49: 10 | AY49: 1010 | EK49: =(100+(0.67*INPUT!$C$8)+(40*(INPUT!$C$8/INPUT!$C$7)))*S5 -> 118.558751 | EL49: =IF(EK5<EK49,"","CONTROLS") -> CONTROLS | EW49: 2 | EX49: =(($DO33/192)*((3.14159^2)+3)*((3.14159^2)+4)) -> 387.3608421
E50: 110 | F50: 110 | I50: 1210 | J50: 0.261 | K50: 0.247 | L50: =(0.877*(3.14159^2)*(29*10^6))/(((INPUT!$C$10*12)/(K50))^2) -> 2954.102204 | M50: =$B$19*J50*L50 -> 693.9186077 | N50: =0.0025*8*MAX(12200,((3.14159^2)*(29*10^6))/(((0.9*EK50)/S6)^2))*$B$24 ->  | O50: =IF(AND(M50>1.4*N50,INPUT!$C$10*12/K50<=300),I50,"") ->  | Q50: =$B$19*J50*($B$8*1000) -> 11745 | R50: =(0.0025*2*MAX(12200,((3.14159^2)*(29*10^6))/(((0.9*EK50)/S6)^2))*$B$24)/COS(ATAN(WEBS!$E$2/(INPUT!$C$10*12))) ->  | S50: =IF(AND(Q50>1.4*R50,(0.5*((((INPUT!$C$10*12)^2)+((INPUT!$C$8)^2))^0.5))/K50<=200),I50,"") ->  | U50: =MAX(EP6,1) -> 3 | V50: =IF(INPUT!$C$7>60,MAX(2,U50),IF(MIN($O$49:$O$87)<=2525,HH6,U50)) ->  | X50: =IF(AND(U50>0,V50>0,V50<U50),CONCATENATE(VLOOKUP(MIN($S$49:$S$87),PROPS!$B$3:$AF$43,31),"X+",VLOOKUP(MIN($O$49:$O$87),PROPS!$B$3:$AF$43,31),"H"),IF(AND(U50>0,V50=0,MIN($O$49:$O$87)<3022),CONCATENATE(VLOOKUP(MIN($O$49:$O$87),PROPS!$B$3:$AF$43,31),"H"),IF(OR(V50>=U50,MIN($O$49:$O$87)>=3022),CONCATENATE(VLOOKUP(MIN($S$49:$S$87),PROPS!$B$3:$AF$43,31),"X")))) ->  | Y50: =VLOOKUP(B17,I49:X87,16) ->  | Z50: lgth | AA50: =12*INPUT!C10 -> 72 | AB50: =((AA50^2)+(B6^2))^0.5 -> 75.89466384 | AC50: 1210 | AD50: =SUM(AW6+AX6+2) -> 48 | AE50: =(((WEBS!$G$10*AD50)-((INPUT!$D$30/12)*((AD50^2)/2)))/(INPUT!$C$8-BC!$F$21-N6))-(AD50*STUDS!$AK$55*(MIN(STUDS!$AF$59:$AI$59)*1000))/(INPUT!$C$7*12) ->  | AF50: =AE50/(2*M6) ->  | AG50: =1.2*(INPUT!$E$15*INPUT!$C$10/12)*(PANELS!$I$33^2)/12 ->  | AH50: =AG50*(K6-N6)/(2*O6) ->  | AI50: =((DEFL!$C$7*INPUT!$H$9/2)+(2*M6)*(N6+INPUT!$H$6+INPUT!$H$9))/((2*M6)+DEFL!$C$7) -> 1.319995971 | AJ50: =(BC!$F$6/(12*DEFL!$C$6))*(INPUT!$H$9^3)+(2*O6)+((AI50-(INPUT!$H$9/2))^2)*(DEFL!$C$7)+((INPUT!$H$9+INPUT!$H$6+N6-AI50)^2)*(2*M6) -> 16.76540583 | AK50: =AJ50/(INPUT!$H$6+INPUT!$H$9+K6-AI50) -> 4.266002199 | AL50: =AJ50/(INPUT!$H$6+INPUT!$H$9-AI50) -> 6.255739039 | AM50: =((1.2*INPUT!$C$23*INPUT!$C$10)+(1.6*INPUT!$D$25*INPUT!$C$10))/12 -> 65.8178046 | AN50: =AM50*(PANELS!$I$33^2)/12 -> 3159.254621 | AO50: =AN50/AK50 -> 740.5656335 | AP50: =AH50+AF50+AO50 ->  | AQ50: =WEBS!$G$10-($AD$49*($B$14/12)) ->  | AR50: =AQ50/(2*K6*L6) ->  | AS50: =0.5*((AF50^2)+4*(AR50^2))^0.5 ->  | AT50: =IF(AND(AS50<=1*0.6*$B$8*1000,L6>=X6),1,0) ->  | AU50: =IF(AT50=0,"",AC50) ->  | AW50: 12 | AX50: 10 | AY50: 1210 | EK50: =(100+(0.67*INPUT!$C$8)+(40*(INPUT!$C$8/INPUT!$C$7)))*S6 -> 130.3225933 | EL50: =IF(EK6<EK50,"","CONTROLS") -> CONTROLS | EW50: 3 | EX50: =-(((3.14159^4)/2)*(29*10^6)*($DY33/(($DT33^3)*($DM33^3)))) -> 
E51: 112 | F51: 112 | I51: 1212 | J51: 0.297 | K51: 0.246 | L51: =(0.877*(3.14159^2)*(29*10^6))/(((INPUT!$C$10*12)/(K51))^2) -> 2930.230769 | M51: 783.2506845 | O51: =IF(AND(M51>1.4*N51,INPUT!$C$10*12/K51<=300),I51,"") ->  | Q51: 13365 | R51: =(0.0025*2*MAX(12200,((3.14159^2)*(29*10^6))/(((0.9*EK51)/S7)^2))*$B$24)/COS(ATAN(WEBS!$E$2/(INPUT!$C$10*12))) ->  | S51: =IF(AND(Q51>1.4*R51,(0.5*((((INPUT!$C$10*12)^2)+((INPUT!$C$8)^2))^0.5))/K51<=200),I51,"") ->  | U51: 3 | V51: =IF(INPUT!$C$7>60,MAX(2,U51),IF(MIN($O$49:$O$87)<=2525,HH7,U51)) ->  | X51: =IF(AND(U51>0,V51>0,V51<U51),CONCATENATE(VLOOKUP(MIN($S$49:$S$87),PROPS!$B$3:$AF$43,31),"X+",VLOOKUP(MIN($O$49:$O$87),PROPS!$B$3:$AF$43,31),"H"),IF(AND(U51>0,V51=0,MIN($O$49:$O$87)<3022),CONCATENATE(VLOOKUP(MIN($O$49:$O$87),PROPS!$B$3:$AF$43,31),"H"),IF(OR(V51>=U51,MIN($O$49:$O$87)>=3022),CONCATENATE(VLOOKUP(MIN($S$49:$S$87),PROPS!$B$3:$AF$43,31),"X")))) ->  | Z51: mat'l | AA51: =MIN(O49:O87) ->  | AB51: =MIN(S49:S87) ->  | AC51: 1212 | AD51: 48 | AE51: =(((WEBS!$G$10*AD51)-((INPUT!$D$30/12)*((AD51^2)/2)))/(INPUT!$C$8-BC!$F$21-N7))-(AD51*STUDS!$AK$55*(MIN(STUDS!$AF$59:$AI$59)*1000))/(INPUT!$C$7*12) ->  | AG51: =1.2*(INPUT!$E$15*INPUT!$C$10/12)*(PANELS!$I$33^2)/12 ->  | AI51: =((DEFL!$C$7*INPUT!$H$9/2)+(2*M7)*(N7+INPUT!$H$6+INPUT!$H$9))/((2*M7)+DEFL!$C$7) -> 1.329557069 | AJ51: =(BC!$F$6/(12*DEFL!$C$6))*(INPUT!$H$9^3)+(2*O7)+((AI51-(INPUT!$H$9/2))^2)*(DEFL!$C$7)+((INPUT!$H$9+INPUT!$H$6+N7-AI51)^2)*(2*M7) -> 17.46326064 | AK51: =AJ51/(INPUT!$H$6+INPUT!$H$9+K7-AI51) -> 4.454410113 | AL51: =AJ51/(INPUT!$H$6+INPUT!$H$9-AI51) -> 6.539462213 | AM51: =((1.2*INPUT!$C$23*INPUT!$C$10)+(1.6*INPUT!$D$25*INPUT!$C$10))/12 -> 65.8178046 | AN51: =AM51*(PANELS!$I$33^2)/12 -> 3159.254621 | AO51: 709.2419739 | AQ51: =WEBS!$G$10-($AD$49*($B$14/12)) ->  | AW51: 12 | AX51: 12 | AY51: 1212 | EK51: =(100+(0.67*INPUT!$C$8)+(40*(INPUT!$C$8/INPUT!$C$7)))*S7 -> 131.8560732 | EL51: CONTROLS | EW51: 4 | EX51: =(((((3.14159^2)/24)-0.125)*$EC33)-$EA33/2) ->  | EY51: =((((3.14159^2/24)+0.125)^2)*($DS33^2)*($DM33^2))+((($DO33/192)*((3.14159^2)+3)*((3.14159^2)+4))-(((3.14159^4)/2)*(29*10^6)*($DY33/(($DT33^3)*($DM33^3))))*(((((3.14159^2)/24)-0.125)*$EC33)-$EA33/2))*$DS33*$DM33 -> 
E52: 114 | F52: 114 | I52: 1510 | J52: 0.315 | K52: 0.297 | L52: =(0.877*(3.14159^2)*(29*10^6))/(((INPUT!$C$10*12)/(K52))^2) -> 4271.146901 | M52: 1210.870147 | O52: =IF(AND(M52>1.4*N52,INPUT!$C$10*12/K52<=300),I52,"") ->  | Q52: 14175 | R52: =(0.0025*2*MAX(12200,((3.14159^2)*(29*10^6))/(((0.9*EK52)/S8)^2))*$B$24)/COS(ATAN(WEBS!$E$2/(INPUT!$C$10*12))) ->  | S52: =IF(AND(Q52>1.4*R52,(0.5*((((INPUT!$C$10*12)^2)+((INPUT!$C$8)^2))^0.5))/K52<=200),I52,"") ->  | U52: 3 | V52: =IF(INPUT!$C$7>60,MAX(2,U52),IF(MIN($O$49:$O$87)<=2525,HH8,U52)) ->  | X52: =IF(AND(U52>0,V52>0,V52<U52),CONCATENATE(VLOOKUP(MIN($S$49:$S$87),PROPS!$B$3:$AF$43,31),"X+",VLOOKUP(MIN($O$49:$O$87),PROPS!$B$3:$AF$43,31),"H"),IF(AND(U52>0,V52=0,MIN($O$49:$O$87)<3022),CONCATENATE(VLOOKUP(MIN($O$49:$O$87),PROPS!$B$3:$AF$43,31),"H"),IF(OR(V52>=U52,MIN($O$49:$O$87)>=3022),CONCATENATE(VLOOKUP(MIN($S$49:$S$87),PROPS!$B$3:$AF$43,31),"X")))) ->  | Z52: A | AA52: =VLOOKUP(AA51,I49:J87,2) ->  | AB52: =VLOOKUP(AB51,I49:J87,2) ->  | AC52: 1510 | AD52: 48 | AE52: =(((WEBS!$G$10*AD52)-((INPUT!$D$30/12)*((AD52^2)/2)))/(INPUT!$C$8-BC!$F$21-N8))-(AD52*STUDS!$AK$55*(MIN(STUDS!$AF$59:$AI$59)*1000))/(INPUT!$C$7*12) ->  | AG52: =1.2*(INPUT!$E$15*INPUT!$C$10/12)*(PANELS!$I$33^2)/12 ->  | AI52: =((DEFL!$C$7*INPUT!$H$9/2)+(2*M8)*(N8+INPUT!$H$6+INPUT!$H$9))/((2*M8)+DEFL!$C$7) -> 1.335765547 | AJ52: =(BC!$F$6/(12*DEFL!$C$6))*(INPUT!$H$9^3)+(2*O8)+((AI52-(INPUT!$H$9/2))^2)*(DEFL!$C$7)+((INPUT!$H$9+INPUT!$H$6+N8-AI52)^2)*(2*M8) -> 18.05848856 | AK52: =AJ52/(INPUT!$H$6+INPUT!$H$9+K8-AI52) -> 4.336568645 | AL52: =AJ52/(INPUT!$H$6+INPUT!$H$9-AI52) -> 6.778115394 | AM52: =((1.2*INPUT!$C$23*INPUT!$C$10)+(1.6*INPUT!$D$25*INPUT!$C$10))/12 -> 65.8178046 | AN52: =AM52*(PANELS!$I$33^2)/12 -> 3159.254621 | AO52: 728.5148419 | AQ52: =WEBS!$G$10-($AD$49*($B$14/12)) ->  | AW52: 15 | AX52: 10 | AY52: 1510 | EK52: =(100+(0.67*INPUT!$C$8)+(40*(INPUT!$C$8/INPUT!$C$7)))*S8 -> 143.9673942 | EL52: CONTROLS | EW52: 5 | EX52: =(((((3.14159^2)/16)+0.25)^2)*($DO33^2)) -> 130456.1793
E53: 116 | F53: 116 | I53: 1512 | J53: 0.354 | K53: 0.296 | L53: =(0.877*(3.14159^2)*(29*10^6))/(((INPUT!$C$10*12)/(K53))^2) -> 4242.43339 | M53: 1351.639278 | O53: =IF(AND(M53>1.4*N53,INPUT!$C$10*12/K53<=300),I53,"") ->  | Q53: 15930 | R53: =(0.0025*2*MAX(12200,((3.14159^2)*(29*10^6))/(((0.9*EK53)/S9)^2))*$B$24)/COS(ATAN(WEBS!$E$2/(INPUT!$C$10*12))) ->  | S53: =IF(AND(Q53>1.4*R53,(0.5*((((INPUT!$C$10*12)^2)+((INPUT!$C$8)^2))^0.5))/K53<=200),I53,"") ->  | U53: 3 | V53: =IF(INPUT!$C$7>60,MAX(2,U53),IF(MIN($O$49:$O$87)<=2525,HH9,U53)) ->  | X53: =IF(AND(U53>0,V53>0,V53<U53),CONCATENATE(VLOOKUP(MIN($S$49:$S$87),PROPS!$B$3:$AF$43,31),"X+",VLOOKUP(MIN($O$49:$O$87),PROPS!$B$3:$AF$43,31),"H"),IF(AND(U53>0,V53=0,MIN($O$49:$O$87)<3022),CONCATENATE(VLOOKUP(MIN($O$49:$O$87),PROPS!$B$3:$AF$43,31),"H"),IF(OR(V53>=U53,MIN($O$49:$O$87)>=3022),CONCATENATE(VLOOKUP(MIN($S$49:$S$87),PROPS!$B$3:$AF$43,31),"X")))) ->  | Z53: wt | AA53: =IF(AA49=0,0,(490/1728)*AA52*AA50*AA49) ->  | AB53: =IF(AB49=0,0,(490/1728)*AB52*AB50*AB49) ->  | AC53: 1512 | AD53: 48 | AE53: =(((WEBS!$G$10*AD53)-((INPUT!$D$30/12)*((AD53^2)/2)))/(INPUT!$C$8-BC!$F$21-N9))-(AD53*STUDS!$AK$55*(MIN(STUDS!$AF$59:$AI$59)*1000))/(INPUT!$C$7*12) ->  | AG53: =1.2*(INPUT!$E$15*INPUT!$C$10/12)*(PANELS!$I$33^2)/12 ->  | AI53: =((DEFL!$C$7*INPUT!$H$9/2)+(2*M9)*(N9+INPUT!$H$6+INPUT!$H$9))/((2*M9)+DEFL!$C$7) -> 1.346213607 | AJ53: =(BC!$F$6/(12*DEFL!$C$6))*(INPUT!$H$9^3)+(2*O9)+((AI53-(INPUT!$H$9/2))^2)*(DEFL!$C$7)+((INPUT!$H$9+INPUT!$H$6+N9-AI53)^2)*(2*M9) -> 18.83333225 | AK53: =AJ53/(INPUT!$H$6+INPUT!$H$9+K9-AI53) -> 4.534015587 | AL53: =AJ53/(INPUT!$H$6+INPUT!$H$9-AI53) -> 7.096777759 | AM53: =((1.2*INPUT!$C$23*INPUT!$C$10)+(1.6*INPUT!$D$25*INPUT!$C$10))/12 -> 65.8178046 | AN53: =AM53*(PANELS!$I$33^2)/12 -> 3159.254621 | AO53: 696.7895368 | AQ53: =WEBS!$G$10-($AD$49*($B$14/12)) ->  | AW53: 15 | AX53: 12 | AY53: 1512 | EK53: =(100+(0.67*INPUT!$C$8)+(40*(INPUT!$C$8/INPUT!$C$7)))*S9 -> 144.4872151 | EL53: CONTROLS | EW53: 6 | EX53: =-(((3.14159^4)/2)*(29*10^6)*($DY33/(($DT33^3)*($DM33^3)))) -> 
E54: 118 | F54: 118 | I54: 1513 | J54: 0.395 | K54: 0.295 | L54: =(0.877*(3.14159^2)*(29*10^6))/(((INPUT!$C$10*12)/(K54))^2) -> 4213.81672 | M54: 1498.011844 | O54: =IF(AND(M54>1.4*N54,INPUT!$C$10*12/K54<=300),I54,"") ->  | Q54: 17775 | R54: =(0.0025*2*MAX(12200,((3.14159^2)*(29*10^6))/(((0.9*EK54)/S10)^2))*$B$24)/COS(ATAN(WEBS!$E$2/(INPUT!$C$10*12))) ->  | S54: =IF(AND(Q54>1.4*R54,(0.5*((((INPUT!$C$10*12)^2)+((INPUT!$C$8)^2))^0.5))/K54<=200),I54,"") ->  | U54: 3 | V54: =IF(INPUT!$C$7>60,MAX(2,U54),IF(MIN($O$49:$O$87)<=2525,HH10,U54)) ->  | X54: =IF(AND(U54>0,V54>0,V54<U54),CONCATENATE(VLOOKUP(MIN($S$49:$S$87),PROPS!$B$3:$AF$43,31),"X+",VLOOKUP(MIN($O$49:$O$87),PROPS!$B$3:$AF$43,31),"H"),IF(AND(U54>0,V54=0,MIN($O$49:$O$87)<3022),CONCATENATE(VLOOKUP(MIN($O$49:$O$87),PROPS!$B$3:$AF$43,31),"H"),IF(OR(V54>=U54,MIN($O$49:$O$87)>=3022),CONCATENATE(VLOOKUP(MIN($S$49:$S$87),PROPS!$B$3:$AF$43,31),"X")))) ->  | Z54: brdg psf | AA54: =AA53/(INPUT!C7*INPUT!C10) ->  | AB54: =AB53/(INPUT!C7*INPUT!C10) ->  | AC54: 1513 | AD54: 48 | AE54: =(((WEBS!$G$10*AD54)-((INPUT!$D$30/12)*((AD54^2)/2)))/(INPUT!$C$8-BC!$F$21-N10))-(AD54*STUDS!$AK$55*(MIN(STUDS!$AF$59:$AI$59)*1000))/(INPUT!$C$7*12) ->  | AG54: =1.2*(INPUT!$E$15*INPUT!$C$10/12)*(PANELS!$I$33^2)/12 ->  | AI54: =((DEFL!$C$7*INPUT!$H$9/2)+(2*M10)*(N10+INPUT!$H$6+INPUT!$H$9))/((2*M10)+DEFL!$C$7) -> 1.357183412 | AJ54: =(BC!$F$6/(12*DEFL!$C$6))*(INPUT!$H$9^3)+(2*O10)+((AI54-(INPUT!$H$9/2))^2)*(DEFL!$C$7)+((INPUT!$H$9+INPUT!$H$6+N10-AI54)^2)*(2*M10) -> 19.65043259 | AK54: =AJ54/(INPUT!$H$6+INPUT!$H$9+K10-AI54) -> 4.7432543 | AL54: =AJ54/(INPUT!$H$6+INPUT!$H$9-AI54) -> 7.435412917 | AM54: =((1.2*INPUT!$C$23*INPUT!$C$10)+(1.6*INPUT!$D$25*INPUT!$C$10))/12 -> 65.8178046 | AN54: =AM54*(PANELS!$I$33^2)/12 -> 3159.254621 | AO54: 666.0521281 | AQ54: =WEBS!$G$10-($AD$49*($B$14/12)) ->  | AW54: 15 | AX54: 13 | AY54: 1513 | EK54: =(100+(0.67*INPUT!$C$8)+(40*(INPUT!$C$8/INPUT!$C$7)))*S10 -> 145.0802733 | EL54: CONTROLS | EW54: 7 | EX54: =(((3.14159^4)/2)*(29*10^6)*($EB33/(($DT33^3)*($DM33^3)))) -> 
E55: 120 | F55: 120 | I55: 1515 | J55: 0.441 | K55: 0.295 | L55: =(0.877*(3.14159^2)*(29*10^6))/(((INPUT!$C$10*12)/(K55))^2) -> 4213.81672 | M55: 1672.463856 | O55: =IF(AND(M55>1.4*N55,INPUT!$C$10*12/K55<=300),I55,"") ->  | Q55: 19845 | R55: =(0.0025*2*MAX(12200,((3.14159^2)*(29*10^6))/(((0.9*EK55)/S11)^2))*$B$24)/COS(ATAN(WEBS!$E$2/(INPUT!$C$10*12))) ->  | S55: =IF(AND(Q55>1.4*R55,(0.5*((((INPUT!$C$10*12)^2)+((INPUT!$C$8)^2))^0.5))/K55<=200),I55,"") ->  | U55: 3 | V55: =IF(INPUT!$C$7>60,MAX(2,U55),IF(MIN($O$49:$O$87)<=2525,HH11,U55)) ->  | X55: =IF(AND(U55>0,V55>0,V55<U55),CONCATENATE(VLOOKUP(MIN($S$49:$S$87),PROPS!$B$3:$AF$43,31),"X+",VLOOKUP(MIN($O$49:$O$87),PROPS!$B$3:$AF$43,31),"H"),IF(AND(U55>0,V55=0,MIN($O$49:$O$87)<3022),CONCATENATE(VLOOKUP(MIN($O$49:$O$87),PROPS!$B$3:$AF$43,31),"H"),IF(OR(V55>=U55,MIN($O$49:$O$87)>=3022),CONCATENATE(VLOOKUP(MIN($S$49:$S$87),PROPS!$B$3:$AF$43,31),"X")))) ->  | AC55: 1515 | AD55: 48 | AE55: =(((WEBS!$G$10*AD55)-((INPUT!$D$30/12)*((AD55^2)/2)))/(INPUT!$C$8-BC!$F$21-N11))-(AD55*STUDS!$AK$55*(MIN(STUDS!$AF$59:$AI$59)*1000))/(INPUT!$C$7*12) ->  | AG55: =1.2*(INPUT!$E$15*INPUT!$C$10/12)*(PANELS!$I$33^2)/12 ->  | AI55: =((DEFL!$C$7*INPUT!$H$9/2)+(2*M11)*(N11+INPUT!$H$6+INPUT!$H$9))/((2*M11)+DEFL!$C$7) -> 1.369422253 | AJ55: =(BC!$F$6/(12*DEFL!$C$6))*(INPUT!$H$9^3)+(2*O11)+((AI55-(INPUT!$H$9/2))^2)*(DEFL!$C$7)+((INPUT!$H$9+INPUT!$H$6+N11-AI55)^2)*(2*M11) -> 20.56384697 | AK55: =AJ55/(INPUT!$H$6+INPUT!$H$9+K11-AI55) -> 4.978443267 | AL55: =AJ55/(INPUT!$H$6+INPUT!$H$9-AI55) -> 7.817235965 | AM55: =((1.2*INPUT!$C$23*INPUT!$C$10)+(1.6*INPUT!$D$25*INPUT!$C$10))/12 -> 65.8178046 | AN55: =AM55*(PANELS!$I$33^2)/12 -> 3159.254621 | AO55: 634.586848 | AQ55: =WEBS!$G$10-($AD$49*($B$14/12)) ->  | AW55: 15 | AX55: 15 | AY55: 1515 | EK55: =(100+(0.67*INPUT!$C$8)+(40*(INPUT!$C$8/INPUT!$C$7)))*S11 -> 145.6950476 | EL55: CONTROLS | EW55: 8 | EX55: =(((3.14159^2)/2)*$DQ33*($DW33/($DT33*$DM33))) -> 
E56: Lp | F56: =VLOOKUP(B6,E6:F55,2) -> 24 | I56: 1517 | J56: 0.481 | K56: 0.294 | L56: =(0.877*(3.14159^2)*(29*10^6))/(((INPUT!$C$10*12)/(K56))^2) -> 4185.296892 | M56: 1811.815025 | O56: =IF(AND(M56>1.4*N56,INPUT!$C$10*12/K56<=300),I56,"") ->  | Q56: 21645 | R56: =(0.0025*2*MAX(12200,((3.14159^2)*(29*10^6))/(((0.9*EK56)/S12)^2))*$B$24)/COS(ATAN(WEBS!$E$2/(INPUT!$C$10*12))) ->  | S56: =IF(AND(Q56>1.4*R56,(0.5*((((INPUT!$C$10*12)^2)+((INPUT!$C$8)^2))^0.5))/K56<=200),I56,"") ->  | U56: 3 | V56: =IF(INPUT!$C$7>60,MAX(2,U56),IF(MIN($O$49:$O$87)<=2525,HH12,U56)) ->  | X56: =IF(AND(U56>0,V56>0,V56<U56),CONCATENATE(VLOOKUP(MIN($S$49:$S$87),PROPS!$B$3:$AF$43,31),"X+",VLOOKUP(MIN($O$49:$O$87),PROPS!$B$3:$AF$43,31),"H"),IF(AND(U56>0,V56=0,MIN($O$49:$O$87)<3022),CONCATENATE(VLOOKUP(MIN($O$49:$O$87),PROPS!$B$3:$AF$43,31),"H"),IF(OR(V56>=U56,MIN($O$49:$O$87)>=3022),CONCATENATE(VLOOKUP(MIN($S$49:$S$87),PROPS!$B$3:$AF$43,31),"X")))) ->  | Z56: TOT BRDG WT, plf | AC56: 1517 | AD56: 48 | AE56: =(((WEBS!$G$10*AD56)-((INPUT!$D$30/12)*((AD56^2)/2)))/(INPUT!$C$8-BC!$F$21-N12))-(AD56*STUDS!$AK$55*(MIN(STUDS!$AF$59:$AI$59)*1000))/(INPUT!$C$7*12) ->  | AG56: =1.2*(INPUT!$E$15*INPUT!$C$10/12)*(PANELS!$I$33^2)/12 ->  | AI56: =((DEFL!$C$7*INPUT!$H$9/2)+(2*M12)*(N12+INPUT!$H$6+INPUT!$H$9))/((2*M12)+DEFL!$C$7) -> 1.380016285 | AJ56: =(BC!$F$6/(12*DEFL!$C$6))*(INPUT!$H$9^3)+(2*O12)+((AI56-(INPUT!$H$9/2))^2)*(DEFL!$C$7)+((INPUT!$H$9+INPUT!$H$6+N12-AI56)^2)*(2*M12) -> 21.35503705 | AK56: =AJ56/(INPUT!$H$6+INPUT!$H$9+K12-AI56) -> 5.183281908 | AL56: =AJ56/(INPUT!$H$6+INPUT!$H$9-AI56) -> 8.150828163 | AM56: =((1.2*INPUT!$C$23*INPUT!$C$10)+(1.6*INPUT!$D$25*INPUT!$C$10))/12 -> 65.8178046 | AN56: =AM56*(PANELS!$I$33^2)/12 -> 3159.254621 | AO56: 609.5085463 | AQ56: =WEBS!$G$10-($AD$49*($B$14/12)) ->  | AW56: 15 | AX56: 17 | AY56: 1517 | EK56: =(100+(0.67*INPUT!$C$8)+(40*(INPUT!$C$8/INPUT!$C$7)))*S12 -> 146.110102 | EL56: CONTROLS | EW56: 9 | EX56: =(($DO33)*(((((3.14159^2)/16)-0.25)*$EC33)-$ED33)) ->  | EY56: =(((((3.14159^2)/16)+0.25)^2)*($DO33^2))-(((3.14159^4)/2)*(29*10^6)*($DY33/(($DT33^3)*($DM33^3))))*((((3.14159^4)/2)*(29*10^6)*($EB33/(($DT33^3)*($DM33^3))))+(((3.14159^2)/2)*$DQ33*($DW33/($DT33*$DM33)))+(($DO33)*(((((3.14159^2)/16)-0.25)*$EC33)-$ED33))) -> 
I57: 1715 | J57: 0.518 | K57: 0.345 | L57: =(0.877*(3.14159^2)*(29*10^6))/(((INPUT!$C$10*12)/(K57))^2) -> 5763.28107 | M57: 2686.841635 | O57: =IF(AND(M57>1.4*N57,INPUT!$C$10*12/K57<=300),I57,"") ->  | Q57: 23310 | R57: =(0.0025*2*MAX(12200,((3.14159^2)*(29*10^6))/(((0.9*EK57)/S13)^2))*$B$24)/COS(ATAN(WEBS!$E$2/(INPUT!$C$10*12))) ->  | S57: =IF(AND(Q57>1.4*R57,(0.5*((((INPUT!$C$10*12)^2)+((INPUT!$C$8)^2))^0.5))/K57<=200),I57,"") ->  | U57: 3 | V57: =IF(INPUT!$C$7>60,MAX(2,U57),IF(MIN($O$49:$O$87)<=2525,HH13,U57)) ->  | X57: =IF(AND(U57>0,V57>0,V57<U57),CONCATENATE(VLOOKUP(MIN($S$49:$S$87),PROPS!$B$3:$AF$43,31),"X+",VLOOKUP(MIN($O$49:$O$87),PROPS!$B$3:$AF$43,31),"H"),IF(AND(U57>0,V57=0,MIN($O$49:$O$87)<3022),CONCATENATE(VLOOKUP(MIN($O$49:$O$87),PROPS!$B$3:$AF$43,31),"H"),IF(OR(V57>=U57,MIN($O$49:$O$87)>=3022),CONCATENATE(VLOOKUP(MIN($S$49:$S$87),PROPS!$B$3:$AF$43,31),"X")))) ->  | Z57: =(AA54+AB54)*INPUT!C10 ->  | AC57: 1715 | AD57: 48 | AE57: =(((WEBS!$G$10*AD57)-((INPUT!$D$30/12)*((AD57^2)/2)))/(INPUT!$C$8-BC!$F$21-N13))-(AD57*STUDS!$AK$55*(MIN(STUDS!$AF$59:$AI$59)*1000))/(INPUT!$C$7*12) ->  | AG57: =1.2*(INPUT!$E$15*INPUT!$C$10/12)*(PANELS!$I$33^2)/12 ->  | AI57: =((DEFL!$C$7*INPUT!$H$9/2)+(2*M13)*(N13+INPUT!$H$6+INPUT!$H$9))/((2*M13)+DEFL!$C$7) -> 1.392119715 | AJ57: =(BC!$F$6/(12*DEFL!$C$6))*(INPUT!$H$9^3)+(2*O13)+((AI57-(INPUT!$H$9/2))^2)*(DEFL!$C$7)+((INPUT!$H$9+INPUT!$H$6+N13-AI57)^2)*(2*M13) -> 22.51597402 | AK57: =AJ57/(INPUT!$H$6+INPUT!$H$9+K13-AI57) -> 5.166726149 | AL57: =AJ57/(INPUT!$H$6+INPUT!$H$9-AI57) -> 8.633821941 | AM57: =((1.2*INPUT!$C$23*INPUT!$C$10)+(1.6*INPUT!$D$25*INPUT!$C$10))/12 -> 65.8178046 | AN57: =AM57*(PANELS!$I$33^2)/12 -> 3159.254621 | AO57: 611.4615967 | AQ57: =WEBS!$G$10-($AD$49*($B$14/12)) ->  | AW57: 17 | AX57: 15 | AY57: 1715 | EK57: =(100+(0.67*INPUT!$C$8)+(40*(INPUT!$C$8/INPUT!$C$7)))*S13 -> 158.696563 | EL57: CONTROLS | EW57: 10 | EX57: =((((3.14159^2/24)+0.125)^2)*($DS33^2)*($DM33^2))+((($DO33/192)*((3.14159^2)+3)*((3.14159^2)+4))-(((3.14159^4)/2)*(29*10^6)*($DY33/(($DT33^3)*($DM33^3))))*(((((3.14159^2)/24)-0.125)*$EC33)-$EA33/2))*$DS33*$DM33+(((((3.14159^2)/16)+0.25)^2)*($DO33^2))-(((3.14159^4)/2)*(29*10^6)*($DY33/(($DT33^3)*($DM33^3))))*((((3.14159^4)/2)*(29*10^6)*($EB33/(($DT33^3)*($DM33^3))))+(((3.14159^2)/2)*$DQ33*($DW33/($DT33*$DM33)))+(($DO33)*(((((3.14159^2)/16)-0.25)*$EC33)-$ED33))) -> 
I58: 1717 | J58: 0.566 | K58: 0.344 | L58: =(0.877*(3.14159^2)*(29*10^6))/(((INPUT!$C$10*12)/(K58))^2) -> 5729.919166 | M58: 2918.820823 | O58: =IF(AND(M58>1.4*N58,INPUT!$C$10*12/K58<=300),I58,"") ->  | Q58: 25470 | R58: =(0.0025*2*MAX(12200,((3.14159^2)*(29*10^6))/(((0.9*EK58)/S14)^2))*$B$24)/COS(ATAN(WEBS!$E$2/(INPUT!$C$10*12))) ->  | S58: =IF(AND(Q58>1.4*R58,(0.5*((((INPUT!$C$10*12)^2)+((INPUT!$C$8)^2))^0.5))/K58<=200),I58,"") ->  | U58: 3 | V58: =IF(INPUT!$C$7>60,MAX(2,U58),IF(MIN($O$49:$O$87)<=2525,HH14,U58)) ->  | X58: =IF(AND(U58>0,V58>0,V58<U58),CONCATENATE(VLOOKUP(MIN($S$49:$S$87),PROPS!$B$3:$AF$43,31),"X+",VLOOKUP(MIN($O$49:$O$87),PROPS!$B$3:$AF$43,31),"H"),IF(AND(U58>0,V58=0,MIN($O$49:$O$87)<3022),CONCATENATE(VLOOKUP(MIN($O$49:$O$87),PROPS!$B$3:$AF$43,31),"H"),IF(OR(V58>=U58,MIN($O$49:$O$87)>=3022),CONCATENATE(VLOOKUP(MIN($S$49:$S$87),PROPS!$B$3:$AF$43,31),"X")))) ->  | AC58: 1717 | AD58: 48 | AE58: =(((WEBS!$G$10*AD58)-((INPUT!$D$30/12)*((AD58^2)/2)))/(INPUT!$C$8-BC!$F$21-N14))-(AD58*STUDS!$AK$55*(MIN(STUDS!$AF$59:$AI$59)*1000))/(INPUT!$C$7*12) ->  | AG58: =1.2*(INPUT!$E$15*INPUT!$C$10/12)*(PANELS!$I$33^2)/12 ->  | AI58: =((DEFL!$C$7*INPUT!$H$9/2)+(2*M14)*(N14+INPUT!$H$6+INPUT!$H$9))/((2*M14)+DEFL!$C$7) -> 1.404899745 | AJ58: =(BC!$F$6/(12*DEFL!$C$6))*(INPUT!$H$9^3)+(2*O14)+((AI58-(INPUT!$H$9/2))^2)*(DEFL!$C$7)+((INPUT!$H$9+INPUT!$H$6+N14-AI58)^2)*(2*M14) -> 23.49752286 | AK58: =AJ58/(INPUT!$H$6+INPUT!$H$9+K14-AI58) -> 5.407820644 | AL58: =AJ58/(INPUT!$H$6+INPUT!$H$9-AI58) -> 9.05457229 | AM58: =((1.2*INPUT!$C$23*INPUT!$C$10)+(1.6*INPUT!$D$25*INPUT!$C$10))/12 -> 65.8178046 | AN58: =AM58*(PANELS!$I$33^2)/12 -> 3159.254621 | AO58: 584.2010726 | AQ58: =WEBS!$G$10-($AD$49*($B$14/12)) ->  | AW58: 17 | AX58: 17 | AY58: 1717 | EK58: =(100+(0.67*INPUT!$C$8)+(40*(INPUT!$C$8/INPUT!$C$7)))*S14 -> 159.1939673 | EL58: CONTROLS
I59: 2016 | J59: 0.625 | K59: 0.395 | L59: =(0.877*(3.14159^2)*(29*10^6))/(((INPUT!$C$10*12)/(K59))^2) -> 7554.849225 | M59: 4249.602689 | O59: =IF(AND(M59>1.4*N59,INPUT!$C$10*12/K59<=300),I59,"") ->  | Q59: 28125 | R59: =(0.0025*2*MAX(12200,((3.14159^2)*(29*10^6))/(((0.9*EK59)/S15)^2))*$B$24)/COS(ATAN(WEBS!$E$2/(INPUT!$C$10*12))) ->  | S59: =IF(AND(Q59>1.4*R59,(0.5*((((INPUT!$C$10*12)^2)+((INPUT!$C$8)^2))^0.5))/K59<=200),I59,"") ->  | U59: 2 | V59: =IF(INPUT!$C$7>60,MAX(2,U59),IF(MIN($O$49:$O$87)<=2525,HH15,U59)) ->  | X59: =IF(AND(U59>0,V59>0,V59<U59),CONCATENATE(VLOOKUP(MIN($S$49:$S$87),PROPS!$B$3:$AF$43,31),"X+",VLOOKUP(MIN($O$49:$O$87),PROPS!$B$3:$AF$43,31),"H"),IF(AND(U59>0,V59=0,MIN($O$49:$O$87)<3022),CONCATENATE(VLOOKUP(MIN($O$49:$O$87),PROPS!$B$3:$AF$43,31),"H"),IF(OR(V59>=U59,MIN($O$49:$O$87)>=3022),CONCATENATE(VLOOKUP(MIN($S$49:$S$87),PROPS!$B$3:$AF$43,31),"X")))) ->  | Y59: Total # rows | AC59: 2016 | AD59: 48 | AE59: =(((WEBS!$G$10*AD59)-((INPUT!$D$30/12)*((AD59^2)/2)))/(INPUT!$C$8-BC!$F$21-N15))-(AD59*STUDS!$AK$55*(MIN(STUDS!$AF$59:$AI$59)*1000))/(INPUT!$C$7*12) ->  | AG59: =1.2*(INPUT!$E$15*INPUT!$C$10/12)*(PANELS!$I$33^2)/12 ->  | AI59: =((DEFL!$C$7*INPUT!$H$9/2)+(2*M15)*(N15+INPUT!$H$6+INPUT!$H$9))/((2*M15)+DEFL!$C$7) -> 1.423343109 | AJ59: =(BC!$F$6/(12*DEFL!$C$6))*(INPUT!$H$9^3)+(2*O15)+((AI59-(INPUT!$H$9/2))^2)*(DEFL!$C$7)+((INPUT!$H$9+INPUT!$H$6+N15-AI59)^2)*(2*M15) -> 25.24056691 | AK59: =AJ59/(INPUT!$H$6+INPUT!$H$9+K15-AI59) -> 5.515066458 | AL59: =AJ59/(INPUT!$H$6+INPUT!$H$9-AI59) -> 9.795858734 | AM59: =((1.2*INPUT!$C$23*INPUT!$C$10)+(1.6*INPUT!$D$25*INPUT!$C$10))/12 -> 65.8178046 | AN59: =AM59*(PANELS!$I$33^2)/12 -> 3159.254621 | AO59: 572.8407164 | AQ59: =WEBS!$G$10-($AD$49*($B$14/12)) ->  | AW59: 20 | AX59: 16 | AY59: 2016 | EK59: =(100+(0.67*INPUT!$C$8)+(40*(INPUT!$C$8/INPUT!$C$7)))*S15 -> 172.0875816 | EL59: CONTROLS
F60: deck attachment | I60: 2017 | J60: 0.673 | K60: 0.394 | L60: =(0.877*(3.14159^2)*(29*10^6))/(((INPUT!$C$10*12)/(K60))^2) -> 7516.645245 | M60: 4552.832025 | O60: =IF(AND(M60>1.4*N60,INPUT!$C$10*12/K60<=300),I60,"") ->  | Q60: 30285 | R60: =(0.0025*2*MAX(12200,((3.14159^2)*(29*10^6))/(((0.9*EK60)/S16)^2))*$B$24)/COS(ATAN(WEBS!$E$2/(INPUT!$C$10*12))) ->  | S60: =IF(AND(Q60>1.4*R60,(0.5*((((INPUT!$C$10*12)^2)+((INPUT!$C$8)^2))^0.5))/K60<=200),I60,"") ->  | U60: 2 | V60: =IF(INPUT!$C$7>60,MAX(2,U60),IF(MIN($O$49:$O$87)<=2525,HH16,U60)) ->  | X60: =IF(AND(U60>0,V60>0,V60<U60),CONCATENATE(VLOOKUP(MIN($S$49:$S$87),PROPS!$B$3:$AF$43,31),"X+",VLOOKUP(MIN($O$49:$O$87),PROPS!$B$3:$AF$43,31),"H"),IF(AND(U60>0,V60=0,MIN($O$49:$O$87)<3022),CONCATENATE(VLOOKUP(MIN($O$49:$O$87),PROPS!$B$3:$AF$43,31),"H"),IF(OR(V60>=U60,MIN($O$49:$O$87)>=3022),CONCATENATE(VLOOKUP(MIN($S$49:$S$87),PROPS!$B$3:$AF$43,31),"X")))) ->  | Y60: =IFERROR(VLOOKUP(B17,I49:U87,13),0) -> 0 | AC60: 2017 | AD60: 48 | AE60: =(((WEBS!$G$10*AD60)-((INPUT!$D$30/12)*((AD60^2)/2)))/(INPUT!$C$8-BC!$F$21-N16))-(AD60*STUDS!$AK$55*(MIN(STUDS!$AF$59:$AI$59)*1000))/(INPUT!$C$7*12) ->  | AG60: =1.2*(INPUT!$E$15*INPUT!$C$10/12)*(PANELS!$I$33^2)/12 ->  | AI60: =((DEFL!$C$7*INPUT!$H$9/2)+(2*M16)*(N16+INPUT!$H$6+INPUT!$H$9))/((2*M16)+DEFL!$C$7) -> 1.436188969 | AJ60: =(BC!$F$6/(12*DEFL!$C$6))*(INPUT!$H$9^3)+(2*O16)+((AI60-(INPUT!$H$9/2))^2)*(DEFL!$C$7)+((INPUT!$H$9+INPUT!$H$6+N16-AI60)^2)*(2*M16) -> 26.25737255 | AK60: =AJ60/(INPUT!$H$6+INPUT!$H$9+K16-AI60) -> 5.753387329 | AL60: =AJ60/(INPUT!$H$6+INPUT!$H$9-AI60) -> 10.24153974 | AM60: =((1.2*INPUT!$C$23*INPUT!$C$10)+(1.6*INPUT!$D$25*INPUT!$C$10))/12 -> 65.8178046 | AN60: =AM60*(PANELS!$I$33^2)/12 -> 3159.254621 | AO60: 549.1121039 | AQ60: =WEBS!$G$10-($AD$49*($B$14/12)) ->  | AW60: 20 | AX60: 17 | AY60: 2017 | EK60: =(100+(0.67*INPUT!$C$8)+(40*(INPUT!$C$8/INPUT!$C$7)))*S16 -> 172.564864 | EL60: CONTROLS
F61: =(0.01*(B15/(B27/12)))/36 ->  | I61: 2018 | J61: 0.713 | K61: 0.394 | L61: =(0.877*(3.14159^2)*(29*10^6))/(((INPUT!$C$10*12)/(K61))^2) -> 7516.645245 | M61: 4823.431253 | O61: =IF(AND(M61>1.4*N61,INPUT!$C$10*12/K61<=300),I61,"") ->  | Q61: 32085 | R61: =(0.0025*2*MAX(12200,((3.14159^2)*(29*10^6))/(((0.9*EK61)/S17)^2))*$B$24)/COS(ATAN(WEBS!$E$2/(INPUT!$C$10*12))) ->  | S61: =IF(AND(Q61>1.4*R61,(0.5*((((INPUT!$C$10*12)^2)+((INPUT!$C$8)^2))^0.5))/K61<=200),I61,"") ->  | U61: 2 | V61: =IF(INPUT!$C$7>60,MAX(2,U61),IF(MIN($O$49:$O$87)<=2525,HH17,U61)) ->  | X61: =IF(AND(U61>0,V61>0,V61<U61),CONCATENATE(VLOOKUP(MIN($S$49:$S$87),PROPS!$B$3:$AF$43,31),"X+",VLOOKUP(MIN($O$49:$O$87),PROPS!$B$3:$AF$43,31),"H"),IF(AND(U61>0,V61=0,MIN($O$49:$O$87)<3022),CONCATENATE(VLOOKUP(MIN($O$49:$O$87),PROPS!$B$3:$AF$43,31),"H"),IF(OR(V61>=U61,MIN($O$49:$O$87)>=3022),CONCATENATE(VLOOKUP(MIN($S$49:$S$87),PROPS!$B$3:$AF$43,31),"X")))) ->  | Y61: # rows X | AC61: 2018 | AD61: 48 | AE61: =(((WEBS!$G$10*AD61)-((INPUT!$D$30/12)*((AD61^2)/2)))/(INPUT!$C$8-BC!$F$21-N17))-(AD61*STUDS!$AK$55*(MIN(STUDS!$AF$59:$AI$59)*1000))/(INPUT!$C$7*12) ->  | AG61: =1.2*(INPUT!$E$15*INPUT!$C$10/12)*(PANELS!$I$33^2)/12 ->  | AI61: =((DEFL!$C$7*INPUT!$H$9/2)+(2*M17)*(N17+INPUT!$H$6+INPUT!$H$9))/((2*M17)+DEFL!$C$7) -> 1.446836111 | AJ61: =(BC!$F$6/(12*DEFL!$C$6))*(INPUT!$H$9^3)+(2*O17)+((AI61-(INPUT!$H$9/2))^2)*(DEFL!$C$7)+((INPUT!$H$9+INPUT!$H$6+N17-AI61)^2)*(2*M17) -> 27.10151976 | AK61: =AJ61/(INPUT!$H$6+INPUT!$H$9+K17-AI61) -> 5.952239019 | AL61: =AJ61/(INPUT!$H$6+INPUT!$H$9-AI61) -> 10.61487665 | AM61: =((1.2*INPUT!$C$23*INPUT!$C$10)+(1.6*INPUT!$D$25*INPUT!$C$10))/12 -> 65.8178046 | AN61: =AM61*(PANELS!$I$33^2)/12 -> 3159.254621 | AO61: 530.7674323 | AQ61: =WEBS!$G$10-($AD$49*($B$14/12)) ->  | AW61: 20 | AX61: 18 | AY61: 2018 | EK61: =(100+(0.67*INPUT!$C$8)+(40*(INPUT!$C$8/INPUT!$C$7)))*S17 -> 172.9433646 | EL61: CONTROLS | EX61: g(L) pieces
I62: 2020 | J62: 0.778 | K62: 0.393 | L62: =(0.877*(3.14159^2)*(29*10^6))/(((INPUT!$C$10*12)/(K62))^2) -> 7478.538106 | M62: 5236.472382 | O62: =IF(AND(M62>1.4*N62,INPUT!$C$10*12/K62<=300),I62,"") ->  | Q62: 35010 | R62: =(0.0025*2*MAX(12200,((3.14159^2)*(29*10^6))/(((0.9*EK62)/S18)^2))*$B$24)/COS(ATAN(WEBS!$E$2/(INPUT!$C$10*12))) ->  | S62: =IF(AND(Q62>1.4*R62,(0.5*((((INPUT!$C$10*12)^2)+((INPUT!$C$8)^2))^0.5))/K62<=200),I62,"") ->  | U62: 2 | V62: =IF(INPUT!$C$7>60,MAX(2,U62),IF(MIN($O$49:$O$87)<=2525,HH18,U62)) ->  | X62: =IF(AND(U62>0,V62>0,V62<U62),CONCATENATE(VLOOKUP(MIN($S$49:$S$87),PROPS!$B$3:$AF$43,31),"X+",VLOOKUP(MIN($O$49:$O$87),PROPS!$B$3:$AF$43,31),"H"),IF(AND(U62>0,V62=0,MIN($O$49:$O$87)<3022),CONCATENATE(VLOOKUP(MIN($O$49:$O$87),PROPS!$B$3:$AF$43,31),"H"),IF(OR(V62>=U62,MIN($O$49:$O$87)>=3022),CONCATENATE(VLOOKUP(MIN($S$49:$S$87),PROPS!$B$3:$AF$43,31),"X")))) ->  | Y62: =IFERROR(VLOOKUP(B17,I49:V87,14),0) -> 0 | AC62: 2020 | AD62: 48 | AE62: =(((WEBS!$G$10*AD62)-((INPUT!$D$30/12)*((AD62^2)/2)))/(INPUT!$C$8-BC!$F$21-N18))-(AD62*STUDS!$AK$55*(MIN(STUDS!$AF$59:$AI$59)*1000))/(INPUT!$C$7*12) ->  | AG62: =1.2*(INPUT!$E$15*INPUT!$C$10/12)*(PANELS!$I$33^2)/12 ->  | AI62: =((DEFL!$C$7*INPUT!$H$9/2)+(2*M18)*(N18+INPUT!$H$6+INPUT!$H$9))/((2*M18)+DEFL!$C$7) -> 1.464011703 | AJ62: =(BC!$F$6/(12*DEFL!$C$6))*(INPUT!$H$9^3)+(2*O18)+((AI62-(INPUT!$H$9/2))^2)*(DEFL!$C$7)+((INPUT!$H$9+INPUT!$H$6+N18-AI62)^2)*(2*M18) -> 28.46396917 | AK62: =AJ62/(INPUT!$H$6+INPUT!$H$9+K18-AI62) -> 6.27514167 | AL62: =AJ62/(INPUT!$H$6+INPUT!$H$9-AI62) -> 11.22401441 | AM62: =((1.2*INPUT!$C$23*INPUT!$C$10)+(1.6*INPUT!$D$25*INPUT!$C$10))/12 -> 65.8178046 | AN62: =AM62*(PANELS!$I$33^2)/12 -> 3159.254621 | AO62: 503.4555054 | AQ62: =WEBS!$G$10-($AD$49*($B$14/12)) ->  | AW62: 20 | AX62: 20 | AY62: 2020 | EK62: =(100+(0.67*INPUT!$C$8)+(40*(INPUT!$C$8/INPUT!$C$7)))*S18 -> 173.4684248 | EL62: CONTROLS | EW62: 1 | EX62: =2*((((3.14159^2)/24)+(1/8))^2)*($DS33^2)*($DM33) -> 
I63: 2021 | J63: 0.828 | K63: 0.392 | L63: =(0.877*(3.14159^2)*(29*10^6))/(((INPUT!$C$10*12)/(K63))^2) -> 7440.527808 | M63: 5544.681323 | O63: =IF(AND(M63>1.4*N63,INPUT!$C$10*12/K63<=300),I63,"") ->  | Q63: 37260 | R63: =(0.0025*2*MAX(12200,((3.14159^2)*(29*10^6))/(((0.9*EK63)/S19)^2))*$B$24)/COS(ATAN(WEBS!$E$2/(INPUT!$C$10*12))) ->  | S63: =IF(AND(Q63>1.4*R63,(0.5*((((INPUT!$C$10*12)^2)+((INPUT!$C$8)^2))^0.5))/K63<=200),I63,"") ->  | U63: 2 | V63: =IF(INPUT!$C$7>60,MAX(2,U63),IF(MIN($O$49:$O$87)<=2525,HH19,U63)) ->  | X63: =IF(AND(U63>0,V63>0,V63<U63),CONCATENATE(VLOOKUP(MIN($S$49:$S$87),PROPS!$B$3:$AF$43,31),"X+",VLOOKUP(MIN($O$49:$O$87),PROPS!$B$3:$AF$43,31),"H"),IF(AND(U63>0,V63=0,MIN($O$49:$O$87)<3022),CONCATENATE(VLOOKUP(MIN($O$49:$O$87),PROPS!$B$3:$AF$43,31),"H"),IF(OR(V63>=U63,MIN($O$49:$O$87)>=3022),CONCATENATE(VLOOKUP(MIN($S$49:$S$87),PROPS!$B$3:$AF$43,31),"X")))) ->  | Y63: X mat'l size | AC63: 2021 | AD63: 48 | AE63: =(((WEBS!$G$10*AD63)-((INPUT!$D$30/12)*((AD63^2)/2)))/(INPUT!$C$8-BC!$F$21-N19))-(AD63*STUDS!$AK$55*(MIN(STUDS!$AF$59:$AI$59)*1000))/(INPUT!$C$7*12) ->  | AG63: =1.2*(INPUT!$E$15*INPUT!$C$10/12)*(PANELS!$I$33^2)/12 ->  | AI63: =((DEFL!$C$7*INPUT!$H$9/2)+(2*M19)*(N19+INPUT!$H$6+INPUT!$H$9))/((2*M19)+DEFL!$C$7) -> 1.477236703 | AJ63: =(BC!$F$6/(12*DEFL!$C$6))*(INPUT!$H$9^3)+(2*O19)+((AI63-(INPUT!$H$9/2))^2)*(DEFL!$C$7)+((INPUT!$H$9+INPUT!$H$6+N19-AI63)^2)*(2*M19) -> 29.52342948 | AK63: =AJ63/(INPUT!$H$6+INPUT!$H$9+K19-AI63) -> 6.527741459 | AL63: =AJ63/(INPUT!$H$6+INPUT!$H$9-AI63) -> 11.70281394 | AM63: =((1.2*INPUT!$C$23*INPUT!$C$10)+(1.6*INPUT!$D$25*INPUT!$C$10))/12 -> 65.8178046 | AN63: =AM63*(PANELS!$I$33^2)/12 -> 3159.254621 | AO63: 483.9736134 | AQ63: =WEBS!$G$10-($AD$49*($B$14/12)) ->  | AW63: 20 | AX63: 21 | AY63: 2021 | EK63: =(100+(0.67*INPUT!$C$8)+(40*(INPUT!$C$8/INPUT!$C$7)))*S19 -> 174.069614 | EL63: CONTROLS | EW63: 2 | EX63: =(($DO33*$DS33/192)*((3.14159^2)+3)*((3.14159^2)+4)) -> 
I64: 2023 | J64: 0.874 | K64: 0.392 | L64: =(0.877*(3.14159^2)*(29*10^6))/(((INPUT!$C$10*12)/(K64))^2) -> 7440.527808 | M64: 5852.719174 | O64: =IF(AND(M64>1.4*N64,INPUT!$C$10*12/K64<=300),I64,"") ->  | Q64: 39330 | R64: =(0.0025*2*MAX(12200,((3.14159^2)*(29*10^6))/(((0.9*EK64)/S20)^2))*$B$24)/COS(ATAN(WEBS!$E$2/(INPUT!$C$10*12))) ->  | S64: =IF(AND(Q64>1.4*R64,(0.5*((((INPUT!$C$10*12)^2)+((INPUT!$C$8)^2))^0.5))/K64<=200),I64,"") ->  | U64: 2 | V64: =IF(INPUT!$C$7>60,MAX(2,U64),IF(MIN($O$49:$O$87)<=2525,HH20,U64)) ->  | X64: =IF(AND(U64>0,V64>0,V64<U64),CONCATENATE(VLOOKUP(MIN($S$49:$S$87),PROPS!$B$3:$AF$43,31),"X+",VLOOKUP(MIN($O$49:$O$87),PROPS!$B$3:$AF$43,31),"H"),IF(AND(U64>0,V64=0,MIN($O$49:$O$87)<3022),CONCATENATE(VLOOKUP(MIN($O$49:$O$87),PROPS!$B$3:$AF$43,31),"H"),IF(OR(V64>=U64,MIN($O$49:$O$87)>=3022),CONCATENATE(VLOOKUP(MIN($S$49:$S$87),PROPS!$B$3:$AF$43,31),"X")))) ->  | Y64: =IF(AND(Y60>0,Y62>0,Y62<Y60),CONCATENATE(VLOOKUP(MIN($S$49:$S$87),PROPS!$B$3:$AF$43,31),"X"),IF(AND(Y60>0,Y62=0,MIN($O$49:$O$87)<3022),"",IF(OR(Y62>=Y60,MIN($O$49:$O$87)>=3022),CONCATENATE(VLOOKUP(MIN($S$49:$S$87),PROPS!$B$3:$AF$43,31),"X")))) ->  | AC64: 2023 | AD64: 48 | AE64: =(((WEBS!$G$10*AD64)-((INPUT!$D$30/12)*((AD64^2)/2)))/(INPUT!$C$8-BC!$F$21-N20))-(AD64*STUDS!$AK$55*(MIN(STUDS!$AF$59:$AI$59)*1000))/(INPUT!$C$7*12) ->  | AG64: =1.2*(INPUT!$E$15*INPUT!$C$10/12)*(PANELS!$I$33^2)/12 ->  | AI64: =((DEFL!$C$7*INPUT!$H$9/2)+(2*M20)*(N20+INPUT!$H$6+INPUT!$H$9))/((2*M20)+DEFL!$C$7) -> 1.489242287 | AJ64: =(BC!$F$6/(12*DEFL!$C$6))*(INPUT!$H$9^3)+(2*O20)+((AI64-(INPUT!$H$9/2))^2)*(DEFL!$C$7)+((INPUT!$H$9+INPUT!$H$6+N20-AI64)^2)*(2*M20) -> 30.48161627 | AK64: =AJ64/(INPUT!$H$6+INPUT!$H$9+K20-AI64) -> 6.757537915 | AL64: =AJ64/(INPUT!$H$6+INPUT!$H$9-AI64) -> 12.14040531 | AM64: =((1.2*INPUT!$C$23*INPUT!$C$10)+(1.6*INPUT!$D$25*INPUT!$C$10))/12 -> 65.8178046 | AN64: =AM64*(PANELS!$I$33^2)/12 -> 3159.254621 | AO64: 467.5156337 | AQ64: =WEBS!$G$10-($AD$49*($B$14/12)) ->  | AW64: 20 | AX64: 23 | AY64: 2023 | EK64: =(100+(0.67*INPUT!$C$8)+(40*(INPUT!$C$8/INPUT!$C$7)))*S20 -> 174.4750736 | EL64: CONTROLS | EW64: 3 | EX64: =(((3.14159^4))*(29*10^6)*($DY33/(($DT33^3)*($DM33^3)))) -> 
